Workbook

Sheet Data (hidden)
A1: Financial Returns Data spreadsheet | K1: Ann Geometrics | AM1: Land Returns by State workbook | AP1: =SUM(AO2:CC2) -> 32 | AQ1: Total rate of return - Cap Gain plus rental income less taxes mixed time definition | AX1: By convention, use the ERS data of publication as the year for this sheet. | BE1: Select states in Ave 1 with logicals in AO2:CC2 | CC1: =SUM(AO2:CB2) -> 32 | CD1: NCREIF
A2: Return Matrix | B2: Stock Indexes | G2: MSCI equity Indexes | L2: REITS | P2: Interest Rates | R2: Treasury Series | AA2: CDs | AC2: Corporate Bonds | AE2: Comm Paper | AF2: Municipal bonds | AG2: Mortgages | AH2: Commodity indexes | AJ2: Inflation Ref | AL2: US Return rates (cont) | AM2: States land returns - from Land return by state | AN2: States land returns - from Land return by state | AO2: 1 | AQ2: 1 | AR2: 1 | AS2: 1 | AU2: 1 | AV2: 1 | AW2: 1 | AX2: 1 | AY2: 1 | AZ2: 1 | BA2: 1 | BB2: 1 | BC2: 1 | BE2: 1 | BF2: 1 | BG2: 1 | BH2: 1 | BI2: 1 | BJ2: 1 | BM2: 1 | BN2: 1 | BO2: 1 | BP2: 1 | BQ2: 1 | BR2: 1 | BS2: 1 | BU2: 1 | BV2: 1 | BW2: 1 | BY2: 1 | BZ2: 1 | CB2: 1 | CH2: 1 | CI2: 1 | CJ2: 1 | CM2: 1 | CP2: 1 | CQ2: 1 | CV2: 1
A3: Year | B3: S&P500 | C3: Dow Jones | D3: NASDAQ | E3: NYSE | F3: Wilshire5000 | G3: EAFE | H3: EUROPE | I3: PACIFIC | J3: North America | K3: MSCIUSA | L3: All REITS | M3: Equity REITS | N3: Mortgage REITS | O3: Composite REITS | P3: BBALibor | Q3: ED3M | R3: TCM1Y | S3: TCM3Y | T3: TCM5Y | U3: TCM7Y | V3: TCM10Y | W3: TCM20Y | X3: TCM30Y | Y3: TBSM3M | Z3: TBSM6M | AA3: CD3M | AB3: CD6M | AC3: AAA | AD3: BAA | AE3: CP3M | AF3: Muni20 | AG3: Mort30F | AH3: SPGSI | AI3: FedFunds | AJ3: CPI | AK3: PPI | AL3: Gold | AM3: US Ag 32 States | AN3: US Ave Farm (all) | AO3: Alabama | AP3: Arizona | AQ3: Arkansas | AR3: California | AS3: Colorado | AT3: Delaware | AU3: Florida | AV3: Georgia | AW3: Idaho | AX3: Illinois | AY3: Indiana | AZ3: Iowa | BA3: Kansas | BB3: Kentucky | BC3: Louisiana | BD3: Maryland | BE3: Michigan | BF3: Minnesota | BG3: Mississippi | BH3: Missouri | BI3: Montana | BJ3: Nebraska | BK3: New Jersey | BL3: New Mexico | BM3: New York | BN3: North Carolina | BO3: North Dakota | BP3: Ohio | BQ3: Oklahoma | BR3: Oregon | BS3: Pennsylvania | BT3: South Carolina | BU3: South Dakota | BV3: Tennessee | BW3: Texas | BX3: Utah | BY3: Virginia | BZ3: Washington | CA3: West Virginia | CB3: Wisconsin | CC3: Wyoming | CD3: NCREIFCustom | CE3: NCREIF Total Farmland | CF3: NCREIF Annual Cropland | CG3: NCREIF Permanent Cropland | CH3: NCREIF Delta States Annual Cropland | CI3: NCREIF Corn Belt Annual Cropland | CJ3: NCREIF Pacific Northwest Annual Cropland | CK3: NCREIF Pacific West Permanent Cropland | CL3: NCREIF Permanent - Citrus | CM3: NCREIF Annual - Commodity | CN3: NCREIF Annual - Fresh Produce | CO3: NCREIF Leased Permanent and Annual Cropland | CP3: NCREIF Leased Permanent Cropland | CQ3: NCREIF Permanent Cropland Operated | CR3: NCREIF Pacific West | CS3: NCREIF Delta States | CT3: NCREIF Corn Belt | CU3: NCREIF Mountain | CV3: NCREIF Pacific Northwest | CW3: Pasture/Ranchland
A4: 1960 | B4: 0.04397472489 | C4: -0.09812544303 | R4: 0.03626666667 | S4: 0.03980833333 | T4: 0.0409 | W4: 0.04059166667 | Y4: 0.02883333333 | Z4: 0.03211666667 | AC4: 0.0441 | AD4: 0.05189166667 | AF4: 0.03515 | AI4: 0.03215833333 | AJ4: 0.01350915512 | AK4: 0.006329135052
A5: 1961 | B5: 0.2080587399 | C5: 0.1714656366 | R5: 0.02980833333 | S5: 0.03535 | T5: 0.03750833333 | W5: 0.03923333333 | Y5: 0.02354166667 | Z5: 0.02591666667 | AC5: 0.0435 | AD5: 0.05075 | AF5: 0.03453333333 | AI5: 0.01955 | AJ5: 0.006686751762 | AK5: -0.00315956029
A6: 1962 | B6: -0.1256757365 | C6: -0.1143523249 | R6: 0.03100833333 | S6: 0.03471666667 | T6: 0.03701666667 | W6: 0.03993333333 | Y6: 0.02773333333 | Z6: 0.02899166667 | AC6: 0.04325 | AD6: 0.0502 | AF6: 0.03154166667 | AI6: 0.02708333333 | AJ6: 0.01225383772 | AK6: 0
A7: 1963 | B7: 0.1730339751 | C7: 0.1570601069 | R7: 0.03356666667 | S7: 0.03669166667 | T7: 0.03829166667 | W7: 0.04050833333 | Y7: 0.03159166667 | Z7: 0.03258333333 | AC7: 0.04259166667 | AD7: 0.04855833333 | AF7: 0.0317 | AI7: 0.03178333333 | AJ7: 0.01632422799 | AK7: 0
A8: 1964 | B8: 0.1219510016 | C8: 0.1359367543 | R8: 0.03845833333 | S8: 0.04030833333 | T8: 0.04068333333 | W8: 0.0419 | Y8: 0.03546666667 | Z8: 0.03681666667 | AC8: 0.04405833333 | AD8: 0.04828333333 | AF8: 0.03206666667 | AI8: 0.03496666667 | AJ8: 0.01191065103 | AK8: 0.00315956029
A9: 1965 | B9: 0.08674585502 | C9: 0.1033793759 | R9: 0.04144166667 | S9: 0.042175 | T9: 0.042475 | W9: 0.04266666667 | Y9: 0.03949166667 | Z9: 0.04053333333 | AA9: 0.04344166667 | AB9: 0.04425833333 | AC9: 0.04493333333 | AD9: 0.04865833333 | AF9: 0.03260833333 | AI9: 0.04075 | AJ9: 0.01901800584 | AK9: 0.03411183451
A10: 1966 | B10: -0.1403084511 | C10: -0.2099991213 | R10: 0.05203333333 | S10: 0.0523 | T10: 0.05104166667 | W10: 0.047675 | Y10: 0.048625 | Z10: 0.05060833333 | AA10: 0.05483333333 | AB10: 0.05628333333 | AC10: 0.0513 | AD10: 0.05665 | AF10: 0.03808333333 | AI10: 0.05111666667 | AJ10: 0.03304299379 | AK10: 0.0151288816
A11: 1967 | B11: 0.183088929 | C11: 0.1414703947 | E11: 0.08817033208 | R11: 0.04885 | S11: 0.05039166667 | T11: 0.051075 | W11: 0.0501 | Y11: 0.04306666667 | Z11: 0.04620833333 | AA11: 0.05020833333 | AB11: 0.05211666667 | AC11: 0.05506666667 | AD11: 0.06228333333 | AF11: 0.039375 | AI11: 0.0422 | AJ11: 0.03228014881 | AK11: 0.01194044037
A12: 1968 | B12: 0.07381175923 | C12: 0.04186884446 | E12: 0.1222804728 | R12: 0.05690833333 | S12: 0.05685 | T12: 0.05698333333 | W12: 0.05454166667 | Y12: 0.05338333333 | Z12: 0.05471666667 | AA12: 0.05859166667 | AB12: 0.06003333333 | AC12: 0.06175 | AD12: 0.06935833333 | AF12: 0.04445 | AI12: 0.05659166667 | AJ12: 0.04598511324 | AK12: 0.02635584471 | AL12: 0.1549620389
A13: 1969 | B13: -0.1206033 | C13: -0.1648026766 | E13: -0.2053851232 | G13: 0 | H13: 0 | I13: 0 | J13: 0 | K13: 0 | R13: 0.071225 | S13: 0.07016666667 | T13: 0.06933333333 | U13: 0.07145 | V13: 0.06670833333 | W13: 0.06326666667 | Y13: 0.06666666667 | Z13: 0.06860833333 | AA13: 0.07760833333 | AB13: 0.078925 | AC13: 0.07029166667 | AD13: 0.07813333333 | AF13: 0.05715 | AI13: 0.08204166667 | AJ13: 0.0573144566 | AK13: 0.04796405921 | AL13: -0.155814675 | AM13: 0.1290908559 | AN13: 0.1264556573 | AO13: 0.1946623886 | AP13: 0.05856774096 | AQ13: 0.1706469812 | AR13: 0.0176171759 | AS13: 0.0851922918 | AT13: 0.1023934451 | AU13: 0.05522192901 | AV13: 0.2652896985 | AW13: 0.07289910914 | AX13: 0.1052999283 | AY13: 0.07018564987 | AZ13: 0.1210660351 | BA13: 0.05849333877 | BB13: 0.1420439315 | BC13: 0.09993408236 | BD13: 0.09363909311 | BE13: 0.1250556826 | BF13: 0.156379575 | BG13: 0.2059719456 | BH13: 0.1744599412 | BI13: 0.06006834075 | BJ13: 0.08119870616 | BK13: 0.1140567087 | BM13: 0.1534281968 | BN13: 0.1438230936 | BO13: 0.183325324 | BP13: 0.08824723945 | BQ13: 0.05405742474 | BR13: 0.1089347189 | BS13: 0.1413093815 | BT13: 0.1926387109 | BU13: 0.1168625096 | BV13: 0.1830080661 | BW13: 0.2370730827 | BX13: 0.05669594262 | BY13: 0.1173471187 | BZ13: 0.1491666535 | CA13: 0.1828716055 | CB13: 0.1926378475
A14: 1970 | B14: 0.0009771457267 | C14: 0.04697990714 | E14: 0.1018930352 | G14: -0.1384395561 | H14: -0.1290792885 | I14: -0.1470604966 | J14: 0.08508128846 | K14: 0.08624606279 | R14: 0.068975 | S14: 0.07286666667 | T14: 0.07375833333 | U14: 0.07375 | V14: 0.07348333333 | W14: 0.068625 | Y14: 0.06391666667 | Z14: 0.06508333333 | AA14: 0.07564166667 | AB14: 0.076575 | AC14: 0.0804 | AD14: 0.09105 | AF14: 0.063275 | AI14: 0.07183333333 | AJ14: 0.05420681784 | AK14: 0.02179922834 | AL14: 0.06254620512 | AM14: 0.1115940345 | AN14: 0.1102525755 | AO14: 0.1652885364 | AP14: 0.07252721017 | AQ14: 0.1395065442 | AR14: -0.00430277992 | AS14: 0.05995708552 | AT14: 0.1344505983 | AU14: 0.1283153597 | AV14: 0.1919817499 | AW14: 0.08947446628 | AX14: 0.05038765708 | AY14: 0.04143298504 | AZ14: 0.1018653988 | BA14: 0.001502791122 | BB14: 0.1561545294 | BC14: 0.1269933984 | BD14: 0.126191423 | BE14: 0.07865205481 | BF14: 0.1239447197 | BG14: 0.1741545347 | BH14: 0.1235564517 | BI14: 0.09419156697 | BJ14: 0.05895782238 | BK14: 0.1307023861 | BM14: 0.1440291899 | BN14: 0.05784546347 | BO14: 0.1297009977 | BP14: 0.1103158316 | BQ14: 0.08365784462 | BR14: 0.0911848798 | BS14: 0.1693090608 | BT14: 0.07377879418 | BU14: 0.0900276251 | BV14: 0.1398789602 | BW14: 0.1913458127 | BX14: 0.05459473481 | BY14: 0.1684740203 | BZ14: 0.1103513703 | CA14: 0.1365961931 | CB14: 0.1828731766
A15: 1971 | B15: 0.1024370931 | C15: 0.05935464673 | E15: 0.0919563903 | F15: 0.1167242743 | G15: 0.2322552845 | H15: 0.2074955937 | I15: 0.2888054356 | J15: 0.09267711453 | K15: 0.09537322782 | L15: 0 | M15: 0 | N15: 0 | O15: 0 | Q15: 0.06625 | R15: 0.0488 | S15: 0.05654166667 | T15: 0.059875 | U15: 0.06178333333 | V15: 0.06159166667 | W15: 0.0612 | Y15: 0.043325 | Z15: 0.04511666667 | AA15: 0.05005 | AB15: 0.05216666667 | AC15: 0.07386666667 | AD15: 0.08563333333 | AF15: 0.05474166667 | AG15: 0.07551111111 | AI15: 0.046625 | AJ15: 0.03214120921 | AK15: 0.03963530686 | AL15: 0.1495614106 | AM15: 0.1108518764 | AN15: 0.1135274294 | AO15: 0.21421257 | AP15: 0.1137326262 | AQ15: 0.06898350028 | AR15: -0.006459596876 | AS15: 0.1116274837 | AT15: 0.1522833044 | AU15: 0.07115075571 | AV15: 0.1904760274 | AW15: 0.09772002292 | AX15: 0.0635479256 | AY15: 0.1033301014 | AZ15: 0.07533600795 | BA15: 0.03866208443 | BB15: 0.1430699345 | BC15: 0.1512989163 | BD15: 0.09395978708 | BE15: 0.06708183569 | BF15: 0.09769857971 | BG15: 0.1047783029 | BH15: 0.1426003982 | BI15: 0.07257062532 | BJ15: 0.1551980816 | BK15: 0.03970686453 | BM15: 0.104540686 | BN15: 0.179774166 | BO15: 0.1029936358 | BP15: 0.09810391192 | BQ15: 0.0678695767 | BR15: 0.149692095 | BS15: 0.07563868226 | BT15: 0.1224837376 | BU15: 0.09066184239 | BV15: 0.1095711647 | BW15: 0.2086708756 | BX15: 0.1950350563 | BY15: 0.1475007133 | BZ15: 0.06700936374 | CA15: 0.163108326 | CB15: 0.1823497746
A16: 1972 | B16: 0.1452534864 | C16: 0.1361117497 | E16: 0.0837256575 | F16: 0.1637893087 | G16: 0.2872896395 | H16: 0.1107385514 | I16: 0.7046478912 | J16: 0.1327464016 | K16: 0.1248929092 | L16: 0.1060924044 | M16: 0.07705605628 | N16: 0.1148424983 | O16: 0.1060924044 | Q16: 0.05466666667 | R16: 0.0496 | S16: 0.05720833333 | T16: 0.05981666667 | U16: 0.06145 | V16: 0.0621 | W16: 0.0601 | Y16: 0.040725 | Z16: 0.04484166667 | AA16: 0.04665833333 | AB16: 0.05015 | AC16: 0.07213333333 | AD16: 0.08155 | AF16: 0.052575 | AG16: 0.07384166667 | AI16: 0.04434166667 | AJ16: 0.03349595443 | AK16: 0.06275584503 | AL16: 0.3851747814 | AM16: 0.1422760321 | AN16: 0.1417538261 | AO16: 0.1267647174 | AP16: 0.1594780973 | AQ16: 0.239642303 | AR16: 0.05936843665 | AS16: 0.154422214 | AT16: 0.05707120801 | AU16: 0.08118804806 | AV16: 0.2310901821 | AW16: 0.1263458557 | AX16: 0.1101885211 | AY16: 0.09724475654 | AZ16: 0.1342922345 | BA16: 0.09486369667 | BB16: 0.1840184901 | BC16: 0.1461553517 | BD16: 0.08361657116 | BE16: 0.1581955813 | BF16: 0.1170280087 | BG16: 0.1263583808 | BH16: 0.1961384814 | BI16: 0.102023695 | BJ16: 0.2232810803 | BK16: 0.08108549849 | BM16: 0.1783224177 | BN16: 0.1273810009 | BO16: 0.1225194424 | BP16: 0.1115127486 | BQ16: 0.08082737234 | BR16: 0.1640388409 | BS16: 0.09434412462 | BT16: 0.1909263394 | BU16: 0.100902124 | BV16: 0.1682396361 | BW16: 0.2357730651 | BX16: 0.1857251151 | BY16: 0.1744305229 | BZ16: 0.1284040306 | CA16: 0.2176633632 | CB16: 0.157527665
A17: 1973 | B17: -0.1907431965 | C17: -0.1812632934 | E17: -0.1948548814 | F17: -0.2070861144 | G17: -0.184137987 | H17: -0.1175843605 | I17: -0.2571773019 | J17: -0.1935672134 | K17: -0.2074681675 | L17: -0.317683107 | M17: -0.1686453658 | N17: -0.450331187 | O17: -0.317683107 | Q17: 0.09420833333 | R17: 0.07311666667 | S17: 0.06955 | T17: 0.06866666667 | U17: 0.06858333333 | V17: 0.068425 | W17: 0.07116666667 | Y17: 0.07031666667 | Z17: 0.07199166667 | AA17: 0.08415833333 | AB17: 0.08310833333 | AC17: 0.07440833333 | AD17: 0.08240833333 | AF17: 0.05189166667 | AG17: 0.080725 | AI17: 0.087275 | AJ17: 0.08563788516 | AK17: 0.1426141072 | AL17: 0.5129862561 | AM17: 0.1877347496 | AN17: 0.1796081405 | AO17: 0.2093963953 | AP17: 0.08671774193 | AQ17: 0.2151763241 | AR17: 0.0412191316 | AS17: 0.2106134945 | AT17: 0.1721942393 | AU17: 0.1656725502 | AV17: 0.2149672591 | AW17: 0.1532014331 | AX17: 0.1403809886 | AY17: 0.1985192719 | AZ17: 0.2022336914 | BA17: 0.1661724412 | BB17: 0.1845940539 | BC17: 0.1161421741 | BD17: 0.1666050696 | BE17: 0.2412498123 | BF17: 0.1875741949 | BG17: 0.2196982939 | BH17: 0.2090422918 | BI17: 0.1405028994 | BJ17: 0.2711859077 | BK17: 0.09224658085 | BM17: 0.1470384194 | BN17: 0.2141545282 | BO17: 0.187893607 | BP17: 0.2004211311 | BQ17: 0.1443927759 | BR17: 0.1470973 | BS17: 0.1932512175 | BT17: 0.1285501818 | BU17: 0.158801537 | BV17: 0.2101115749 | BW17: 0.2483370642 | BX17: 0.1127233102 | BY17: 0.1813749379 | BZ17: 0.2142775216 | CA17: 0.2381683687 | CB17: 0.2728177641
A18: 1974 | B18: -0.3526557928 | C18: -0.3227230267 | E18: -0.2329297932 | F18: -0.332938664 | G18: -0.2956802201 | H18: -0.3127417421 | I18: -0.2663611359 | J18: -0.3546484354 | K18: -0.3690625293 | L18: -0.5487291122 | M18: -0.2408370031 | N18: -0.6037613313 | O18: -0.5487291122 | Q18: 0.1125583333 | R18: 0.08181666667 | S18: 0.078225 | T18: 0.07801666667 | U18: 0.07714166667 | V18: 0.075575 | W18: 0.08054166667 | Y18: 0.0783 | Z18: 0.07935833333 | AA18: 0.1024416667 | AB18: 0.09975 | AC18: 0.08565833333 | AD18: 0.09496666667 | AF18: 0.06173333333 | AG18: 0.09218333333 | AI18: 0.105025 | AJ18: 0.1141768291 | AK18: 0.189678395 | AL18: 0.5429704151 | AM18: 0.2950245994 | AN18: 0.2866280981 | AO18: 0.3097472092 | AP18: 0.2374324258 | AQ18: 0.2856188959 | AR18: 0.1313531123 | AS18: 0.307468446 | AT18: 0.2917137792 | AU18: 0.3208390962 | AV18: 0.3660189241 | AW18: 0.2902370425 | AX18: 0.3276541524 | AY18: 0.2697573594 | AZ18: 0.3615065659 | BA18: 0.2944836225 | BB18: 0.2560286459 | BC18: 0.2270534111 | BD18: 0.1784856918 | BE18: 0.2176494352 | BF18: 0.3376976132 | BG18: 0.359427183 | BH18: 0.3912189998 | BI18: 0.287945883 | BJ18: 0.3898970334 | BK18: 0.1864480507 | BM18: 0.2944450545 | BN18: 0.2450773139 | BO18: 0.4345247241 | BP18: 0.2914626205 | BQ18: 0.2170427798 | BR18: 0.1845879132 | BS18: 0.2826831371 | BT18: 0.2928009376 | BU18: 0.3470283748 | BV18: 0.2700639378 | BW18: 0.360088431 | BX18: 0.2233249931 | BY18: 0.32376305 | BZ18: 0.1971745648 | CA18: 0.3275027695 | CB18: 0.2612426472
A19: 1975 | B19: 0.2742092819 | C19: 0.3244843141 | E19: 0.2692384649 | F19: 0.3240497166 | G19: 0.2715765755 | H19: 0.3125535246 | I19: 0.205686935 | J19: 0.2465628191 | K19: 0.2662312285 | L19: 0.3099571676 | M19: 0.1764668843 | N19: 0.3420646763 | O19: 0.3099571676 | Q19: 0.06954166667 | R19: 0.06758333333 | S19: 0.0749 | T19: 0.07765833333 | U19: 0.07895 | V19: 0.079875 | W19: 0.08191666667 | Y19: 0.05775 | Z19: 0.06088333333 | AA19: 0.06436666667 | AB19: 0.06889166667 | AC19: 0.08825833333 | AD19: 0.1061 | AF19: 0.07050833333 | AG19: 0.09024166667 | AI19: 0.05824166667 | AJ19: 0.06886441108 | AK19: 0.04103139668 | AL19: -0.2766987364 | AM19: 0.1974237219 | AN19: 0.1869891672 | AO19: 0.1675892662 | AP19: 0.03726501677 | AQ19: 0.1155117028 | AR19: 0.1594104839 | AS19: 0.1044457345 | AT19: 0.2283031028 | AU19: 0.1358894608 | AV19: 0.1973197649 | AW19: 0.2187301956 | AX19: 0.2352248017 | AY19: 0.2955006542 | AZ19: 0.291180925 | BA19: 0.1944285392 | BB19: 0.1852378171 | BC19: 0.1547676598 | BD19: 0.09858902459 | BE19: 0.1055640675 | BF19: 0.3530151747 | BG19: 0.2111667815 | BH19: 0.1182914796 | BI19: 0.1920809015 | BJ19: 0.305143641 | BK19: 0.1449301412 | BM19: 0.1862436034 | BN19: 0.118965333 | BO19: 0.4414687386 | BP19: 0.1797448308 | BQ19: 0.1653860931 | BR19: 0.1112709071 | BS19: 0.2009078983 | BT19: 0.1640030635 | BU19: 0.2967735054 | BV19: 0.1907852251 | BW19: 0.1271057598 | BX19: 0.1115428984 | BY19: 0.1579014944 | BZ19: 0.2060903208 | CA19: 0.1903851729 | CB19: 0.1944163405
A20: 1976 | B20: 0.1752001291 | C20: 0.1643883682 | E20: 0.03541166189 | F20: 0.2373281863 | G20: -0.003589133916 | H20: -0.1147640679 | I20: 0.1683777116 | J20: 0.1475152382 | K20: 0.1713480082 | L20: 0.3985998253 | M20: 0.38925884 | N20: 0.4168248235 | O20: 0.3985998253 | Q20: 0.05635833333 | R20: 0.05874166667 | S20: 0.06770833333 | T20: 0.07179166667 | U20: 0.07423333333 | V20: 0.07611666667 | W20: 0.07863333333 | Y20: 0.04974166667 | Z20: 0.052525 | AA20: 0.05268333333 | AB20: 0.05624166667 | AC20: 0.08434166667 | AD20: 0.09746666667 | AF20: 0.06641666667 | AG20: 0.08855 | AI20: 0.05045 | AJ20: 0.04913268858 | AK20: 0.04583453634 | AL20: -0.03926718237 | AM20: 0.2240946595 | AN20: 0.2202861335 | AO20: 0.2299042257 | AP20: 0.1276121486 | AQ20: 0.2124739099 | AR20: 0.1033270856 | AS20: 0.1957288334 | AT20: 0.1764611811 | AU20: 0.1273548285 | AV20: 0.1462728477 | AW20: 0.1763504702 | AX20: 0.3140303668 | AY20: 0.3075272048 | AZ20: 0.3543659498 | BA20: 0.2986823468 | BB20: 0.2710754826 | BC20: 0.1768581127 | BD20: 0.2231047536 | BE20: 0.1458580505 | BF20: 0.313718525 | BG20: 0.1696991759 | BH20: 0.2331832724 | BI20: 0.2227159354 | BJ20: 0.4117408198 | BK20: 0.1668071228 | BM20: 0.1248828139 | BN20: 0.1871661566 | BO20: 0.3006005783 | BP20: 0.2517269182 | BQ20: 0.1598792869 | BR20: 0.2199284795 | BS20: 0.1363946787 | BT20: 0.1513749286 | BU20: 0.2045670003 | BV20: 0.1910085401 | BW20: 0.2586599734 | BX20: 0.2199401533 | BY20: 0.1814712638 | BZ20: 0.3221999253 | CA20: 0.354829814 | CB20: 0.2216760449
A21: 1977 | B21: -0.1221897157 | C21: -0.1895738287 | E21: -0.1158649975 | F21: -0.02857337244 | G21: 0.1363951932 | H21: 0.1624555896 | I21: 0.1008632386 | J21: -0.1200760887 | K21: -0.1301444733 | L21: 0.1745958342 | M21: 0.2023221386 | N21: 0.1640251064 | O21: 0.1745958342 | Q21: 0.06156666667 | R21: 0.06088333333 | S21: 0.06685833333 | T21: 0.0699 | U21: 0.0723 | V21: 0.07419166667 | W21: 0.07670833333 | X21: 0.07749090909 | Y21: 0.05269166667 | Z21: 0.055275 | AA21: 0.05640833333 | AB21: 0.05919166667 | AC21: 0.08024166667 | AD21: 0.08969166667 | AF21: 0.056825 | AG21: 0.08848333333 | AI21: 0.055375 | AJ21: 0.06464553596 | AK21: 0.0575139062 | AL21: 0.1797623976 | AM21: 0.2441042814 | AN21: 0.2255392045 | AO21: 0.1856665658 | AP21: 0.1599319423 | AQ21: 0.2075200771 | AR21: 0.08218806101 | AS21: 0.2002203734 | AT21: 0.1521001614 | AU21: 0.148463418 | AV21: 0.2176028994 | AW21: 0.2141555168 | AX21: 0.4237530426 | AY21: 0.4056304452 | AZ21: 0.4327634859 | BA21: 0.282998972 | BB21: 0.2730543471 | BC21: 0.2196847355 | BD21: 0.07537369918 | BE21: 0.3212923273 | BF21: 0.341590296 | BG21: 0.2148374335 | BH21: 0.2795841959 | BI21: 0.1984668155 | BJ21: 0.2776023409 | BK21: 0.05416161775 | BM21: 0.1024994826 | BN21: 0.1703356161 | BO21: 0.2388999204 | BP21: 0.3475229092 | BQ21: 0.1598395128 | BR21: 0.2083124076 | BS21: 0.2297412279 | BT21: 0.2108377755 | BU21: 0.2660885372 | BV21: 0.2266914484 | BW21: 0.2044225107 | BX21: 0.207053647 | BY21: 0.1577862318 | BZ21: 0.2929263636 | CA21: 0.125233129 | CB21: 0.2791954878
A22: 1978 | B22: 0.01056439928 | C22: -0.03202816237 | E22: 0.1250111434 | F22: 0.09002615166 | G22: 0.2539749632 | H22: 0.1624740613 | I22: 0.3720107078 | J22: 0.05906774693 | K22: 0.004049219051 | L22: -0.01654129523 | M22: 0.09835575791 | N22: -0.10502056 | O22: -0.01654129523 | Q22: 0.0878 | R22: 0.0834 | S22: 0.08289166667 | T22: 0.083175 | U22: 0.08356666667 | V22: 0.0841 | W22: 0.08484166667 | X22: 0.08485 | Y22: 0.07188333333 | Z22: 0.07583333333 | AA22: 0.08221666667 | AB22: 0.08614166667 | AC22: 0.08725 | AD22: 0.09488333333 | AF22: 0.06024166667 | AG22: 0.0968 | AI22: 0.07930833333 | AJ22: 0.08607460877 | AK22: 0.0936609216 | AL22: 0.2588456761 | AM22: 0.1849922747 | AN22: 0.1749978071 | AO22: 0.1656183115 | AP22: 0.1454497572 | AQ22: 0.1876263108 | AR22: 0.2265225594 | AS22: 0.09799846859 | AT22: 0.110990699 | AU22: 0.1552625998 | AV22: 0.234938459 | AW22: 0.1729036768 | AX22: 0.1620476849 | AY22: 0.2007602758 | AZ22: 0.1192875883 | BA22: 0.1516762774 | BB22: 0.2151538691 | BC22: 0.2785267623 | BD22: 0.1829609408 | BE22: 0.1625126653 | BF22: 0.1983924692 | BG22: 0.301720906 | BH22: 0.2427157066 | BI22: 0.1481001919 | BJ22: 0.1015931166 | BK22: 0.08296181891 | BM22: 0.06070512445 | BN22: 0.1344256059 | BO22: 0.1643581593 | BP22: 0.1635183485 | BQ22: 0.1601974151 | BR22: 0.2573020873 | BS22: 0.1394731374 | BT22: 0.131855223 | BU22: 0.2355506132 | BV22: 0.2404828608 | BW22: 0.2283784106 | BX22: 0.1501439909 | BY22: 0.1481621238 | BZ22: 0.1968378391 | CA22: 0.100799258 | CB22: 0.2670031656
A23: 1979 | B23: 0.1160821484 | C23: 0.04101079657 | E23: 0.1585567842 | F23: 0.2297442353 | G23: 0.01797297956 | H23: 0.08050026888 | I23: -0.05967192106 | J23: 0.16424108 | K23: 0.0783914563 | L23: 0.2664025584 | M23: 0.3064367636 | N23: 0.1532612333 | O23: 0.2664025584 | Q23: 0.12005 | R23: 0.10665 | S23: 0.09715 | T23: 0.09518333333 | U23: 0.09478333333 | V23: 0.094425 | W23: 0.09330833333 | X23: 0.092925 | Y23: 0.1006916667 | Z23: 0.100575 | AA23: 0.11225 | AB23: 0.1143833333 | AC23: 0.09629166667 | AD23: 0.1069 | AF23: 0.06516666667 | AG23: 0.1124916667 | AI23: 0.1119416667 | AJ23: 0.1244698419 | AK23: 0.1373069248 | AL23: 0.9022499553 | AM23: 0.2309261698 | AN23: 0.2307865979 | AO23: 0.2672748511 | AP23: 0.3222373106 | AQ23: 0.3288765278 | AR23: 0.3211291504 | AS23: 0.2114194237 | AT23: 0.1411768404 | AU23: 0.1879443099 | AV23: 0.1930878779 | AW23: 0.1753572024 | AX23: 0.1875607902 | AY23: 0.2236397266 | AZ23: 0.2216357239 | BA23: 0.295619962 | BB23: 0.2560436792 | BC23: 0.2702516632 | BD23: 0.1599327427 | BE23: 0.1465780521 | BF23: 0.2440718314 | BG23: 0.2669294298 | BH23: 0.2061765932 | BI23: 0.140588212 | BJ23: 0.3724309413 | BK23: 0.1364169575 | BM23: 0.156079666 | BN23: 0.3007481001 | BO23: 0.2247078348 | BP23: 0.2581831392 | BQ23: 0.1559519733 | BR23: 0.2654157244 | BS23: 0.1584606961 | BT23: 0.2272999216 | BU23: 0.1899542314 | BV23: 0.2147327864 | BW23: 0.2426063448 | BX23: 0.3129505944 | BY23: 0.2349661385 | BZ23: 0.2217736143 | CA23: 0.3110255176 | CB23: 0.2494412363
A24: 1980 | B24: 0.2293131037 | C24: 0.1392382206 | E24: 0.1239813056 | F24: 0.2903101949 | G24: 0.1740642491 | H24: 0.07266921708 | I24: 0.2874969512 | J24: 0.2009861458 | K24: 0.2076573278 | L24: 0.2470120763 | M24: 0.2180837879 | N24: 0.1552742204 | O24: 0.2470120763 | Q24: 0.1406 | R24: 0.1204833333 | S24: 0.1154833333 | T24: 0.1147833333 | U24: 0.114325 | V24: 0.1146 | W24: 0.1138583333 | X24: 0.1129833333 | Y24: 0.1143416667 | Z24: 0.1136416667 | AA24: 0.1306666667 | AB24: 0.129925 | AC24: 0.1193833333 | AD24: 0.1366833333 | AF24: 0.08594166667 | AG24: 0.1384166667 | AI24: 0.1335583333 | AJ24: 0.1164817993 | AK24: 0.1175165466 | AL24: 0.1413740932 | AM24: 0.2171326163 | AN24: 0.2204361657 | AO24: 0.2704478753 | AP24: 0.3728038105 | AQ24: 0.2470227151 | AR24: 0.2245773866 | AS24: 0.2342310892 | AT24: 0.2274152933 | AU24: 0.214680505 | AV24: 0.202089888 | AW24: 0.2328394433 | AX24: 0.1422599882 | AY24: 0.2223433706 | AZ24: 0.2393691404 | BA24: 0.2576487193 | BB24: 0.1844351896 | BC24: 0.2978830178 | BD24: 0.2602047309 | BE24: 0.1757229873 | BF24: 0.2593487719 | BG24: 0.2614874975 | BH24: 0.3111741838 | BI24: 0.2261872902 | BJ24: 0.2980432829 | BK24: 0.09512363383 | BM24: 0.113058328 | BN24: 0.190405209 | BO24: 0.2309447768 | BP24: 0.2091942963 | BQ24: 0.2177466314 | BR24: 0.2127228702 | BS24: 0.1666283286 | BT24: 0.201130373 | BU24: 0.1997796924 | BV24: 0.1789020015 | BW24: 0.2257136685 | BX24: 0.3397585699 | BY24: 0.1392049745 | BZ24: 0.1368039025 | CA24: 0.1523303297 | CB24: 0.2253466993
A25: 1981 | B25: -0.102369511 | C25: -0.09686740825 | E25: -0.06796465658 | F25: -0.04016604173 | G25: -0.04970149596 | H25: -0.1718788895 | I25: 0.05858800665 | J25: -0.1064424741 | K25: -0.09763248195 | L25: 0.08227683944 | M25: 0.05827654452 | N25: 0.06831957114 | O25: 0.08227683944 | Q25: 0.16825 | R25: 0.1477833333 | S25: 0.1443916667 | T25: 0.1423583333 | U25: 0.1406083333 | V25: 0.1391083333 | W25: 0.1371833333 | X25: 0.1344166667 | Y25: 0.14025 | Z25: 0.1379916667 | AA25: 0.1591083333 | AB25: 0.157725 | AC25: 0.1417083333 | AD25: 0.1604416667 | AF25: 0.1132666667 | AG25: 0.1671666667 | AI25: 0.1637833333 | AJ25: 0.08537037078 | AK25: 0.05193274874 | AL25: -0.3945037842 | AM25: 0.1637224548 | AN25: 0.1507265529 | AO25: 0.2097126851 | AP25: 0.1062301894 | AQ25: 0.198683382 | AR25: 0.2408256254 | AS25: 0.1540083101 | AT25: 0.1031016647 | AU25: 0.1441364742 | AV25: 0.128667358 | AW25: 0.1490262331 | AX25: 0.1153357229 | AY25: 0.1388565316 | AZ25: 0.1373767851 | BA25: 0.1400473915 | BB25: 0.1106835288 | BC25: 0.1945025094 | BD25: 0.1468573488 | BE25: 0.1914828475 | BF25: 0.2295067559 | BG25: 0.3128964779 | BH25: 0.1622296605 | BI25: 0.09569946289 | BJ25: 0.2318505706 | BK25: 0.03612867846 | BM25: 0.1113651251 | BN25: 0.131599873 | BO25: 0.1382840213 | BP25: 0.1017226406 | BQ25: 0.1278346903 | BR25: 0.186125667 | BS25: 0.08647291453 | BT25: 0.1164349238 | BU25: 0.1838464347 | BV25: 0.1362336267 | BW25: 0.1665726705 | BX25: 0.0846015625 | BY25: 0.1220877624 | BZ25: 0.2653445663 | CA25: 0.04586264135 | CB25: 0.1961002481
A26: 1982 | B26: 0.137684324 | C26: 0.1789826555 | E26: 0.1880950222 | F26: 0.1727126977 | G26: -0.04738906566 | H26: 0.0002331274052 | I26: -0.0880768795 | J26: 0.1225994307 | K26: 0.1408956448 | L26: 0.2749308599 | M26: 0.1955741978 | N26: 0.3963790202 | O26: 0.2749308599 | Q26: 0.1313166667 | R26: 0.12275 | S26: 0.1292166667 | T26: 0.1300583333 | U26: 0.1305666667 | V26: 0.1300166667 | W26: 0.1291666667 | X26: 0.1276166667 | Y26: 0.1061416667 | Z26: 0.1106583333 | AA26: 0.1227083333 | AB26: 0.1257166667 | AC26: 0.137875 | AD26: 0.1611333333 | AF26: 0.1165916667 | AG26: 0.1596083333 | AI26: 0.1225833333 | AJ26: 0.03754351246 | AK26: 0.01706012275 | AL26: 0.1392696145 | AM26: 0.05371039695 | AN26: 0.05022427739 | AO26: 0.01642877803 | AP26: 0.08461305422 | AQ26: 0.08731901705 | AR26: 0.1215815073 | AS26: 0.07203646256 | AT26: -0.04077640152 | AU26: -0.01844166429 | AV26: -0.002634485142 | AW26: 0.1234888447 | AX26: -0.02486359927 | AY26: -0.05889462496 | AZ26: 0.001954482127 | BA26: 0.09764019429 | BB26: 0.07641027256 | BC26: 0.009960000691 | BD26: -0.04160994467 | BE26: 0.02707163962 | BF26: 0.04476777785 | BG26: 0.003306718068 | BH26: 0.02411366103 | BI26: 0.1077037504 | BJ26: 0.08812392499 | BK26: 0.05126282852 | BM26: 0.09912820283 | BN26: 0.003488119299 | BO26: 0.1053711949 | BP26: -0.06079411967 | BQ26: 0.1359709323 | BR26: 0.1027668417 | BS26: -0.01753097347 | BT26: 0.04191217582 | BU26: 0.1186806102 | BV26: 0.01591865943 | BW26: 0.2323750627 | BX26: 0.0536111843 | BY26: 0.0159355734 | BZ26: 0.1250182209 | CA26: 0.09100121896 | CB26: 0.04533172027
A27: 1983 | B27: 0.1593177075 | C27: 0.1845487292 | E27: 0.1188527451 | F27: 0.2106520634 | G27: 0.1899067955 | H27: 0.1597957222 | I27: 0.2151499621 | J27: 0.1616373812 | K27: 0.1536500487 | L27: 0.2268874719 | M27: 0.2672465556 | N27: 0.1561192329 | O27: 0.2268874719 | Q27: 0.09606666667 | R27: 0.095725 | S27: 0.1044666667 | T27: 0.1079583333 | U27: 0.1102 | V27: 0.11105 | W27: 0.113425 | X27: 0.1117833333 | Y27: 0.08610833333 | Z27: 0.087325 | AA27: 0.09066666667 | AB27: 0.09270833333 | AC27: 0.1204166667 | AD27: 0.1355416667 | AF27: 0.09505833333 | AG27: 0.1322333333 | AI27: 0.09086666667 | AJ27: 0.03717153211 | AK27: 0.01775194546 | AL27: -0.1779973674 | AM27: 0.01521044803 | AN27: 0.01163386195 | AO27: -0.01738491832 | AP27: -0.01101742185 | AQ27: -0.06239466584 | AR27: 0.03356750988 | AS27: 0.03875910713 | AT27: 0.05379308914 | AU27: 0.04836264169 | AV27: 0.04887781284 | AW27: 0.009020671098 | AX27: -0.03825867181 | AY27: -0.05183929459 | AZ27: -0.04590210517 | BA27: 0.04237197861 | BB27: 0.04256211916 | BC27: -0.005944887773 | BD27: -0.08665714334 | BE27: -0.005273122744 | BF27: -0.02934767056 | BG27: -0.03345140676 | BH27: -0.01882542048 | BI27: -0.01670055851 | BJ27: 0.04504431805 | BK27: -0.008314000507 | BM27: 0.02825512843 | BN27: 0.04526964327 | BO27: 0.02747860066 | BP27: -0.02292286582 | BQ27: 0.03593328105 | BR27: 0.04679826635 | BS27: 0.0204998005 | BT27: 0.0005463386677 | BU27: 0.05548663213 | BV27: 0.01362773628 | BW27: 0.08538684882 | BX27: -0.03494456044 | BY27: 0.05804234835 | BZ27: 0.08513133733 | CA27: -0.01314050991 | CB27: 0.02450414366 | CC27: 0.07835434923
A28: 1984 | B28: 0.01390876503 | C28: -0.03805819194 | E28: 0.09529105746 | F28: 0.03026365764 | G28: 0.04898313685 | H28: -0.02807249013 | I28: 0.110348996 | J28: 0.001187413557 | K28: 0.01004969659 | L28: 0.1381547347 | M28: 0.1900191517 | N28: 0.07012755509 | O28: 0.1381547347 | Q28: 0.1078416667 | R28: 0.108875 | S28: 0.118925 | T28: 0.1224083333 | U28: 0.1240333333 | V28: 0.1243833333 | W28: 0.1247666667 | X28: 0.1239166667 | Y28: 0.095225 | Z28: 0.09755833333 | AA28: 0.10365 | AB28: 0.1067583333 | AC28: 0.1270916667 | AD28: 0.1419 | AF28: 0.1010083333 | AG28: 0.1386 | AI28: 0.10225 | AJ28: 0.03963786176 | AK28: 0.01166193975 | AL28: -0.2153938463 | AM28: 0.07688117641 | AN28: 0.0754750255 | AO28: 0.03700819769 | AP28: 0.1947271757 | AQ28: 0.04623411848 | AR28: 0.07574798393 | AS28: 0.1465930247 | AT28: 0.04054561199 | AU28: 0.06198913503 | AV28: 0.03448796156 | AW28: 0.08416282713 | AX28: 0.05990238688 | AY28: 0.07922251912 | AZ28: -0.02904978695 | BA28: 0.08082668757 | BB28: 0.03167432167 | BC28: 0.09702981729 | BD28: 0.07735162043 | BE28: 0.06077534637 | BF28: 0.02500137135 | BG28: 0.1155717455 | BH28: 0.09442756548 | BI28: 0.1771705362 | BJ28: 0.01991971044 | BK28: -0.05332246785 | BL28: 0.1543522685 | BM28: 0.07325067166 | BN28: 0.1159867252 | BO28: 0.07894657942 | BP28: 0.04555962013 | BQ28: 0.09867382033 | BR28: 0.1215828141 | BS28: 0.06442808523 | BT28: 0.01449110885 | BU28: 0.09736896783 | BV28: 0.0506432367 | BW28: 0.1907583537 | BX28: 0.04917701125 | BY28: 0.02974853719 | BZ28: 0.1493557668 | CA28: 0.04735102965 | CB28: 0.04519899723 | CC28: 0.109605042
A29: 1985 | B29: 0.2337543615 | C29: 0.2441818289 | D29: 0.2728054368 | E29: 0.1631062356 | F29: 0.2815658454 | G29: 0.4250651192 | H29: 0.5498970064 | I29: 0.3181310461 | J29: 0.2320549024 | K29: 0.2408953112 | L29: 0.05751321001 | M29: 0.1747626707 | N29: -0.05344782244 | O29: 0.05751321001 | Q29: 0.08328333333 | R29: 0.08425833333 | S29: 0.096425 | T29: 0.1012916667 | U29: 0.1050916667 | V29: 0.1062333333 | W29: 0.1097166667 | X29: 0.1078916667 | Y29: 0.07479166667 | Z29: 0.07651666667 | AA29: 0.080475 | AB29: 0.08245833333 | AC29: 0.1137333333 | AD29: 0.12715 | AF29: 0.09104166667 | AG29: 0.1235166667 | AH29: -0.1080130828 | AI29: 0.08100833333 | AJ29: 0.03721359634 | AK29: 0.00096571712 | AL29: 0.05827502809 | AM29: -0.04689879738 | AN29: -0.04082655284 | AO29: 0.006745504481 | AP29: 0.06781728187 | AQ29: 0.0001902985437 | AR29: -0.02704740197 | AS29: 0.07147761337 | AT29: -0.09312976756 | AU29: -0.001556595557 | AV29: 0.003045199384 | AW29: 0.01520733444 | AX29: -0.18348381 | AY29: -0.120803539 | AZ29: -0.1975046558 | BA29: -0.0799519621 | BB29: -0.03154924291 | BC29: 0.02189504238 | BD29: 0.008286692342 | BE29: -0.08095533356 | BF29: -0.1442003107 | BG29: -0.04511306331 | BH29: -0.1361667991 | BI29: 0.03746620286 | BJ29: -0.1426232099 | BK29: -0.0001305767047 | BL29: 0.02311743571 | BM29: 0.0009695045351 | BN29: -0.0399439965 | BO29: -0.09501699798 | BP29: -0.136444221 | BQ29: -0.1030712189 | BR29: -0.01818849083 | BS29: -0.08750547909 | BT29: 0.005099723107 | BU29: -0.1391617018 | BV29: -0.03881639749 | BW29: 0.183511734 | BX29: -0.06217720818 | BY29: 0.01921231875 | BZ29: 0.07758264917 | CA29: -0.1044508381 | CB29: -0.08896049062 | CC29: -0.01755989266
A30: 1986 | B30: 0.1364556909 | C30: 0.2036227748 | D30: 0.07097492299 | E30: 0.2454776263 | F30: 0.1479968143 | G30: 0.511622832 | H30: 0.3383512775 | I30: 0.6514721589 | J30: 0.1237890001 | K30: 0.1258797111 | L30: 0.1754299391 | M30: 0.175277856 | N30: 0.1757534503 | O30: 0.1754299391 | P30: 0.06770833333 | Q30: 0.06764166667 | R30: 0.064625 | S30: 0.07064166667 | T30: 0.07310833333 | U30: 0.07553333333 | V30: 0.076825 | W30: 0.0785 | X30: 0.07798333333 | Y30: 0.05978333333 | Z30: 0.0603 | AA30: 0.06518333333 | AB30: 0.065075 | AC30: 0.09020833333 | AD30: 0.1039083333 | AF30: 0.07318333333 | AG30: 0.101225 | AH30: -0.04943714817 | AI30: 0.06805 | AJ30: 0.01180222506 | AK30: -0.03837165286 | AL30: 0.1735881005 | AM30: -0.02396986012 | AN30: -0.01849305142 | AO30: 0.04714274462 | AP30: 0.04049490923 | AQ30: -0.0761412401 | AR30: -0.02127679198 | AS30: -0.04635567926 | AT30: 0.09083128285 | AU30: -0.003500044178 | AV30: 0.001364972796 | AW30: -0.05291291868 | AX30: -0.03956934453 | AY30: -0.06777715959 | AZ30: -0.1116268679 | BA30: -0.03606545146 | BB30: 0.03348901874 | BC30: -0.1137227399 | BD30: -0.05623317095 | BE30: -0.05047741482 | BF30: -0.1586078034 | BG30: -0.03896745238 | BH30: 0.01834104869 | BI30: 0.1071095363 | BJ30: -0.02806162004 | BK30: 0.01834056104 | BL30: -0.05079356841 | BM30: 0.05270468867 | BN30: -0.02915412324 | BO30: -0.03186627943 | BP30: -0.009868342021 | BQ30: -0.05636187741 | BR30: 0.03191298767 | BS30: -0.05161458934 | BT30: 0.002834368228 | BU30: -0.01433467297 | BV30: 0.03144966105 | BW30: -0.09188961643 | BX30: -0.02989256941 | BY30: 0.08913122452 | BZ30: 0.00752957778 | CA30: 0.04081675934 | CB30: -0.05705895562 | CC30: -0.04757815601
A31: 1987 | B31: 0.02007221196 | C31: 0.02232282116 | D31: -0.0540688139 | E31: -0.07984940375 | F31: 0.02266879981 | G31: 0.2085141386 | H31: 0.01416095664 | I31: 0.3282277306 | J31: 0.01305819932 | K31: 0.006077451319 | L31: -0.1128166539 | M31: -0.03707729207 | N31: -0.1703955315 | O31: -0.1128166539 | P31: 0.07223958333 | Q31: 0.07115 | R31: 0.06764166667 | S31: 0.07668333333 | T31: 0.07935 | U31: 0.082175 | V31: 0.08384166667 | W31: 0.08620290847 | X31: 0.0858 | Y31: 0.05775 | Z31: 0.0603 | AA31: 0.06860833333 | AB31: 0.069975 | AC31: 0.09375833333 | AD31: 0.1057583333 | AF31: 0.07639166667 | AG31: 0.1019583333 | AH31: 0.006502521557 | AI31: 0.066575 | AJ31: 0.04240918193 | AK31: 0.04414645235 | AL31: 0.2193550335 | AM31: 0.006739451086 | AN31: 0.01948991418 | AO31: 0.01752395115 | AP31: 0.2046062181 | AQ31: -0.006774355178 | AR31: -0.05642974665 | AS31: 0.1401192289 | AT31: 0.02956144457 | AU31: 0.07869414531 | AV31: 0.07645860904 | AW31: -0.02899626423 | AX31: -0.008629299807 | AY31: -0.02760536113 | AZ31: -0.01103950787 | BA31: 0.0287232255 | BB31: -0.01634284926 | BC31: -0.1855700392 | BD31: 0.01370242602 | BE31: -0.05898146271 | BF31: -0.08422637452 | BG31: -0.06842028097 | BH31: 0.005745800532 | BI31: -0.01400518809 | BJ31: 0.07096838323 | BK31: 0.2460891553 | BL31: 0.03976582751 | BM31: 0.163580681 | BN31: 0.02725757407 | BO31: -0.01664071718 | BP31: 0.01617743924 | BQ31: -0.01009162546 | BR31: 0.04894566779 | BS31: 0.1698308347 | BT31: -0.05720796361 | BU31: -0.04172287314 | BV31: 0.03404538393 | BW31: -0.02312108641 | BX31: -0.01472855198 | BY31: 0.00807216213 | BZ31: 0.003952305684 | CA31: 0.05931016232 | CB31: -0.01583592565 | CC31: 0.06232532858
A32: 1988 | B32: 0.1169012411 | C32: 0.1120125731 | D32: 0.1432803698 | E32: 0.1450608968 | F32: 0.1649298141 | G32: 0.2363505605 | H32: 0.1198711512 | I32: 0.2941768217 | J32: 0.1117252748 | K32: 0.1100571975 | L32: 0.1075568111 | M32: 0.1265042596 | N32: 0.07048869455 | O32: 0.1075568111 | P32: 0.08044270833 | Q32: 0.07904166667 | R32: 0.076525 | S32: 0.08256666667 | T32: 0.08471666667 | U32: 0.08708333333 | V32: 0.08845833333 | W32: 0.09021896238 | X32: 0.08959166667 | Y32: 0.066675 | Z32: 0.06913333333 | AA32: 0.077275 | AB32: 0.079025 | AC32: 0.0971 | AD32: 0.1083 | AF32: 0.0768 | AG32: 0.1035333333 | AH32: 0.08625092068 | AI32: 0.07568333333 | AJ32: 0.04317217187 | AK32: 0.04503575291 | AL32: -0.165524767 | AM32: 0.1187284138 | AN32: 0.1124547074 | AO32: 0.05885278188 | AP32: 0.06157925569 | AQ32: 0.1203879571 | AR32: 0.06042195249 | AS32: 0.1299741981 | AT32: 0.07902570343 | AU32: 0.1488118961 | AV32: 0.07540956179 | AW32: 0.1457891599 | AX32: 0.1549830327 | AY32: 0.1490389263 | AZ32: 0.2844474202 | BA32: 0.2121934741 | BB32: 0.06962810574 | BC32: 0.07045247562 | BD32: 0.1437219288 | BE32: 0.0774056633 | BF32: 0.2583060208 | BG32: 0.07637335748 | BH32: 0.1385419686 | BI32: 0.1502149543 | BJ32: 0.2427285145 | BK32: 0.06840113564 | BL32: 0.2191992764 | BM32: 0.05733683177 | BN32: 0.0269169637 | BO32: 0.1262106773 | BP32: 0.1411981947 | BQ32: 0.07846435383 | BR32: 0.09351894829 | BS32: 0.04056210118 | BT32: 0.1303440147 | BU32: 0.1928774836 | BV32: 0.1066412411 | BW32: 0.05454725175 | BX32: -0.01766048605 | BY32: 0.06519075301 | BZ32: 0.07617272855 | CA32: 0.1049042091 | CB32: 0.1157102909 | CC32: 0.02181872374
A33: 1989 | B33: 0.240987148 | C33: 0.2386820735 | D33: 0.1761054829 | E33: 0.08547917512 | F33: 0.256499145 | G33: 0.0881971791 | H33: 0.2263484862 | I33: 0.01927991262 | J33: 0.234899728 | K33: 0.2383494926 | L33: -0.01830215168 | M33: 0.08472912909 | N33: -0.173214429 | O33: -0.01830215168 | P33: 0.0925525 | Q33: 0.09250833333 | R33: 0.08535 | S33: 0.085575 | T33: 0.08504166667 | U33: 0.08520833333 | V33: 0.08498333333 | W33: 0.08483640651 | X33: 0.08449166667 | Y33: 0.08111666667 | Z33: 0.08030833333 | AA33: 0.09085 | AB33: 0.09080833333 | AC33: 0.092575 | AD33: 0.101775 | AF33: 0.0723 | AG33: 0.103075 | AH33: 0.09042348204 | AI33: 0.09216666667 | AJ33: 0.04535190125 | AK33: 0.03603993648 | AL33: -0.02880832219 | AM33: 0.1247892124 | AN33: 0.1253670637 | AO33: 0.09640231338 | AP33: 0.1253524142 | AQ33: 0.1205071541 | AR33: 0.1529038309 | AS33: 0.1510739482 | AT33: 0.1795175588 | AU33: 0.08389689531 | AV33: 0.1578141859 | AW33: 0.1479480193 | AX33: 0.1567089448 | AY33: 0.1359531471 | AZ33: 0.2329078377 | BA33: 0.1560064578 | BB33: 0.07289724888 | BC33: 0.08102792963 | BD33: 0.1385959015 | BE33: 0.03904022529 | BF33: 0.1374047492 | BG33: 0.09288258502 | BH33: 0.1493959199 | BI33: 0.1514040724 | BJ33: 0.2242724668 | BK33: 0.2500562755 | BL33: 0.08788533151 | BM33: 0.08005768547 | BN33: 0.1050374736 | BO33: 0.06877169663 | BP33: 0.1307718347 | BQ33: 0.1468256255 | BR33: 0.08371634634 | BS33: 0.2394254372 | BT33: 0.1670621196 | BU33: 0.07596338124 | BV33: 0.07173511358 | BW33: 0.03174688612 | BX33: 0.04353719045 | BY33: 0.1898321039 | BZ33: 0.1480098858 | CA33: 0.102767522 | CB33: 0.08091339495 | CC33: 0.05202049976
A34: 1990 | B34: -0.06784146088 | C34: -0.04437416992 | D34: -0.1960738379 | E34: 0.0330061393 | F34: -0.0642369075 | G34: -0.2837642962 | H34: -0.06678301827 | I34: -0.4300922633 | J34: -0.06601134468 | K34: -0.05755845693 | L34: -0.1904956778 | M34: -0.1666655379 | N34: -0.2029481289 | O34: -0.1904956778 | P34: 0.08288 | Q34: 0.082475 | R34: 0.078825 | S34: 0.08254166667 | T34: 0.0837 | U34: 0.08516666667 | V34: 0.0855 | W34: 0.08663037273 | X34: 0.08608333333 | Y34: 0.07493333333 | Z34: 0.07453333333 | AA34: 0.081475 | AB34: 0.08170833333 | AC34: 0.09321666667 | AD34: 0.10355 | AF34: 0.07274166667 | AG34: 0.1015083333 | AH34: -0.02227512767 | AI34: 0.08099166667 | AJ34: 0.06067119518 | AK34: 0.0492114829 | AL34: -0.03160303778 | AM34: 0.09494044836 | AN34: 0.08617338419 | AO34: 0.09158775037 | AP34: 0.09479539383 | AQ34: 0.05898203441 | AR34: 0.1166257141 | AS34: 0.1368154744 | AT34: 0.1093182342 | AU34: 0.1279245061 | AV34: 0.07627417353 | AW34: 0.2083144387 | AX34: 0.06690853426 | AY34: 0.0632349564 | AZ34: 0.07524980835 | BA34: 0.1582226774 | BB34: 0.1141317201 | BC34: 0.01705464333 | BD34: 0.02644672121 | BE34: 0.04338802277 | BF34: 0.1503775963 | BG34: 0.07792112068 | BH34: 0.1061790443 | BI34: 0.2664385639 | BJ34: 0.1294669186 | BK34: 0.1129215358 | BL34: 0.05259905975 | BM34: -0.01204962224 | BN34: 0.01358877212 | BO34: 0.07409061947 | BP34: 0.02833513163 | BQ34: 0.03291383776 | BR34: 0.162784783 | BS34: 0.007513595616 | BT34: 0.04693084196 | BU34: 0.1440126484 | BV34: 0.06248878105 | BW34: 0.0387677575 | BX34: -0.01922366145 | BY34: 0.2116146963 | BZ34: 0.1823393638 | CA34: -0.06394035305 | CB34: 0.006596284969 | CC34: 0.1351666321
A35: 1991 | B35: 0.2335429268 | C35: 0.1849632657 | D35: 0.4500719277 | E35: 0.1871597705 | F35: 0.2945941961 | G35: 0.09700483399 | H35: 0.09500817374 | I35: 0.09816196661 | J35: 0.2291876438 | K35: 0.2403260269 | L35: 0.3051221699 | M35: 0.305248353 | N35: 0.2763722502 | O35: 0.3051221699 | P35: 0.05831083333 | Q35: 0.05949166667 | R35: 0.05858333333 | S35: 0.068125 | T35: 0.0737 | U35: 0.07675 | V35: 0.07858333333 | W35: 0.08106622699 | X35: 0.08135833333 | Y35: 0.05375 | Z35: 0.05440833333 | AA35: 0.05835 | AB35: 0.0591 | AC35: 0.08769166667 | AD35: 0.09801666667 | AF35: 0.0692 | AG35: 0.09216666667 | AH35: -0.06424714335 | AI35: 0.056875 | AJ35: 0.0293706868 | AK35: -0.02387155127 | AL35: -0.08946247414 | AM35: 0.08826653674 | AN35: 0.09193676154 | AO35: 0.005895710644 | AP35: 0.2111562229 | AQ35: 0.126103311 | AR35: 0.1372056349 | AS35: 0.2877691113 | AT35: 0.009719885336 | AU35: 0.05181025769 | AV35: 0.04359106571 | AW35: 0.09029742833 | AX35: 0.0947263172 | AY35: 0.08700712368 | AZ35: 0.1224922073 | BA35: 0.1057283929 | BB35: 0.02461798895 | BC35: 0.05142718682 | BD35: -0.04781453149 | BE35: 0.1044255396 | BF35: 0.1504506509 | BG35: 0.09673594059 | BH35: 0.1106821826 | BI35: 0.1083569409 | BJ35: 0.08874994201 | BK35: 0.156107656 | BL35: 0.187990019 | BM35: 0.09999016497 | BN35: 0.04109364244 | BO35: 0.1179592907 | BP35: 0.08522118829 | BQ35: 0.05871337003 | BR35: 0.1230553118 | BS35: 0.01478585847 | BT35: 0.1221566306 | BU35: 0.08707616463 | BV35: 0.06329018666 | BW35: 0.04841653183 | BX35: 0.09338651227 | BY35: -0.0852292821 | BZ35: 0.1637186572 | CA35: 0.08622240371 | CB35: 0.1183651576 | CC35: 0.1259532492 | CD35: 0.07174443614 | CE35: 0.08878665131 | CF35: 0.1033047074 | CG35: 0.06208700881 | CH35: 0.07098926486 | CI35: 0.1419747062 | CJ35: 0.04744169512 | CK35: 0.06505521688 | CM35: 0.1264859786 | CO35: 0.09691974022 | CP35: 0.004957690107 | CQ35: 0.06292002301 | CR35: 0.07705377401 | CS35: 0.07098926486 | CT35: 0.1419747062 | CU35: 0.08188576574 | CV35: 0.04744169512
A36: 1992 | B36: 0.04367485858 | C36: 0.04090277894 | D36: 0.1436975888 | E36: 0.06718783242 | F36: 0.08603755767 | G36: -0.1495142943 | H36: -0.0763404131 | I36: -0.2146822495 | J36: 0.02923427431 | K36: 0.04080046742 | L36: 0.1148936007 | M36: 0.1361870054 | N36: 0.01900201948 | O36: 0.1148936007 | P36: 0.03702 | Q36: 0.03769166667 | R36: 0.03889166667 | S36: 0.05306666667 | T36: 0.06188333333 | U36: 0.06630833333 | V36: 0.0701 | W36: 0.07491394987 | X36: 0.07666666667 | Y36: 0.03431666667 | Z36: 0.03546666667 | AA36: 0.03681666667 | AB36: 0.03764166667 | AC36: 0.0814 | AD36: 0.08976666667 | AF36: 0.06441666667 | AG36: 0.08424166667 | AH36: 0.005468977263 | AI36: 0.03521666667 | AJ36: 0.02923559376 | AK36: 0.01456128512 | AL36: -0.05905075127 | AM36: 0.07678820395 | AN36: 0.07796573634 | AO36: 0.1145467396 | AP36: 0.1689956338 | AQ36: 0.03086966922 | AR36: 0.07373294499 | AS36: 0.04914079339 | AT36: -0.036370205 | AU36: -0.01246978102 | AV36: -0.032732466 | AW36: 0.1563135414 | AX36: 0.1080211969 | AY36: 0.08111581849 | AZ36: 0.09189889335 | BA36: 0.1325535002 | BB36: 0.07448605583 | BC36: 0.0611351011 | BD36: 0.07392660572 | BE36: 0.04456340002 | BF36: 0.06472411957 | BG36: 0.04546227767 | BH36: 0.08805212704 | BI36: 0.1421469482 | BJ36: 0.1042377644 | BK36: 0.05831093296 | BL36: 0.07506320923 | BM36: 0.06174162288 | BN36: 0.07431186061 | BO36: 0.01514016333 | BP36: 0.0993300198 | BQ36: 0.09064990247 | BR36: 0.1444074612 | BS36: 0.07969882382 | BT36: 0.05553687975 | BU36: 0.03833136692 | BV36: 0.06534356247 | BW36: 0.05212200143 | BX36: 0.1081197775 | BY36: 0.1199955783 | BZ36: 0.1227989449 | CA36: 0.2195719719 | CB36: 0.07555257376 | CC36: 0.01621785762 | CD36: 0.05825770441 | CE36: 0.06339257009 | CF36: 0.06649192653 | CG36: 0.05312074476 | CH36: 0.07622635506 | CI36: 0.06644341952 | CJ36: 0.04358349666 | CK36: 0.07279099216 | CM36: 0.06588235242 | CO36: 0.06732114826 | CP36: 0.07424022768 | CQ36: 0.03784458288 | CR36: 0.07701336942 | CS36: 0.07622635506 | CT36: 0.06644341952 | CU36: 0.04520809896 | CV36: 0.04358349666
A37: 1993 | B37: 0.06817394897 | C37: 0.1285928298 | D37: 0.137585502 | E37: 0.09901359516 | F37: 0.1070079625 | G37: 0.266152781 | H37: 0.2339642123 | I37: 0.2954271677 | J37: 0.0720577057 | K37: 0.06781452986 | L37: 0.1701406604 | M37: 0.1794384859 | N37: 0.1358316096 | O37: 0.1701406604 | P37: 0.03233166667 | Q37: 0.03243333333 | R37: 0.03434166667 | S37: 0.04443333333 | T37: 0.051475 | U37: 0.05545 | V37: 0.05873333333 | W37: 0.06283333333 | X37: 0.06598333333 | Y37: 0.029975 | Z37: 0.031225 | AA37: 0.03174166667 | AB37: 0.0328 | AC37: 0.07219166667 | AD37: 0.0793 | AF37: 0.055975 | AG37: 0.073025 | AH37: -0.0332717133 | AI37: 0.030225 | AJ37: 0.02772180293 | AK37: 0.008467451099 | AL37: 0.1627817367 | AM37: 0.1028851405 | AN37: 0.099440755 | AO37: 0.1011889017 | AP37: 0.120642368 | AQ37: 0.1395727753 | AR37: 0.06288448033 | AS37: 0.1965508447 | AT37: 0.1223141431 | AU37: 0.02705905839 | AV37: 0.1342341078 | AW37: 0.1031435815 | AX37: 0.06195362673 | AY37: 0.1065330821 | AZ37: 0.1239662344 | BA37: 0.1199729908 | BB37: 0.1327170042 | BC37: 0.09968288463 | BD37: 0.1657911147 | BE37: 0.04588450913 | BF37: 0.08973081602 | BG37: 0.08771095937 | BH37: 0.1309729752 | BI37: 0.1847662128 | BJ37: 0.1004399991 | BK37: 0.03422363099 | BL37: -0.01952487165 | BM37: 0.1036303165 | BN37: 0.1041342906 | BO37: 0.1286908685 | BP37: 0.0804069865 | BQ37: 0.1063452536 | BR37: 0.21050643 | BS37: 0.001145309629 | BT37: 0.008867849238 | BU37: 0.02194264066 | BV37: 0.1338271833 | BW37: 0.09939273906 | BX37: 0.1369945863 | BY37: 0.01352718389 | BZ37: 0.1272755653 | CA37: 0.02929904754 | CB37: 0.112534685 | CC37: 0.1861385898 | CD37: 0.08587558209 | CE37: 0.08494684638 | CF37: 0.07851159135 | CG37: 0.1074497629 | CH37: 0.07963736305 | CI37: 0.08306914933 | CJ37: 0.06854706955 | CK37: 0.1773807392 | CL37: 0.07396115876 | CM37: 0.07688728717 | CO37: 0.08331098072 | CP37: 0.129472471 | CQ37: 0.0949686649 | CR37: 0.1152839133 | CS37: 0.07963736305 | CT37: 0.08306914933 | CU37: 0.0854846805 | CV37: 0.06854706955
A38: 1994 | B38: -0.01551256099 | C38: 0.0211643928 | D38: -0.03249978593 | E38: -0.04271977157 | F38: -0.0007410152247 | G38: 0.06053188721 | H38: 0.001183844714 | I38: 0.1119269305 | J38: -0.01104700834 | K38: -0.008588896538 | L38: 0.008023156968 | M38: 0.0312148619 | N38: -0.2784222883 | O38: 0.008023156968 | P38: 0.04563916667 | Q38: 0.04678333333 | R38: 0.0531 | S38: 0.06264166667 | T38: 0.06683333333 | U38: 0.06901666667 | V38: 0.0708 | W38: 0.07486666667 | X38: 0.0737 | Y38: 0.04246666667 | Z38: 0.046325 | AA38: 0.04629166667 | AB38: 0.04955833333 | AC38: 0.079625 | AD38: 0.086225 | AF38: 0.0618 | AG38: 0.08400833333 | AH38: -0.007641186181 | AI38: 0.04201666667 | AJ38: 0.02564243061 | AK38: 0.02744454992 | AL38: -0.02193636348 | AM38: 0.1186602909 | AN38: 0.1547324107 | AO38: 0.1550779998 | AP38: 1.608077956 | AQ38: 0.1104035771 | AR38: 0.04246069121 | AS38: 0.2399042243 | AT38: 0.0683398995 | AU38: 0.02872860397 | AV38: 0.0486647208 | AW38: 0.2551140219 | AX38: 0.1309768689 | AY38: 0.1262350302 | AZ38: 0.1241086248 | BA38: 0.203574765 | BB38: 0.1017391339 | BC38: 0.07849805262 | BD38: 0.06389634836 | BE38: 0.09636498366 | BF38: 0.06012286026 | BG38: 0.1345450307 | BH38: 0.1383333999 | BI38: 0.238265822 | BJ38: 0.1741310938 | BK38: 0.003265488149 | BL38: 0.0914712852 | BM38: 0.03868634186 | BN38: 0.0440178813 | BO38: 0.1262562134 | BP38: 0.1071310262 | BQ38: 0.1214626812 | BR38: 0.2420767838 | BS38: 0.05331651069 | BT38: 0.07692085561 | BU38: 0.1159352371 | BV38: 0.03536078394 | BW38: 0.09901253789 | BX38: 0.4296286603 | BY38: -0.00747534184 | BZ38: 0.2503466602 | CA38: 0.05056662324 | CB38: 0.08375248971 | CD38: 0.1024879277 | CE38: 0.09348446472 | CF38: 0.1010550944 | CG38: 0.06844583872 | CH38: 0.08081432451 | CI38: 0.1340410459 | CJ38: 0.1289906781 | CK38: 0.06953717217 | CL38: 0.143464036 | CM38: 0.1123993285 | CN38: 0.09414938649 | CO38: 0.09766119251 | CP38: 0.0658388965 | CQ38: 0.07019370681 | CR38: 0.08261531162 | CS38: 0.08081432451 | CT38: 0.1340410459 | CU38: 0.08433966385 | CV38: 0.1251375135 | CW38: 0.011436783
A39: 1995 | B39: 0.2934950483 | C39: 0.2885749035 | D39: 0.3358888288 | E39: 0.2841329128 | F39: 0.3104019944 | G39: 0.09002666213 | H39: 0.172890405 | I39: 0.01743520013 | J39: 0.2900595836 | K39: 0.298160075 | L39: 0.1681296247 | M39: 0.1420799787 | N39: 0.4911393894 | O39: 0.1681296247 | P39: 0.0599 | Q39: 0.05968333333 | R39: 0.05948333333 | S39: 0.06263333333 | T39: 0.06390833333 | U39: 0.06503333333 | V39: 0.0658 | W39: 0.06960833333 | X39: 0.06884166667 | Y39: 0.0549 | Z39: 0.05565833333 | AA39: 0.05916666667 | AB39: 0.05980833333 | AC39: 0.0759 | AD39: 0.08200833333 | AF39: 0.05953333333 | AG39: 0.07923333333 | AH39: 0.1117548013 | AI39: 0.05836666667 | AJ39: 0.02500130221 | AK39: 0.03069707911 | AL39: 0.009737175278 | AM39: 0.100284622 | AN39: 0.09286150638 | AO39: 0.1556837831 | AP39: 0.0614969706 | AQ39: 0.09699501833 | AR39: 0.02555807824 | AS39: 0.1161508084 | AT39: 0.05989593291 | AU39: 0.03420210227 | AV39: 0.1236650667 | AW39: 0.1127733026 | AX39: 0.1336310557 | AY39: 0.1257495522 | AZ39: 0.1143021313 | BA39: 0.08795093138 | BB39: 0.1311030566 | BC39: 0.1083768241 | BD39: 0.026817528 | BE39: 0.1231558283 | BF39: 0.1001260124 | BG39: 0.09556280136 | BH39: 0.100736298 | BI39: 0.1164812791 | BJ39: 0.08544932592 | BK39: 0.006419790823 | BM39: 0.02376922345 | BN39: 0.1023761608 | BO39: 0.1277332261 | BP39: 0.1517280189 | BQ39: 0.07457244667 | BR39: 0.1765882216 | BS39: 0.02900393273 | BT39: 0.1357082812 | BU39: 0.08239521103 | BV39: 0.09627455856 | BW39: 0.03680100146 | BX39: 0.04338904312 | BY39: 0.09935501548 | BZ39: 0.1191254157 | CA39: 0.07876329952 | CB39: 0.1017322143 | CD39: 0.08337449399 | CE39: 0.09657465022 | CF39: 0.1022683072 | CG39: 0.07807334064 | CH39: 0.07461694722 | CI39: 0.1402882076 | CJ39: 0.05063267323 | CK39: 0.1073473089 | CL39: 0.09235761897 | CM39: 0.1068463084 | CN39: 0.07165065264 | CO39: 0.09967255226 | CP39: 0.08663536261 | CQ39: 0.07775046222 | CR39: 0.1022487604 | CS39: 0.07461694722 | CT39: 0.1402882076 | CU39: 0.07884749764 | CV39: 0.04685149661 | CW39: 0.01008840654
A40: 1996 | B40: 0.1845163658 | C40: 0.2312286578 | D40: 0.2046236686 | E40: 0.1919407735 | F40: 0.1926843438 | G40: 0.04303610858 | H40: 0.1697332824 | I40: -0.09910360539 | J40: 0.195606579 | K40: 0.1935534959 | L40: 0.3056709338 | M40: 0.3020779551 | N40: 0.4112071345 | O40: 0.3056709338 | P40: 0.05447083333 | Q40: 0.0544 | R40: 0.055125 | S40: 0.0599 | T40: 0.06176666667 | U40: 0.06339166667 | V40: 0.06438333333 | W40: 0.068225 | X40: 0.06700833333 | Y40: 0.05005833333 | Z40: 0.05080833333 | AA40: 0.0539 | AB40: 0.05465 | AC40: 0.0737 | AD40: 0.08054166667 | AF40: 0.057575 | AG40: 0.07809166667 | AH40: 0.04033206201 | AI40: 0.05298333333 | AJ40: 0.0332298945 | AK40: 0.02668918226 | AL40: -0.04695077162 | AM40: 0.08798704573 | AN40: 0.0809812306 | AO40: 0.07904578926 | AP40: 0.07292703787 | AQ40: 0.0646007899 | AR40: 0.1018311037 | AS40: 0.1037949663 | AT40: 0.06665257805 | AU40: 0.02881272104 | AV40: 0.1072370174 | AW40: 0.1074159317 | AX40: 0.08885348578 | AY40: 0.1203700608 | AZ40: 0.1332596429 | BA40: 0.05838051048 | BB40: 0.08089692308 | BC40: 0.121265769 | BD40: 0.0143053585 | BE40: 0.09233652611 | BF40: 0.1429844657 | BG40: 0.07104399039 | BH40: 0.1139707067 | BI40: 0.06917537943 | BJ40: 0.08334940606 | BK40: 0.01327444471 | BM40: -0.00421465381 | BN40: 0.1024276894 | BO40: 0.09800802471 | BP40: 0.07052241849 | BQ40: 0.01619307142 | BR40: 0.1469538989 | BS40: 0.03626298341 | BT40: 0.03363170206 | BU40: 0.05326613585 | BV40: 0.1659216637 | BW40: 0.04585792047 | BX40: 0.05671062186 | BY40: 0.08610075189 | BZ40: 0.1160442646 | CA40: 0.08518078698 | CB40: 0.1136161084 | CD40: 0.09235552502 | CE40: 0.09802888754 | CF40: 0.1041539428 | CG40: 0.07906426788 | CH40: 0.08420698001 | CI40: 0.1384175729 | CJ40: 0.06879212178 | CK40: 0.09438107083 | CL40: 0.08137968318 | CM40: 0.1081847864 | CN40: 0.1189732849 | CO40: 0.0996796769 | CP40: 0.07994904579 | CQ40: 0.07965034784 | CR40: 0.09324856968 | CS40: 0.08420698001 | CT40: 0.1384175729 | CU40: 0.08748216225 | CV40: 0.0872878204 | CW40: 0.01010954321
A41: 1997 | B41: 0.2700895857 | C41: 0.2040963107 | D41: 0.1958581751 | E41: 0.2146686508 | F41: 0.2722111524 | G41: 0.0023757783 | H41: 0.1953755577 | I41: -0.3052019989 | J41: 0.2668838185 | K41: 0.2755871283 | L41: 0.1727837401 | M41: 0.1844874706 | N41: 0.0375194603 | O41: 0.1727837401 | P41: 0.05668916667 | Q41: 0.05660833333 | R41: 0.0563 | S41: 0.06101666667 | T41: 0.062225 | U41: 0.06324166667 | V41: 0.063525 | W41: 0.06684166667 | X41: 0.06605833333 | Y41: 0.05060833333 | Z41: 0.05176666667 | AA41: 0.05615833333 | AB41: 0.05724166667 | AC41: 0.07261666667 | AD41: 0.078625 | AE41: 0.05515833333 | AF41: 0.055225 | AG41: 0.07563333333 | AH41: -0.1620224215 | AI41: 0.0546 | AJ41: 0.01682806928 | AK41: -0.01797625585 | AL41: -0.240903581 | AM41: 0.07442255664 | AN41: 0.06968827231 | AO41: 0.05742841327 | AP41: 0.07431665011 | AQ41: 0.09632225276 | AR41: 0.0625626013 | AS41: 0.08830156607 | AT41: 0.03123214112 | AU41: 0.03344031224 | AV41: 0.07967784928 | AW41: 0.1028700716 | AX41: 0.08631994912 | AY41: 0.1190852432 | AZ41: 0.1601007302 | BA41: 0.04638517322 | BB41: 0.08178027014 | BC41: 0.03689235681 | BD41: 0.02517073025 | BE41: 0.1051993915 | BF41: 0.1154288199 | BG41: 0.1043985224 | BH41: 0.09781113803 | BI41: 0.03254931688 | BJ41: 0.04768286571 | BK41: -0.0006953753706 | BM41: 0.003793404582 | BN41: 0.06979474132 | BO41: 0.08995346334 | BP41: 0.06850230691 | BQ41: 0.05829296021 | BR41: 0.08252656814 | BS41: 0.01869275195 | BT41: 0.04775139904 | BU41: 0.07526805249 | BV41: 0.1051389723 | BW41: 0.04318946194 | BX41: 0.06866797245 | BY41: 0.03782629261 | BZ41: 0.1052801275 | CA41: 0.08987729028 | CB41: 0.06902586542 | CD41: 0.0864757227 | CE41: 0.08797283927 | CF41: 0.1027679253 | CG41: 0.05288839329 | CH41: 0.08803908387 | CI41: 0.1392574843 | CJ41: 0.07890054184 | CK41: 0.08930823403 | CL41: 0.06160736383 | CM41: 0.1142517072 | CN41: 0.1093149181 | CO41: 0.09390970027 | CP41: 0.06220763074 | CQ41: 0.03424120834 | CR41: 0.07894614114 | CS41: 0.08803908387 | CT41: 0.1392574843 | CU41: 0.08344775794 | CV41: 0.08843240255 | CW41: 0.01016406912
A42: 1998 | B42: 0.2364039638 | C42: 0.1492701251 | D42: 0.3338305761 | E42: 0.1620181523 | F42: 0.2104307878 | G42: 0.1674663222 | H42: 0.2352928695 | I42: 0.01149869332 | J42: 0.2398881584 | K42: 0.2530103193 | L42: -0.2085343985 | M42: -0.192398505 | N42: -0.3455720702 | O42: -0.2085343985 | P42: 0.05550833333 | Q42: 0.055 | R42: 0.05051666667 | S42: 0.051375 | T42: 0.0515 | U42: 0.05279166667 | V42: 0.05264166667 | W42: 0.05718333333 | X42: 0.05578333333 | Y42: 0.04776666667 | Z42: 0.04828333333 | AA42: 0.05466666667 | AB42: 0.05444166667 | AC42: 0.06531666667 | AD42: 0.07220833333 | AE42: 0.05371666667 | AF42: 0.05090833333 | AG42: 0.06953333333 | AH42: -0.2532756557 | AI42: 0.05353333333 | AJ42: 0.015941478 | AK42: -0.03205402629 | AL42: -0.008304545997 | AM42: 0.09134845101 | AN42: 0.08362248839 | AO42: 0.08456695435 | AP42: 0.1047032901 | AQ42: 0.1398653492 | AR42: 0.06537411787 | AS42: 0.112595104 | AT42: 0.0489417601 | AU42: 0.02879374613 | AV42: 0.09166920442 | AW42: 0.1220373849 | AX42: 0.1171852341 | AY42: 0.1417900199 | AZ42: 0.1152479322 | BA42: 0.06975924167 | BB42: 0.1111249172 | BC42: 0.06514755667 | BD42: 0.02225258101 | BE42: 0.1192424395 | BF42: 0.1201121536 | BG42: 0.1302753498 | BH42: 0.09401944343 | BI42: 0.05140527959 | BJ42: 0.1130183839 | BK42: -0.01393816453 | BM42: 0.03899050093 | BN42: 0.05720867125 | BO42: 0.09788328896 | BP42: 0.1071012389 | BQ42: 0.08570719082 | BR42: 0.0484334018 | BS42: 0.044132056 | BT42: 0.07271144106 | BU42: 0.09840078671 | BV42: 0.1221802752 | BW42: 0.1017458535 | BX42: 0.04929324247 | BY42: 0.03625820035 | BZ42: 0.09601706886 | CA42: 0.05416246473 | CB42: 0.09586208674 | CD42: 0.06349180825 | CE42: 0.07238492756 | CF42: 0.07729790439 | CG42: 0.06217969528 | CH42: 0.0984601964 | CI42: 0.04083780486 | CJ42: 0.0697910845 | CK42: 0.08707793152 | CL42: -0.005197412893 | CM42: 0.06789826201 | CN42: 0.1245602274 | CO42: 0.07728002674 | CP42: 0.07667559061 | CQ42: 0.04414710489 | CR42: 0.1037120971 | CS42: 0.0984601964 | CT42: 0.04083780486 | CU42: 0.08087509382 | CV42: 0.04663261447 | CW42: 0.01000801569
A43: 1999 | B43: 0.1783641094 | C43: 0.2249118637 | D43: 0.6183443513 | E43: 0.03484394474 | F43: 0.2116251868 | G43: 0.2252707639 | H43: 0.1320933411 | I43: 0.4457478642 | J43: 0.1980890406 | K43: 0.1894374042 | L43: -0.06695151034 | M43: -0.04730109056 | N43: -0.4037286313 | O43: -0.06695151034 | P43: 0.0530275 | Q43: 0.053575 | R43: 0.050775 | S43: 0.05485 | T43: 0.05540833333 | U43: 0.05776666667 | V43: 0.05636666667 | W43: 0.0619 | X43: 0.05865833333 | Y43: 0.04638333333 | Z43: 0.04745 | AA43: 0.0533 | AB43: 0.054575 | AC43: 0.07041666667 | AD43: 0.07870833333 | AE43: 0.05215833333 | AF43: 0.054275 | AG43: 0.074525 | AH43: 0.4223978931 | AI43: 0.0497 | AJ43: 0.02641209954 | AK43: 0.03990952623 | AL43: 0.008476826125 | AM43: 0.09771532174 | AN43: 0.09430210477 | AO43: 0.06241962963 | AP43: 0.1160474561 | AQ43: 0.1207002298 | AR43: 0.09333294835 | AS43: 0.08180385112 | AT43: 0.1055716014 | AU43: 0.05997221815 | AV43: 0.1081512498 | AW43: 0.1293897926 | AX43: 0.08208764235 | AY43: 0.09244448299 | AZ43: 0.08615443992 | BA43: 0.08648971865 | BB43: 0.1070162288 | BC43: 0.09841072676 | BD43: 0.04854975197 | BE43: 0.1565255311 | BF43: 0.1202449923 | BG43: 0.1245509428 | BH43: 0.109481967 | BI43: 0.1020234287 | BJ43: 0.1150270987 | BK43: 0.04205712957 | BM43: 0.05693913406 | BN43: 0.09282292354 | BO43: 0.06820854752 | BP43: 0.09978103765 | BQ43: 0.04005252867 | BR43: 0.09317807322 | BS43: 0.09117478968 | BT43: 0.09455532197 | BU43: 0.06213906204 | BV43: 0.1039795145 | BW43: 0.1066474397 | BX43: 0.07424882116 | BY43: 0.09773853724 | BZ43: 0.0770547956 | CA43: 0.06986170838 | CB43: 0.2009467927 | CD43: 0.04163934994 | CE43: 0.06950553136 | CF43: 0.06404435945 | CG43: 0.07724241996 | CH43: 0.08080824594 | CI43: 0.01402520681 | CJ43: 0.03184324824 | CK43: 0.1000205414 | CL43: 0.1126526663 | CM43: 0.04754011455 | CN43: 0.1647290111 | CO43: 0.07099168232 | CP43: 0.09388841917 | CQ43: 0.06295455538 | CR43: 0.1120291771 | CS43: 0.08080824594 | CT43: 0.01402520681 | CU43: 0.1007918756 | CV43: -0.03958434052 | CW43: 0.010101645
A44: 2000 | B44: -0.1069082312 | C44: -0.06366042438 | D44: -0.4990447971 | E44: 0.06523317794 | F44: -0.1154352231 | G44: -0.1649442731 | H44: -0.1015757944 | I44: -0.3066839313 | J44: -0.1367969362 | K44: -0.1456727552 | L44: 0.2302400099 | M44: 0.2340073134 | N44: 0.1480799163 | O44: 0.2302400099 | P44: 0.06439083333 | Q44: 0.064825 | R44: 0.06108333333 | S44: 0.06216666667 | T44: 0.061525 | U44: 0.061975 | V44: 0.06029166667 | W44: 0.0623 | X44: 0.059425 | Y44: 0.05816666667 | Z44: 0.05898333333 | AA44: 0.06455833333 | AB44: 0.06583333333 | AC44: 0.076225 | AD44: 0.08364166667 | AE44: 0.06326666667 | AF44: 0.05709166667 | AG44: 0.08025 | AH44: 0.09514717595 | AI44: 0.06235833333 | AJ44: 0.03378306124 | AK44: 0.06365785177 | AL44: -0.05597352558 | AM44: 0.09674490066 | AN44: 0.09368689558 | AO44: 0.0672056129 | AP44: 0.1067589408 | AQ44: 0.117364649 | AR44: 0.09261289659 | AS44: 0.08675304974 | AT44: 0.1009646063 | AU44: 0.07528612989 | AV44: 0.09955765287 | AW44: 0.1159080808 | AX44: 0.06055773182 | AY44: 0.07976204829 | AZ44: 0.07369071726 | BA44: 0.08831834305 | BB44: 0.1025523894 | BC44: 0.07688740561 | BD44: 0.1009461876 | BE44: 0.1276036 | BF44: 0.1152922793 | BG44: 0.1288059821 | BH44: 0.1045057762 | BI44: 0.1085896127 | BJ44: 0.1181708715 | BK44: 0.04049055931 | BM44: 0.07841772347 | BN44: 0.1080047883 | BO44: 0.08317949945 | BP44: 0.08856016995 | BQ44: 0.03970010318 | BR44: 0.1033704341 | BS44: 0.08065219328 | BT44: 0.07622489562 | BU44: 0.08337774148 | BV44: 0.1016909443 | BW44: 0.09237291351 | BX44: 0.06743084217 | BY44: 0.08563128538 | BZ44: 0.111114226 | CA44: 0.06513607477 | CB44: 0.2003399696 | CD44: 0.04903726493 | CE44: 0.0697951975 | CF44: 0.0855132467 | CG44: 0.046693533 | CH44: 0.09972951664 | CI44: 0.0566058521 | CJ44: 0.06329091535 | CK44: 0.111384872 | CL44: -0.002575825936 | CM44: 0.0782002257 | CN44: 0.05329107693 | CO44: 0.08488751272 | CP44: 0.08259343393 | CQ44: 0.0192430147 | CR44: 0.1088823683 | CS44: 0.09972951664 | CT44: 0.0566058521 | CU44: 0.0639217824 | CV44: -0.05640210387 | CW44: 0.009242969164
A45: 2001 | B45: -0.1397528534 | C45: -0.07369563312 | D45: -0.2363941751 | E45: -0.1373017225 | F45: -0.1163079934 | G45: -0.2563265516 | H45: -0.2386432036 | I45: -0.3039470367 | J45: -0.1461321849 | K45: -0.1418756111 | L45: 0.1441178489 | M45: 0.1304395681 | N45: 0.5729152724 | O45: 0.1441178489 | P45: 0.03719166667 | Q45: 0.03726666667 | R45: 0.03480833333 | S45: 0.04080833333 | T45: 0.04550833333 | U45: 0.04876666667 | V45: 0.050175 | W45: 0.05630833333 | X45: 0.05493333333 | Y45: 0.03388333333 | Z45: 0.03334166667 | AA45: 0.03686666667 | AB45: 0.03640833333 | AC45: 0.070825 | AD45: 0.079475 | AE45: 0.03635833333 | AF45: 0.051525 | AG45: 0.07008333333 | AH45: -0.3126493552 | AI45: 0.038875 | AJ45: 0.01590942647 | AK45: -0.06131318481 | AL45: 0.007441725966 | AM45: 0.09186935403 | AN45: 0.09015035484 | AO45: 0.06582251056 | AP45: 0.1190592698 | AQ45: 0.1029730554 | AR45: 0.08800186865 | AS45: 0.1012427414 | AT45: 0.0933884031 | AU45: 0.05169900621 | AV45: 0.1114757379 | AW45: 0.1000713884 | AX45: 0.05562741076 | AY45: 0.07690530766 | AZ45: 0.07864584903 | BA45: 0.08152625363 | BB45: 0.09565628399 | BC45: 0.1034836395 | BD45: 0.06515367586 | BE45: 0.1108617208 | BF45: 0.1108046779 | BG45: 0.1136001813 | BH45: 0.09200454374 | BI45: 0.1052929323 | BJ45: 0.0998431384 | BK45: 0.06477484557 | BM45: 0.07425169122 | BN45: 0.1083469465 | BO45: 0.08330187868 | BP45: 0.08448552298 | BQ45: 0.03933524118 | BR45: 0.09933204973 | BS45: 0.07555241778 | BT45: 0.0733430084 | BU45: 0.09393269286 | BV45: 0.07135036503 | BW45: 0.1022954083 | BX45: 0.09831027118 | BY45: 0.07977195649 | BZ45: 0.1095047434 | CA45: 0.06201503583 | CB45: 0.1728201672 | CD45: 0.01041938752 | CE45: 0.02013451435 | CF45: 0.06081626446 | CG45: -0.03504572517 | CH45: 0.07084984115 | CI45: 0.03576113766 | CJ45: 0.0591803555 | CK45: -0.03675296992 | CL45: -0.01502086901 | CM45: 0.05324602825 | CN45: 0.02705054522 | CO45: 0.03038804873 | CP45: -0.07466104119 | CQ45: -0.01029609548 | CR45: -0.01970064216 | CS45: 0.07084984115 | CT45: 0.03576113766 | CU45: 0.05428608522 | CV45: -0.06114451327 | CW45: 0.009551133666
A46: 2002 | B46: -0.2661289198 | C46: -0.1834801312 | D46: -0.3787212384 | E46: -0.2282325269 | F46: -0.2339268567 | G46: -0.1925734154 | H46: -0.2244776083 | I46: -0.1101586237 | J46: -0.2694394462 | K46: -0.2740370471 | L46: 0.0508411128 | M46: 0.03749604559 | N46: 0.2706031581 | O46: 0.0508411128 | P46: 0.01756166667 | Q46: 0.017575 | R46: 0.02001666667 | S46: 0.031 | T46: 0.03815 | U46: 0.04304166667 | V46: 0.04610833333 | W46: 0.0543 | X46: 0.05438333333 | Y46: 0.016025 | Z46: 0.01673333333 | AA46: 0.01725833333 | AB46: 0.01805833333 | AC46: 0.06491666667 | AD46: 0.07801666667 | AE46: 0.01700833333 | AF46: 0.050375 | AG46: 0.06505 | AH46: 0.42299807 | AI46: 0.01666666667 | AJ46: 0.02450011187 | AK46: 0.03678575682 | AL46: 0.2276901618 | AM46: 0.08894929652 | AN46: 0.0880308912 | AO46: 0.05705998581 | AP46: 0.1521411375 | AQ46: 0.09986727212 | AR46: 0.08494902834 | AS46: 0.09732286462 | AT46: 0.1008600474 | AU46: 0.05877755144 | AV46: 0.1025608204 | AW46: 0.08758182978 | AX46: 0.0684436018 | AY46: 0.08226984752 | AZ46: 0.08821083004 | BA46: 0.07965013851 | BB46: 0.07666352148 | BC46: 0.09153435789 | BD46: 0.06225309337 | BE46: 0.1021169146 | BF46: 0.1199599137 | BG46: 0.0980960669 | BH46: 0.09649748449 | BI46: 0.09965192872 | BJ46: 0.09789979969 | BK46: 0.06158802511 | BM46: 0.07345843491 | BN46: 0.09544491412 | BO46: 0.08332733269 | BP46: 0.0758155847 | BQ46: 0.05413989974 | BR46: 0.09932398352 | BS46: 0.08796290257 | BT46: 0.06934363884 | BU46: 0.0900204773 | BV46: 0.0685665427 | BW46: 0.08797257998 | BX46: 0.0816338123 | BY46: 0.07395144247 | BZ46: 0.1402215475 | CA46: 0.05900751345 | CB46: 0.1270580886 | CD46: 0.06368370691 | CE46: 0.06863155298 | CF46: 0.07250701424 | CG46: 0.0626510237 | CH46: 0.06531469975 | CI46: 0.0878706202 | CJ46: 0.0480600657 | CK46: 0.08810330987 | CL46: 0.02681511041 | CM46: 0.07257701441 | CN46: 0.09582177179 | CO46: 0.06499328002 | CP46: 0.03083747324 | CQ46: 0.06945701685 | CR46: 0.08309818152 | CS46: 0.06531469975 | CT46: 0.0878706202 | CU46: 0.1054231957 | CV46: 0.07166905822 | CW46: 0.009360656688
A47: 2003 | B47: 0.2341261887 | C47: 0.2257183868 | D47: 0.4055175212 | E47: 0.2968909665 | F47: 0.2751213475 | G47: 0.3021959792 | H47: 0.2985513708 | I47: 0.3100316178 | J47: 0.2450820691 | K47: 0.2372902662 | L47: 0.3254571111 | M47: 0.3157862295 | N47: 0.4535549991 | O47: 0.3254571111 | P47: 0.01203033333 | Q47: 0.01170833333 | R47: 0.01244166667 | S47: 0.02106666667 | T47: 0.02968333333 | U47: 0.035225 | V47: 0.04015 | W47: 0.049575 | X47: 0.05427409055 | Y47: 0.01010833333 | Z47: 0.01054166667 | AA47: 0.01150833333 | AB47: 0.011675 | AC47: 0.05666666667 | AD47: 0.06765833333 | AE47: 0.01128333333 | AF47: 0.04748333333 | AG47: 0.05821666667 | AH47: 0.02586116005 | AI47: 0.011275 | AJ47: 0.0201477003 | AK47: 0.04846763554 | AL47: 0.1813850585 | AM47: 0.0862164135 | AN47: 0.0843227437 | AO47: 0.05420066102 | AP47: 0.1036998915 | AQ47: 0.1050667854 | AR47: 0.08130941823 | AS47: 0.09571955248 | AT47: 0.09311504947 | AU47: 0.07821972781 | AV47: 0.09464253795 | AW47: 0.08500986473 | AX47: 0.07532811686 | AY47: 0.07977834332 | AZ47: 0.09737347342 | BA47: 0.08084390437 | BB47: 0.06834645636 | BC47: 0.08847890295 | BD47: 0.04657420459 | BE47: 0.1020475029 | BF47: 0.1147424545 | BG47: 0.1026068331 | BH47: 0.09910612997 | BI47: 0.09568032441 | BJ47: 0.08679743527 | BK47: 0.05765470112 | BM47: 0.07034533561 | BN47: 0.08328530828 | BO47: 0.09169127045 | BP47: 0.07501655953 | BQ47: 0.0525528882 | BR47: 0.0973774648 | BS47: 0.06586385209 | BT47: 0.09212428014 | BU47: 0.09714888839 | BV47: 0.06612819611 | BW47: 0.06943669967 | BX47: 0.07283626789 | BY47: 0.07668224421 | BZ47: 0.1354371188 | CA47: 0.06365737744 | CB47: 0.09266098093 | CD47: 0.1074539995 | CE47: 0.09682254546 | CF47: 0.08707364569 | CG47: 0.106047386 | CH47: 0.08314830439 | CI47: 0.107057179 | CJ47: 0.01579287325 | CK47: 0.09310813237 | CL47: -0.01258328046 | CM47: 0.09326921184 | CN47: 0.07840776567 | CO47: 0.08778411902 | CP47: 0.09063726712 | CQ47: 0.1068390218 | CR47: 0.09711394813 | CS47: 0.08314830439 | CT47: 0.107057179 | CU47: 0.07315824252 | CV47: 0.2554341389 | CW47: 0.009238367094
A48: 2004 | B48: 0.08611762807 | C48: 0.0309947196 | D48: 0.08240018039 | E48: 0.07894751803 | F48: 0.1174218292 | G48: 0.1620439453 | H48: 0.1642429224 | I48: 0.1586004278 | J48: 0.08946573175 | K48: 0.08436217852 | L48: 0.265509358 | M48: 0.274425818 | N48: 0.169177508 | O48: 0.265509358 | P48: 0.01543608333 | Q48: 0.0158 | R48: 0.01886666667 | S48: 0.0278 | T48: 0.03429166667 | U48: 0.03868333333 | V48: 0.04274166667 | W48: 0.05046666667 | X48: 0.04998156405 | Y48: 0.01371666667 | Z48: 0.01575 | AA48: 0.01563333333 | AB48: 0.01735833333 | AC48: 0.05628333333 | AD48: 0.06393333333 | AE48: 0.01519166667 | AF48: 0.046775 | AG48: 0.05835833333 | AH48: 0.242539751 | AI48: 0.01349166667 | AJ48: 0.032876768 | AK48: 0.07390313807 | AL48: 0.04543834976 | AM48: 0.09161352447 | AN48: 0.1087789148 | AO48: 0.06812675885 | AP48: 0.09896045468 | AQ48: 0.1638895513 | AR48: 0.07793791353 | AS48: 0.1018959343 | AT48: 0.5337015903 | AU48: 0.01851474002 | AV48: 0.08065905633 | AW48: 0.09251541052 | AX48: 0.09433756394 | AY48: 0.1034856183 | AZ48: 0.1415757853 | BA48: 0.07375115094 | BB48: 0.07148646161 | BC48: 0.08144115591 | BD48: 0.3565475399 | BE48: 0.09975793681 | BF48: 0.1627772392 | BG48: 0.09298259999 | BH48: 0.09527855826 | BI48: 0.07004103905 | BJ48: 0.1116374192 | BK48: 0.1859802756 | BM48: 0.05638919857 | BN48: 0.06204927268 | BO48: 0.1477576982 | BP48: 0.08364055821 | BQ48: 0.07994209402 | BR48: 0.1081650706 | BS48: 0.03050109794 | BT48: 0.05612725811 | BU48: 0.09331410607 | BV48: 0.05355373919 | BW48: 0.06343498575 | BX48: -0.003167529134 | BY48: 0.1571199415 | BZ48: 0.09734757548 | CA48: 0.08259530544 | CB48: 0.0963255513 | CD48: 0.1716961487 | CE48: 0.2049517255 | CF48: 0.1736447662 | CG48: 0.2351059567 | CH48: 0.1248726815 | CI48: 0.2156615169 | CJ48: 0.1091145412 | CK48: 0.2619938528 | CL48: 0.2934425461 | CM48: 0.168016153 | CN48: 0.2062327778 | CO48: 0.1866556263 | CP48: 0.2801176546 | CQ48: 0.2273177956 | CR48: 0.2608012016 | CS48: 0.1248726815 | CT48: 0.2156615169 | CU48: 0.1036630973 | CV48: 0.07677269809 | CW48: 0.009730905854
A49: 2005 | B49: 0.02956873588 | C49: -0.006093827795 | D49: 0.01364168015 | E49: 0.134010979 | F49: 0.06187058675 | G49: 0.1031389509 | H49: 0.06336534875 | I49: 0.1871956609 | J49: 0.04875696239 | K49: 0.03728533284 | L49: 0.07962564873 | M49: 0.1147815133 | N49: -0.2638043792 | O49: 0.07962564873 | P49: 0.03458733333 | Q49: 0.0353 | R49: 0.03618333333 | S49: 0.03925 | T49: 0.04045833333 | U49: 0.04151666667 | V49: 0.0429 | W49: 0.04645833333 | X49: 0.04220031533 | Y49: 0.03146666667 | Z49: 0.033925 | AA49: 0.03511666667 | AB49: 0.03723333333 | AC49: 0.05235 | AD49: 0.06064166667 | AE49: 0.03439166667 | AF49: 0.043975 | AG49: 0.05870833333 | AH49: 0.3143534951 | AI49: 0.03213333333 | AJ49: 0.03284030365 | AK49: 0.08178246148 | AL49: 0.1635514541 | AM49: 0.207390527 | AN49: 0.2202144443 | AO49: 0.1254995161 | AP49: 0.4886588767 | AQ49: 0.1774471521 | AR49: 0.351871456 | AS49: 0.2406579004 | AT49: 0.3997897851 | AU49: 0.653433686 | AV49: 0.3658849405 | AW49: 0.3028686645 | AX49: 0.2879718933 | AY49: 0.1219796502 | AZ49: 0.2405817387 | BA49: 0.2010608007 | BB49: 0.2640607636 | BC49: 0.1382905526 | BD49: 0.3445374726 | BE49: 0.07461862946 | BF49: 0.1902199372 | BG49: 0.1681044061 | BH49: 0.1555963981 | BI49: 0.2379832816 | BJ49: 0.1811659568 | BK49: 0.1554638851 | BM49: 0.08679043796 | BN49: 0.1870211047 | BO49: 0.1688175927 | BP49: 0.09898252161 | BQ49: 0.2168680744 | BR49: 0.1466075658 | BS49: 0.1273229427 | BT49: 0.1183287088 | BU49: 0.2335689718 | BV49: 0.1515165717 | BW49: 0.2148736458 | BX49: 0.1722270639 | BY49: 0.2328313188 | BZ49: 0.1423122789 | CA49: 0.2728606725 | CB49: 0.1496865127 | CD49: 0.1514265625 | CE49: 0.3389902735 | CF49: 0.2360006856 | CG49: 0.4314822004 | CH49: 0.1240408711 | CI49: 0.2026256 | CJ49: 0.04907898715 | CK49: 0.5919125718 | CL49: 0.3330740456 | CM49: 0.1634131502 | CN49: 0.3734081774 | CO49: 0.2219312416 | CP49: 0.1253983067 | CQ49: 0.4812798381 | CR49: 0.5569666026 | CS49: 0.1240408711 | CT49: 0.2026256 | CU49: 0.1112500429 | CV49: -0.08585081591 | CW49: 0.0100444723
A50: 2006 | B50: 0.1276843566 | C50: 0.1508983709 | D50: 0.09094673963 | E50: 0.13246247 | F50: 0.1465211443 | G50: 0.2108393485 | H50: 0.2640777397 | I50: 0.09924928917 | J50: 0.125266242 | K50: 0.1238479365 | L50: 0.2952882036 | M50: 0.3005539143 | N50: 0.1766725596 | O50: 0.2928138216 | P50: 0.05130008333 | Q50: 0.05165 | R50: 0.049325 | S50: 0.04769166667 | T50: 0.04745 | U50: 0.04755 | V50: 0.04791666667 | W50: 0.049925 | X50: 0.04873333333 | Y50: 0.04726666667 | Z50: 0.048025 | AA50: 0.05153333333 | AB50: 0.05233333333 | AC50: 0.055875 | AD50: 0.06479166667 | AE50: 0.05064166667 | AF50: 0.04400833333 | AG50: 0.06408333333 | AH50: -0.06062186803 | AI50: 0.04964166667 | AJ50: 0.02492651488 | AK50: 0.01582504114 | AL50: 0.208613549 | AM50: 0.1484152591 | AN50: 0.1528603929 | AO50: 0.03932878811 | AP50: 0.3414614313 | AQ50: 0.126497982 | AR50: 0.08401194132 | AS50: 0.1805463243 | AT50: 0.2286425339 | AU50: 0.1051008035 | AV50: 0.2239466493 | AW50: 0.3733537199 | AX50: 0.1490618847 | AY50: 0.1117663948 | AZ50: 0.1384557382 | BA50: 0.117532468 | BB50: 0.1143939736 | BC50: 0.09027509088 | BD50: 0.1242425521 | BE50: 0.1126833 | BF50: 0.1714547695 | BG50: 0.1184861835 | BH50: 0.1249348729 | BI50: 0.533403859 | BJ50: 0.1849191933 | BK50: 0.1495402093 | BM50: 0.07062351819 | BN50: 0.07325184967 | BO50: 0.1908003907 | BP50: 0.1080700164 | BQ50: 0.09466212081 | BR50: 0.1102270059 | BS50: 0.1021188631 | BT50: 0.08664801207 | BU50: 0.1826833985 | BV50: 0.08427978695 | BW50: 0.2090901499 | BX50: 0.2227355007 | BY50: 0.1708356848 | BZ50: 0.1238397179 | CA50: 0.05899679359 | CB50: 0.1286518499 | CD50: 0.1860428498 | CE50: 0.2114882169 | CF50: 0.1416046713 | CG50: 0.2736747373 | CH50: 0.2293604016 | CI50: 0.1020205281 | CJ50: 0.1473139193 | CK50: 0.2755228598 | CL50: 0.3925604017 | CM50: 0.1483188808 | CN50: 0.1301449033 | CO50: 0.1603921868 | CP50: 0.2904877573 | CQ50: 0.2717496349 | CR50: 0.2461501939 | CS50: 0.2293604016 | CT50: 0.1020205281 | CU50: 0.08738196662 | CV50: 0.1130488268 | CW50: 0.01025160937
A51: 2007 | B51: 0.03468716042 | C51: 0.06233912756 | D51: 0.09360028473 | E51: -0.01398979109 | F51: 0.05460224474 | G51: 0.08271191577 | H51: 0.1039702758 | I51: 0.03458739349 | J51: 0.05522751749 | K51: 0.04005360839 | L51: -0.1963955745 | M51: -0.1706903814 | N51: -0.550762668 | O51: -0.1964016502 | P51: 0.052498 | Q51: 0.05280833333 | R51: 0.04521666667 | S51: 0.043375 | T51: 0.04425 | U51: 0.04504166667 | V51: 0.04629166667 | W51: 0.04908333333 | X51: 0.04834166667 | Y51: 0.04353333333 | Z51: 0.0443 | AA51: 0.05268333333 | AB51: 0.05226666667 | AC51: 0.05555833333 | AD51: 0.064825 | AE51: 0.0513 | AF51: 0.04395833333 | AG51: 0.06336666667 | AH51: 0.3535005837 | AI51: 0.05019166667 | AJ51: 0.0402664488 | AK51: 0.07557342649 | AL51: 0.2770442031 | AM51: 0.1397347913 | AN51: 0.1313051112 | AO51: 0.06265956298 | AP51: 0.08144400497 | AQ51: 0.1602730173 | AR51: 0.1343642355 | AS51: 0.1316196676 | AT51: 0.03440122073 | AU51: 0.06378335973 | AV51: 0.1551797247 | AW51: 0.1564565872 | AX51: 0.1490045104 | AY51: 0.1468112563 | AZ51: 0.1929982702 | BA51: 0.1675993124 | BB51: 0.05064567773 | BC51: 0.1316867902 | BD51: 0.01597772429 | BE51: 0.1316198027 | BF51: 0.1866052932 | BG51: 0.1484611152 | BH51: 0.1691553137 | BI51: 0.1782497134 | BJ51: 0.1536609106 | BK51: 0.08723640104 | BM51: 0.08481530987 | BN51: 0.07514282291 | BO51: 0.1720485257 | BP51: 0.1007095122 | BQ51: 0.1307342086 | BR51: 0.2056507056 | BS51: 0.1364178533 | BT51: 0.1145843636 | BU51: 0.1632524738 | BV51: 0.1110712726 | BW51: 0.1766588796 | BX51: 0.1601081456 | BY51: 0.1111361536 | BZ51: 0.1443784091 | CA51: 0.1556341559 | CB51: 0.1886630737 | CD51: 0.1661225054 | CE51: 0.159034605 | CF51: 0.1712402579 | CG51: 0.1502425931 | CH51: 0.1551110199 | CI51: 0.1856240631 | CJ51: 0.1754887887 | CK51: 0.1176483749 | CL51: 0.2064640938 | CM51: 0.1639389269 | CN51: 0.0953587683 | CO51: 0.1698615712 | CP51: 0.1589320725 | CQ51: 0.1525271228 | CR51: 0.1282036879 | CS51: 0.1551110199 | CT51: 0.1856240631 | CU51: 0.1546048365 | CV51: 0.1712355436 | CW51: 0.01075632551
A52: 2008 | B52: -0.4858909696 | C52: -0.4130502566 | D52: -0.5198763162 | E52: -0.563296342 | F52: -0.4657542002 | G52: -0.5993938687 | H52: -0.6577551738 | I52: -0.4766637863 | J52: -0.4982826999 | K52: -0.4873725423 | L52: -0.4673788701 | M52: -0.4736524612 | N52: -0.3755579533 | O52: -0.4754556675 | P52: 0.02665266667 | Q52: 0.03203333333 | R52: 0.018225 | S52: 0.02235833333 | T52: 0.02798333333 | U52: 0.0317 | V52: 0.03666666667 | W52: 0.043625 | X52: 0.04279166667 | Y52: 0.01365 | Z52: 0.01618333333 | AA52: 0.02965 | AB52: 0.03135833333 | AC52: 0.05631666667 | AD52: 0.07446666667 | AE52: 0.02639166667 | AF52: 0.04860833333 | AG52: 0.060725 | AH52: -0.5930934658 | AI52: 0.019275 | AJ52: -0.0002223047334 | AK52: -0.04407007832 | AL52: 0.0422722168 | AM52: 0.1018309471 | AN52: 0.09224593487 | AO52: 0.05947881106 | AP52: 0.1261112174 | AQ52: 0.122327254 | AR52: 0.1046793532 | AS52: 0.0433007297 | AT52: -0.03179371452 | AU52: 0.03834116069 | AV52: -0.0009207841557 | AW52: 0.03909999191 | AX52: 0.161126765 | AY52: 0.1530821423 | AZ52: 0.2065510967 | BA52: 0.07908758958 | BB52: 0.06165287828 | BC52: 0.08702965191 | BD52: -0.05451337619 | BE52: 0.05323930236 | BF52: 0.1345040126 | BG52: 0.09476193411 | BH52: 0.08892033785 | BI52: 0.1113267251 | BJ52: 0.2153584121 | BK52: -0.02930830877 | BL52: 0.114491181 | BM52: 0.08144166017 | BN52: 0.03588218717 | BO52: 0.2279054899 | BP52: 0.1058143999 | BQ52: 0.08786058394 | BR52: 0.1432188651 | BS52: 0.03006732289 | BT52: 0.05562116077 | BU52: 0.2345731161 | BV52: 0.07734338501 | BW52: 0.1398615618 | BX52: 0.08276762895 | BY52: 0.02427585672 | BZ52: 0.1422306969 | CA52: 0.09182894279 | CB52: 0.07516781707 | CC52: 0.1682882915 | CD52: 0.1770396935 | CE52: 0.1583671479 | CF52: 0.1572681628 | CG52: 0.1604647258 | CH52: 0.1397243267 | CI52: 0.1765374964 | CJ52: 0.2196325735 | CK52: 0.1303671461 | CL52: -0.005219415643 | CM52: 0.1635872252 | CN52: 0.1365020092 | CO52: 0.1335773195 | CP52: 0.05444821837 | CQ52: 0.1907597559 | CR52: 0.1250230578 | CS52: 0.1397243267 | CT52: 0.1765374964 | CU52: 0.2416279337 | CV52: 0.2945882583 | CW52: 0.0126113038
A53: 2009 | B53: 0.2106913288 | C53: 0.1724341295 | D53: 0.3638619808 | E53: 0.2813191986 | F53: 0.2491160122 | G53: 0.2448835032 | H53: 0.2718591752 | I53: 0.1918440457 | J53: 0.2333553154 | K53: 0.2167487111 | L53: 0.2425334316 | M53: 0.2467836276 | N53: 0.2201781402 | O53: 0.2453035899 | P53: 0.003342166667 | Q53: 0.009375 | R53: 0.004708333333 | S53: 0.01426666667 | T53: 0.02190833333 | U53: 0.02805833333 | V53: 0.03256666667 | W53: 0.041075 | X53: 0.04069166667 | Y53: 0.0015 | Z53: 0.002791666667 | AA53: 0.005558333333 | AB53: 0.00875 | AC53: 0.05313333333 | AD53: 0.07295833333 | AE53: 0.004216666667 | AF53: 0.04620833333 | AG53: 0.050425 | AH53: 0.3688109973 | AI53: 0.0016 | AJ53: 0.02775254206 | AK53: 0.04126660017 | AL53: 0.2234309489 | AM53: -0.01011754469 | AN53: -0.01752060038 | AO53: -0.005539118999 | AP53: 0.01527642437 | AQ53: 0.008485779209 | AR53: 0.04591005019 | AS53: -0.0008027319257 | AT53: -0.128519055 | AU53: -0.0506015147 | AV53: -0.04780269085 | AW53: -0.0744483693 | AX53: 0.009070279042 | AY53: -0.004002167979 | AZ53: -0.004729518333 | BA53: 0.0287735463 | BB53: 0.009281204048 | BC53: -0.0008699757837 | BD53: -0.07189276708 | BE53: -0.04151222524 | BF53: -0.01602443901 | BG53: 0.01080159078 | BH53: -0.02721304155 | BI53: -0.1898043435 | BJ53: 0.04079948666 | BK53: -0.100915294 | BL53: -0.03907466343 | BM53: 0.02767078589 | BN53: -0.04357900426 | BO53: 0.04476577327 | BP53: -0.0311803393 | BQ53: 0.02282230552 | BR53: -0.01331881218 | BS53: 0.001567723292 | BT53: 0.003823105644 | BU53: 0.001030917988 | BV53: -0.03644631972 | BW53: 0.005972100891 | BX53: -0.01052153743 | BY53: -0.04454132199 | BZ53: 0.07335838945 | CA53: -0.05014734098 | CB53: -0.02165542798 | CC53: -0.0126120575 | CD53: 0.06193361702 | CE53: 0.06324636054 | CF53: 0.06647676571 | CG53: 0.06050059416 | CH53: 0.09478543603 | CI53: 0.05843522164 | CJ53: 0.05860226102 | CK53: 0.06484533695 | CL53: 0.01983773445 | CM53: 0.06958759837 | CN53: 0.01559601673 | CO53: 0.06934608206 | CP53: 0.09775865303 | CQ53: 0.04640060126 | CR53: 0.05585754038 | CS53: 0.09478543603 | CT53: 0.05843522164 | CU53: 0.06817154584 | CV53: 0.007965547783 | CW53: 0.01214848098
A54: 2010 | B54: 0.1202904579 | C54: 0.1045651323 | D54: 0.1562367608 | E54: 0.1675191113 | F54: 0.1585099847 | G54: 0.04788091114 | H54: 0.01014858915 | I54: 0.1229043746 | J54: 0.1279486367 | K54: 0.1238201651 | L54: 0.2435748292 | M54: 0.2464456724 | N54: 0.2037277839 | O54: 0.2434466506 | P54: 0.002734 | Q54: 0.005275 | R54: 0.003183333333 | S54: 0.01105 | T54: 0.019275 | U54: 0.02616666667 | V54: 0.03214166667 | W54: 0.0403 | X54: 0.04250833333 | Y54: 0.001366666667 | Z54: 0.001941666667 | AA54: 0.003116666667 | AB54: 0.004408333333 | AC54: 0.04943333333 | AD54: 0.06038333333 | AE54: 0.0029 | AF54: 0.04293333333 | AG54: 0.04688333333 | AH54: 0.2985148852 | AI54: 0.00175 | AJ54: 0.01427554798 | AK54: 0.06309868665 | AL54: 0.2565116274 | AM54: 0.05110627815 | AN54: 0.03776410526 | AO54: 0.03841181471 | AP54: 0.005219897895 | AQ54: 0.06735254428 | AR54: 0.03597812136 | AS54: 0.02462334978 | AT54: -0.08118777451 | AU54: -0.02798172949 | AV54: -0.0449048394 | AW54: 0.007733859577 | AX54: 0.09211547323 | AY54: 0.08073130372 | AZ54: 0.1852699131 | BA54: 0.08493970803 | BB54: 0.02284634616 | BC54: 0.07809540284 | BD54: -0.04889879869 | BE54: -0.03101328345 | BF54: 0.05971783391 | BG54: 0.06937879657 | BH54: 0.08466639482 | BI54: 0.03592928551 | BJ54: 0.158626679 | BK54: -0.05401903807 | BL54: 0.005375728439 | BM54: 0.004218779343 | BN54: -0.009316138412 | BO54: 0.1165559001 | BP54: 0.03113110967 | BQ54: 0.0659442058 | BR54: 0.08965698114 | BS54: -0.01217081908 | BT54: 0.01677833581 | BU54: 0.1158345299 | BV54: 0.08105179737 | BW54: 0.06471176654 | BX54: 0.02170054403 | BY54: -0.04639691063 | BZ54: 0.106494349 | CA54: -0.005448132669 | CB54: 0.005168375866 | CC54: 0.05340665232 | CD54: 0.08562480651 | CE54: 0.08805988217 | CF54: 0.09362629199 | CG54: 0.08374981526 | CH54: 0.09516228572 | CI54: 0.1432093934 | CJ54: 0.09021782893 | CK54: 0.1365240576 | CL54: 0.02420805053 | CM54: 0.1169576986 | CN54: 0.01807718126 | CO54: 0.07435797234 | CP54: 0.0114997995 | CQ54: 0.1347978799 | CR54: 0.1195612445 | CS54: 0.09516228572 | CT54: 0.1432093934 | CU54: 0.07754652799 | CV54: 0.007528759555 | CW54: 0.01165037253
A55: 2011 | B55: -3.180610996e-05 | C55: 0.05380983802 | D55: -0.0181518177 | E55: -0.03764206429 | F55: 0.00976379559 | G55: -0.1603963996 | H55: -0.1486970834 | I55: -0.1771640465 | J55: -0.01573650529 | K55: -0.001124695514 | L55: 0.07024855524 | M55: 0.07958461651 | N55: -0.02445303551 | O55: 0.07050238837 | P55: 0.002327416667 | Q55: 0.004191666667 | R55: 0.001816666667 | S55: 0.0075 | T55: 0.015225 | U55: 0.021625 | V55: 0.02785833333 | W55: 0.03620833333 | X55: 0.03910833333 | Y55: 0.000525 | Z55: 0.0009583333333 | AA55: 0.003033333333 | AB55: 0.004216666667 | AC55: 0.04639166667 | AD55: 0.05664166667 | AE55: 0.002116666667 | AF55: 0.0451 | AG55: 0.044425 | AH55: 0.008237504215 | AI55: 0.001016666667 | AJ55: 0.03016121142 | AK55: 0.05187298927 | AL55: 0.08552800531 | AM55: 0.09121610312 | AN55: 0.07746801752 | AO55: 0.03403476308 | AP55: 0.001736521581 | AQ55: 0.05686291295 | AR55: 0.02497924366 | AS55: 0.0612981331 | AT55: 0.008413644967 | AU55: 0.01630457675 | AV55: -0.02149853815 | AW55: 0.02734864571 | AX55: 0.1715966286 | AY55: 0.2408082986 | AZ55: 0.2742023838 | BA55: 0.2004486961 | BB55: 0.01902339893 | BC55: 0.1063964881 | BD55: -0.01038259081 | BE55: 0.05076516165 | BF55: 0.1392032547 | BG55: 0.09666822413 | BH55: 0.1001326748 | BI55: 0.04756175902 | BJ55: 0.2907511817 | BK55: -0.0268678908 | BL55: 0.05828387643 | BM55: 0.02385277618 | BN55: 0.06613801618 | BO55: 0.1763050465 | BP55: 0.1018986263 | BQ55: 0.07238886357 | BR55: 0.09349540937 | BS55: 0.004465282041 | BT55: 0.02009878385 | BU55: 0.1911552602 | BV55: 0.03430745442 | BW55: 0.06306674707 | BX55: 0.01408128941 | BY55: -0.02728289879 | BZ55: 0.09938262308 | CA55: 0.1146053174 | CB55: 0.0828542066 | CC55: 0.07730446669 | CD55: 0.14373638 | CE55: 0.1515721657 | CF55: 0.1510338047 | CG55: 0.1552669005 | CH55: 0.1702141891 | CI55: 0.2487601438 | CJ55: 0.06513494616 | CK55: 0.1994895637 | CL55: 0.1324333885 | CM55: 0.1945914862 | CN55: 0.09878049394 | CO55: 0.1498108867 | CP55: 0.1300861013 | CQ55: 0.1654515167 | CR55: 0.1612434709 | CS55: 0.1702141891 | CT55: 0.2487601438 | CU55: 0.1465443732 | CV55: 0.03191627689 | CW55: 0.01160969998
A56: 2012 | B56: 0.1258014103 | C56: 0.07005394968 | D56: 0.1476043114 | E56: 0.1264117782 | F56: 0.1488621658 | G56: 0.1271101622 | H56: 0.1410693759 | I56: 0.1040679221 | J56: 0.1213771642 | K56: 0.1268362505 | L56: 0.1835263827 | M56: 0.1798251929 | N56: 0.1813791152 | O56: 0.1800472884 | P56: 0.00236175 | Q56: 0.0042 | R56: 0.00175 | S56: 0.003816666667 | T56: 0.007608333333 | U56: 0.01219166667 | V56: 0.018025 | W56: 0.02544166667 | X56: 0.02920833333 | Y56: 0.0008583333333 | Z56: 0.001341666667 | AA56: 0.002825 | AB56: 0.004366666667 | AC56: 0.03673333333 | AD56: 0.04935 | AE56: 0.002041666667 | AF56: 0.03729166667 | AG56: 0.036475 | AH56: 0.02199108119 | AI56: 0.0014 | AJ56: 0.01744204901 | AK56: 0.008472515172 | AL56: 0.0793893264 | AM56: 0.1157852506 | AN56: 0.09703300951 | AO56: 0.0382006403 | AP56: 0.03609104582 | AQ56: 0.1136342999 | AR56: 0.05438551537 | AS56: 0.1079645259 | AT56: 0.01017795267 | AU56: 0.01719279668 | AV56: -0.07067508521 | AW56: 0.08894612509 | AX56: 0.1820588627 | AY56: 0.1773847401 | AZ56: 0.2379112009 | BA56: 0.2475579176 | BB56: 0.06953457208 | BC56: 0.1232150936 | BD56: -0.007592849622 | BE56: 0.1025346414 | BF56: 0.2185142236 | BG56: 0.06358978037 | BH56: 0.1503445861 | BI56: 0.1012563085 | BJ56: 0.3507171019 | BK56: -0.0408722153 | BL56: 0.1520871204 | BM56: 0.08690088323 | BN56: 0.01062535259 | BO56: 0.2857129694 | BP56: 0.1356407114 | BQ56: 0.1092588181 | BR56: 0.08094350505 | BS56: 0.04995909722 | BT56: 0.02141913609 | BU56: 0.2563923266 | BV56: 0.0272028026 | BW56: 0.03091106573 | BX56: 0.01937372705 | BY56: -0.01373187098 | BZ56: 0.1889706653 | CA56: -0.003868226627 | CB56: 0.08207384597 | CC56: 0.08640968026 | CD56: 0.1923664736 | CE56: 0.1857541377 | CF56: 0.1740570311 | CG56: 0.2079515273 | CH56: 0.2104496118 | CI56: 0.2481702505 | CJ56: 0.113452397 | CK56: 0.2125318346 | CL56: 0.157614614 | CM56: 0.2182049592 | CN56: 0.0724350468 | CO56: 0.1744449732 | CP56: 0.1590104323 | CQ56: 0.2186533774 | CR56: 0.1697771399 | CS56: 0.2104496118 | CT56: 0.2481702505 | CU56: 0.1742816535 | CV56: 0.1786242868 | CW56: 0.01182835026
A57: 2013 | B57: 0.2592922065 | C57: 0.2350674711 | D57: 0.3244005576 | E57: 0.1138881747 | F57: 0.2855867777 | G57: 0.1775241456 | H57: 0.1962240254 | I57: 0.1419068042 | J57: 0.2436670245 | K57: 0.2612203944 | L57: 0.03158208459 | M57: 0.02815719316 | N57: -0.01979506878 | O57: 0.02313555626 | P57: 0.001885083333 | Q57: 0.003358333333 | R57: 0.001316666667 | S57: 0.005433333333 | T57: 0.011725 | U57: 0.017375 | V57: 0.02350833333 | W57: 0.03119166667 | X57: 0.03448333333 | Y57: 0.0005833333333 | Z57: 0.0008833333333 | AA57: 0.001858733006 | AB57: 0.002024350322 | AC57: 0.04235 | AD57: 0.05101666667 | AE57: 0.001408333333 | AF57: 0.04270833333 | AG57: 0.04024166667 | AH57: -0.08190267701 | AI57: 0.001075 | AJ57: 0.01501509087 | AK57: 0.002478316014 | AL57: -0.3192459 | AM57: 0.09881764765 | AN57: 0.08527906657 | AO57: 0.06390701676 | AP57: 0.06483481682 | AQ57: 0.06737709507 | AR57: 0.02564667395 | AS57: 0.1304065152 | AT57: 0.01135601595 | AU57: 0.01774329034 | AV57: 0.03952612001 | AW57: 0.08167079681 | AX57: 0.1715202355 | AY57: 0.1211660678 | AZ57: 0.2080486417 | BA57: 0.1849838232 | BB57: 0.1035601736 | BC57: 0.09438375045 | BD57: 0.03479370538 | BE57: 0.12777926 | BF57: 0.1847437602 | BG57: 0.04659371556 | BH57: 0.08305020562 | BI57: 0.07166992379 | BJ57: 0.1906979989 | BK57: 0.03929984832 | BL57: 0.03209739353 | BM57: -0.01014969222 | BN57: 0.01664529324 | BO57: 0.3669635598 | BP57: 0.1208722354 | BQ57: 0.07886715346 | BR57: 0.05060973194 | BS57: 0.02978644469 | BT57: 0.004141016628 | BU57: 0.3019117885 | BV57: 0.03845220279 | BW57: 0.013433336 | BX57: 0.07138942271 | BY57: 0.0197729423 | BZ57: 0.09848297312 | CA57: 0.01570930551 | CB57: 0.02204169145 | CC57: 0.06065547964 | CD57: 0.1903032079 | CE57: 0.2091050861 | CF57: 0.1672136333 | CG57: 0.297708231 | CH57: 0.1540152782 | CI57: 0.130499186 | CJ57: 0.2322970281 | CK57: 0.3619773844 | CL57: 0.1516603241 | CM57: 0.1572506719 | CN57: 0.2031987611 | CO57: 0.1567802942 | CP57: 0.1678025577 | CQ57: 0.3241794187 | CR57: 0.3205009107 | CS57: 0.1540152782 | CT57: 0.130499186 | CU57: 0.2464253949 | CV57: 0.1660783145 | CW57: 0.01238264988
A58: 2014 | B58: 0.1078731002 | C58: 0.07249800366 | D58: 0.1257083308 | E58: 0.055568837 | F58: 0.1196550413 | G58: -0.07629244031 | H58: -0.08977471027 | I58: -0.05325062182 | J58: 0.09773230167 | K58: 0.1052683387 | L58: 0.2401765677 | M58: 0.247075621 | N58: 0.1645181886 | O58: 0.2408167829 | P58: 0.00155075 | Q58: 0.002791666667 | R58: 0.001208333333 | S58: 0.008958333333 | T58: 0.01640833333 | U58: 0.021425 | V58: 0.02540833333 | W58: 0.03074166667 | X58: 0.0334 | Y58: 0.000325 | Z58: 0.0006416666667 | AA58: 0.001858733006 | AB58: 0.002024350322 | AC58: 0.041625 | AD58: 0.04854166667 | AE58: 0.001241666667 | AF58: 0.042325 | AG58: 0.0416 | AH58: -0.4680321223 | AI58: 0.0008916666667 | AJ58: 0.006509977956 | AK58: -0.02506396866 | AL58: 0.001244555232 | AM58: 0.1001064034 | AN58: 0.09063378115 | AO58: 0.07139801913 | AP58: 0.071775815 | AQ58: 0.08501357819 | AR58: 0.09196093223 | AS58: 0.1128377017 | AT58: 0.006054885571 | AU58: 0.02918504355 | AV58: 0.03081526665 | AW58: 0.1205908083 | AX58: 0.08057163935 | AY58: 0.09224908876 | AZ58: 0.1074334203 | BA58: 0.1997030132 | BB58: 0.09940350179 | BC58: 0.07560836696 | BD58: 0.02338989911 | BE58: 0.1197031786 | BF58: 0.1442626363 | BG58: 0.08682201548 | BH58: 0.1016436023 | BI58: 0.1168941134 | BJ58: 0.1399487487 | BK58: 0.0126452908 | BL58: 0.1151949268 | BM58: 0.06112826886 | BN58: 0.06013445911 | BO58: 0.1841565513 | BP58: 0.1251309667 | BQ58: 0.08752350029 | BR58: 0.0988351366 | BS58: 0.05673469111 | BT58: 0.04460982635 | BU58: 0.2427862559 | BV58: 0.03957428484 | BW58: 0.09705906526 | BX58: 0.1078174122 | BY58: 0.02416328485 | BZ58: 0.1397183988 | CA58: 0.02160637014 | CB58: 0.0804153694 | CC58: 0.1094856934 | CD58: 0.1015131858 | CE58: 0.1263134728 | CF58: 0.06304190493 | CG58: 0.2112160903 | CH58: 0.05896963135 | CI58: 0.02748570854 | CJ58: 0.1113148344 | CK58: 0.2473128122 | CL58: 0.1056925102 | CM58: 0.04766047073 | CN58: 0.1234759726 | CO58: 0.07092827439 | CP58: 0.1410439413 | CQ58: 0.2199092281 | CR58: 0.2298452763 | CS58: 0.05896963135 | CT58: 0.02748570854 | CU58: 0.06135444931 | CV58: 0.1042084862 | CW58: 0.01222155903
A59: 2015 | B59: -0.007292541897 | C59: -0.02258600723 | D59: 0.0557153604 | E59: -0.08975014471 | F59: 0.006677078001 | G59: -0.03357929126 | H59: -0.05463221207 | I59: 0.004351626384 | J59: -0.02401948906 | K59: -0.007679316714 | L59: 0.02263850318 | M59: 0.02786057406 | N59: -0.09295000906 | O59: 0.02029836105 | P59: 0.00201175 | Q59: 0.004658333333 | R59: 0.003216666667 | S59: 0.01025833333 | T59: 0.01529166667 | U59: 0.01889166667 | V59: 0.02135833333 | W59: 0.02546666667 | X59: 0.02840833333 | Y59: 0.000525 | Z59: 0.001633333333 | AC59: 0.03886666667 | AD59: 0.04999166667 | AE59: 0.002266666667 | AF59: 0.036575 | AG59: 0.03843333333 | AH59: -0.2593125717 | AI59: 0.001325 | AJ59: 0.006366935496 | AK59: -0.07098906124 | AL59: -0.1290401902 | AM59: 0.06235005537 | AN59: 0.05668776504 | AO59: 0.04401075991 | AP59: 0.0134852616 | AQ59: 0.1044162779 | AR59: 0.08745217318 | AS59: 0.1212831293 | AT59: 0.006732174217 | AU59: 0.04856465154 | AV59: 0.02029070847 | AW59: 0.1026491882 | AX59: 0.02051431376 | AY59: 0.03794793576 | AZ59: -0.04977129046 | BA59: 0.01840470866 | BB59: 0.08477469413 | BC59: 0.07937463821 | BD59: 0.04525209585 | BE59: 0.06777761346 | BF59: 0.0277550979 | BG59: 0.08887664046 | BH59: 0.09194370581 | BI59: 0.06319098874 | BJ59: 0.003602673868 | BK59: 0.02038734625 | BL59: 0.0525050565 | BM59: 0.1371434345 | BN59: 0.02084242965 | BO59: 0.0744514779 | BP59: 0.07088694284 | BQ59: 0.06970288756 | BR59: 0.08934476919 | BS59: 0.006344939542 | BT59: 0.03233284508 | BU59: 0.1426708455 | BV59: 0.04484497039 | BW59: 0.04606197024 | BX59: 0.04559263437 | BY59: 0.0221464307 | BZ59: 0.1338071666 | CA59: 0.02859366647 | CB59: 0.07389489834 | CC59: 0.08411551447 | CD59: 0.05378604547 | CE59: 0.1035403063 | CF59: 0.05180113689 | CG59: 0.1699728033 | CH59: 0.03305741689 | CI59: 0.001432849464 | CJ59: 0.02812956106 | CK59: 0.2022516734 | CL59: 0.1957089247 | CM59: 0.0342541902 | CN59: 0.07244041564 | CO59: 0.05815024567 | CP59: 0.09375726421 | CQ59: 0.1835532012 | CR59: 0.1846970734 | CS59: 0.03192650993 | CT59: 0.001432849464 | CU59: 0.1050760465 | CV59: 0.002317835292 | CW59: 0.01446901163
A60: 2016 | B60: 0.09107409028 | C60: 0.1258835843 | D60: 0.07234931638 | E60: 0.1527980959 | F60: 0.1254436506 | G60: -0.0189872421 | H60: -0.034455413 | I60: 0.01481298904 | J60: 0.0938576405 | K60: 0.0881459505 | L60: 0.08876887159 | M60: 0.08277028418 | N60: 0.2057915059 | O60: 0.08961122226 | P60: 0.004965666667 | Q60: 0.008558333333 | R60: 0.006141666667 | S60: 0.01005833333 | T60: 0.01338333333 | U60: 0.01636666667 | V60: 0.01841666667 | W60: 0.02225 | X60: 0.025975 | Y60: 0.003175 | Z60: 0.004558333333 | AC60: 0.03665833333 | AD60: 0.047175 | AE60: 0.006441666667 | AF60: 0.03144444444 | AG60: 0.03670833333 | AH60: 0.2749715083 | AI60: 0.00395 | AJ60: 0.02030053187 | AK60: 0.02529055966 | AL60: 0.07792144633 | AM60: 0.03108083614 | AN60: 0.03163106473 | AO60: 0.05596660088 | AP60: 0.01218903638 | AQ60: 0.02855637888 | AR60: 0.05599386327 | AS60: 0.03343232158 | AT60: 0.03398948854 | AU60: 0.01669999497 | AV60: 0.0698697344 | AW60: 0.06900327995 | AX60: 0.01033501448 | AY60: 0.01055896298 | AZ60: -0.01144023193 | BA60: -0.04375397869 | BB60: 0.08329113628 | BC60: 0.06277144746 | BD60: 0.0385175941 | BE60: 0.006080464888 | BF60: 0.03606377755 | BG60: 0.07269422943 | BH60: 0.0307855121 | BI60: 0.03941909731 | BJ60: -0.00673175643 | BK60: -0.00177543173 | BL60: 0.09560727696 | BM60: 0.01642698302 | BN60: 0.0133490339 | BO60: -0.03219043188 | BP60: 0.02678427886 | BQ60: 0.05394381804 | BR60: 0.09141359326 | BS60: 0.02475649661 | BT60: 0.02888511645 | BU60: -0.008182131827 | BV60: 0.04509778827 | BW60: 0.006788395244 | BX60: 0.03029317762 | BY60: 0.01533453234 | BZ60: 0.1042600538 | CA60: 0.005835303646 | CB60: 0.01720849745 | CC60: 0.05874533553 | CD60: 0.04483118569 | CE60: 0.07088558576 | CF60: 0.04713103237 | CG60: 0.1012873675 | CH60: 0.02730056481 | CI60: -0.04556242316 | CJ60: 0.05548436733 | CK60: 0.1033307058 | CL60: 0.07732204087 | CM60: 0.005892648091 | CN60: 0.1802610421 | CO60: 0.0499908229 | CP60: 0.07522913503 | CQ60: 0.1075055555 | CR60: 0.1093617917 | CS60: 0.02766277757 | CT60: -0.04556242316 | CU60: 0.09747679778 | CV60: 0.0879684522 | CW60: 0.01295877081
A61: 2017 | B61: 0.1774762111 | C61: 0.2237898161 | D61: 0.2487444636 | E61: 0.1748991197 | F61: 0.1905872074 | G61: 0.1970531689 | H61: 0.1999214289 | I61: 0.1953095076 | J61: 0.175307534 | K61: 0.1781441418 | L61: 0.08862684194 | M61: 0.08318153528 | N61: 0.1805598342 | O61: 0.08887130053 | P61: 0.01113741667 | Q61: 0.01276666667 | R61: 0.01200833333 | S61: 0.015775 | T61: 0.0191 | U61: 0.02159166667 | V61: 0.0233 | W61: 0.026525 | X61: 0.02895 | Y61: 0.009308333333 | Z61: 0.01049166667 | AC61: 0.03743333333 | AD61: 0.0444 | AE61: 0.011525 | AG61: 0.03979166667 | AH61: 0.1426695891 | AI61: 0.01001666667 | AJ61: 0.02107564725 | AK61: 0.04213887413 | AL61: 0.1192267574 | AM61: 0.04863193998 | AN61: 0.04683252637 | AO61: 0.04735815099 | AP61: 0.0866347027 | AQ61: 0.07232596123 | AR61: 0.1331888867 | AS61: 0.05931387057 | AT61: 0.007146675517 | AU61: 0.07863572036 | AV61: 0.07451400152 | AW61: 0.09536955488 | AX61: 0.008573654266 | AY61: -0.009567253505 | AZ61: 0.02491135356 | BA61: 0.01456684929 | BB61: 0.07129713538 | BC61: 0.06172880025 | BD61: 0.03091170706 | BE61: 0.02875331732 | BF61: 0.04566945032 | BG61: 0.06362238312 | BH61: 0.002418317152 | BI61: 0.0493305004 | BJ61: 0.009811880437 | BK61: 0.005704892101 | BL61: 0.08415713914 | BM61: 0.02686879206 | BN61: 0.02283442842 | BO61: 0.02464266355 | BP61: 0.02549302136 | BQ61: 0.05136128458 | BR61: 0.1012689932 | BS61: 0.04229587326 | BT61: 0.03125661641 | BU61: -0.009492285914 | BV61: 0.04165569355 | BW61: 0.06124319656 | BX61: 0.04650072454 | BY61: 0.03579591945 | BZ61: 0.09951176995 | CA61: 0.01720531336 | CB61: 0.1009201951 | CC61: 0.05439373111 | CD61: 0.08591501062 | CE61: 0.06192520868 | CF61: 0.04753302148 | CG61: 0.08135619572 | CH61: 0.04015857812 | CI61: 0.02132600146 | CJ61: 0.1998974636 | CK61: 0.08834432797 | CL61: 0.1050488271 | CM61: 0.03002845744 | CN61: 0.0635476277 | CO61: 0.0527099489 | CP61: 0.1071583555 | CQ61: 0.07765605654 | CR61: 0.08037399787 | CS61: 0.04114748313 | CT61: 0.02132600146 | CU61: 0.03789788057 | CV61: 0.1251801616 | CW61: 0.01295949112
A62: 2018 | B62: -0.06440263421 | C62: -0.05794987128 | D62: -0.03961218008 | E62: -0.08334037647 | F62: -0.05407620579 | G62: -0.1759705638 | H62: -0.1895611648 | I62: -0.1540246246 | J62: -0.07319764345 | K62: -0.06537463392 | L62: -0.04187017339 | M62: -0.04128608075 | N62: -0.02555545637 | O62: -0.04014593766 | P62: 0.02022416667 | Q62: 0.02366666667 | R62: 0.02331666667 | S62: 0.026275 | T62: 0.02748333333 | U62: 0.02850833333 | V62: 0.0291 | W62: 0.03018333333 | X62: 0.031125 | Y62: 0.01939166667 | Z62: 0.02095833333 | AC62: 0.0393 | AD62: 0.048 | AE62: 0.02188333333 | AG62: 0.04556666667 | AH62: -0.1126568851 | AI62: 0.01831666667 | AJ62: 0.01982596922 | AK62: 0.02366080678 | AL62: -0.009338589268 | AM62: 0.04347962736 | AN62: 0.04259123064 | AO62: 0.04034878822 | AP62: 0.03424675635 | AQ62: 0.05274946802 | AR62: 0.06538114611 | AS62: 0.04578659888 | AT62: 0.03129810409 | AU62: 0.01987379907 | AV62: 0.01447853782 | AW62: 0.09087716976 | AX62: 0.04433914162 | AY62: 0.02705478745 | AZ62: 0.01682372408 | BA62: 0.005585772527 | BB62: 0.05591312044 | BC62: 0.0571282311 | BD62: 0.04292217587 | BE62: 0.02466456652 | BF62: 0.02394517205 | BG62: 0.06649401868 | BH62: 0.1181670152 | BI62: 0.02741499838 | BJ62: 0.01038701655 | BK62: 0.005043966553 | BL62: 0.07131626306 | BM62: 0.0321036419 | BN62: 0.02858761001 | BO62: 0.01393995419 | BP62: 0.0494966124 | BQ62: 0.04528141265 | BR62: 0.07864928855 | BS62: 0.04161529691 | BT62: 0.03513868999 | BU62: 0.01891813565 | BV62: 0.04278498811 | BW62: 0.0863036136 | BX62: 0.0498129218 | BY62: 0.01562247393 | BZ62: 0.1004983976 | CA62: 0.01379724018 | CB62: 0.03013357742 | CC62: 0.07131626306 | CD62: 0.08605231892 | CE62: 0.06737786409 | CF62: 0.05917990336 | CG62: 0.08234928511 | CH62: 0.07016289516 | CI62: 0.02644774255 | CJ62: 0.2076463606 | CK62: 0.09527519073 | CL62: 0.08415719532 | CM62: 0.04944575807 | CN62: 0.04407733428 | CO62: 0.06049447004 | CP62: 0.07683789795 | CQ62: 0.08327276553 | CR62: 0.08663889154 | CS62: 0.06996658588 | CT62: 0.02644774255 | CU62: 0.0433579983 | CV62: 0.08855281261 | CW62: 0.01432763102
A63: 2019 | B63: 0.2536966092 | C63: 0.201620743 | D63: 0.3017750739 | E63: 0.101585572 | F63: 0.2701600451 | G63: 0.1691946517 | H63: 0.1825928691 | I63: 0.1476793135 | J63: 0.2533517984 | K63: 0.2551980387 | L63: 0.2473958714 | M63: 0.252025406 | N63: 0.1933510884 | O63: 0.2484814029 | P63: 0.0222605 | Q63: 0.023375 | R63: 0.02053333333 | S63: 0.01940833333 | T63: 0.019575 | U63: 0.02049166667 | V63: 0.02144166667 | W63: 0.02403333333 | X63: 0.025825 | Y63: 0.02060833333 | Z63: 0.02053333333 | AC63: 0.033875 | AD63: 0.04375 | AE63: 0.022075 | AG63: 0.03913333333 | AH63: -0.04793245762 | AI63: 0.02158333333 | AJ63: 0.02287622026 | AK63: -0.01000008333 | AL63: 0.1691718862 | AM63: 0.04524032262 | AN63: 0.04484506391 | AO63: 0.05583913518 | AP63: 0.03702464511 | AQ63: 0.08213970397 | AR63: 0.09737436845 | AS63: 0.04030704699 | AT63: 0.0762673946 | AU63: 0.0207493629 | AV63: 0.02352002511 | AW63: 0.08516406754 | AX63: 0.02407285709 | AY63: 0.02921510989 | AZ63: 0.01677448525 | BA63: 0.08343192233 | BB63: 0.04481505696 | BC63: 0.05689251223 | BD63: 0.03623088625 | BE63: 0.02176869605 | BF63: 0.02641784908 | BG63: 0.06044535384 | BH63: 0.03369188986 | BI63: 0.0270191788 | BJ63: 0.06934588715 | BK63: 0.002078862522 | BL63: 0.05847538699 | BM63: 0.02557970261 | BN63: 0.02829829752 | BO63: 0.05051270745 | BP63: 0.03271071603 | BQ63: 0.05560749877 | BR63: 0.07383847422 | BS63: 0.04222594196 | BT63: 0.03901618216 | BU63: 0.03311970162 | BV63: 0.04058586518 | BW63: 0.05236443429 | BX63: 0.06373509927 | BY63: 0.01486133114 | BZ63: 0.06454669827 | CA63: 0.02391213828 | CB63: 0.03445444599 | CC63: 0.05421670138 | CD63: 0.04127391366 | CE63: 0.0481139389 | CF63: 0.04396391674 | CG63: 0.05480920122 | CH63: 0.03672502302 | CI63: 0.03783459042 | CJ63: 0.0340093665 | CK63: 0.05788718757 | CL63: 0.07693622729 | CM63: 0.04365577325 | CN63: 0.03448383107 | CO63: 0.04468202418 | CP63: 0.05696909233 | CQ63: 0.05552212333 | CR63: 0.05478826636 | CS63: 0.03672502302 | CT63: 0.03783459042 | CU63: 0.04669568691 | CV63: 0.02420142676 | CW63: 0.01319283107
A64: 2020 | B64: 0.1506496039 | C64: 0.06995980082 | D64: 0.3621428821 | E64: 0.05592776512 | F64: 0.1890847369 | G64: 0.05286684359 | H64: 0.03093408468 | I64: 0.08858175058 | J64: 0.1687305134 | K64: 0.1758362775 | L64: -0.06039306296 | M64: -0.05257379013 | N64: -0.2078544832 | O64: -0.06161633032 | P64: 0.005183908333 | Q64: 0.006033333333 | R64: 0.003791666667 | S64: 0.004283333333 | T64: 0.0054 | U64: 0.007266666667 | V64: 0.008941666667 | W64: 0.01353333333 | X64: 0.01561666667 | Y64: 0.00365 | Z64: 0.003716666667 | AC64: 0.02476666667 | AD64: 0.036025 | AE64: 0.005541666667 | AG64: 0.03080833333 | AH64: 0.1030198154 | AI64: 0.003758333333 | AJ64: 0.01313374659 | AK64: 0.007509422022 | AL64: 0.220055772 | AM64: 0.02913033027 | AN64: 0.02918860792 | AO64: 0.03292761707 | AP64: 0.04799181185 | AQ64: 0.04279493494 | AR64: 0.02886205302 | AS64: 0.04142169653 | AT64: 0.01081077689 | AU64: 0.007004605435 | AV64: 0.04182114989 | AW64: 0.07804766994 | AX64: 0.0389769283 | AY64: 0.03228329503 | AZ64: 0.01116470737 | BA64: -0.005056820505 | BB64: 0.05504053582 | BC64: 0.04375076134 | BD64: 0.01201246031 | BE64: 0.02037793405 | BF64: 0.02885454491 | BG64: 0.04620066773 | BH64: 0.02562360163 | BI64: 0.02958297047 | BJ64: 0.01309203482 | BK64: 0.008311361304 | BL64: 0.05148314158 | BM64: -0.01182032213 | BN64: 0.0171727511 | BO64: 0.02158183611 | BP64: 0.02798718698 | BQ64: 0.02759263098 | BR64: 0.05862349822 | BS64: 0.02531418081 | BT64: 0.04197722891 | BU64: 0.005683717108 | BV64: 0.04875866767 | BW64: 0.04142314417 | BX64: 0.03005774014 | BY64: 0.001623672922 | BZ64: 0.05090629226 | CA64: 0.01873128616 | CB64: 0.004552424519 | CC64: 0.04318654889 | CD64: 0.02286703101 | CE64: 0.03082974718 | CF64: 0.04204050055 | CG64: 0.01273002664 | CH64: 0.04111536185 | CI64: 0.04361617359 | CJ64: 0.007718437388 | CK64: 0.01595926662 | CL64: 0.02934416901 | CM64: 0.03531088037 | CN64: 0.06053876058 | CO64: 0.04354260969 | CP64: 0.05339022056 | CQ64: 0.003150067104 | CR64: 0.025733704 | CS64: 0.04111536185 | CT64: 0.04361617359 | CU64: 0.0316139807 | CV64: -0.02423192379 | CW64: 0.01325394179
A65: 2021 | B65: 0.2381719475 | C65: 0.1716605302 | D65: 0.1938310883 | E65: 0.1459630462 | F65: 0.236629983 | G65: 0.08415315788 | H65: 0.1288453046 | I65: 0.002377448231 | J65: 0.2243781353 | K65: 0.2250376527 | L65: 0.3355984944 | M65: 0.3457036042 | N65: 0.1452723277 | O65: 0.3366105659 | P65: 0.0009925416667 | Q65: 0.001783333333 | R65: 0.001041666667 | S65: 0.0046 | T65: 0.00855 | U65: 0.011925 | V65: 0.014425 | W65: 0.019775 | X65: 0.020525 | Y65: 0.0004416666667 | Z65: 0.0006416666667 | AC65: 0.02703333333 | AD65: 0.03391666667 | AE65: 0.001141666667 | AG65: 0.029875 | AH65: 0.3697128541 | AI65: 0.0008 | AJ65: 0.0694743706 | AK65: 0.1853841938 | AL65: -0.0442747858 | AM65: 0.08169279152 | AN65: 0.0779941403 | AO65: 0.0319392517 | AP65: 0.05384526874 | AQ65: 0.04390141881 | AR65: 0.1085388769 | AS65: 0.04293380845 | AT65: 0.05040192674 | AU65: 0.03427638444 | AV65: 0.08270603974 | AW65: 0.1168919894 | AX65: 0.08959631083 | AY65: 0.1031470886 | AZ65: 0.1200877632 | BA65: 0.1275833772 | BB65: 0.04977173406 | BC65: 0.04936806757 | BD65: 0.08270362594 | BE65: 0.0944617314 | BF65: 0.1098594145 | BG65: 0.05395429163 | BH65: 0.1133995931 | BI65: 0.04653814627 | BJ65: 0.1425179227 | BK65: 0.0596884115 | BL65: 0.08498406603 | BM65: 0.05731993009 | BN65: 0.03762191387 | BO65: 0.09037908278 | BP65: 0.05758472058 | BQ65: 0.08435893235 | BR65: 0.1522368755 | BS65: 0.03576059318 | BT65: 0.04181189992 | BU65: 0.1207651138 | BV65: 0.06102151662 | BW65: 0.1129590057 | BX65: 0.08523563458 | BY65: 0.02531042845 | BZ65: 0.1271106649 | CA65: 0.03646711655 | CB65: 0.09026734049 | CC65: 0.08845247345 | CD65: 0.1102165633 | CE65: 0.07834702024 | CF65: 0.1106294078 | CG65: 0.03061614658 | CH65: 0.1020611607 | CI65: 0.1877033738 | CJ65: 0.1782307894 | CK65: 0.03110867469 | CL65: 0.006057966944 | CM65: 0.1297903896 | CN65: 0.09852971529 | CO65: 0.1020344512 | CP65: 0.05840648183 | CQ65: 0.02124577467 | CR65: 0.03628439114 | CS65: 0.1020611607 | CT65: 0.1877033738 | CU65: 0.05764264324 | CV65: 0.09407797333 | CW65: 0.01360698444
A66: 2022 | B66: -0.2162029957 | C66: -0.09191252454 | D66: -0.4019716899 | E66: -0.03813631016 | F66: -0.2112339898 | G66: -0.1837600491 | H66: -0.1896944834 | I66: -0.1694525269 | J66: -0.2293062735 | K66: -0.2326262397 | L66: -0.2890748147 | M66: -0.2869948083 | N66: -0.3093861082 | O66: -0.2879859242 | P66: 0.01900484167 | Q66: 0.00875 | R66: 0.02793333333 | S66: 0.03046666667 | T66: 0.02999166667 | U66: 0.03006666667 | V66: 0.02951666667 | W66: 0.03299166667 | X66: 0.03115 | Y66: 0.02021666667 | Z66: 0.02436666667 | AC66: 0.04074166667 | AD66: 0.05071666667 | AE66: 0.022275 | AG66: 0.0547 | AH66: -0.02881875103 | AI66: 0.01683333333 | AJ66: 0.06245767479 | AK66: 0.06636183986 | AL66: 0.004365130149 | AM66: 0.1348899205 | AN66: 0.1246286272 | AO66: 0.0771915105 | AP66: 0.1154435892 | AQ66: 0.07998406509 | AR66: 0.1173401877 | AS66: 0.1305750015 | AT66: 0.06454667845 | AU66: 0.1090131075 | AV66: 0.1094688587 | AW66: 0.1427960334 | AX66: 0.1480508026 | AY66: 0.1520535888 | AZ66: 0.2382559557 | BA66: 0.2710790593 | BB66: 0.1151422417 | BC66: 0.0879996642 | BD66: 0.1278936961 | BE66: 0.1248269686 | BF66: 0.1981056414 | BG66: 0.08796411383 | BH66: 0.1471638206 | BI66: 0.1365649076 | BJ66: 0.2356088057 | BK66: 0.06969451608 | BL66: 0.05573474173 | BM66: 0.07409659816 | BN66: 0.1031164446 | BO66: 0.1563415463 | BP66: 0.1076348922 | BQ66: 0.1281664246 | BR66: 0.135417224 | BS66: 0.08682201542 | BT66: 0.06831494104 | BU66: 0.2146811993 | BV66: 0.1247018802 | BW66: 0.1280729727 | BX66: 0.08888729046 | BY66: 0.09277182403 | BZ66: 0.1375977272 | CA66: 0.09310596205 | CB66: 0.1178723723 | CC66: 0.1096748459 | CD66: 0.1080737119 | CE66: 0.09469383188 | CF66: 0.1443007047 | CG66: 0.02196065745 | CH66: 0.1312844185 | CI66: 0.2799448632 | CJ66: 0.04840915284 | CK66: 0.01677671579 | CL66: 0.02640236848 | CM66: 0.1861141574 | CN66: 0.05323254424 | CO66: 0.1313270347 | CP66: 0.05578267023 | CQ66: 0.01000929966 | CR66: 0.02780381597 | CS66: 0.1312844185 | CT66: 0.2799448632 | CU66: 0.08863002806 | CV66: 0.04497142131 | CW66: 0.01400242101
A67: 2023 | B67: 0.2169685151 | C67: 0.1284228454 | D67: 0.3606288119 | E67: 0.05535479538 | F67: 0.232207595 | G67: 0.1400514312 | H67: 0.1542591627 | I67: 0.1139365653 | J67: 0.2187501247 | K67: 0.2235315324 | L67: 0.108700673 | M67: 0.1075643948 | N67: 0.1427818229 | O67: 0.1090435484 | P67: 0.05141116667 | Q67: 1.00875 | R67: 0.05080833333 | S67: 0.043 | T67: 0.04056666667 | U67: 0.04024166667 | V67: 0.039575 | W67: 0.04254166667 | X67: 0.04091666667 | Y67: 0.05068333333 | Z67: 0.050675 | AC67: 0.0481 | AD67: 0.05860833333 | AE67: 0.051775 | AG67: 0.06798333333 | AH67: -0.07645626805 | AI67: 0.05024166667 | AJ67: 0.03244559413 | AK67: -0.03274471539 | AL67: 0.1362018417 | AM67: 0.09634622495 | AN67: 0.08781431142 | AO67: 0.04394042016 | AP67: 0.03857635435 | AQ67: 0.04617859892 | AR67: 0.04996847096 | AS67: 0.1318600051 | AT67: 0.01103326796 | AU67: 0.05818093561 | AV67: 0.1290474742 | AW67: 0.0671111134 | AX67: 0.06608411765 | AY67: 0.1626152878 | AZ67: 0.0794850648 | BA67: 0.1799433414 | BB67: 0.1075158057 | BC67: 0.05674114304 | BD67: 0.009485395785 | BE67: 0.1131049417 | BF67: 0.09683785488 | BG67: 0.06118492046 | BH67: 0.1076877903 | BI67: 0.06677540373 | BJ67: 0.1536183828 | BK67: 0.1490885438 | BL67: 0.04128817545 | BM67: 0.06300242596 | BN67: 0.09580858639 | BO67: 0.1596893987 | BP67: 0.09921136705 | BQ67: 0.1002909378 | BR67: 0.09029126139 | BS67: 0.04173596424 | BT67: 0.06457638492 | BU67: 0.1473515274 | BV67: 0.1048772086 | BW67: 0.1080766522 | BX67: 0.06102302558 | BY67: 0.08564443328 | BZ67: 0.1033500619 | CA67: 0.07716256426 | CB67: 0.105868301 | CC67: 0.06507385751 | CD67: 0.06931891446 | CE67: 0.04960741938 | CF67: 0.102117854 | CG67: -0.02877329752 | CH67: 0.1128849511 | CI67: 0.1175924171 | CJ67: 0.09033425303 | CK67: -0.03961760377 | CL67: -0.01423068717 | CM67: 0.1148832741 | CN67: 0.04533715791 | CO67: 0.09290962761 | CP67: 0.03564845995 | CQ67: -0.04998165433 | CR67: -0.0306348302 | CS67: 0.1128849511 | CT67: 0.1175924171 | CU67: 0.1371317952 | CV67: 0.06387070022 | CW67: 0.015

Sheet Farmland Correlation Periods
AI1: Enter Holding period length
AI2: 3 | AJ2: =IF(AI2=1,"(year)","(years)") -> (years)
AI4: US Ag (32 states) -- correlation with…. | AR4: ="Rolling Geometric "&AI2& " year returns" -> Rolling Geometric 3 year returns | AV4: US Ag (32 states) -- correlation with…. | BC4: ="Non-overlapping "&AI2& " year returns" -> Non-overlapping 3 year returns
AI6: Graph Summary Data | AZ6: Graph Summary Data
C7: =MATCH(C$13,Data!$A$3:$CC$3,0) -> 39 | AJ7: 1 | AK7: 2 | AL7: 3 | AM7: 4 | AN7: 5 | AO7: 6 | AP7: 7 | AQ7: 8 | AR7: 9 | AS7: 10 | AT7: 11 | AU7: 12 | AV7: 13 | AW7: 14 | BA7: 1 | BB7: 2 | BC7: 3 | BD7: 4 | BE7: 5 | BF7: 6 | BG7: 7 | BH7: 8 | BI7: 9 | BJ7: 10 | BK7: 11 | BL7: 12 | BM7: 13 | BN7: 14
AJ8: =RANK(AJ70,$AJ$70:$AW$70) -> 8 | AK8: 4 | AL8: 3 | AM8: 2 | AN8: 5 | AO8: 13 | AP8: 14 | AQ8: 10 | AR8: 11 | AS8: 1 | AT8: 9 | AU8: 7 | AV8: 6 | AW8: 12 | BA8: =RANK(BA70,$BA$70:$BN$70) -> 7 | BB8: 6 | BC8: 2 | BD8: 3 | BE8: 4 | BF8: 13 | BG8: 14 | BH8: 10 | BI8: 11 | BJ8: 1 | BK8: 9 | BL8: 8 | BM8: 5 | BN8: 12
AJ9: =OFFSET($AI$69,0,MATCH(AJ7,$AJ$8:$AW$8,0)) -> US Ave Farm (all) | AK9: CPI | AL9: PPI | AM9: Gold | AN9: TBSM3M | AO9: TCM10Y | AP9: Mort30F | AQ9: AAA | AR9: BAA | AS9: Equity REITS | AT9: Composite REITS | AU9: EAFE | AV9: S&P500 | AW9: Dow Jones | BA9: =OFFSET($AZ$69,0,MATCH(BA7,$BA$8:$BN$8,0)) -> US Ave Farm (all) | BB9: PPI | BC9: CPI | BD9: TBSM3M | BE9: TCM10Y | BF9: Gold | BG9: AAA | BH9: Mort30F | BI9: BAA | BJ9: Equity REITS | BK9: Composite REITS | BL9: EAFE | BM9: S&P500 | BN9: Dow Jones
AJ10: =OFFSET($AI$70,0,MATCH(AJ7,$AJ$8:$AW$8,0)) -> 0.9945676401 | AK10: 0.7315661176 | AL10: 0.7262133142 | AM10: 0.3900374977 | AN10: 0.3212143098 | AO10: 0.2186882486 | AP10: 0.1731227598 | AQ10: 0.172236232 | AR10: 0.1567313783 | AS10: 0.002394758878 | AT10: -0.1193317368 | AU10: -0.1666629625 | AV10: -0.3106032807 | AW10: -0.4556764872 | BA10: =OFFSET($AZ$70,0,MATCH(BA7,$BA$8:$BN$8,0)) -> 0.9952194414 | BB10: =OFFSET($AZ$70,0,MATCH(BB7,$BA$8:$BN$8,0)) -> 0.7400432481 | BC10: 0.7332426396 | BD10: 0.3668138679 | BE10: 0.2477908975 | BF10: 0.2121978255 | BG10: 0.1995075094 | BH10: 0.1950319984 | BI10: 0.1839564917 | BJ10: -0.1001836462 | BK10: -0.197868094 | BL10: -0.337618615 | BM10: -0.4137598735 | BN10: -0.5711655911
C11: These are only places asset displayed are changeable | AJ11: Time Interval for Holding period.
S12: Simple ave rolling | AI12: Geometric | AZ12: ="Nonoverlapping "&AI2&" year holding periods" -> Nonoverlapping 3 year holding periods
C13: US Ag 32 States | D13: AAA | E13: Gold | F13: PPI | G13: CPI | H13: TBSM3M | I13: S&P500 | J13: Dow Jones | K13: Equity REITS | L13: Composite REITS | M13: US Ave Farm (all) | N13: BAA | O13: Mort30F | P13: TCM10Y | Q13: EAFE | S13: =C13 -> US Ag 32 States | T13: =D13 -> AAA | U13: Gold | V13: PPI | W13: CPI | X13: TBSM3M | Y13: S&P500 | Z13: Dow Jones | AA13: Equity REITS | AB13: Composite REITS | AC13: US Ave Farm (all) | AD13: BAA | AE13: Mort30F | AF13: TCM10Y | AG13: EAFE | AI13: =C13 -> US Ag 32 States | AJ13: =D13 -> AAA | AK13: Gold | AL13: PPI | AM13: CPI | AN13: TBSM3M | AO13: S&P500 | AP13: Dow Jones | AQ13: Equity REITS | AR13: Composite REITS | AS13: US Ave Farm (all) | AT13: BAA | AU13: Mort30F | AV13: TCM10Y | AW13: EAFE | AZ13: =C13 -> US Ag 32 States | BA13: =D13 -> AAA | BB13: Gold | BC13: PPI | BD13: CPI | BE13: TBSM3M | BF13: S&P500 | BG13: Dow Jones | BH13: Equity REITS | BI13: Composite REITS | BJ13: US Ave Farm (all) | BK13: BAA | BL13: Mort30F | BM13: TCM10Y | BN13: EAFE
B14: 1970 | C14: =VLOOKUP($B14,retdat,MATCH(C$13,Data!$A$3:$CC$3,0),0) -> 0.1115940345 | D14: =VLOOKUP($B14,retdat,MATCH(D$13,Data!$A$3:$CC$3,0),0) -> 0.0804 | E14: =VLOOKUP($B14,retdat,MATCH(E$13,Data!$A$3:$CC$3,0),0) -> 0.06254620512 | F14: =VLOOKUP($B14,retdat,MATCH(F$13,Data!$A$3:$CC$3,0),0) -> 0.02179922834 | G14: =VLOOKUP($B14,retdat,MATCH(G$13,Data!$A$3:$CC$3,0),0) -> 0.05420681784 | H14: =VLOOKUP($B14,retdat,MATCH(H$13,Data!$A$3:$CC$3,0),0) -> 0.06391666667 | I14: =VLOOKUP($B14,retdat,MATCH(I$13,Data!$A$3:$CC$3,0),0) -> 0.0009771457267 | J14: =VLOOKUP($B14,retdat,MATCH(J$13,Data!$A$3:$CC$3,0),0) -> 0.04697990714 | K14: =VLOOKUP($B14,retdat,MATCH(K$13,Data!$A$3:$CC$3,0),0) -> 0 | L14: =VLOOKUP($B14,retdat,MATCH(L$13,Data!$A$3:$CC$3,0),0) -> 0 | M14: =VLOOKUP($B14,retdat,MATCH(M$13,Data!$A$3:$CC$3,0),0) -> 0.1102525755 | N14: =VLOOKUP($B14,retdat,MATCH(N$13,Data!$A$3:$CC$3,0),0) -> 0.09105 | O14: =VLOOKUP($B14,retdat,MATCH(O$13,Data!$A$3:$CC$3,0),0) -> 0 | P14: =VLOOKUP($B14,retdat,MATCH(P$13,Data!$A$3:$CC$3,0),0) -> 0.07348333333 | Q14: =VLOOKUP($B14,retdat,MATCH(Q$13,Data!$A$3:$CC$3,0),0) -> -0.1384395561 | AY14: 1 | AZ14: =IF(TRUNC($AY14/$AI$2)-$AY14/$AI$2 = 0,AI14,"") ->  | BA14: =IF(TRUNC($AY14/$AI$2)-$AY14/$AI$2 = 0,AJ14,"") ->  | BB14: =IF(TRUNC($AY14/$AI$2)-$AY14/$AI$2 = 0,AK14,"") ->  | BC14: =IF(TRUNC($AY14/$AI$2)-$AY14/$AI$2 = 0,AL14,"") ->  | BD14: =IF(TRUNC($AY14/$AI$2)-$AY14/$AI$2 = 0,AM14,"") ->  | BE14: =IF(TRUNC($AY14/$AI$2)-$AY14/$AI$2 = 0,AN14,"") ->  | BF14: =IF(TRUNC($AY14/$AI$2)-$AY14/$AI$2 = 0,AO14,"") ->  | BG14: =IF(TRUNC($AY14/$AI$2)-$AY14/$AI$2 = 0,AP14,"") ->  | BH14: =IF(TRUNC($AY14/$AI$2)-$AY14/$AI$2 = 0,AQ14,"") ->  | BI14: =IF(TRUNC($AY14/$AI$2)-$AY14/$AI$2 = 0,AR14,"") ->  | BJ14: =IF(TRUNC($AY14/$AI$2)-$AY14/$AI$2 = 0,AS14,"") ->  | BK14: =IF(TRUNC($AY14/$AI$2)-$AY14/$AI$2 = 0,AT14,"") ->  | BL14: =IF(TRUNC($AY14/$AI$2)-$AY14/$AI$2 = 0,AU14,"") ->  | BM14: =IF(TRUNC($AY14/$AI$2)-$AY14/$AI$2 = 0,AV14,"") ->  | BN14: =IF(TRUNC($AY14/$AI$2)-$AY14/$AI$2 = 0,AW14,"") -> 
B15: 1971 | C15: =VLOOKUP($B15,retdat,MATCH(C$13,Data!$A$3:$CC$3,0),0) -> 0.1108518764 | D15: =VLOOKUP($B15,retdat,MATCH(D$13,Data!$A$3:$CC$3,0),0) -> 0.07386666667 | E15: =VLOOKUP($B15,retdat,MATCH(E$13,Data!$A$3:$CC$3,0),0) -> 0.1495614106 | F15: =VLOOKUP($B15,retdat,MATCH(F$13,Data!$A$3:$CC$3,0),0) -> 0.03963530686 | G15: =VLOOKUP($B15,retdat,MATCH(G$13,Data!$A$3:$CC$3,0),0) -> 0.03214120921 | H15: =VLOOKUP($B15,retdat,MATCH(H$13,Data!$A$3:$CC$3,0),0) -> 0.043325 | I15: =VLOOKUP($B15,retdat,MATCH(I$13,Data!$A$3:$CC$3,0),0) -> 0.1024370931 | J15: =VLOOKUP($B15,retdat,MATCH(J$13,Data!$A$3:$CC$3,0),0) -> 0.05935464673 | K15: =VLOOKUP($B15,retdat,MATCH(K$13,Data!$A$3:$CC$3,0),0) -> 0 | L15: =VLOOKUP($B15,retdat,MATCH(L$13,Data!$A$3:$CC$3,0),0) -> 0 | M15: =VLOOKUP($B15,retdat,MATCH(M$13,Data!$A$3:$CC$3,0),0) -> 0.1135274294 | N15: =VLOOKUP($B15,retdat,MATCH(N$13,Data!$A$3:$CC$3,0),0) -> 0.08563333333 | O15: =VLOOKUP($B15,retdat,MATCH(O$13,Data!$A$3:$CC$3,0),0) -> 0.07551111111 | P15: =VLOOKUP($B15,retdat,MATCH(P$13,Data!$A$3:$CC$3,0),0) -> 0.06159166667 | Q15: =VLOOKUP($B15,retdat,MATCH(Q$13,Data!$A$3:$CC$3,0),0) -> 0.2322552845 | AY15: 2
B16: 1972 | C16: =VLOOKUP($B16,retdat,MATCH(C$13,Data!$A$3:$CC$3,0),0) -> 0.1422760321 | D16: =VLOOKUP($B16,retdat,MATCH(D$13,Data!$A$3:$CC$3,0),0) -> 0.07213333333 | E16: =VLOOKUP($B16,retdat,MATCH(E$13,Data!$A$3:$CC$3,0),0) -> 0.3851747814 | F16: =VLOOKUP($B16,retdat,MATCH(F$13,Data!$A$3:$CC$3,0),0) -> 0.06275584503 | G16: =VLOOKUP($B16,retdat,MATCH(G$13,Data!$A$3:$CC$3,0),0) -> 0.03349595443 | H16: =VLOOKUP($B16,retdat,MATCH(H$13,Data!$A$3:$CC$3,0),0) -> 0.040725 | I16: =VLOOKUP($B16,retdat,MATCH(I$13,Data!$A$3:$CC$3,0),0) -> 0.1452534864 | J16: =VLOOKUP($B16,retdat,MATCH(J$13,Data!$A$3:$CC$3,0),0) -> 0.1361117497 | K16: =VLOOKUP($B16,retdat,MATCH(K$13,Data!$A$3:$CC$3,0),0) -> 0.07705605628 | L16: =VLOOKUP($B16,retdat,MATCH(L$13,Data!$A$3:$CC$3,0),0) -> 0.1060924044 | M16: =VLOOKUP($B16,retdat,MATCH(M$13,Data!$A$3:$CC$3,0),0) -> 0.1417538261 | N16: =VLOOKUP($B16,retdat,MATCH(N$13,Data!$A$3:$CC$3,0),0) -> 0.08155 | O16: =VLOOKUP($B16,retdat,MATCH(O$13,Data!$A$3:$CC$3,0),0) -> 0.07384166667 | P16: =VLOOKUP($B16,retdat,MATCH(P$13,Data!$A$3:$CC$3,0),0) -> 0.0621 | Q16: =VLOOKUP($B16,retdat,MATCH(Q$13,Data!$A$3:$CC$3,0),0) -> 0.2872896395 | S16: =AVERAGE(C14:C16) -> 0.121573981 | T16: =AVERAGE(D14:D16) -> 0.07546666667 | U16: 0.1990941324 | V16: 0.04139679341 | W16: 0.03994799383 | X16: 0.04932222222 | Y16: 0.08288924171 | Z16: 0.08081543452 | AA16: 0.02568535209 | AB16: 0.0353641348 | AC16: 0.1218446103 | AD16: 0.08607777778 | AE16: 0.04978425926 | AF16: 0.065725 | AG16: 0.1270351226 | AI16: =GEOMEAN(C90:OFFSET(C90,$AI$2-1,0))-1 -> 0.1214789892 | AJ16: =GEOMEAN(D90:OFFSET(D90,$AI$2-1,0))-1 -> 0.07546078392 | AK16: =GEOMEAN(E90:OFFSET(E90,$AI$2-1,0))-1 -> 0.1915936836 | AL16: =GEOMEAN(F90:OFFSET(F90,$AI$2-1,0))-1 -> 0.04126202739 | AM16: =GEOMEAN(G90:OFFSET(G90,$AI$2-1,0))-1 -> 0.03989918981 | AN16: =GEOMEAN(H90:OFFSET(H90,$AI$2-1,0))-1 -> 0.04927116416 | AO16: =GEOMEAN(I90:OFFSET(I90,$AI$2-1,0))-1 -> 0.0811680433 | AP16: =GEOMEAN(J90:OFFSET(J90,$AI$2-1,0))-1 -> 0.0801073584 | AQ16: =GEOMEAN(K90:OFFSET(K90,$AI$2-1,0))-1 -> 0.02505248394 | AR16: =GEOMEAN(L90:OFFSET(L90,$AI$2-1,0))-1 -> 0.03418238599 | AS16: =GEOMEAN(M90:OFFSET(M90,$AI$2-1,0))-1 -> 0.1217559836 | AT16: =GEOMEAN(N90:OFFSET(N90,$AI$2-1,0))-1 -> 0.08607081033 | AU16: =GEOMEAN(O90:OFFSET(O90,$AI$2-1,0))-1 -> 0.04918414147 | AV16: =GEOMEAN(P90:OFFSET(P90,$AI$2-1,0))-1 -> 0.06571089382 | AW16: =GEOMEAN(Q90:OFFSET(Q90,$AI$2-1,0))-1 -> 0.109739143 | AY16: 3 | AZ16: 0.1214789892 | BA16: 0.07546078392 | BB16: 0.1915936836 | BC16: 0.04126202739 | BD16: 0.03989918981 | BE16: 0.04927116416 | BF16: 0.0811680433 | BG16: 0.0801073584 | BH16: 0.02505248394 | BI16: 0.03418238599 | BJ16: 0.1217559836 | BK16: 0.08607081033 | BL16: 0.04918414147 | BM16: 0.06571089382 | BN16: 0.109739143
B17: 1973 | C17: =VLOOKUP($B17,retdat,MATCH(C$13,Data!$A$3:$CC$3,0),0) -> 0.1877347496 | D17: =VLOOKUP($B17,retdat,MATCH(D$13,Data!$A$3:$CC$3,0),0) -> 0.07440833333 | E17: =VLOOKUP($B17,retdat,MATCH(E$13,Data!$A$3:$CC$3,0),0) -> 0.5129862561 | F17: =VLOOKUP($B17,retdat,MATCH(F$13,Data!$A$3:$CC$3,0),0) -> 0.1426141072 | G17: =VLOOKUP($B17,retdat,MATCH(G$13,Data!$A$3:$CC$3,0),0) -> 0.08563788516 | H17: =VLOOKUP($B17,retdat,MATCH(H$13,Data!$A$3:$CC$3,0),0) -> 0.07031666667 | I17: =VLOOKUP($B17,retdat,MATCH(I$13,Data!$A$3:$CC$3,0),0) -> -0.1907431965 | J17: =VLOOKUP($B17,retdat,MATCH(J$13,Data!$A$3:$CC$3,0),0) -> -0.1812632934 | K17: =VLOOKUP($B17,retdat,MATCH(K$13,Data!$A$3:$CC$3,0),0) -> -0.1686453658 | L17: =VLOOKUP($B17,retdat,MATCH(L$13,Data!$A$3:$CC$3,0),0) -> -0.317683107 | M17: =VLOOKUP($B17,retdat,MATCH(M$13,Data!$A$3:$CC$3,0),0) -> 0.1796081405 | N17: =VLOOKUP($B17,retdat,MATCH(N$13,Data!$A$3:$CC$3,0),0) -> 0.08240833333 | O17: =VLOOKUP($B17,retdat,MATCH(O$13,Data!$A$3:$CC$3,0),0) -> 0.080725 | P17: =VLOOKUP($B17,retdat,MATCH(P$13,Data!$A$3:$CC$3,0),0) -> 0.068425 | Q17: =VLOOKUP($B17,retdat,MATCH(Q$13,Data!$A$3:$CC$3,0),0) -> -0.184137987 | S17: =AVERAGE(C15:C17) -> 0.1469542194 | T17: =AVERAGE(D15:D17) -> 0.07346944444 | U17: 0.349240816 | V17: 0.0816684197 | W17: 0.05042501627 | X17: 0.05145555556 | Y17: 0.01898246098 | Z17: 0.004734367668 | AA17: -0.03052976983 | AB17: -0.0705302342 | AC17: 0.144963132 | AD17: 0.08319722222 | AE17: 0.07669259259 | AF17: 0.06403888889 | AG17: 0.1118023123 | AI17: =GEOMEAN(C91:OFFSET(C91,$AI$2-1,0))-1 -> 0.146521562 | AJ17: =GEOMEAN(D91:OFFSET(D91,$AI$2-1,0))-1 -> 0.07346900577 | AK17: =GEOMEAN(E91:OFFSET(E91,$AI$2-1,0))-1 -> 0.3405733408 | AL17: =GEOMEAN(F91:OFFSET(F91,$AI$2-1,0))-1 -> 0.08078182979 | AM17: =GEOMEAN(G91:OFFSET(G91,$AI$2-1,0))-1 -> 0.05013297634 | AN17: =GEOMEAN(H91:OFFSET(H91,$AI$2-1,0))-1 -> 0.05137092601 | AO17: =GEOMEAN(I91:OFFSET(I91,$AI$2-1,0))-1 -> 0.007195862427 | AP17: =GEOMEAN(J91:OFFSET(J91,$AI$2-1,0))-1 -> -0.00489502773 | AQ17: =GEOMEAN(K91:OFFSET(K91,$AI$2-1,0))-1 -> -0.03615275641 | AR17: =GEOMEAN(L91:OFFSET(L91,$AI$2-1,0))-1 -> -0.08954354793 | AS17: =GEOMEAN(M91:OFFSET(M91,$AI$2-1,0))-1 -> 0.1446438662 | AT17: =GEOMEAN(N91:OFFSET(N91,$AI$2-1,0))-1 -> 0.08319579674 | AU17: =GEOMEAN(O91:OFFSET(O91,$AI$2-1,0))-1 -> 0.07668860525 | AV17: =GEOMEAN(P91:OFFSET(P91,$AI$2-1,0))-1 -> 0.06403435472 | AW17: =GEOMEAN(Q91:OFFSET(Q91,$AI$2-1,0))-1 -> 0.0897609092 | AY17: 4
B18: 1974 | C18: =VLOOKUP($B18,retdat,MATCH(C$13,Data!$A$3:$CC$3,0),0) -> 0.2950245994 | D18: =VLOOKUP($B18,retdat,MATCH(D$13,Data!$A$3:$CC$3,0),0) -> 0.08565833333 | E18: =VLOOKUP($B18,retdat,MATCH(E$13,Data!$A$3:$CC$3,0),0) -> 0.5429704151 | F18: =VLOOKUP($B18,retdat,MATCH(F$13,Data!$A$3:$CC$3,0),0) -> 0.189678395 | G18: =VLOOKUP($B18,retdat,MATCH(G$13,Data!$A$3:$CC$3,0),0) -> 0.1141768291 | H18: =VLOOKUP($B18,retdat,MATCH(H$13,Data!$A$3:$CC$3,0),0) -> 0.0783 | I18: =VLOOKUP($B18,retdat,MATCH(I$13,Data!$A$3:$CC$3,0),0) -> -0.3526557928 | J18: =VLOOKUP($B18,retdat,MATCH(J$13,Data!$A$3:$CC$3,0),0) -> -0.3227230267 | K18: =VLOOKUP($B18,retdat,MATCH(K$13,Data!$A$3:$CC$3,0),0) -> -0.2408370031 | L18: =VLOOKUP($B18,retdat,MATCH(L$13,Data!$A$3:$CC$3,0),0) -> -0.5487291122 | M18: =VLOOKUP($B18,retdat,MATCH(M$13,Data!$A$3:$CC$3,0),0) -> 0.2866280981 | N18: =VLOOKUP($B18,retdat,MATCH(N$13,Data!$A$3:$CC$3,0),0) -> 0.09496666667 | O18: =VLOOKUP($B18,retdat,MATCH(O$13,Data!$A$3:$CC$3,0),0) -> 0.09218333333 | P18: =VLOOKUP($B18,retdat,MATCH(P$13,Data!$A$3:$CC$3,0),0) -> 0.075575 | Q18: =VLOOKUP($B18,retdat,MATCH(Q$13,Data!$A$3:$CC$3,0),0) -> -0.2956802201 | S18: 0.208345127 | T18: 0.0774 | U18: 0.4803771508 | V18: 0.1316827824 | W18: 0.07777022289 | X18: 0.06311388889 | Y18: -0.1327151676 | Z18: -0.1226248568 | AA18: -0.1108087709 | AB18: -0.2534399383 | AC18: 0.2026633549 | AD18: 0.08630833333 | AE18: 0.08225 | AF18: 0.0687 | AG18: -0.06417618919 | AI18: =GEOMEAN(C92:OFFSET(C92,$AI$2-1,0))-1 -> 0.2066727771 | AJ18: =GEOMEAN(D92:OFFSET(D92,$AI$2-1,0))-1 -> 0.07738381165 | AK18: =GEOMEAN(E92:OFFSET(E92,$AI$2-1,0))-1 -> 0.4787646245 | AL18: =GEOMEAN(F92:OFFSET(F92,$AI$2-1,0))-1 -> 0.1304574481 | AM18: =GEOMEAN(G92:OFFSET(G92,$AI$2-1,0))-1 -> 0.07724866506 | AN18: =GEOMEAN(H92:OFFSET(H92,$AI$2-1,0))-1 -> 0.06299028045 | AO18: =GEOMEAN(I92:OFFSET(I92,$AI$2-1,0))-1 -> -0.1565854622 | AP18: =GEOMEAN(J92:OFFSET(J92,$AI$2-1,0))-1 -> -0.1427439849 | AQ18: =GEOMEAN(K92:OFFSET(K92,$AI$2-1,0))-1 -> -0.1207347957 | AR18: =GEOMEAN(L92:OFFSET(L92,$AI$2-1,0))-1 -> -0.3016524448 | AS18: =GEOMEAN(M92:OFFSET(M92,$AI$2-1,0))-1 -> 0.2011237545 | AT18: =GEOMEAN(N92:OFFSET(N92,$AI$2-1,0))-1 -> 0.08629106929 | AU18: =GEOMEAN(O92:OFFSET(O92,$AI$2-1,0))-1 -> 0.08222359427 | AV18: =GEOMEAN(P92:OFFSET(P92,$AI$2-1,0))-1 -> 0.06868582716 | AW18: =GEOMEAN(Q92:OFFSET(Q92,$AI$2-1,0))-1 -> -0.09561304255 | AY18: 5
B19: 1975 | C19: =VLOOKUP($B19,retdat,MATCH(C$13,Data!$A$3:$CC$3,0),0) -> 0.1974237219 | D19: =VLOOKUP($B19,retdat,MATCH(D$13,Data!$A$3:$CC$3,0),0) -> 0.08825833333 | E19: =VLOOKUP($B19,retdat,MATCH(E$13,Data!$A$3:$CC$3,0),0) -> -0.2766987364 | F19: =VLOOKUP($B19,retdat,MATCH(F$13,Data!$A$3:$CC$3,0),0) -> 0.04103139668 | G19: =VLOOKUP($B19,retdat,MATCH(G$13,Data!$A$3:$CC$3,0),0) -> 0.06886441108 | H19: =VLOOKUP($B19,retdat,MATCH(H$13,Data!$A$3:$CC$3,0),0) -> 0.05775 | I19: =VLOOKUP($B19,retdat,MATCH(I$13,Data!$A$3:$CC$3,0),0) -> 0.2742092819 | J19: =VLOOKUP($B19,retdat,MATCH(J$13,Data!$A$3:$CC$3,0),0) -> 0.3244843141 | K19: =VLOOKUP($B19,retdat,MATCH(K$13,Data!$A$3:$CC$3,0),0) -> 0.1764668843 | L19: =VLOOKUP($B19,retdat,MATCH(L$13,Data!$A$3:$CC$3,0),0) -> 0.3099571676 | M19: =VLOOKUP($B19,retdat,MATCH(M$13,Data!$A$3:$CC$3,0),0) -> 0.1869891672 | N19: =VLOOKUP($B19,retdat,MATCH(N$13,Data!$A$3:$CC$3,0),0) -> 0.1061 | O19: =VLOOKUP($B19,retdat,MATCH(O$13,Data!$A$3:$CC$3,0),0) -> 0.09024166667 | P19: =VLOOKUP($B19,retdat,MATCH(P$13,Data!$A$3:$CC$3,0),0) -> 0.079875 | Q19: =VLOOKUP($B19,retdat,MATCH(Q$13,Data!$A$3:$CC$3,0),0) -> 0.2715765755 | S19: 0.2267276903 | T19: 0.082775 | U19: 0.2597526449 | V19: 0.1244412996 | W19: 0.08955970844 | X19: 0.06878888889 | Y19: -0.08972990245 | Z19: -0.05983400202 | AA19: -0.0776718282 | AB19: -0.1854850172 | AC19: 0.217741802 | AD19: 0.09449166667 | AE19: 0.08771666667 | AF19: 0.074625 | AG19: -0.06941387719 | AI19: =GEOMEAN(C93:OFFSET(C93,$AI$2-1,0))-1 -> 0.225787287 | AJ19: =GEOMEAN(D93:OFFSET(D93,$AI$2-1,0))-1 -> 0.08275827943 | AK19: =GEOMEAN(E93:OFFSET(E93,$AI$2-1,0))-1 -> 0.1907957297 | AL19: =GEOMEAN(F93:OFFSET(F93,$AI$2-1,0))-1 -> 0.122701565 | AM19: =GEOMEAN(G93:OFFSET(G93,$AI$2-1,0))-1 -> 0.08939967977 | AN19: =GEOMEAN(H93:OFFSET(H93,$AI$2-1,0))-1 -> 0.06875536819 | AO19: =GEOMEAN(I93:OFFSET(I93,$AI$2-1,0))-1 -> -0.1260482361 | AP19: =GEOMEAN(J93:OFFSET(J93,$AI$2-1,0))-1 -> -0.09776612198 | AQ19: =GEOMEAN(K93:OFFSET(K93,$AI$2-1,0))-1 -> -0.09447519064 | AR19: =GEOMEAN(L93:OFFSET(L93,$AI$2-1,0))-1 -> -0.2611433629 | AS19: =GEOMEAN(M93:OFFSET(M93,$AI$2-1,0))-1 -> 0.2167812701 | AT19: =GEOMEAN(N93:OFFSET(N93,$AI$2-1,0))-1 -> 0.09444885856 | AU19: =GEOMEAN(O93:OFFSET(O93,$AI$2-1,0))-1 -> 0.08770512017 | AV19: =GEOMEAN(P93:OFFSET(P93,$AI$2-1,0))-1 -> 0.07461461449 | AW19: =GEOMEAN(Q93:OFFSET(Q93,$AI$2-1,0))-1 -> -0.09930786125 | AY19: 6 | AZ19: 0.225787287 | BA19: 0.08275827943 | BB19: 0.1907957297 | BC19: 0.122701565 | BD19: 0.08939967977 | BE19: 0.06875536819 | BF19: -0.1260482361 | BG19: -0.09776612198 | BH19: -0.09447519064 | BI19: -0.2611433629 | BJ19: 0.2167812701 | BK19: 0.09444885856 | BL19: 0.08770512017 | BM19: 0.07461461449 | BN19: -0.09930786125
B20: 1976 | C20: =VLOOKUP($B20,retdat,MATCH(C$13,Data!$A$3:$CC$3,0),0) -> 0.2240946595 | D20: =VLOOKUP($B20,retdat,MATCH(D$13,Data!$A$3:$CC$3,0),0) -> 0.08434166667 | E20: =VLOOKUP($B20,retdat,MATCH(E$13,Data!$A$3:$CC$3,0),0) -> -0.03926718237 | F20: =VLOOKUP($B20,retdat,MATCH(F$13,Data!$A$3:$CC$3,0),0) -> 0.04583453634 | G20: =VLOOKUP($B20,retdat,MATCH(G$13,Data!$A$3:$CC$3,0),0) -> 0.04913268858 | H20: =VLOOKUP($B20,retdat,MATCH(H$13,Data!$A$3:$CC$3,0),0) -> 0.04974166667 | I20: =VLOOKUP($B20,retdat,MATCH(I$13,Data!$A$3:$CC$3,0),0) -> 0.1752001291 | J20: =VLOOKUP($B20,retdat,MATCH(J$13,Data!$A$3:$CC$3,0),0) -> 0.1643883682 | K20: =VLOOKUP($B20,retdat,MATCH(K$13,Data!$A$3:$CC$3,0),0) -> 0.38925884 | L20: =VLOOKUP($B20,retdat,MATCH(L$13,Data!$A$3:$CC$3,0),0) -> 0.3985998253 | M20: =VLOOKUP($B20,retdat,MATCH(M$13,Data!$A$3:$CC$3,0),0) -> 0.2202861335 | N20: =VLOOKUP($B20,retdat,MATCH(N$13,Data!$A$3:$CC$3,0),0) -> 0.09746666667 | O20: =VLOOKUP($B20,retdat,MATCH(O$13,Data!$A$3:$CC$3,0),0) -> 0.08855 | P20: =VLOOKUP($B20,retdat,MATCH(P$13,Data!$A$3:$CC$3,0),0) -> 0.07611666667 | Q20: =VLOOKUP($B20,retdat,MATCH(Q$13,Data!$A$3:$CC$3,0),0) -> -0.003589133916 | S20: 0.2388476603 | T20: 0.08608611111 | U20: 0.07566816542 | V20: 0.09218144268 | W20: 0.07739130958 | X20: 0.06193055556 | Y20: 0.03225120608 | Z20: 0.05538321854 | AA20: 0.1082962404 | AB20: 0.05327596023 | AC20: 0.2313011329 | AD20: 0.09951111111 | AE20: 0.090325 | AF20: 0.07718888889 | AG20: -0.009230926168 | AI20: =GEOMEAN(C94:OFFSET(C94,$AI$2-1,0))-1 -> 0.238170045 | AJ20: =GEOMEAN(D94:OFFSET(D94,$AI$2-1,0))-1 -> 0.08608489241 | AK20: =GEOMEAN(E94:OFFSET(E94,$AI$2-1,0))-1 -> 0.02351249667 | AL20: =GEOMEAN(F94:OFFSET(F94,$AI$2-1,0))-1 -> 0.09006432678 | AM20: =GEOMEAN(G94:OFFSET(G94,$AI$2-1,0))-1 -> 0.07704963887 | AN20: =GEOMEAN(H94:OFFSET(H94,$AI$2-1,0))-1 -> 0.06186268209 | AO20: =GEOMEAN(I94:OFFSET(I94,$AI$2-1,0))-1 -> -0.01031735715 | AP20: =GEOMEAN(J94:OFFSET(J94,$AI$2-1,0))-1 -> 0.01462056971 | AQ20: =GEOMEAN(K94:OFFSET(K94,$AI$2-1,0))-1 -> 0.07456486366 | AR20: =GEOMEAN(L94:OFFSET(L94,$AI$2-1,0))-1 -> -0.06143873311 | AS20: =GEOMEAN(M94:OFFSET(M94,$AI$2-1,0))-1 -> 0.2306101357 | AT20: =GEOMEAN(N94:OFFSET(N94,$AI$2-1,0))-1 -> 0.09950078312 | AU20: =GEOMEAN(O94:OFFSET(O94,$AI$2-1,0))-1 -> 0.09032398953 | AV20: =GEOMEAN(P94:OFFSET(P94,$AI$2-1,0))-1 -> 0.07718719298 | AW20: =GEOMEAN(Q94:OFFSET(Q94,$AI$2-1,0))-1 -> -0.03724240578 | AY20: 7
B21: 1977 | C21: =VLOOKUP($B21,retdat,MATCH(C$13,Data!$A$3:$CC$3,0),0) -> 0.2441042814 | D21: =VLOOKUP($B21,retdat,MATCH(D$13,Data!$A$3:$CC$3,0),0) -> 0.08024166667 | E21: =VLOOKUP($B21,retdat,MATCH(E$13,Data!$A$3:$CC$3,0),0) -> 0.1797623976 | F21: =VLOOKUP($B21,retdat,MATCH(F$13,Data!$A$3:$CC$3,0),0) -> 0.0575139062 | G21: =VLOOKUP($B21,retdat,MATCH(G$13,Data!$A$3:$CC$3,0),0) -> 0.06464553596 | H21: =VLOOKUP($B21,retdat,MATCH(H$13,Data!$A$3:$CC$3,0),0) -> 0.05269166667 | I21: =VLOOKUP($B21,retdat,MATCH(I$13,Data!$A$3:$CC$3,0),0) -> -0.1221897157 | J21: =VLOOKUP($B21,retdat,MATCH(J$13,Data!$A$3:$CC$3,0),0) -> -0.1895738287 | K21: =VLOOKUP($B21,retdat,MATCH(K$13,Data!$A$3:$CC$3,0),0) -> 0.2023221386 | L21: =VLOOKUP($B21,retdat,MATCH(L$13,Data!$A$3:$CC$3,0),0) -> 0.1745958342 | M21: =VLOOKUP($B21,retdat,MATCH(M$13,Data!$A$3:$CC$3,0),0) -> 0.2255392045 | N21: =VLOOKUP($B21,retdat,MATCH(N$13,Data!$A$3:$CC$3,0),0) -> 0.08969166667 | O21: =VLOOKUP($B21,retdat,MATCH(O$13,Data!$A$3:$CC$3,0),0) -> 0.08848333333 | P21: =VLOOKUP($B21,retdat,MATCH(P$13,Data!$A$3:$CC$3,0),0) -> 0.07419166667 | Q21: =VLOOKUP($B21,retdat,MATCH(Q$13,Data!$A$3:$CC$3,0),0) -> 0.1363951932 | S21: 0.2218742209 | T21: 0.08428055556 | U21: -0.04540117373 | V21: 0.04812661307 | W21: 0.06088087854 | X21: 0.05339444444 | Y21: 0.1090732318 | Z21: 0.09976628454 | AA21: 0.2560159543 | AB21: 0.2943842757 | AC21: 0.2109381684 | AD21: 0.09775277778 | AE21: 0.08909166667 | AF21: 0.07672777778 | AG21: 0.1347942116 | AI21: =GEOMEAN(C95:OFFSET(C95,$AI$2-1,0))-1 -> 0.2217243087 | AJ21: =GEOMEAN(D95:OFFSET(D95,$AI$2-1,0))-1 -> 0.0842756151 | AK21: =GEOMEAN(E95:OFFSET(E95,$AI$2-1,0))-1 -> -0.06407984502 | AL21: =GEOMEAN(F95:OFFSET(F95,$AI$2-1,0))-1 -> 0.04810380591 | AM21: =GEOMEAN(G95:OFFSET(G95,$AI$2-1,0))-1 -> 0.0608468499 | AN21: =GEOMEAN(H95:OFFSET(H95,$AI$2-1,0))-1 -> 0.05338925701 | AO21: =GEOMEAN(I95:OFFSET(I95,$AI$2-1,0))-1 -> 0.09542946846 | AP21: =GEOMEAN(J95:OFFSET(J95,$AI$2-1,0))-1 -> 0.07717445342 | AQ21: =GEOMEAN(K95:OFFSET(K95,$AI$2-1,0))-1 -> 0.2525485636 | AR21: =GEOMEAN(L95:OFFSET(L95,$AI$2-1,0))-1 -> 0.2910597461 | AS21: =GEOMEAN(M95:OFFSET(M95,$AI$2-1,0))-1 -> 0.210817103 | AT21: =GEOMEAN(N95:OFFSET(N95,$AI$2-1,0))-1 -> 0.09773232586 | AU21: =GEOMEAN(O95:OFFSET(O95,$AI$2-1,0))-1 -> 0.08909136285 | AV21: =GEOMEAN(P95:OFFSET(P95,$AI$2-1,0))-1 -> 0.07672519258 | AW21: =GEOMEAN(Q95:OFFSET(Q95,$AI$2-1,0))-1 -> 0.129198053 | AY21: 8
B22: 1978 | C22: =VLOOKUP($B22,retdat,MATCH(C$13,Data!$A$3:$CC$3,0),0) -> 0.1849922747 | D22: =VLOOKUP($B22,retdat,MATCH(D$13,Data!$A$3:$CC$3,0),0) -> 0.08725 | E22: =VLOOKUP($B22,retdat,MATCH(E$13,Data!$A$3:$CC$3,0),0) -> 0.2588456761 | F22: =VLOOKUP($B22,retdat,MATCH(F$13,Data!$A$3:$CC$3,0),0) -> 0.0936609216 | G22: =VLOOKUP($B22,retdat,MATCH(G$13,Data!$A$3:$CC$3,0),0) -> 0.08607460877 | H22: =VLOOKUP($B22,retdat,MATCH(H$13,Data!$A$3:$CC$3,0),0) -> 0.07188333333 | I22: =VLOOKUP($B22,retdat,MATCH(I$13,Data!$A$3:$CC$3,0),0) -> 0.01056439928 | J22: =VLOOKUP($B22,retdat,MATCH(J$13,Data!$A$3:$CC$3,0),0) -> -0.03202816237 | K22: =VLOOKUP($B22,retdat,MATCH(K$13,Data!$A$3:$CC$3,0),0) -> 0.09835575791 | L22: =VLOOKUP($B22,retdat,MATCH(L$13,Data!$A$3:$CC$3,0),0) -> -0.01654129523 | M22: =VLOOKUP($B22,retdat,MATCH(M$13,Data!$A$3:$CC$3,0),0) -> 0.1749978071 | N22: =VLOOKUP($B22,retdat,MATCH(N$13,Data!$A$3:$CC$3,0),0) -> 0.09488333333 | O22: =VLOOKUP($B22,retdat,MATCH(O$13,Data!$A$3:$CC$3,0),0) -> 0.0968 | P22: =VLOOKUP($B22,retdat,MATCH(P$13,Data!$A$3:$CC$3,0),0) -> 0.0841 | Q22: =VLOOKUP($B22,retdat,MATCH(Q$13,Data!$A$3:$CC$3,0),0) -> 0.2539749632 | S22: 0.2177304052 | T22: 0.08394444444 | U22: 0.1331136304 | V22: 0.06566978805 | W22: 0.0666176111 | X22: 0.05810555556 | Y22: 0.02119160422 | Z22: -0.0190712076 | AA22: 0.2299789122 | AB22: 0.1855514548 | AC22: 0.2069410484 | AD22: 0.09401388889 | AE22: 0.09127777778 | AF22: 0.07813611111 | AG22: 0.1289270075 | AI22: =GEOMEAN(C96:OFFSET(C96,$AI$2-1,0))-1 -> 0.217481682 | AJ22: =GEOMEAN(D96:OFFSET(D96,$AI$2-1,0))-1 -> 0.08394063058 | AK22: =GEOMEAN(E96:OFFSET(E96,$AI$2-1,0))-1 -> 0.1257878471 | AL22: =GEOMEAN(F96:OFFSET(F96,$AI$2-1,0))-1 -> 0.0654766099 | AM22: =GEOMEAN(G96:OFFSET(G96,$AI$2-1,0))-1 -> 0.06651026281 | AN22: =GEOMEAN(H96:OFFSET(H96,$AI$2-1,0))-1 -> 0.05806020326 | AO22: =GEOMEAN(I96:OFFSET(I96,$AI$2-1,0))-1 -> 0.01397091225 | AP22: =GEOMEAN(J96:OFFSET(J96,$AI$2-1,0))-1 -> -0.02973280966 | AQ22: =GEOMEAN(K96:OFFSET(K96,$AI$2-1,0))-1 -> 0.2241905273 | AR22: =GEOMEAN(L96:OFFSET(L96,$AI$2-1,0))-1 -> 0.1733998226 | AS22: =GEOMEAN(M96:OFFSET(M96,$AI$2-1,0))-1 -> 0.2067259359 | AT22: =GEOMEAN(N96:OFFSET(N96,$AI$2-1,0))-1 -> 0.09400910786 | AU22: =GEOMEAN(O96:OFFSET(O96,$AI$2-1,0))-1 -> 0.09127080311 | AV22: =GEOMEAN(P96:OFFSET(P96,$AI$2-1,0))-1 -> 0.07812759068 | AW22: =GEOMEAN(Q96:OFFSET(Q96,$AI$2-1,0))-1 -> 0.1239635728 | AY22: 9 | AZ22: 0.217481682 | BA22: 0.08394063058 | BB22: 0.1257878471 | BC22: 0.0654766099 | BD22: 0.06651026281 | BE22: 0.05806020326 | BF22: 0.01397091225 | BG22: -0.02973280966 | BH22: 0.2241905273 | BI22: 0.1733998226 | BJ22: 0.2067259359 | BK22: 0.09400910786 | BL22: 0.09127080311 | BM22: 0.07812759068 | BN22: 0.1239635728
B23: 1979 | C23: =VLOOKUP($B23,retdat,MATCH(C$13,Data!$A$3:$CC$3,0),0) -> 0.2309261698 | D23: =VLOOKUP($B23,retdat,MATCH(D$13,Data!$A$3:$CC$3,0),0) -> 0.09629166667 | E23: =VLOOKUP($B23,retdat,MATCH(E$13,Data!$A$3:$CC$3,0),0) -> 0.9022499553 | F23: =VLOOKUP($B23,retdat,MATCH(F$13,Data!$A$3:$CC$3,0),0) -> 0.1373069248 | G23: =VLOOKUP($B23,retdat,MATCH(G$13,Data!$A$3:$CC$3,0),0) -> 0.1244698419 | H23: =VLOOKUP($B23,retdat,MATCH(H$13,Data!$A$3:$CC$3,0),0) -> 0.1006916667 | I23: =VLOOKUP($B23,retdat,MATCH(I$13,Data!$A$3:$CC$3,0),0) -> 0.1160821484 | J23: =VLOOKUP($B23,retdat,MATCH(J$13,Data!$A$3:$CC$3,0),0) -> 0.04101079657 | K23: =VLOOKUP($B23,retdat,MATCH(K$13,Data!$A$3:$CC$3,0),0) -> 0.3064367636 | L23: =VLOOKUP($B23,retdat,MATCH(L$13,Data!$A$3:$CC$3,0),0) -> 0.2664025584 | M23: =VLOOKUP($B23,retdat,MATCH(M$13,Data!$A$3:$CC$3,0),0) -> 0.2307865979 | N23: =VLOOKUP($B23,retdat,MATCH(N$13,Data!$A$3:$CC$3,0),0) -> 0.1069 | O23: =VLOOKUP($B23,retdat,MATCH(O$13,Data!$A$3:$CC$3,0),0) -> 0.1124916667 | P23: =VLOOKUP($B23,retdat,MATCH(P$13,Data!$A$3:$CC$3,0),0) -> 0.094425 | Q23: =VLOOKUP($B23,retdat,MATCH(Q$13,Data!$A$3:$CC$3,0),0) -> 0.01797297956 | S23: 0.2200075753 | T23: 0.08792777778 | U23: 0.4469526763 | V23: 0.09616058421 | W23: 0.09172999556 | X23: 0.07508888889 | Y23: 0.00148561063 | Z23: -0.06019706483 | AA23: 0.2023715534 | AB23: 0.1414856991 | AC23: 0.2104412032 | AD23: 0.09715833333 | AE23: 0.09925833333 | AF23: 0.08423888889 | AG23: 0.1361143786 | AI23: =GEOMEAN(C97:OFFSET(C97,$AI$2-1,0))-1 -> 0.2197423498 | AJ23: =GEOMEAN(D97:OFFSET(D97,$AI$2-1,0))-1 -> 0.08790795223 | AK23: =GEOMEAN(E97:OFFSET(E97,$AI$2-1,0))-1 -> 0.4136596918 | AL23: =GEOMEAN(F97:OFFSET(F97,$AI$2-1,0))-1 -> 0.09567601536 | AM23: =GEOMEAN(G97:OFFSET(G97,$AI$2-1,0))-1 -> 0.09145081641 | AN23: =GEOMEAN(H97:OFFSET(H97,$AI$2-1,0))-1 -> 0.07490840936 | AO23: =GEOMEAN(I97:OFFSET(I97,$AI$2-1,0))-1 -> -0.003324903234 | AP23: =GEOMEAN(J97:OFFSET(J97,$AI$2-1,0))-1 -> -0.06528946476 | AQ23: =GEOMEAN(K97:OFFSET(K97,$AI$2-1,0))-1 -> 0.1993633015 | AR23: =GEOMEAN(L97:OFFSET(L97,$AI$2-1,0))-1 -> 0.1351993176 | AS23: =GEOMEAN(M97:OFFSET(M97,$AI$2-1,0))-1 -> 0.2101773151 | AT23: =GEOMEAN(N97:OFFSET(N97,$AI$2-1,0))-1 -> 0.09713470737 | AU23: =GEOMEAN(O97:OFFSET(O97,$AI$2-1,0))-1 -> 0.09921335763 | AV23: =GEOMEAN(P97:OFFSET(P97,$AI$2-1,0))-1 -> 0.08420742249 | AW23: =GEOMEAN(Q97:OFFSET(Q97,$AI$2-1,0))-1 -> 0.1320132269 | AY23: 10
B24: 1980 | C24: =VLOOKUP($B24,retdat,MATCH(C$13,Data!$A$3:$CC$3,0),0) -> 0.2171326163 | D24: =VLOOKUP($B24,retdat,MATCH(D$13,Data!$A$3:$CC$3,0),0) -> 0.1193833333 | E24: =VLOOKUP($B24,retdat,MATCH(E$13,Data!$A$3:$CC$3,0),0) -> 0.1413740932 | F24: =VLOOKUP($B24,retdat,MATCH(F$13,Data!$A$3:$CC$3,0),0) -> 0.1175165466 | G24: =VLOOKUP($B24,retdat,MATCH(G$13,Data!$A$3:$CC$3,0),0) -> 0.1164817993 | H24: =VLOOKUP($B24,retdat,MATCH(H$13,Data!$A$3:$CC$3,0),0) -> 0.1143416667 | I24: =VLOOKUP($B24,retdat,MATCH(I$13,Data!$A$3:$CC$3,0),0) -> 0.2293131037 | J24: =VLOOKUP($B24,retdat,MATCH(J$13,Data!$A$3:$CC$3,0),0) -> 0.1392382206 | K24: =VLOOKUP($B24,retdat,MATCH(K$13,Data!$A$3:$CC$3,0),0) -> 0.2180837879 | L24: =VLOOKUP($B24,retdat,MATCH(L$13,Data!$A$3:$CC$3,0),0) -> 0.2470120763 | M24: =VLOOKUP($B24,retdat,MATCH(M$13,Data!$A$3:$CC$3,0),0) -> 0.2204361657 | N24: =VLOOKUP($B24,retdat,MATCH(N$13,Data!$A$3:$CC$3,0),0) -> 0.1366833333 | O24: =VLOOKUP($B24,retdat,MATCH(O$13,Data!$A$3:$CC$3,0),0) -> 0.1384166667 | P24: =VLOOKUP($B24,retdat,MATCH(P$13,Data!$A$3:$CC$3,0),0) -> 0.1146 | Q24: =VLOOKUP($B24,retdat,MATCH(Q$13,Data!$A$3:$CC$3,0),0) -> 0.1740642491 | S24: 0.2110170203 | T24: 0.100975 | U24: 0.4341565749 | V24: 0.1161614644 | W24: 0.10900875 | X24: 0.09563888889 | Y24: 0.1186532171 | Z24: 0.04940695161 | AA24: 0.2076254365 | AB24: 0.1656244465 | AC24: 0.2087401902 | AD24: 0.1128222222 | AE24: 0.1159027778 | AF24: 0.09770833333 | AG24: 0.1486707306 | AI24: =GEOMEAN(C98:OFFSET(C98,$AI$2-1,0))-1 -> 0.2108633702 | AJ24: =GEOMEAN(D98:OFFSET(D98,$AI$2-1,0))-1 -> 0.1008921844 | AK24: =GEOMEAN(E98:OFFSET(E98,$AI$2-1,0))-1 -> 0.3981572809 | AL24: =GEOMEAN(F98:OFFSET(F98,$AI$2-1,0))-1 -> 0.1160186357 | AM24: =GEOMEAN(G98:OFFSET(G98,$AI$2-1,0))-1 -> 0.1088846545 | AN24: =GEOMEAN(H98:OFFSET(H98,$AI$2-1,0))-1 -> 0.09549530866 | AO24: =GEOMEAN(I98:OFFSET(I98,$AI$2-1,0))-1 -> 0.1150839267 | AP24: =GEOMEAN(J98:OFFSET(J98,$AI$2-1,0))-1 -> 0.0470743017 | AQ24: =GEOMEAN(K98:OFFSET(K98,$AI$2-1,0))-1 -> 0.2045815187 | AR24: =GEOMEAN(L98:OFFSET(L98,$AI$2-1,0))-1 -> 0.1580647854 | AS24: =GEOMEAN(M98:OFFSET(M98,$AI$2-1,0))-1 -> 0.2084952873 | AT24: =GEOMEAN(N98:OFFSET(N98,$AI$2-1,0))-1 -> 0.1126841667 | AU24: =GEOMEAN(O98:OFFSET(O98,$AI$2-1,0))-1 -> 0.1157712099 | AV24: =GEOMEAN(P98:OFFSET(P98,$AI$2-1,0))-1 -> 0.09763546149 | AW24: =GEOMEAN(Q98:OFFSET(Q98,$AI$2-1,0))-1 -> 0.1443854477 | AY24: 11
B25: 1981 | C25: =VLOOKUP($B25,retdat,MATCH(C$13,Data!$A$3:$CC$3,0),0) -> 0.1637224548 | D25: =VLOOKUP($B25,retdat,MATCH(D$13,Data!$A$3:$CC$3,0),0) -> 0.1417083333 | E25: =VLOOKUP($B25,retdat,MATCH(E$13,Data!$A$3:$CC$3,0),0) -> -0.3945037842 | F25: =VLOOKUP($B25,retdat,MATCH(F$13,Data!$A$3:$CC$3,0),0) -> 0.05193274874 | G25: =VLOOKUP($B25,retdat,MATCH(G$13,Data!$A$3:$CC$3,0),0) -> 0.08537037078 | H25: =VLOOKUP($B25,retdat,MATCH(H$13,Data!$A$3:$CC$3,0),0) -> 0.14025 | I25: =VLOOKUP($B25,retdat,MATCH(I$13,Data!$A$3:$CC$3,0),0) -> -0.102369511 | J25: =VLOOKUP($B25,retdat,MATCH(J$13,Data!$A$3:$CC$3,0),0) -> -0.09686740825 | K25: =VLOOKUP($B25,retdat,MATCH(K$13,Data!$A$3:$CC$3,0),0) -> 0.05827654452 | L25: =VLOOKUP($B25,retdat,MATCH(L$13,Data!$A$3:$CC$3,0),0) -> 0.08227683944 | M25: =VLOOKUP($B25,retdat,MATCH(M$13,Data!$A$3:$CC$3,0),0) -> 0.1507265529 | N25: =VLOOKUP($B25,retdat,MATCH(N$13,Data!$A$3:$CC$3,0),0) -> 0.1604416667 | O25: =VLOOKUP($B25,retdat,MATCH(O$13,Data!$A$3:$CC$3,0),0) -> 0.1671666667 | P25: =VLOOKUP($B25,retdat,MATCH(P$13,Data!$A$3:$CC$3,0),0) -> 0.1391083333 | Q25: =VLOOKUP($B25,retdat,MATCH(Q$13,Data!$A$3:$CC$3,0),0) -> -0.04970149596 | S25: 0.2039270803 | T25: 0.1191277778 | U25: 0.2163734215 | V25: 0.1022520734 | W25: 0.108774004 | X25: 0.1184277778 | Y25: 0.08100858038 | Z25: 0.02779386965 | AA25: 0.1942656987 | AB25: 0.1985638247 | AC25: 0.2006497722 | AD25: 0.134675 | AE25: 0.1393583333 | AF25: 0.1160444444 | AG25: 0.04744524422 | AI25: =GEOMEAN(C99:OFFSET(C99,$AI$2-1,0))-1 -> 0.2035748571 | AJ25: =GEOMEAN(D99:OFFSET(D99,$AI$2-1,0))-1 -> 0.1189741147 | AK25: =GEOMEAN(E99:OFFSET(E99,$AI$2-1,0))-1 -> 0.09547467534 | AL25: =GEOMEAN(F99:OFFSET(F99,$AI$2-1,0))-1 -> 0.1016404497 | AM25: =GEOMEAN(G99:OFFSET(G99,$AI$2-1,0))-1 -> 0.1086449265 | AN25: =GEOMEAN(H99:OFFSET(H99,$AI$2-1,0))-1 -> 0.1183078574 | AO25: =GEOMEAN(I99:OFFSET(I99,$AI$2-1,0))-1 -> 0.07189461564 | AP25: =GEOMEAN(J99:OFFSET(J99,$AI$2-1,0))-1 -> 0.02315264636 | AQ25: =GEOMEAN(K99:OFFSET(K99,$AI$2-1,0))-1 -> 0.1897477959 | AR25: =GEOMEAN(L99:OFFSET(L99,$AI$2-1,0))-1 -> 0.1956211835 | AS25: =GEOMEAN(M99:OFFSET(M99,$AI$2-1,0))-1 -> 0.200116262 | AT25: =GEOMEAN(N99:OFFSET(N99,$AI$2-1,0))-1 -> 0.1344631614 | AU25: =GEOMEAN(O99:OFFSET(O99,$AI$2-1,0))-1 -> 0.1391396342 | AV25: =GEOMEAN(P99:OFFSET(P99,$AI$2-1,0))-1 -> 0.1158950667 | AW25: =GEOMEAN(Q99:OFFSET(Q99,$AI$2-1,0))-1 -> 0.04334847744 | AY25: 12 | AZ25: 0.2035748571 | BA25: 0.1189741147 | BB25: 0.09547467534 | BC25: 0.1016404497 | BD25: 0.1086449265 | BE25: 0.1183078574 | BF25: 0.07189461564 | BG25: 0.02315264636 | BH25: 0.1897477959 | BI25: 0.1956211835 | BJ25: 0.200116262 | BK25: 0.1344631614 | BL25: 0.1391396342 | BM25: 0.1158950667 | BN25: 0.04334847744
B26: 1982 | C26: =VLOOKUP($B26,retdat,MATCH(C$13,Data!$A$3:$CC$3,0),0) -> 0.05371039695 | D26: =VLOOKUP($B26,retdat,MATCH(D$13,Data!$A$3:$CC$3,0),0) -> 0.137875 | E26: =VLOOKUP($B26,retdat,MATCH(E$13,Data!$A$3:$CC$3,0),0) -> 0.1392696145 | F26: =VLOOKUP($B26,retdat,MATCH(F$13,Data!$A$3:$CC$3,0),0) -> 0.01706012275 | G26: =VLOOKUP($B26,retdat,MATCH(G$13,Data!$A$3:$CC$3,0),0) -> 0.03754351246 | H26: =VLOOKUP($B26,retdat,MATCH(H$13,Data!$A$3:$CC$3,0),0) -> 0.1061416667 | I26: =VLOOKUP($B26,retdat,MATCH(I$13,Data!$A$3:$CC$3,0),0) -> 0.137684324 | J26: =VLOOKUP($B26,retdat,MATCH(J$13,Data!$A$3:$CC$3,0),0) -> 0.1789826555 | K26: =VLOOKUP($B26,retdat,MATCH(K$13,Data!$A$3:$CC$3,0),0) -> 0.1955741978 | L26: =VLOOKUP($B26,retdat,MATCH(L$13,Data!$A$3:$CC$3,0),0) -> 0.2749308599 | M26: =VLOOKUP($B26,retdat,MATCH(M$13,Data!$A$3:$CC$3,0),0) -> 0.05022427739 | N26: =VLOOKUP($B26,retdat,MATCH(N$13,Data!$A$3:$CC$3,0),0) -> 0.1611333333 | O26: =VLOOKUP($B26,retdat,MATCH(O$13,Data!$A$3:$CC$3,0),0) -> 0.1596083333 | P26: =VLOOKUP($B26,retdat,MATCH(P$13,Data!$A$3:$CC$3,0),0) -> 0.1300166667 | Q26: =VLOOKUP($B26,retdat,MATCH(Q$13,Data!$A$3:$CC$3,0),0) -> -0.04738906566 | S26: 0.144855156 | T26: 0.1329888889 | U26: -0.03795335882 | V26: 0.06216980604 | W26: 0.07979856085 | X26: 0.1202444444 | Y26: 0.08820930558 | Z26: 0.0737844893 | AA26: 0.1573115101 | AB26: 0.2014065919 | AC26: 0.140462332 | AD26: 0.1527527778 | AE26: 0.1550638889 | AF26: 0.1279083333 | AG26: 0.02565789581 | AI26: =GEOMEAN(C100:OFFSET(C100,$AI$2-1,0))-1 -> 0.142798145 | AJ26: =GEOMEAN(D100:OFFSET(D100,$AI$2-1,0))-1 -> 0.1329468102 | AK26: =GEOMEAN(E100:OFFSET(E100,$AI$2-1,0))-1 -> -0.07660258842 | AL26: =GEOMEAN(F100:OFFSET(F100,$AI$2-1,0))-1 -> 0.06136033916 | AM26: =GEOMEAN(G100:OFFSET(G100,$AI$2-1,0))-1 -> 0.07930778477 | AN26: =GEOMEAN(H100:OFFSET(H100,$AI$2-1,0))-1 -> 0.1201505612 | AO26: =GEOMEAN(I100:OFFSET(I100,$AI$2-1,0))-1 -> 0.07876610772 | AP26: =GEOMEAN(J100:OFFSET(J100,$AI$2-1,0))-1 -> 0.06649254995 | AQ26: =GEOMEAN(K100:OFFSET(K100,$AI$2-1,0))-1 -> 0.1550947832 | AR26: =GEOMEAN(L100:OFFSET(L100,$AI$2-1,0))-1 -> 0.1982990614 | AS26: =GEOMEAN(M100:OFFSET(M100,$AI$2-1,0))-1 -> 0.1382991692 | AT26: =GEOMEAN(N100:OFFSET(N100,$AI$2-1,0))-1 -> 0.1526964784 | AU26: =GEOMEAN(O100:OFFSET(O100,$AI$2-1,0))-1 -> 0.1549995534 | AV26: =GEOMEAN(P100:OFFSET(P100,$AI$2-1,0))-1 -> 0.1278628854 | AW26: =GEOMEAN(Q100:OFFSET(Q100,$AI$2-1,0))-1 -> 0.02052227963 | AY26: 13
B27: 1983 | C27: =VLOOKUP($B27,retdat,MATCH(C$13,Data!$A$3:$CC$3,0),0) -> 0.01521044803 | D27: =VLOOKUP($B27,retdat,MATCH(D$13,Data!$A$3:$CC$3,0),0) -> 0.1204166667 | E27: =VLOOKUP($B27,retdat,MATCH(E$13,Data!$A$3:$CC$3,0),0) -> -0.1779973674 | F27: =VLOOKUP($B27,retdat,MATCH(F$13,Data!$A$3:$CC$3,0),0) -> 0.01775194546 | G27: =VLOOKUP($B27,retdat,MATCH(G$13,Data!$A$3:$CC$3,0),0) -> 0.03717153211 | H27: =VLOOKUP($B27,retdat,MATCH(H$13,Data!$A$3:$CC$3,0),0) -> 0.08610833333 | I27: =VLOOKUP($B27,retdat,MATCH(I$13,Data!$A$3:$CC$3,0),0) -> 0.1593177075 | J27: =VLOOKUP($B27,retdat,MATCH(J$13,Data!$A$3:$CC$3,0),0) -> 0.1845487292 | K27: =VLOOKUP($B27,retdat,MATCH(K$13,Data!$A$3:$CC$3,0),0) -> 0.2672465556 | L27: =VLOOKUP($B27,retdat,MATCH(L$13,Data!$A$3:$CC$3,0),0) -> 0.2268874719 | M27: =VLOOKUP($B27,retdat,MATCH(M$13,Data!$A$3:$CC$3,0),0) -> 0.01163386195 | N27: =VLOOKUP($B27,retdat,MATCH(N$13,Data!$A$3:$CC$3,0),0) -> 0.1355416667 | O27: =VLOOKUP($B27,retdat,MATCH(O$13,Data!$A$3:$CC$3,0),0) -> 0.1322333333 | P27: =VLOOKUP($B27,retdat,MATCH(P$13,Data!$A$3:$CC$3,0),0) -> 0.11105 | Q27: =VLOOKUP($B27,retdat,MATCH(Q$13,Data!$A$3:$CC$3,0),0) -> 0.1899067955 | S27: 0.07754776658 | T27: 0.1333333333 | U27: -0.1444105124 | V27: 0.02891493898 | W27: 0.05336180512 | X27: 0.1108333333 | Y27: 0.06487750684 | Z27: 0.08888799216 | AA27: 0.1736990993 | AB27: 0.1946983904 | AC27: 0.07086156407 | AD27: 0.1523722222 | AE27: 0.1530027778 | AF27: 0.126725 | AG27: 0.03093874461 | AI27: =GEOMEAN(C101:OFFSET(C101,$AI$2-1,0))-1 -> 0.0757439677 | AJ27: =GEOMEAN(D101:OFFSET(D101,$AI$2-1,0))-1 -> 0.1332953211 | AK27: =GEOMEAN(E101:OFFSET(E101,$AI$2-1,0))-1 -> -0.1723048977 | AL27: =GEOMEAN(F101:OFFSET(F101,$AI$2-1,0))-1 -> 0.02878711083 | AM27: =GEOMEAN(G101:OFFSET(G101,$AI$2-1,0))-1 -> 0.05312104027 | AN27: =GEOMEAN(H101:OFFSET(H101,$AI$2-1,0))-1 -> 0.1106093521 | AO27: =GEOMEAN(I101:OFFSET(I101,$AI$2-1,0))-1 -> 0.05789024626 | AP27: =GEOMEAN(J101:OFFSET(J101,$AI$2-1,0))-1 -> 0.08044820948 | AQ27: =GEOMEAN(K101:OFFSET(K101,$AI$2-1,0))-1 -> 0.1704304393 | AR27: =GEOMEAN(L101:OFFSET(L101,$AI$2-1,0))-1 -> 0.1918179168 | AS27: =GEOMEAN(M101:OFFSET(M101,$AI$2-1,0))-1 -> 0.06928263807 | AT27: =GEOMEAN(N101:OFFSET(N101,$AI$2-1,0))-1 -> 0.1523104325 | AU27: =GEOMEAN(O101:OFFSET(O101,$AI$2-1,0))-1 -> 0.1529046214 | AV27: =GEOMEAN(P101:OFFSET(P101,$AI$2-1,0))-1 -> 0.1266641978 | AW27: =GEOMEAN(Q101:OFFSET(Q101,$AI$2-1,0))-1 -> 0.02509201562 | AY27: 14
B28: 1984 | C28: =VLOOKUP($B28,retdat,MATCH(C$13,Data!$A$3:$CC$3,0),0) -> 0.07688117641 | D28: =VLOOKUP($B28,retdat,MATCH(D$13,Data!$A$3:$CC$3,0),0) -> 0.1270916667 | E28: =VLOOKUP($B28,retdat,MATCH(E$13,Data!$A$3:$CC$3,0),0) -> -0.2153938463 | F28: =VLOOKUP($B28,retdat,MATCH(F$13,Data!$A$3:$CC$3,0),0) -> 0.01166193975 | G28: =VLOOKUP($B28,retdat,MATCH(G$13,Data!$A$3:$CC$3,0),0) -> 0.03963786176 | H28: =VLOOKUP($B28,retdat,MATCH(H$13,Data!$A$3:$CC$3,0),0) -> 0.095225 | I28: =VLOOKUP($B28,retdat,MATCH(I$13,Data!$A$3:$CC$3,0),0) -> 0.01390876503 | J28: =VLOOKUP($B28,retdat,MATCH(J$13,Data!$A$3:$CC$3,0),0) -> -0.03805819194 | K28: =VLOOKUP($B28,retdat,MATCH(K$13,Data!$A$3:$CC$3,0),0) -> 0.1900191517 | L28: =VLOOKUP($B28,retdat,MATCH(L$13,Data!$A$3:$CC$3,0),0) -> 0.1381547347 | M28: =VLOOKUP($B28,retdat,MATCH(M$13,Data!$A$3:$CC$3,0),0) -> 0.0754750255 | N28: =VLOOKUP($B28,retdat,MATCH(N$13,Data!$A$3:$CC$3,0),0) -> 0.1419 | O28: =VLOOKUP($B28,retdat,MATCH(O$13,Data!$A$3:$CC$3,0),0) -> 0.1386 | P28: =VLOOKUP($B28,retdat,MATCH(P$13,Data!$A$3:$CC$3,0),0) -> 0.1243833333 | Q28: =VLOOKUP($B28,retdat,MATCH(Q$13,Data!$A$3:$CC$3,0),0) -> 0.04898313685 | S28: 0.0486006738 | T28: 0.1284611111 | U28: -0.08470719973 | V28: 0.01549133598 | W28: 0.03811763544 | X28: 0.095825 | Y28: 0.1036369322 | Z28: 0.1084910643 | AA28: 0.2176133017 | AB28: 0.2133243555 | AC28: 0.04577772161 | AD28: 0.1461916667 | AE28: 0.1434805556 | AF28: 0.1218166667 | AG28: 0.06383362222 | AI28: =GEOMEAN(C102:OFFSET(C102,$AI$2-1,0))-1 -> 0.0482906443 | AJ28: =GEOMEAN(D102:OFFSET(D102,$AI$2-1,0))-1 -> 0.1284382143 | AK28: =GEOMEAN(E102:OFFSET(E102,$AI$2-1,0))-1 -> -0.09763174005 | AL28: =GEOMEAN(F102:OFFSET(F102,$AI$2-1,0))-1 -> 0.01548768216 | AM28: =GEOMEAN(G102:OFFSET(G102,$AI$2-1,0))-1 -> 0.03811706803 | AN28: =GEOMEAN(H102:OFFSET(H102,$AI$2-1,0))-1 -> 0.09579441375 | AO28: =GEOMEAN(I102:OFFSET(I102,$AI$2-1,0))-1 -> 0.101727966 | AP28: =GEOMEAN(J102:OFFSET(J102,$AI$2-1,0))-1 -> 0.1034086458 | AQ28: =GEOMEAN(K102:OFFSET(K102,$AI$2-1,0))-1 -> 0.217111973 | AR28: =GEOMEAN(L102:OFFSET(L102,$AI$2-1,0))-1 -> 0.2119858744 | AS28: =GEOMEAN(M102:OFFSET(M102,$AI$2-1,0))-1 -> 0.04544674229 | AT28: =GEOMEAN(N102:OFFSET(N102,$AI$2-1,0))-1 -> 0.1461402037 | AU28: =GEOMEAN(O102:OFFSET(O102,$AI$2-1,0))-1 -> 0.1434209571 | AV28: =GEOMEAN(P102:OFFSET(P102,$AI$2-1,0))-1 -> 0.1217884152 | AW28: =GEOMEAN(Q102:OFFSET(Q102,$AI$2-1,0))-1 -> 0.05941391075 | AY28: 15 | AZ28: 0.0482906443 | BA28: 0.1284382143 | BB28: -0.09763174005 | BC28: 0.01548768216 | BD28: 0.03811706803 | BE28: 0.09579441375 | BF28: 0.101727966 | BG28: 0.1034086458 | BH28: 0.217111973 | BI28: 0.2119858744 | BJ28: 0.04544674229 | BK28: 0.1461402037 | BL28: 0.1434209571 | BM28: 0.1217884152 | BN28: 0.05941391075
B29: 1985 | C29: =VLOOKUP($B29,retdat,MATCH(C$13,Data!$A$3:$CC$3,0),0) -> -0.04689879738 | D29: =VLOOKUP($B29,retdat,MATCH(D$13,Data!$A$3:$CC$3,0),0) -> 0.1137333333 | E29: =VLOOKUP($B29,retdat,MATCH(E$13,Data!$A$3:$CC$3,0),0) -> 0.05827502809 | F29: =VLOOKUP($B29,retdat,MATCH(F$13,Data!$A$3:$CC$3,0),0) -> 0.00096571712 | G29: =VLOOKUP($B29,retdat,MATCH(G$13,Data!$A$3:$CC$3,0),0) -> 0.03721359634 | H29: =VLOOKUP($B29,retdat,MATCH(H$13,Data!$A$3:$CC$3,0),0) -> 0.07479166667 | I29: =VLOOKUP($B29,retdat,MATCH(I$13,Data!$A$3:$CC$3,0),0) -> 0.2337543615 | J29: =VLOOKUP($B29,retdat,MATCH(J$13,Data!$A$3:$CC$3,0),0) -> 0.2441818289 | K29: =VLOOKUP($B29,retdat,MATCH(K$13,Data!$A$3:$CC$3,0),0) -> 0.1747626707 | L29: =VLOOKUP($B29,retdat,MATCH(L$13,Data!$A$3:$CC$3,0),0) -> 0.05751321001 | M29: =VLOOKUP($B29,retdat,MATCH(M$13,Data!$A$3:$CC$3,0),0) -> -0.04082655284 | N29: =VLOOKUP($B29,retdat,MATCH(N$13,Data!$A$3:$CC$3,0),0) -> 0.12715 | O29: =VLOOKUP($B29,retdat,MATCH(O$13,Data!$A$3:$CC$3,0),0) -> 0.1235166667 | P29: =VLOOKUP($B29,retdat,MATCH(P$13,Data!$A$3:$CC$3,0),0) -> 0.1062333333 | Q29: =VLOOKUP($B29,retdat,MATCH(Q$13,Data!$A$3:$CC$3,0),0) -> 0.4250651192 | S29: 0.01506427568 | T29: 0.1204138889 | U29: -0.1117053952 | V29: 0.01012653411 | W29: 0.0380076634 | X29: 0.085375 | Y29: 0.135660278 | Z29: 0.1302241221 | AA29: 0.210676126 | AB29: 0.1408518055 | AC29: 0.01542744487 | AD29: 0.1348638889 | AE29: 0.13145 | AF29: 0.1138888889 | AG29: 0.2213183505 | AI29: =GEOMEAN(C103:OFFSET(C103,$AI$2-1,0))-1 -> 0.01380468523 | AJ29: =GEOMEAN(D103:OFFSET(D103,$AI$2-1,0))-1 -> 0.1204006164 | AK29: =GEOMEAN(E103:OFFSET(E103,$AI$2-1,0))-1 -> -0.1195436657 | AL29: =GEOMEAN(F103:OFFSET(F103,$AI$2-1,0))-1 -> 0.01010266899 | AM29: =GEOMEAN(G103:OFFSET(G103,$AI$2-1,0))-1 -> 0.03800702354 | AN29: =GEOMEAN(H103:OFFSET(H103,$AI$2-1,0))-1 -> 0.08534279695 | AO29: =GEOMEAN(I103:OFFSET(I103,$AI$2-1,0))-1 -> 0.131905098 | AP29: =GEOMEAN(J103:OFFSET(J103,$AI$2-1,0))-1 -> 0.123384762 | AQ29: =GEOMEAN(K103:OFFSET(K103,$AI$2-1,0))-1 -> 0.2100084487 | AR29: =GEOMEAN(L103:OFFSET(L103,$AI$2-1,0))-1 -> 0.1387558318 | AS29: =GEOMEAN(M103:OFFSET(M103,$AI$2-1,0))-1 -> 0.01431678374 | AT29: =GEOMEAN(N103:OFFSET(N103,$AI$2-1,0))-1 -> 0.1348478023 | AU29: =GEOMEAN(O103:OFFSET(O103,$AI$2-1,0))-1 -> 0.1314330963 | AV29: =GEOMEAN(P103:OFFSET(P103,$AI$2-1,0))-1 -> 0.1138624956 | AW29: =GEOMEAN(Q103:OFFSET(Q103,$AI$2-1,0))-1 -> 0.21163568 | AY29: 16
B30: 1986 | C30: =VLOOKUP($B30,retdat,MATCH(C$13,Data!$A$3:$CC$3,0),0) -> -0.02396986012 | D30: =VLOOKUP($B30,retdat,MATCH(D$13,Data!$A$3:$CC$3,0),0) -> 0.09020833333 | E30: =VLOOKUP($B30,retdat,MATCH(E$13,Data!$A$3:$CC$3,0),0) -> 0.1735881005 | F30: =VLOOKUP($B30,retdat,MATCH(F$13,Data!$A$3:$CC$3,0),0) -> -0.03837165286 | G30: =VLOOKUP($B30,retdat,MATCH(G$13,Data!$A$3:$CC$3,0),0) -> 0.01180222506 | H30: =VLOOKUP($B30,retdat,MATCH(H$13,Data!$A$3:$CC$3,0),0) -> 0.05978333333 | I30: =VLOOKUP($B30,retdat,MATCH(I$13,Data!$A$3:$CC$3,0),0) -> 0.1364556909 | J30: =VLOOKUP($B30,retdat,MATCH(J$13,Data!$A$3:$CC$3,0),0) -> 0.2036227748 | K30: =VLOOKUP($B30,retdat,MATCH(K$13,Data!$A$3:$CC$3,0),0) -> 0.175277856 | L30: =VLOOKUP($B30,retdat,MATCH(L$13,Data!$A$3:$CC$3,0),0) -> 0.1754299391 | M30: =VLOOKUP($B30,retdat,MATCH(M$13,Data!$A$3:$CC$3,0),0) -> -0.01849305142 | N30: =VLOOKUP($B30,retdat,MATCH(N$13,Data!$A$3:$CC$3,0),0) -> 0.1039083333 | O30: =VLOOKUP($B30,retdat,MATCH(O$13,Data!$A$3:$CC$3,0),0) -> 0.101225 | P30: =VLOOKUP($B30,retdat,MATCH(P$13,Data!$A$3:$CC$3,0),0) -> 0.076825 | Q30: =VLOOKUP($B30,retdat,MATCH(Q$13,Data!$A$3:$CC$3,0),0) -> 0.511622832 | S30: 0.002004172967 | T30: 0.1103444444 | U30: 0.005489760772 | V30: -0.008581331997 | W30: 0.02955122772 | X30: 0.0766 | Y30: 0.1280396058 | Z30: 0.1365821372 | AA30: 0.1800198928 | AB30: 0.1236992946 | AC30: 0.005385140416 | AD30: 0.1243194444 | AE30: 0.1211138889 | AF30: 0.1024805556 | AG30: 0.3285570293 | AI30: =GEOMEAN(C104:OFFSET(C104,$AI$2-1,0))-1 -> 0.00059119619 | AJ30: =GEOMEAN(D104:OFFSET(D104,$AI$2-1,0))-1 -> 0.1102394407 | AK30: =GEOMEAN(E104:OFFSET(E104,$AI$2-1,0))-1 -> -0.008585380987 | AL30: =GEOMEAN(F104:OFFSET(F104,$AI$2-1,0))-1 -> -0.008816743193 | AM30: =GEOMEAN(G104:OFFSET(G104,$AI$2-1,0))-1 -> 0.0294738186 | AN30: =GEOMEAN(H104:OFFSET(H104,$AI$2-1,0))-1 -> 0.07650216635 | AO30: =GEOMEAN(I104:OFFSET(I104,$AI$2-1,0))-1 -> 0.1244151678 | AP30: =GEOMEAN(J104:OFFSET(J104,$AI$2-1,0))-1 -> 0.1293824043 | AQ30: =GEOMEAN(K104:OFFSET(K104,$AI$2-1,0))-1 -> 0.1799987504 | AR30: =GEOMEAN(L104:OFFSET(L104,$AI$2-1,0))-1 -> 0.1226075351 | AS30: =GEOMEAN(M104:OFFSET(M104,$AI$2-1,0))-1 -> 0.004146206664 | AT30: =GEOMEAN(N104:OFFSET(N104,$AI$2-1,0))-1 -> 0.1242104037 | AU30: =GEOMEAN(O104:OFFSET(O104,$AI$2-1,0))-1 -> 0.1210085379 | AV30: =GEOMEAN(P104:OFFSET(P104,$AI$2-1,0))-1 -> 0.1023057934 | AW30: =GEOMEAN(Q104:OFFSET(Q104,$AI$2-1,0))-1 -> 0.3122468933 | AY30: 17
B31: 1987 | C31: =VLOOKUP($B31,retdat,MATCH(C$13,Data!$A$3:$CC$3,0),0) -> 0.006739451086 | D31: =VLOOKUP($B31,retdat,MATCH(D$13,Data!$A$3:$CC$3,0),0) -> 0.09375833333 | E31: =VLOOKUP($B31,retdat,MATCH(E$13,Data!$A$3:$CC$3,0),0) -> 0.2193550335 | F31: =VLOOKUP($B31,retdat,MATCH(F$13,Data!$A$3:$CC$3,0),0) -> 0.04414645235 | G31: =VLOOKUP($B31,retdat,MATCH(G$13,Data!$A$3:$CC$3,0),0) -> 0.04240918193 | H31: =VLOOKUP($B31,retdat,MATCH(H$13,Data!$A$3:$CC$3,0),0) -> 0.05775 | I31: =VLOOKUP($B31,retdat,MATCH(I$13,Data!$A$3:$CC$3,0),0) -> 0.02007221196 | J31: =VLOOKUP($B31,retdat,MATCH(J$13,Data!$A$3:$CC$3,0),0) -> 0.02232282116 | K31: =VLOOKUP($B31,retdat,MATCH(K$13,Data!$A$3:$CC$3,0),0) -> -0.03707729207 | L31: =VLOOKUP($B31,retdat,MATCH(L$13,Data!$A$3:$CC$3,0),0) -> -0.1128166539 | M31: =VLOOKUP($B31,retdat,MATCH(M$13,Data!$A$3:$CC$3,0),0) -> 0.01948991418 | N31: =VLOOKUP($B31,retdat,MATCH(N$13,Data!$A$3:$CC$3,0),0) -> 0.1057583333 | O31: =VLOOKUP($B31,retdat,MATCH(O$13,Data!$A$3:$CC$3,0),0) -> 0.1019583333 | P31: =VLOOKUP($B31,retdat,MATCH(P$13,Data!$A$3:$CC$3,0),0) -> 0.08384166667 | Q31: =VLOOKUP($B31,retdat,MATCH(Q$13,Data!$A$3:$CC$3,0),0) -> 0.2085141386 | S31: -0.02137640214 | T31: 0.09923333333 | U31: 0.150406054 | V31: 0.002246838871 | W31: 0.03047500111 | X31: 0.06410833333 | Y31: 0.1300940881 | Z31: 0.1567091416 | AA31: 0.1043210782 | AB31: 0.04004216506 | AC31: -0.01327656336 | AD31: 0.1122722222 | AE31: 0.1089 | AF31: 0.08896666667 | AG31: 0.3817340299 | AI31: =GEOMEAN(C105:OFFSET(C105,$AI$2-1,0))-1 -> -0.02162252673 | AJ31: =GEOMEAN(D105:OFFSET(D105,$AI$2-1,0))-1 -> 0.09918475602 | AK31: =GEOMEAN(E105:OFFSET(E105,$AI$2-1,0))-1 -> 0.1483690354 | AL31: =GEOMEAN(F105:OFFSET(F105,$AI$2-1,0))-1 -> 0.001680668834 | AM31: =GEOMEAN(G105:OFFSET(G105,$AI$2-1,0))-1 -> 0.0303877491 | AN31: =GEOMEAN(H105:OFFSET(H105,$AI$2-1,0))-1 -> 0.06408128097 | AO31: =GEOMEAN(I105:OFFSET(I105,$AI$2-1,0))-1 -> 0.1266889679 | AP31: =GEOMEAN(J105:OFFSET(J105,$AI$2-1,0))-1 -> 0.1525349452 | AQ31: =GEOMEAN(K105:OFFSET(K105,$AI$2-1,0))-1 -> 0.09958137059 | AR31: =GEOMEAN(L105:OFFSET(L105,$AI$2-1,0))-1 -> 0.03315459141 | AS31: =GEOMEAN(M105:OFFSET(M105,$AI$2-1,0))-1 -> -0.01358919695 | AT31: =GEOMEAN(N105:OFFSET(N105,$AI$2-1,0))-1 -> 0.1122224306 | AU31: =GEOMEAN(O105:OFFSET(O105,$AI$2-1,0))-1 -> 0.1088520022 | AV31: =GEOMEAN(P105:OFFSET(P105,$AI$2-1,0))-1 -> 0.08889475121 | AW31: =GEOMEAN(Q105:OFFSET(Q105,$AI$2-1,0))-1 -> 0.3756563681 | AY31: 18 | AZ31: -0.02162252673 | BA31: 0.09918475602 | BB31: 0.1483690354 | BC31: 0.001680668834 | BD31: 0.0303877491 | BE31: 0.06408128097 | BF31: 0.1266889679 | BG31: 0.1525349452 | BH31: 0.09958137059 | BI31: 0.03315459141 | BJ31: -0.01358919695 | BK31: 0.1122224306 | BL31: 0.1088520022 | BM31: 0.08889475121 | BN31: 0.3756563681
B32: 1988 | C32: =VLOOKUP($B32,retdat,MATCH(C$13,Data!$A$3:$CC$3,0),0) -> 0.1187284138 | D32: =VLOOKUP($B32,retdat,MATCH(D$13,Data!$A$3:$CC$3,0),0) -> 0.0971 | E32: =VLOOKUP($B32,retdat,MATCH(E$13,Data!$A$3:$CC$3,0),0) -> -0.165524767 | F32: =VLOOKUP($B32,retdat,MATCH(F$13,Data!$A$3:$CC$3,0),0) -> 0.04503575291 | G32: =VLOOKUP($B32,retdat,MATCH(G$13,Data!$A$3:$CC$3,0),0) -> 0.04317217187 | H32: =VLOOKUP($B32,retdat,MATCH(H$13,Data!$A$3:$CC$3,0),0) -> 0.066675 | I32: =VLOOKUP($B32,retdat,MATCH(I$13,Data!$A$3:$CC$3,0),0) -> 0.1169012411 | J32: =VLOOKUP($B32,retdat,MATCH(J$13,Data!$A$3:$CC$3,0),0) -> 0.1120125731 | K32: =VLOOKUP($B32,retdat,MATCH(K$13,Data!$A$3:$CC$3,0),0) -> 0.1265042596 | L32: =VLOOKUP($B32,retdat,MATCH(L$13,Data!$A$3:$CC$3,0),0) -> 0.1075568111 | M32: =VLOOKUP($B32,retdat,MATCH(M$13,Data!$A$3:$CC$3,0),0) -> 0.1124547074 | N32: =VLOOKUP($B32,retdat,MATCH(N$13,Data!$A$3:$CC$3,0),0) -> 0.1083 | O32: =VLOOKUP($B32,retdat,MATCH(O$13,Data!$A$3:$CC$3,0),0) -> 0.1035333333 | P32: =VLOOKUP($B32,retdat,MATCH(P$13,Data!$A$3:$CC$3,0),0) -> 0.08845833333 | Q32: =VLOOKUP($B32,retdat,MATCH(Q$13,Data!$A$3:$CC$3,0),0) -> 0.2363505605 | S32: 0.03383266825 | T32: =AVERAGE(D30:D32) -> 0.09368888889 | U32: =AVERAGE(E30:E32) -> 0.07580612233 | V32: =AVERAGE(F30:F32) -> 0.0169368508 | W32: =AVERAGE(G30:G32) -> 0.03246119295 | X32: =AVERAGE(H30:H32) -> 0.06140277778 | Y32: =AVERAGE(I30:I32) -> 0.09114304797 | Z32: =AVERAGE(J30:J32) -> 0.112652723 | AA32: =AVERAGE(K30:K32) -> 0.0882349412 | AB32: =AVERAGE(L30:L32) -> 0.05672336543 | AC32: =AVERAGE(M30:M32) -> 0.03781719005 | AD32: =AVERAGE(N30:N32) -> 0.1059888889 | AE32: =AVERAGE(O30:O32) -> 0.1022388889 | AF32: =AVERAGE(P30:P32) -> 0.08304166667 | AG32: =AVERAGE(Q30:Q32) -> 0.318829177 | AI32: =GEOMEAN(C106:OFFSET(C106,$AI$2-1,0))-1 -> 0.03205219464 | AJ32: =GEOMEAN(D106:OFFSET(D106,$AI$2-1,0))-1 -> 0.09368526867 | AK32: =GEOMEAN(E106:OFFSET(E106,$AI$2-1,0))-1 -> 0.06092929459 | AL32: =GEOMEAN(F106:OFFSET(F106,$AI$2-1,0))-1 -> 0.01617055799 | AM32: =GEOMEAN(G106:OFFSET(G106,$AI$2-1,0))-1 -> 0.03235710354 | AN32: =GEOMEAN(H106:OFFSET(H106,$AI$2-1,0))-1 -> 0.06139591528 | AO32: =GEOMEAN(I106:OFFSET(I106,$AI$2-1,0))-1 -> 0.08993198977 | AP32: =GEOMEAN(J106:OFFSET(J106,$AI$2-1,0))-1 -> 0.1101867762 | AQ32: =GEOMEAN(K106:OFFSET(K106,$AI$2-1,0))-1 -> 0.08431368771 | AR32: =GEOMEAN(L106:OFFSET(L106,$AI$2-1,0))-1 -> 0.0492010433 | AS32: =GEOMEAN(M106:OFFSET(M106,$AI$2-1,0))-1 -> 0.03638125687 | AT32: =GEOMEAN(N106:OFFSET(N106,$AI$2-1,0))-1 -> 0.105987424 | AU32: =GEOMEAN(O106:OFFSET(O106,$AI$2-1,0))-1 -> 0.1022384683 | AV32: =GEOMEAN(P106:OFFSET(P106,$AI$2-1,0))-1 -> 0.08303109803 | AW32: =GEOMEAN(Q106:OFFSET(Q106,$AI$2-1,0))-1 -> 0.3120355511 | AY32: 19
B33: 1989 | C33: =VLOOKUP($B33,retdat,MATCH(C$13,Data!$A$3:$CC$3,0),0) -> 0.1247892124 | D33: =VLOOKUP($B33,retdat,MATCH(D$13,Data!$A$3:$CC$3,0),0) -> 0.092575 | E33: =VLOOKUP($B33,retdat,MATCH(E$13,Data!$A$3:$CC$3,0),0) -> -0.02880832219 | F33: =VLOOKUP($B33,retdat,MATCH(F$13,Data!$A$3:$CC$3,0),0) -> 0.03603993648 | G33: =VLOOKUP($B33,retdat,MATCH(G$13,Data!$A$3:$CC$3,0),0) -> 0.04535190125 | H33: =VLOOKUP($B33,retdat,MATCH(H$13,Data!$A$3:$CC$3,0),0) -> 0.08111666667 | I33: =VLOOKUP($B33,retdat,MATCH(I$13,Data!$A$3:$CC$3,0),0) -> 0.240987148 | J33: =VLOOKUP($B33,retdat,MATCH(J$13,Data!$A$3:$CC$3,0),0) -> 0.2386820735 | K33: =VLOOKUP($B33,retdat,MATCH(K$13,Data!$A$3:$CC$3,0),0) -> 0.08472912909 | L33: =VLOOKUP($B33,retdat,MATCH(L$13,Data!$A$3:$CC$3,0),0) -> -0.01830215168 | M33: =VLOOKUP($B33,retdat,MATCH(M$13,Data!$A$3:$CC$3,0),0) -> 0.1253670637 | N33: =VLOOKUP($B33,retdat,MATCH(N$13,Data!$A$3:$CC$3,0),0) -> 0.101775 | O33: =VLOOKUP($B33,retdat,MATCH(O$13,Data!$A$3:$CC$3,0),0) -> 0.103075 | P33: =VLOOKUP($B33,retdat,MATCH(P$13,Data!$A$3:$CC$3,0),0) -> 0.08498333333 | Q33: =VLOOKUP($B33,retdat,MATCH(Q$13,Data!$A$3:$CC$3,0),0) -> 0.0881971791 | S33: 0.08341902575 | T33: 0.09447777778 | U33: 0.008340648095 | V33: 0.04174071391 | W33: 0.04364441835 | X33: 0.06851388889 | Y33: 0.125986867 | Z33: 0.1243391559 | AA33: 0.05805203222 | AB33: -0.007853998161 | AC33: 0.08577056174 | AD33: 0.1052777778 | AE33: 0.1028555556 | AF33: 0.08576111111 | AG33: 0.1776872927 | AI33: =GEOMEAN(C107:OFFSET(C107,$AI$2-1,0))-1 -> 0.08202584137 | AJ33: =GEOMEAN(D107:OFFSET(D107,$AI$2-1,0))-1 -> 0.09447610153 | AK33: =GEOMEAN(E107:OFFSET(E107,$AI$2-1,0))-1 -> -0.003946055442 | AL33: =GEOMEAN(F107:OFFSET(F107,$AI$2-1,0))-1 -> 0.04173283754 | AM33: =GEOMEAN(G107:OFFSET(G107,$AI$2-1,0))-1 -> 0.04364367377 | AN33: =GEOMEAN(H107:OFFSET(H107,$AI$2-1,0))-1 -> 0.0684705862 | AO33: =GEOMEAN(I107:OFFSET(I107,$AI$2-1,0))-1 -> 0.1223741563 | AP33: =GEOMEAN(J107:OFFSET(J107,$AI$2-1,0))-1 -> 0.1208630052 | AQ33: =GEOMEAN(K107:OFFSET(K107,$AI$2-1,0))-1 -> 0.05571945082 | AR33: =GEOMEAN(L107:OFFSET(L107,$AI$2-1,0))-1 -> -0.01193448041 | AS33: =GEOMEAN(M107:OFFSET(M107,$AI$2-1,0))-1 -> 0.08472543575 | AT33: =GEOMEAN(N107:OFFSET(N107,$AI$2-1,0))-1 -> 0.1052745141 | AU33: =GEOMEAN(O107:OFFSET(O107,$AI$2-1,0))-1 -> 0.1028553572 | AV33: =GEOMEAN(P107:OFFSET(P107,$AI$2-1,0))-1 -> 0.08575933712 | AW33: =GEOMEAN(Q107:OFFSET(Q107,$AI$2-1,0))-1 -> 0.1758907855 | AY33: 20
B34: 1990 | C34: =VLOOKUP($B34,retdat,MATCH(C$13,Data!$A$3:$CC$3,0),0) -> 0.09494044836 | D34: =VLOOKUP($B34,retdat,MATCH(D$13,Data!$A$3:$CC$3,0),0) -> 0.09321666667 | E34: =VLOOKUP($B34,retdat,MATCH(E$13,Data!$A$3:$CC$3,0),0) -> -0.03160303778 | F34: =VLOOKUP($B34,retdat,MATCH(F$13,Data!$A$3:$CC$3,0),0) -> 0.0492114829 | G34: =VLOOKUP($B34,retdat,MATCH(G$13,Data!$A$3:$CC$3,0),0) -> 0.06067119518 | H34: =VLOOKUP($B34,retdat,MATCH(H$13,Data!$A$3:$CC$3,0),0) -> 0.07493333333 | I34: =VLOOKUP($B34,retdat,MATCH(I$13,Data!$A$3:$CC$3,0),0) -> -0.06784146088 | J34: =VLOOKUP($B34,retdat,MATCH(J$13,Data!$A$3:$CC$3,0),0) -> -0.04437416992 | K34: =VLOOKUP($B34,retdat,MATCH(K$13,Data!$A$3:$CC$3,0),0) -> -0.1666655379 | L34: =VLOOKUP($B34,retdat,MATCH(L$13,Data!$A$3:$CC$3,0),0) -> -0.1904956778 | M34: =VLOOKUP($B34,retdat,MATCH(M$13,Data!$A$3:$CC$3,0),0) -> 0.08617338419 | N34: =VLOOKUP($B34,retdat,MATCH(N$13,Data!$A$3:$CC$3,0),0) -> 0.10355 | O34: =VLOOKUP($B34,retdat,MATCH(O$13,Data!$A$3:$CC$3,0),0) -> 0.1015083333 | P34: =VLOOKUP($B34,retdat,MATCH(P$13,Data!$A$3:$CC$3,0),0) -> 0.0855 | Q34: =VLOOKUP($B34,retdat,MATCH(Q$13,Data!$A$3:$CC$3,0),0) -> -0.2837642962 | S34: 0.1128193582 | T34: 0.09429722222 | U34: -0.07531204232 | V34: 0.04342905743 | W34: 0.0497317561 | X34: 0.07424166667 | Y34: 0.09668230939 | Z34: 0.1021068255 | AA34: 0.01485595028 | AB34: -0.03374700613 | AC34: 0.1079983851 | AD34: 0.1045416667 | AE34: 0.1027055556 | AF34: 0.08631388889 | AG34: 0.01359448113 | AI34: =GEOMEAN(C108:OFFSET(C108,$AI$2-1,0))-1 -> 0.1127444499 | AJ34: =GEOMEAN(D108:OFFSET(D108,$AI$2-1,0))-1 -> 0.09429539766 | AK34: =GEOMEAN(E108:OFFSET(E108,$AI$2-1,0))-1 -> -0.07759013137 | AL34: =GEOMEAN(F108:OFFSET(F108,$AI$2-1,0))-1 -> 0.04341456198 | AM34: =GEOMEAN(G108:OFFSET(G108,$AI$2-1,0))-1 -> 0.04970297275 | AN34: =GEOMEAN(H108:OFFSET(H108,$AI$2-1,0))-1 -> 0.0742253657 | AO34: =GEOMEAN(I108:OFFSET(I108,$AI$2-1,0))-1 -> 0.08915731649 | AP34: =GEOMEAN(J108:OFFSET(J108,$AI$2-1,0))-1 -> 0.09593755669 | AQ34: =GEOMEAN(K108:OFFSET(K108,$AI$2-1,0))-1 -> 0.006061418214 | AR34: =GEOMEAN(L108:OFFSET(L108,$AI$2-1,0))-1 -> -0.04165692772 | AS34: =GEOMEAN(M108:OFFSET(M108,$AI$2-1,0))-1 -> 0.107877898 | AT34: =GEOMEAN(N108:OFFSET(N108,$AI$2-1,0))-1 -> 0.1045382347 | AU34: =GEOMEAN(O108:OFFSET(O108,$AI$2-1,0))-1 -> 0.1027052146 | AV34: =GEOMEAN(P108:OFFSET(P108,$AI$2-1,0))-1 -> 0.08631281075 | AW34: =GEOMEAN(Q108:OFFSET(Q108,$AI$2-1,0))-1 -> -0.01227723362 | AY34: 21 | AZ34: 0.1127444499 | BA34: 0.09429539766 | BB34: -0.07759013137 | BC34: 0.04341456198 | BD34: 0.04970297275 | BE34: 0.0742253657 | BF34: 0.08915731649 | BG34: 0.09593755669 | BH34: 0.006061418214 | BI34: -0.04165692772 | BJ34: 0.107877898 | BK34: 0.1045382347 | BL34: 0.1027052146 | BM34: 0.08631281075 | BN34: -0.01227723362
B35: 1991 | C35: =VLOOKUP($B35,retdat,MATCH(C$13,Data!$A$3:$CC$3,0),0) -> 0.08826653674 | D35: =VLOOKUP($B35,retdat,MATCH(D$13,Data!$A$3:$CC$3,0),0) -> 0.08769166667 | E35: =VLOOKUP($B35,retdat,MATCH(E$13,Data!$A$3:$CC$3,0),0) -> -0.08946247414 | F35: =VLOOKUP($B35,retdat,MATCH(F$13,Data!$A$3:$CC$3,0),0) -> -0.02387155127 | G35: =VLOOKUP($B35,retdat,MATCH(G$13,Data!$A$3:$CC$3,0),0) -> 0.0293706868 | H35: =VLOOKUP($B35,retdat,MATCH(H$13,Data!$A$3:$CC$3,0),0) -> 0.05375 | I35: =VLOOKUP($B35,retdat,MATCH(I$13,Data!$A$3:$CC$3,0),0) -> 0.2335429268 | J35: =VLOOKUP($B35,retdat,MATCH(J$13,Data!$A$3:$CC$3,0),0) -> 0.1849632657 | K35: =VLOOKUP($B35,retdat,MATCH(K$13,Data!$A$3:$CC$3,0),0) -> 0.305248353 | L35: =VLOOKUP($B35,retdat,MATCH(L$13,Data!$A$3:$CC$3,0),0) -> 0.3051221699 | M35: =VLOOKUP($B35,retdat,MATCH(M$13,Data!$A$3:$CC$3,0),0) -> 0.09193676154 | N35: =VLOOKUP($B35,retdat,MATCH(N$13,Data!$A$3:$CC$3,0),0) -> 0.09801666667 | O35: =VLOOKUP($B35,retdat,MATCH(O$13,Data!$A$3:$CC$3,0),0) -> 0.09216666667 | P35: =VLOOKUP($B35,retdat,MATCH(P$13,Data!$A$3:$CC$3,0),0) -> 0.07858333333 | Q35: =VLOOKUP($B35,retdat,MATCH(Q$13,Data!$A$3:$CC$3,0),0) -> 0.09700483399 | S35: 0.1026653992 | T35: 0.09116111111 | U35: -0.04995794471 | V35: 0.02045995604 | W35: 0.04513126108 | X35: 0.06993333333 | Y35: 0.1355628713 | Z35: 0.1264237231 | AA35: 0.07443731475 | AB35: 0.03210811346 | AC35: 0.1011590698 | AD35: 0.1011138889 | AE35: 0.09891666667 | AF35: 0.08302222222 | AG35: -0.03285409436 | AI35: =GEOMEAN(C109:OFFSET(C109,$AI$2-1,0))-1 -> 0.1025517232 | AJ35: =GEOMEAN(D109:OFFSET(D109,$AI$2-1,0))-1 -> 0.09115831898 | AK35: =GEOMEAN(E109:OFFSET(E109,$AI$2-1,0))-1 -> -0.05037514471 | AL35: =GEOMEAN(F109:OFFSET(F109,$AI$2-1,0))-1 -> 0.01995771487 | AM35: =GEOMEAN(G109:OFFSET(G109,$AI$2-1,0))-1 -> 0.04505310917 | AN35: =GEOMEAN(H109:OFFSET(H109,$AI$2-1,0))-1 -> 0.06986889261 | AO35: =GEOMEAN(I109:OFFSET(I109,$AI$2-1,0))-1 -> 0.1258238495 | AP35: =GEOMEAN(J109:OFFSET(J109,$AI$2-1,0))-1 -> 0.119397175 | AQ35: =GEOMEAN(K109:OFFSET(K109,$AI$2-1,0))-1 -> 0.05668270586 | AR35: =GEOMEAN(L109:OFFSET(L109,$AI$2-1,0))-1 -> 0.01223820761 | AS35: =GEOMEAN(M109:OFFSET(M109,$AI$2-1,0))-1 -> 0.1010244115 | AT35: =GEOMEAN(N109:OFFSET(N109,$AI$2-1,0))-1 -> 0.1011114711 | AU35: =GEOMEAN(O109:OFFSET(O109,$AI$2-1,0))-1 -> 0.09890609504 | AV35: =GEOMEAN(P109:OFFSET(P109,$AI$2-1,0))-1 -> 0.08301764721 | AW35: =GEOMEAN(Q109:OFFSET(Q109,$AI$2-1,0))-1 -> -0.05087364146 | AY35: 22
B36: 1992 | C36: =VLOOKUP($B36,retdat,MATCH(C$13,Data!$A$3:$CC$3,0),0) -> 0.07678820395 | D36: =VLOOKUP($B36,retdat,MATCH(D$13,Data!$A$3:$CC$3,0),0) -> 0.0814 | E36: =VLOOKUP($B36,retdat,MATCH(E$13,Data!$A$3:$CC$3,0),0) -> -0.05905075127 | F36: =VLOOKUP($B36,retdat,MATCH(F$13,Data!$A$3:$CC$3,0),0) -> 0.01456128512 | G36: =VLOOKUP($B36,retdat,MATCH(G$13,Data!$A$3:$CC$3,0),0) -> 0.02923559376 | H36: =VLOOKUP($B36,retdat,MATCH(H$13,Data!$A$3:$CC$3,0),0) -> 0.03431666667 | I36: =VLOOKUP($B36,retdat,MATCH(I$13,Data!$A$3:$CC$3,0),0) -> 0.04367485858 | J36: =VLOOKUP($B36,retdat,MATCH(J$13,Data!$A$3:$CC$3,0),0) -> 0.04090277894 | K36: =VLOOKUP($B36,retdat,MATCH(K$13,Data!$A$3:$CC$3,0),0) -> 0.1361870054 | L36: =VLOOKUP($B36,retdat,MATCH(L$13,Data!$A$3:$CC$3,0),0) -> 0.1148936007 | M36: =VLOOKUP($B36,retdat,MATCH(M$13,Data!$A$3:$CC$3,0),0) -> 0.07796573634 | N36: =VLOOKUP($B36,retdat,MATCH(N$13,Data!$A$3:$CC$3,0),0) -> 0.08976666667 | O36: =VLOOKUP($B36,retdat,MATCH(O$13,Data!$A$3:$CC$3,0),0) -> 0.08424166667 | P36: =VLOOKUP($B36,retdat,MATCH(P$13,Data!$A$3:$CC$3,0),0) -> 0.0701 | Q36: =VLOOKUP($B36,retdat,MATCH(Q$13,Data!$A$3:$CC$3,0),0) -> -0.1495142943 | S36: 0.08666506301 | T36: 0.08743611111 | U36: -0.0600387544 | V36: 0.01330040558 | W36: 0.03975915858 | X36: 0.05433333333 | Y36: 0.06979210818 | Z36: 0.06049729157 | AA36: 0.09158994017 | AB36: 0.07650669758 | AC36: 0.08535862736 | AD36: 0.09711111111 | AE36: 0.09263888889 | AF36: 0.07806111111 | AG36: -0.1120912522 | AI36: =GEOMEAN(C110:OFFSET(C110,$AI$2-1,0))-1 -> 0.08663916666 | AJ36: =GEOMEAN(D110:OFFSET(D110,$AI$2-1,0))-1 -> 0.08742539296 | AK36: =GEOMEAN(E110:OFFSET(E110,$AI$2-1,0))-1 -> -0.06033621545 | AL36: =GEOMEAN(F110:OFFSET(F110,$AI$2-1,0))-1 -> 0.01286002364 | AM36: =GEOMEAN(G110:OFFSET(G110,$AI$2-1,0))-1 -> 0.03965470379 | AN36: =GEOMEAN(H110:OFFSET(H110,$AI$2-1,0))-1 -> 0.05420291712 | AO36: =GEOMEAN(I110:OFFSET(I110,$AI$2-1,0))-1 -> 0.06268142751 | AP36: =GEOMEAN(J110:OFFSET(J110,$AI$2-1,0))-1 -> 0.05633331861 | AQ36: =GEOMEAN(K110:OFFSET(K110,$AI$2-1,0))-1 -> 0.07313437035 | AR36: =GEOMEAN(L110:OFFSET(L110,$AI$2-1,0))-1 -> 0.05609078671 | AS36: =GEOMEAN(M110:OFFSET(M110,$AI$2-1,0))-1 -> 0.08534347646 | AT36: =GEOMEAN(N110:OFFSET(N110,$AI$2-1,0))-1 -> 0.09709648185 | AU36: =GEOMEAN(O110:OFFSET(O110,$AI$2-1,0))-1 -> 0.09261610885 | AV36: =GEOMEAN(P110:OFFSET(P110,$AI$2-1,0))-1 -> 0.07804270639 | AW36: =GEOMEAN(Q110:OFFSET(Q110,$AI$2-1,0))-1 -> -0.1257334906 | AY36: 23
B37: 1993 | C37: =VLOOKUP($B37,retdat,MATCH(C$13,Data!$A$3:$CC$3,0),0) -> 0.1028851405 | D37: =VLOOKUP($B37,retdat,MATCH(D$13,Data!$A$3:$CC$3,0),0) -> 0.07219166667 | E37: =VLOOKUP($B37,retdat,MATCH(E$13,Data!$A$3:$CC$3,0),0) -> 0.1627817367 | F37: =VLOOKUP($B37,retdat,MATCH(F$13,Data!$A$3:$CC$3,0),0) -> 0.008467451099 | G37: =VLOOKUP($B37,retdat,MATCH(G$13,Data!$A$3:$CC$3,0),0) -> 0.02772180293 | H37: =VLOOKUP($B37,retdat,MATCH(H$13,Data!$A$3:$CC$3,0),0) -> 0.029975 | I37: =VLOOKUP($B37,retdat,MATCH(I$13,Data!$A$3:$CC$3,0),0) -> 0.06817394897 | J37: =VLOOKUP($B37,retdat,MATCH(J$13,Data!$A$3:$CC$3,0),0) -> 0.1285928298 | K37: =VLOOKUP($B37,retdat,MATCH(K$13,Data!$A$3:$CC$3,0),0) -> 0.1794384859 | L37: =VLOOKUP($B37,retdat,MATCH(L$13,Data!$A$3:$CC$3,0),0) -> 0.1701406604 | M37: =VLOOKUP($B37,retdat,MATCH(M$13,Data!$A$3:$CC$3,0),0) -> 0.099440755 | N37: =VLOOKUP($B37,retdat,MATCH(N$13,Data!$A$3:$CC$3,0),0) -> 0.0793 | O37: =VLOOKUP($B37,retdat,MATCH(O$13,Data!$A$3:$CC$3,0),0) -> 0.073025 | P37: =VLOOKUP($B37,retdat,MATCH(P$13,Data!$A$3:$CC$3,0),0) -> 0.05873333333 | Q37: =VLOOKUP($B37,retdat,MATCH(Q$13,Data!$A$3:$CC$3,0),0) -> 0.266152781 | S37: 0.08931329374 | T37: 0.08042777778 | U37: 0.004756170414 | V37: -0.0002809383507 | W37: 0.02877602783 | X37: 0.03934722222 | Y37: 0.1151305781 | Z37: 0.1181529581 | AA37: 0.2069579481 | AB37: 0.1967188103 | AC37: 0.08978108429 | AD37: 0.08902777778 | AE37: 0.08314444444 | AF37: 0.06913888889 | AG37: 0.07121444023 | AI37: =GEOMEAN(C111:OFFSET(C111,$AI$2-1,0))-1 -> 0.08926098887 | AJ37: =GEOMEAN(D111:OFFSET(D111,$AI$2-1,0))-1 -> 0.08040901166 | AK37: =GEOMEAN(E111:OFFSET(E111,$AI$2-1,0))-1 -> -0.001256229304 | AL37: =GEOMEAN(F111:OFFSET(F111,$AI$2-1,0))-1 -> -0.000424244301 | AM37: =GEOMEAN(G111:OFFSET(G111,$AI$2-1,0))-1 -> 0.02877575618 | AN37: =GEOMEAN(H111:OFFSET(H111,$AI$2-1,0))-1 -> 0.03929602116 | AO37: =GEOMEAN(I111:OFFSET(I111,$AI$2-1,0))-1 -> 0.1120402082 | AP37: =GEOMEAN(J111:OFFSET(J111,$AI$2-1,0))-1 -> 0.1165652667 | AQ37: =GEOMEAN(K111:OFFSET(K111,$AI$2-1,0))-1 -> 0.2048678672 | AR37: =GEOMEAN(L111:OFFSET(L111,$AI$2-1,0))-1 -> 0.1941005181 | AS37: =GEOMEAN(M111:OFFSET(M111,$AI$2-1,0))-1 -> 0.08974468277 | AT37: =GEOMEAN(N111:OFFSET(N111,$AI$2-1,0))-1 -> 0.08900082732 | AU37: =GEOMEAN(O111:OFFSET(O111,$AI$2-1,0))-1 -> 0.08311594757 | AV37: =GEOMEAN(P111:OFFSET(P111,$AI$2-1,0))-1 -> 0.06910793262 | AW37: =GEOMEAN(Q111:OFFSET(Q111,$AI$2-1,0))-1 -> 0.05711091664 | AY37: 24 | AZ37: 0.08926098887 | BA37: 0.08040901166 | BB37: -0.001256229304 | BC37: -0.000424244301 | BD37: 0.02877575618 | BE37: 0.03929602116 | BF37: 0.1120402082 | BG37: 0.1165652667 | BH37: 0.2048678672 | BI37: 0.1941005181 | BJ37: 0.08974468277 | BK37: 0.08900082732 | BL37: 0.08311594757 | BM37: 0.06910793262 | BN37: 0.05711091664
B38: 1994 | C38: =VLOOKUP($B38,retdat,MATCH(C$13,Data!$A$3:$CC$3,0),0) -> 0.1186602909 | D38: =VLOOKUP($B38,retdat,MATCH(D$13,Data!$A$3:$CC$3,0),0) -> 0.079625 | E38: =VLOOKUP($B38,retdat,MATCH(E$13,Data!$A$3:$CC$3,0),0) -> -0.02193636348 | F38: =VLOOKUP($B38,retdat,MATCH(F$13,Data!$A$3:$CC$3,0),0) -> 0.02744454992 | G38: =VLOOKUP($B38,retdat,MATCH(G$13,Data!$A$3:$CC$3,0),0) -> 0.02564243061 | H38: =VLOOKUP($B38,retdat,MATCH(H$13,Data!$A$3:$CC$3,0),0) -> 0.04246666667 | I38: =VLOOKUP($B38,retdat,MATCH(I$13,Data!$A$3:$CC$3,0),0) -> -0.01551256099 | J38: =VLOOKUP($B38,retdat,MATCH(J$13,Data!$A$3:$CC$3,0),0) -> 0.0211643928 | K38: =VLOOKUP($B38,retdat,MATCH(K$13,Data!$A$3:$CC$3,0),0) -> 0.0312148619 | L38: =VLOOKUP($B38,retdat,MATCH(L$13,Data!$A$3:$CC$3,0),0) -> 0.008023156968 | M38: =VLOOKUP($B38,retdat,MATCH(M$13,Data!$A$3:$CC$3,0),0) -> 0.1547324107 | N38: =VLOOKUP($B38,retdat,MATCH(N$13,Data!$A$3:$CC$3,0),0) -> 0.086225 | O38: =VLOOKUP($B38,retdat,MATCH(O$13,Data!$A$3:$CC$3,0),0) -> 0.08400833333 | P38: =VLOOKUP($B38,retdat,MATCH(P$13,Data!$A$3:$CC$3,0),0) -> 0.0708 | Q38: =VLOOKUP($B38,retdat,MATCH(Q$13,Data!$A$3:$CC$3,0),0) -> 0.06053188721 | S38: 0.09944454514 | T38: 0.07773888889 | U38: 0.02726487397 | V38: 0.01682442871 | W38: 0.02753327577 | X38: 0.03558611111 | Y38: 0.03211208219 | Z38: 0.06355333385 | AA38: 0.1156134511 | AB38: 0.097685806 | AC38: 0.1107129673 | AD38: 0.08509722222 | AE38: 0.080425 | AF38: 0.06654444444 | AG38: 0.0590567913 | AI38: =GEOMEAN(C112:OFFSET(C112,$AI$2-1,0))-1 -> 0.09930853279 | AJ38: =GEOMEAN(D112:OFFSET(D112,$AI$2-1,0))-1 -> 0.07773149621 | AK38: =GEOMEAN(E112:OFFSET(E112,$AI$2-1,0))-1 -> 0.02284659733 | AL38: =GEOMEAN(F112:OFFSET(F112,$AI$2-1,0))-1 -> 0.01679371898 | AM38: =GEOMEAN(G112:OFFSET(G112,$AI$2-1,0))-1 -> 0.02753221986 | AN38: =GEOMEAN(H112:OFFSET(H112,$AI$2-1,0))-1 -> 0.03557318052 | AO38: =GEOMEAN(I112:OFFSET(I112,$AI$2-1,0))-1 -> 0.03150766866 | AP38: =GEOMEAN(J112:OFFSET(J112,$AI$2-1,0))-1 -> 0.06254591479 | AQ38: =GEOMEAN(K112:OFFSET(K112,$AI$2-1,0))-1 -> 0.1138449978 | AR38: =GEOMEAN(L112:OFFSET(L112,$AI$2-1,0))-1 -> 0.09558816993 | AS38: =GEOMEAN(M112:OFFSET(M112,$AI$2-1,0))-1 -> 0.1102464198 | AT38: =GEOMEAN(N112:OFFSET(N112,$AI$2-1,0))-1 -> 0.08508850717 | AU38: =GEOMEAN(O112:OFFSET(O112,$AI$2-1,0))-1 -> 0.08041229581 | AV38: =GEOMEAN(P112:OFFSET(P112,$AI$2-1,0))-1 -> 0.06653006966 | AW38: =GEOMEAN(Q112:OFFSET(Q112,$AI$2-1,0))-1 -> 0.04526310445 | AY38: 25
B39: 1995 | C39: =VLOOKUP($B39,retdat,MATCH(C$13,Data!$A$3:$CC$3,0),0) -> 0.100284622 | D39: =VLOOKUP($B39,retdat,MATCH(D$13,Data!$A$3:$CC$3,0),0) -> 0.0759 | E39: =VLOOKUP($B39,retdat,MATCH(E$13,Data!$A$3:$CC$3,0),0) -> 0.009737175278 | F39: =VLOOKUP($B39,retdat,MATCH(F$13,Data!$A$3:$CC$3,0),0) -> 0.03069707911 | G39: =VLOOKUP($B39,retdat,MATCH(G$13,Data!$A$3:$CC$3,0),0) -> 0.02500130221 | H39: =VLOOKUP($B39,retdat,MATCH(H$13,Data!$A$3:$CC$3,0),0) -> 0.0549 | I39: =VLOOKUP($B39,retdat,MATCH(I$13,Data!$A$3:$CC$3,0),0) -> 0.2934950483 | J39: =VLOOKUP($B39,retdat,MATCH(J$13,Data!$A$3:$CC$3,0),0) -> 0.2885749035 | K39: =VLOOKUP($B39,retdat,MATCH(K$13,Data!$A$3:$CC$3,0),0) -> 0.1420799787 | L39: =VLOOKUP($B39,retdat,MATCH(L$13,Data!$A$3:$CC$3,0),0) -> 0.1681296247 | M39: =VLOOKUP($B39,retdat,MATCH(M$13,Data!$A$3:$CC$3,0),0) -> 0.09286150638 | N39: =VLOOKUP($B39,retdat,MATCH(N$13,Data!$A$3:$CC$3,0),0) -> 0.08200833333 | O39: =VLOOKUP($B39,retdat,MATCH(O$13,Data!$A$3:$CC$3,0),0) -> 0.07923333333 | P39: =VLOOKUP($B39,retdat,MATCH(P$13,Data!$A$3:$CC$3,0),0) -> 0.0658 | Q39: =VLOOKUP($B39,retdat,MATCH(Q$13,Data!$A$3:$CC$3,0),0) -> 0.09002666213 | S39: 0.1072766845 | T39: 0.07590555556 | U39: 0.05019418282 | V39: 0.02220302671 | W39: 0.02612184525 | X39: 0.04244722222 | Y39: 0.1153854788 | Z39: 0.1461107087 | AA39: 0.1175777755 | AB39: 0.1154311473 | AC39: 0.115678224 | AD39: 0.08251111111 | AE39: 0.07875555556 | AF39: 0.06511111111 | AG39: 0.1389037768 | AI39: =GEOMEAN(C113:OFFSET(C113,$AI$2-1,0))-1 -> 0.1072470118 | AJ39: =GEOMEAN(D113:OFFSET(D113,$AI$2-1,0))-1 -> 0.07590127587 | AK39: =GEOMEAN(E113:OFFSET(E113,$AI$2-1,0))-1 -> 0.04718775056 | AL39: =GEOMEAN(F113:OFFSET(F113,$AI$2-1,0))-1 -> 0.022155825 | AM39: =GEOMEAN(G113:OFFSET(G113,$AI$2-1,0))-1 -> 0.02612118846 | AN39: =GEOMEAN(H113:OFFSET(H113,$AI$2-1,0))-1 -> 0.0423975556 | AO39: =GEOMEAN(I113:OFFSET(I113,$AI$2-1,0))-1 -> 0.1079980021 | AP39: =GEOMEAN(J113:OFFSET(J113,$AI$2-1,0))-1 -> 0.1408998931 | AQ39: =GEOMEAN(K113:OFFSET(K113,$AI$2-1,0))-1 -> 0.115767376 | AR39: =GEOMEAN(L113:OFFSET(L113,$AI$2-1,0))-1 -> 0.1127558153 | AS39: =GEOMEAN(M113:OFFSET(M113,$AI$2-1,0))-1 -> 0.1153369894 | AT39: =GEOMEAN(N113:OFFSET(N113,$AI$2-1,0))-1 -> 0.08250736273 | AU39: =GEOMEAN(O113:OFFSET(O113,$AI$2-1,0))-1 -> 0.07874617957 | AV39: =GEOMEAN(P113:OFFSET(P113,$AI$2-1,0))-1 -> 0.06509960029 | AW39: =GEOMEAN(Q113:OFFSET(Q113,$AI$2-1,0))-1 -> 0.1354002576 | AY39: 26
B40: 1996 | C40: =VLOOKUP($B40,retdat,MATCH(C$13,Data!$A$3:$CC$3,0),0) -> 0.08798704573 | D40: =VLOOKUP($B40,retdat,MATCH(D$13,Data!$A$3:$CC$3,0),0) -> 0.0737 | E40: =VLOOKUP($B40,retdat,MATCH(E$13,Data!$A$3:$CC$3,0),0) -> -0.04695077162 | F40: =VLOOKUP($B40,retdat,MATCH(F$13,Data!$A$3:$CC$3,0),0) -> 0.02668918226 | G40: =VLOOKUP($B40,retdat,MATCH(G$13,Data!$A$3:$CC$3,0),0) -> 0.0332298945 | H40: =VLOOKUP($B40,retdat,MATCH(H$13,Data!$A$3:$CC$3,0),0) -> 0.05005833333 | I40: =VLOOKUP($B40,retdat,MATCH(I$13,Data!$A$3:$CC$3,0),0) -> 0.1845163658 | J40: =VLOOKUP($B40,retdat,MATCH(J$13,Data!$A$3:$CC$3,0),0) -> 0.2312286578 | K40: =VLOOKUP($B40,retdat,MATCH(K$13,Data!$A$3:$CC$3,0),0) -> 0.3020779551 | L40: =VLOOKUP($B40,retdat,MATCH(L$13,Data!$A$3:$CC$3,0),0) -> 0.3056709338 | M40: =VLOOKUP($B40,retdat,MATCH(M$13,Data!$A$3:$CC$3,0),0) -> 0.0809812306 | N40: =VLOOKUP($B40,retdat,MATCH(N$13,Data!$A$3:$CC$3,0),0) -> 0.08054166667 | O40: =VLOOKUP($B40,retdat,MATCH(O$13,Data!$A$3:$CC$3,0),0) -> 0.07809166667 | P40: =VLOOKUP($B40,retdat,MATCH(P$13,Data!$A$3:$CC$3,0),0) -> 0.06438333333 | Q40: =VLOOKUP($B40,retdat,MATCH(Q$13,Data!$A$3:$CC$3,0),0) -> 0.04303610858 | S40: 0.1023106529 | T40: 0.07640833333 | U40: -0.01971665327 | V40: 0.0282769371 | W40: 0.02795787577 | X40: 0.04914166667 | Y40: 0.1541662844 | Z40: 0.1803226514 | AA40: 0.1584575986 | AB40: 0.1606079052 | AC40: 0.1095250492 | AD40: 0.082925 | AE40: 0.08044444444 | AF40: 0.06699444444 | AG40: 0.06453155264 | AI40: =GEOMEAN(C114:OFFSET(C114,$AI$2-1,0))-1 -> 0.1022387204 | AJ40: =GEOMEAN(D114:OFFSET(D114,$AI$2-1,0))-1 -> 0.07640555678 | AK40: =GEOMEAN(E114:OFFSET(E114,$AI$2-1,0))-1 -> -0.01999054852 | AL40: =GEOMEAN(F114:OFFSET(F114,$AI$2-1,0))-1 -> 0.02827546786 | AM40: =GEOMEAN(G114:OFFSET(G114,$AI$2-1,0))-1 -> 0.02795109423 | AN40: =GEOMEAN(H114:OFFSET(H114,$AI$2-1,0))-1 -> 0.04912917671 | AO40: =GEOMEAN(I114:OFFSET(I114,$AI$2-1,0))-1 -> 0.1468466187 | AP40: =GEOMEAN(J114:OFFSET(J114,$AI$2-1,0))-1 -> 0.1744864635 | AQ40: =GEOMEAN(K114:OFFSET(K114,$AI$2-1,0))-1 -> 0.1531723552 | AR40: =GEOMEAN(L114:OFFSET(L114,$AI$2-1,0))-1 -> 0.1541575436 | AS40: =GEOMEAN(M114:OFFSET(M114,$AI$2-1,0))-1 -> 0.1090595845 | AT40: =GEOMEAN(N114:OFFSET(N114,$AI$2-1,0))-1 -> 0.08292232249 | AU40: =GEOMEAN(O114:OFFSET(O114,$AI$2-1,0))-1 -> 0.0804414079 | AV40: =GEOMEAN(P114:OFFSET(P114,$AI$2-1,0))-1 -> 0.06699089793 | AW40: =GEOMEAN(Q114:OFFSET(Q114,$AI$2-1,0))-1 -> 0.06435555664 | AY40: 27 | AZ40: 0.1022387204 | BA40: 0.07640555678 | BB40: -0.01999054852 | BC40: 0.02827546786 | BD40: 0.02795109423 | BE40: 0.04912917671 | BF40: 0.1468466187 | BG40: 0.1744864635 | BH40: 0.1531723552 | BI40: 0.1541575436 | BJ40: 0.1090595845 | BK40: 0.08292232249 | BL40: 0.0804414079 | BM40: 0.06699089793 | BN40: 0.06435555664
B41: 1997 | C41: =VLOOKUP($B41,retdat,MATCH(C$13,Data!$A$3:$CC$3,0),0) -> 0.07442255664 | D41: =VLOOKUP($B41,retdat,MATCH(D$13,Data!$A$3:$CC$3,0),0) -> 0.07261666667 | E41: =VLOOKUP($B41,retdat,MATCH(E$13,Data!$A$3:$CC$3,0),0) -> -0.240903581 | F41: =VLOOKUP($B41,retdat,MATCH(F$13,Data!$A$3:$CC$3,0),0) -> -0.01797625585 | G41: =VLOOKUP($B41,retdat,MATCH(G$13,Data!$A$3:$CC$3,0),0) -> 0.01682806928 | H41: =VLOOKUP($B41,retdat,MATCH(H$13,Data!$A$3:$CC$3,0),0) -> 0.05060833333 | I41: =VLOOKUP($B41,retdat,MATCH(I$13,Data!$A$3:$CC$3,0),0) -> 0.2700895857 | J41: =VLOOKUP($B41,retdat,MATCH(J$13,Data!$A$3:$CC$3,0),0) -> 0.2040963107 | K41: =VLOOKUP($B41,retdat,MATCH(K$13,Data!$A$3:$CC$3,0),0) -> 0.1844874706 | L41: =VLOOKUP($B41,retdat,MATCH(L$13,Data!$A$3:$CC$3,0),0) -> 0.1727837401 | M41: =VLOOKUP($B41,retdat,MATCH(M$13,Data!$A$3:$CC$3,0),0) -> 0.06968827231 | N41: =VLOOKUP($B41,retdat,MATCH(N$13,Data!$A$3:$CC$3,0),0) -> 0.078625 | O41: =VLOOKUP($B41,retdat,MATCH(O$13,Data!$A$3:$CC$3,0),0) -> 0.07563333333 | P41: =VLOOKUP($B41,retdat,MATCH(P$13,Data!$A$3:$CC$3,0),0) -> 0.063525 | Q41: =VLOOKUP($B41,retdat,MATCH(Q$13,Data!$A$3:$CC$3,0),0) -> 0.0023757783 | S41: 0.08756474144 | T41: 0.07407222222 | U41: -0.09270572577 | V41: 0.01313666851 | W41: 0.02501975533 | X41: 0.05185555556 | Y41: 0.2493669999 | Z41: 0.2412999573 | AA41: 0.2095484681 | AB41: 0.2155280995 | AC41: 0.0811770031 | AD41: 0.08039166667 | AE41: 0.07765277778 | AF41: 0.06456944444 | AG41: 0.045146183 | AI41: =GEOMEAN(C115:OFFSET(C115,$AI$2-1,0))-1 -> 0.08751342858 | AJ41: =GEOMEAN(D115:OFFSET(D115,$AI$2-1,0))-1 -> 0.07407135386 | AK41: =GEOMEAN(E115:OFFSET(E115,$AI$2-1,0))-1 -> -0.0993828608 | AL41: =GEOMEAN(F115:OFFSET(F115,$AI$2-1,0))-1 -> 0.01289401896 | AM41: =GEOMEAN(G115:OFFSET(G115,$AI$2-1,0))-1 -> 0.02499788406 | AN41: =GEOMEAN(H115:OFFSET(H115,$AI$2-1,0))-1 -> 0.05185333071 | AO41: =GEOMEAN(I115:OFFSET(I115,$AI$2-1,0))-1 -> 0.2484756134 | AP41: =GEOMEAN(J115:OFFSET(J115,$AI$2-1,0))-1 -> 0.2408040527 | AQ41: =GEOMEAN(K115:OFFSET(K115,$AI$2-1,0))-1 -> 0.2076877427 | AR41: =GEOMEAN(L115:OFFSET(L115,$AI$2-1,0))-1 -> 0.2138943876 | AS41: =GEOMEAN(M115:OFFSET(M115,$AI$2-1,0))-1 -> 0.08113561016 | AT41: =GEOMEAN(N115:OFFSET(N115,$AI$2-1,0))-1 -> 0.08039077841 | AU41: =GEOMEAN(O115:OFFSET(O115,$AI$2-1,0))-1 -> 0.07765173051 | AV41: =GEOMEAN(P115:OFFSET(P115,$AI$2-1,0))-1 -> 0.06456903124 | AW41: =GEOMEAN(Q115:OFFSET(Q115,$AI$2-1,0))-1 -> 0.0445334268 | AY41: 28
B42: 1998 | C42: =VLOOKUP($B42,retdat,MATCH(C$13,Data!$A$3:$CC$3,0),0) -> 0.09134845101 | D42: =VLOOKUP($B42,retdat,MATCH(D$13,Data!$A$3:$CC$3,0),0) -> 0.06531666667 | E42: =VLOOKUP($B42,retdat,MATCH(E$13,Data!$A$3:$CC$3,0),0) -> -0.008304545997 | F42: =VLOOKUP($B42,retdat,MATCH(F$13,Data!$A$3:$CC$3,0),0) -> -0.03205402629 | G42: =VLOOKUP($B42,retdat,MATCH(G$13,Data!$A$3:$CC$3,0),0) -> 0.015941478 | H42: =VLOOKUP($B42,retdat,MATCH(H$13,Data!$A$3:$CC$3,0),0) -> 0.04776666667 | I42: =VLOOKUP($B42,retdat,MATCH(I$13,Data!$A$3:$CC$3,0),0) -> 0.2364039638 | J42: =VLOOKUP($B42,retdat,MATCH(J$13,Data!$A$3:$CC$3,0),0) -> 0.1492701251 | K42: =VLOOKUP($B42,retdat,MATCH(K$13,Data!$A$3:$CC$3,0),0) -> -0.192398505 | L42: =VLOOKUP($B42,retdat,MATCH(L$13,Data!$A$3:$CC$3,0),0) -> -0.2085343985 | M42: =VLOOKUP($B42,retdat,MATCH(M$13,Data!$A$3:$CC$3,0),0) -> 0.08362248839 | N42: =VLOOKUP($B42,retdat,MATCH(N$13,Data!$A$3:$CC$3,0),0) -> 0.07220833333 | O42: =VLOOKUP($B42,retdat,MATCH(O$13,Data!$A$3:$CC$3,0),0) -> 0.06953333333 | P42: =VLOOKUP($B42,retdat,MATCH(P$13,Data!$A$3:$CC$3,0),0) -> 0.05264166667 | Q42: =VLOOKUP($B42,retdat,MATCH(Q$13,Data!$A$3:$CC$3,0),0) -> 0.1674663222 | S42: 0.08458601779 | T42: 0.07054444444 | U42: -0.09871963286 | V42: -0.007780366628 | W42: 0.02199981393 | X42: 0.04947777778 | Y42: 0.2303366385 | Z42: 0.1948650312 | AA42: 0.09805564023 | AB42: 0.08997342514 | AC42: 0.07809733043 | AD42: 0.077125 | AE42: 0.07441944444 | AF42: 0.06018333333 | AG42: 0.07095940304 | AI42: =GEOMEAN(C116:OFFSET(C116,$AI$2-1,0))-1 -> 0.08456127284 | AJ42: =GEOMEAN(D116:OFFSET(D116,$AI$2-1,0))-1 -> 0.07053796092 | AK42: =GEOMEAN(E116:OFFSET(E116,$AI$2-1,0))-1 -> -0.1047791269 | AL42: =GEOMEAN(F116:OFFSET(F116,$AI$2-1,0))-1 -> -0.00809358852 | AM42: =GEOMEAN(G116:OFFSET(G116,$AI$2-1,0))-1 -> 0.02196901121 | AN42: =GEOMEAN(H116:OFFSET(H116,$AI$2-1,0))-1 -> 0.04947705595 | AO42: =GEOMEAN(I116:OFFSET(I116,$AI$2-1,0))-1 -> 0.2298305292 | AP42: =GEOMEAN(J116:OFFSET(J116,$AI$2-1,0))-1 -> 0.1943749501 | AQ42: =GEOMEAN(K116:OFFSET(K116,$AI$2-1,0))-1 -> 0.07594033943 | AR42: =GEOMEAN(L116:OFFSET(L116,$AI$2-1,0))-1 -> 0.06617355336 | AS42: =GEOMEAN(M116:OFFSET(M116,$AI$2-1,0))-1 -> 0.07808035503 | AT42: =GEOMEAN(N116:OFFSET(N116,$AI$2-1,0))-1 -> 0.07711909783 | AU42: =GEOMEAN(O116:OFFSET(O116,$AI$2-1,0))-1 -> 0.07441341428 | AV42: =GEOMEAN(P116:OFFSET(P116,$AI$2-1,0))-1 -> 0.06016983186 | AW42: =GEOMEAN(Q116:OFFSET(Q116,$AI$2-1,0))-1 -> 0.06870561083 | AY42: 29
B43: 1999 | C43: =VLOOKUP($B43,retdat,MATCH(C$13,Data!$A$3:$CC$3,0),0) -> 0.09771532174 | D43: =VLOOKUP($B43,retdat,MATCH(D$13,Data!$A$3:$CC$3,0),0) -> 0.07041666667 | E43: =VLOOKUP($B43,retdat,MATCH(E$13,Data!$A$3:$CC$3,0),0) -> 0.008476826125 | F43: =VLOOKUP($B43,retdat,MATCH(F$13,Data!$A$3:$CC$3,0),0) -> 0.03990952623 | G43: =VLOOKUP($B43,retdat,MATCH(G$13,Data!$A$3:$CC$3,0),0) -> 0.02641209954 | H43: =VLOOKUP($B43,retdat,MATCH(H$13,Data!$A$3:$CC$3,0),0) -> 0.04638333333 | I43: =VLOOKUP($B43,retdat,MATCH(I$13,Data!$A$3:$CC$3,0),0) -> 0.1783641094 | J43: =VLOOKUP($B43,retdat,MATCH(J$13,Data!$A$3:$CC$3,0),0) -> 0.2249118637 | K43: =VLOOKUP($B43,retdat,MATCH(K$13,Data!$A$3:$CC$3,0),0) -> -0.04730109056 | L43: =VLOOKUP($B43,retdat,MATCH(L$13,Data!$A$3:$CC$3,0),0) -> -0.06695151034 | M43: =VLOOKUP($B43,retdat,MATCH(M$13,Data!$A$3:$CC$3,0),0) -> 0.09430210477 | N43: =VLOOKUP($B43,retdat,MATCH(N$13,Data!$A$3:$CC$3,0),0) -> 0.07870833333 | O43: =VLOOKUP($B43,retdat,MATCH(O$13,Data!$A$3:$CC$3,0),0) -> 0.074525 | P43: =VLOOKUP($B43,retdat,MATCH(P$13,Data!$A$3:$CC$3,0),0) -> 0.05636666667 | Q43: =VLOOKUP($B43,retdat,MATCH(Q$13,Data!$A$3:$CC$3,0),0) -> 0.2252707639 | S43: 0.08782877646 | T43: 0.06945 | U43: -0.08024376694 | V43: -0.003373585303 | W43: 0.01972721561 | X43: 0.04825277778 | Y43: 0.2282858863 | Z43: 0.1927594332 | AA43: -0.01840404166 | AB43: -0.03423405624 | AC43: 0.08253762183 | AD43: 0.07651388889 | AE43: 0.07323055556 | AF43: 0.05751111111 | AG43: 0.1317042882 | AI43: =GEOMEAN(C117:OFFSET(C117,$AI$2-1,0))-1 -> 0.08778423388 | AJ43: =GEOMEAN(D117:OFFSET(D117,$AI$2-1,0))-1 -> 0.06944562541 | AK43: =GEOMEAN(E117:OFFSET(E117,$AI$2-1,0))-1 -> -0.08775029971 | AL43: =GEOMEAN(F117:OFFSET(F117,$AI$2-1,0))-1 -> -0.003854247158 | AM43: =GEOMEAN(G117:OFFSET(G117,$AI$2-1,0))-1 -> 0.01971621898 | AN43: =GEOMEAN(H117:OFFSET(H117,$AI$2-1,0))-1 -> 0.04825130299 | AO43: =GEOMEAN(I117:OFFSET(I117,$AI$2-1,0))-1 -> 0.2276976277 | AP43: =GEOMEAN(J117:OFFSET(J117,$AI$2-1,0))-1 -> 0.1923288746 | AQ43: =GEOMEAN(K117:OFFSET(K117,$AI$2-1,0))-1 -> -0.03047037379 | AR43: =GEOMEAN(L117:OFFSET(L117,$AI$2-1,0))-1 -> -0.04679846823 | AS43: =GEOMEAN(M117:OFFSET(M117,$AI$2-1,0))-1 -> 0.08249066395 | AT43: =GEOMEAN(N117:OFFSET(N117,$AI$2-1,0))-1 -> 0.07650957754 | AU43: =GEOMEAN(O117:OFFSET(O117,$AI$2-1,0))-1 -> 0.07322727265 | AV43: =GEOMEAN(P117:OFFSET(P117,$AI$2-1,0))-1 -> 0.0575014776 | AW43: =GEOMEAN(Q117:OFFSET(Q117,$AI$2-1,0))-1 -> 0.1276361722 | AY43: 30 | AZ43: 0.08778423388 | BA43: 0.06944562541 | BB43: -0.08775029971 | BC43: -0.003854247158 | BD43: 0.01971621898 | BE43: 0.04825130299 | BF43: 0.2276976277 | BG43: 0.1923288746 | BH43: -0.03047037379 | BI43: -0.04679846823 | BJ43: 0.08249066395 | BK43: 0.07650957754 | BL43: 0.07322727265 | BM43: 0.0575014776 | BN43: 0.1276361722
B44: 2000 | C44: =VLOOKUP($B44,retdat,MATCH(C$13,Data!$A$3:$CC$3,0),0) -> 0.09674490066 | D44: =VLOOKUP($B44,retdat,MATCH(D$13,Data!$A$3:$CC$3,0),0) -> 0.076225 | E44: =VLOOKUP($B44,retdat,MATCH(E$13,Data!$A$3:$CC$3,0),0) -> -0.05597352558 | F44: =VLOOKUP($B44,retdat,MATCH(F$13,Data!$A$3:$CC$3,0),0) -> 0.06365785177 | G44: =VLOOKUP($B44,retdat,MATCH(G$13,Data!$A$3:$CC$3,0),0) -> 0.03378306124 | H44: =VLOOKUP($B44,retdat,MATCH(H$13,Data!$A$3:$CC$3,0),0) -> 0.05816666667 | I44: =VLOOKUP($B44,retdat,MATCH(I$13,Data!$A$3:$CC$3,0),0) -> -0.1069082312 | J44: =VLOOKUP($B44,retdat,MATCH(J$13,Data!$A$3:$CC$3,0),0) -> -0.06366042438 | K44: =VLOOKUP($B44,retdat,MATCH(K$13,Data!$A$3:$CC$3,0),0) -> 0.2340073134 | L44: =VLOOKUP($B44,retdat,MATCH(L$13,Data!$A$3:$CC$3,0),0) -> 0.2302400099 | M44: =VLOOKUP($B44,retdat,MATCH(M$13,Data!$A$3:$CC$3,0),0) -> 0.09368689558 | N44: =VLOOKUP($B44,retdat,MATCH(N$13,Data!$A$3:$CC$3,0),0) -> 0.08364166667 | O44: =VLOOKUP($B44,retdat,MATCH(O$13,Data!$A$3:$CC$3,0),0) -> 0.08025 | P44: =VLOOKUP($B44,retdat,MATCH(P$13,Data!$A$3:$CC$3,0),0) -> 0.06029166667 | Q44: =VLOOKUP($B44,retdat,MATCH(Q$13,Data!$A$3:$CC$3,0),0) -> -0.1649442731 | S44: 0.0952695578 | T44: 0.07065277778 | U44: -0.01860041515 | V44: 0.0238377839 | W44: 0.02537887959 | X44: 0.05077222222 | Y44: 0.1026199474 | Z44: 0.1035071881 | AA44: -0.001897427395 | AB44: -0.01508196632 | AC44: 0.09053716292 | AD44: 0.07818611111 | AE44: 0.07476944444 | AF44: 0.05643333333 | AG44: 0.07593093769 | AI44: =GEOMEAN(C118:OFFSET(C118,$AI$2-1,0))-1 -> 0.09526597278 | AJ44: =GEOMEAN(D118:OFFSET(D118,$AI$2-1,0))-1 -> 0.0706435051 | AK44: =GEOMEAN(E118:OFFSET(E118,$AI$2-1,0))-1 -> -0.018983889 | AL44: =GEOMEAN(F118:OFFSET(F118,$AI$2-1,0))-1 -> 0.02301705704 | AM44: =GEOMEAN(G118:OFFSET(G118,$AI$2-1,0))-1 -> 0.02535272238 | AN44: =GEOMEAN(H118:OFFSET(H118,$AI$2-1,0))-1 -> 0.05075909078 | AO44: =GEOMEAN(I118:OFFSET(I118,$AI$2-1,0))-1 -> 0.09172182847 | AP44: =GEOMEAN(J118:OFFSET(J118,$AI$2-1,0))-1 -> 0.0964448182 | AQ44: =GEOMEAN(K118:OFFSET(K118,$AI$2-1,0))-1 -> -0.01714336921 | AR44: =GEOMEAN(L118:OFFSET(L118,$AI$2-1,0))-1 -> -0.03147975797 | AS44: =GEOMEAN(M118:OFFSET(M118,$AI$2-1,0))-1 -> 0.09052615008 | AT44: =GEOMEAN(N118:OFFSET(N118,$AI$2-1,0))-1 -> 0.07817593942 | AU44: =GEOMEAN(O118:OFFSET(O118,$AI$2-1,0))-1 -> 0.07476052772 | AV44: =GEOMEAN(P118:OFFSET(P118,$AI$2-1,0))-1 -> 0.05642871619 | AW44: =GEOMEAN(Q118:OFFSET(Q118,$AI$2-1,0))-1 -> 0.06103724847 | AY44: 31
B45: 2001 | C45: =VLOOKUP($B45,retdat,MATCH(C$13,Data!$A$3:$CC$3,0),0) -> 0.09186935403 | D45: =VLOOKUP($B45,retdat,MATCH(D$13,Data!$A$3:$CC$3,0),0) -> 0.070825 | E45: =VLOOKUP($B45,retdat,MATCH(E$13,Data!$A$3:$CC$3,0),0) -> 0.007441725966 | F45: =VLOOKUP($B45,retdat,MATCH(F$13,Data!$A$3:$CC$3,0),0) -> -0.06131318481 | G45: =VLOOKUP($B45,retdat,MATCH(G$13,Data!$A$3:$CC$3,0),0) -> 0.01590942647 | H45: =VLOOKUP($B45,retdat,MATCH(H$13,Data!$A$3:$CC$3,0),0) -> 0.03388333333 | I45: =VLOOKUP($B45,retdat,MATCH(I$13,Data!$A$3:$CC$3,0),0) -> -0.1397528534 | J45: =VLOOKUP($B45,retdat,MATCH(J$13,Data!$A$3:$CC$3,0),0) -> -0.07369563312 | K45: =VLOOKUP($B45,retdat,MATCH(K$13,Data!$A$3:$CC$3,0),0) -> 0.1304395681 | L45: =VLOOKUP($B45,retdat,MATCH(L$13,Data!$A$3:$CC$3,0),0) -> 0.1441178489 | M45: =VLOOKUP($B45,retdat,MATCH(M$13,Data!$A$3:$CC$3,0),0) -> 0.09015035484 | N45: =VLOOKUP($B45,retdat,MATCH(N$13,Data!$A$3:$CC$3,0),0) -> 0.079475 | O45: =VLOOKUP($B45,retdat,MATCH(O$13,Data!$A$3:$CC$3,0),0) -> 0.07008333333 | P45: =VLOOKUP($B45,retdat,MATCH(P$13,Data!$A$3:$CC$3,0),0) -> 0.050175 | Q45: =VLOOKUP($B45,retdat,MATCH(Q$13,Data!$A$3:$CC$3,0),0) -> -0.2563265516 | S45: 0.09544319214 | T45: 0.07248888889 | U45: -0.01335165783 | V45: 0.01408473106 | W45: 0.02536819575 | X45: 0.04614444444 | Y45: -0.0227656584 | Z45: 0.02918526875 | AA45: 0.1057152636 | AB45: 0.1024687828 | AC45: 0.0927131184 | AD45: 0.08060833333 | AE45: 0.07495277778 | AF45: 0.05561111111 | AG45: -0.0653333536 | AI45: =GEOMEAN(C119:OFFSET(C119,$AI$2-1,0))-1 -> 0.09544020269 | AJ45: =GEOMEAN(D119:OFFSET(D119,$AI$2-1,0))-1 -> 0.07248562589 | AK45: =GEOMEAN(E119:OFFSET(E119,$AI$2-1,0))-1 -> -0.01381889547 | AL45: =GEOMEAN(F119:OFFSET(F119,$AI$2-1,0))-1 -> 0.01260346292 | AM45: =GEOMEAN(G119:OFFSET(G119,$AI$2-1,0))-1 -> 0.02534193946 | AN45: =GEOMEAN(H119:OFFSET(H119,$AI$2-1,0))-1 -> 0.04609744547 | AO45: =GEOMEAN(I119:OFFSET(I119,$AI$2-1,0))-1 -> -0.03261441597 | AP45: =GEOMEAN(J119:OFFSET(J119,$AI$2-1,0))-1 -> 0.02038479253 | AQ45: =GEOMEAN(K119:OFFSET(K119,$AI$2-1,0))-1 -> 0.09944519107 | AR45: =GEOMEAN(L119:OFFSET(L119,$AI$2-1,0))-1 -> 0.09510292946 | AS45: =GEOMEAN(M119:OFFSET(M119,$AI$2-1,0))-1 -> 0.0927115858 | AT45: =GEOMEAN(N119:OFFSET(N119,$AI$2-1,0))-1 -> 0.08060616118 | AU45: =GEOMEAN(O119:OFFSET(O119,$AI$2-1,0))-1 -> 0.0749447255 | AV45: =GEOMEAN(P119:OFFSET(P119,$AI$2-1,0))-1 -> 0.0556028905 | AW45: =GEOMEAN(Q119:OFFSET(Q119,$AI$2-1,0))-1 -> -0.08705782911 | AY45: 32
B46: 2002 | C46: =VLOOKUP($B46,retdat,MATCH(C$13,Data!$A$3:$CC$3,0),0) -> 0.08894929652 | D46: =VLOOKUP($B46,retdat,MATCH(D$13,Data!$A$3:$CC$3,0),0) -> 0.06491666667 | E46: =VLOOKUP($B46,retdat,MATCH(E$13,Data!$A$3:$CC$3,0),0) -> 0.2276901618 | F46: =VLOOKUP($B46,retdat,MATCH(F$13,Data!$A$3:$CC$3,0),0) -> 0.03678575682 | G46: =VLOOKUP($B46,retdat,MATCH(G$13,Data!$A$3:$CC$3,0),0) -> 0.02450011187 | H46: =VLOOKUP($B46,retdat,MATCH(H$13,Data!$A$3:$CC$3,0),0) -> 0.016025 | I46: =VLOOKUP($B46,retdat,MATCH(I$13,Data!$A$3:$CC$3,0),0) -> -0.2661289198 | J46: =VLOOKUP($B46,retdat,MATCH(J$13,Data!$A$3:$CC$3,0),0) -> -0.1834801312 | K46: =VLOOKUP($B46,retdat,MATCH(K$13,Data!$A$3:$CC$3,0),0) -> 0.03749604559 | L46: =VLOOKUP($B46,retdat,MATCH(L$13,Data!$A$3:$CC$3,0),0) -> 0.0508411128 | M46: =VLOOKUP($B46,retdat,MATCH(M$13,Data!$A$3:$CC$3,0),0) -> 0.0880308912 | N46: =VLOOKUP($B46,retdat,MATCH(N$13,Data!$A$3:$CC$3,0),0) -> 0.07801666667 | O46: =VLOOKUP($B46,retdat,MATCH(O$13,Data!$A$3:$CC$3,0),0) -> 0.06505 | P46: =VLOOKUP($B46,retdat,MATCH(P$13,Data!$A$3:$CC$3,0),0) -> 0.04610833333 | Q46: =VLOOKUP($B46,retdat,MATCH(Q$13,Data!$A$3:$CC$3,0),0) -> -0.1925734154 | S46: 0.09252118374 | T46: 0.07065555556 | U46: 0.05971945407 | V46: 0.01304347459 | W46: 0.02473086653 | X46: 0.036025 | Y46: -0.1709300015 | Z46: -0.1069453962 | AA46: 0.1339809757 | AB46: 0.1417329905 | AC46: 0.09062271387 | AD46: 0.08037777778 | AE46: 0.07179444444 | AF46: 0.05219166667 | AG46: -0.2046147467 | AI46: =GEOMEAN(C120:OFFSET(C120,$AI$2-1,0))-1 -> 0.09251645383 | AJ46: =GEOMEAN(D120:OFFSET(D120,$AI$2-1,0))-1 -> 0.0706455939 | AK46: =GEOMEAN(E120:OFFSET(E120,$AI$2-1,0))-1 -> 0.05300628006 | AL46: =GEOMEAN(F120:OFFSET(F120,$AI$2-1,0))-1 -> 0.01158853095 | AM46: =GEOMEAN(G120:OFFSET(G120,$AI$2-1,0))-1 -> 0.02470487899 | AN46: =GEOMEAN(H120:OFFSET(H120,$AI$2-1,0))-1 -> 0.03588132053 | AO46: =GEOMEAN(I120:OFFSET(I120,$AI$2-1,0))-1 -> -0.1738738545 | AP46: =GEOMEAN(J120:OFFSET(J120,$AI$2-1,0))-1 -> -0.1086438141 | AQ46: =GEOMEAN(K120:OFFSET(K120,$AI$2-1,0))-1 -> 0.1311421295 | AR46: =GEOMEAN(L120:OFFSET(L120,$AI$2-1,0))-1 -> 0.1393729061 | AS46: =GEOMEAN(M120:OFFSET(M120,$AI$2-1,0))-1 -> 0.09062021942 | AT46: =GEOMEAN(N120:OFFSET(N120,$AI$2-1,0))-1 -> 0.08037515061 | AU46: =GEOMEAN(O120:OFFSET(O120,$AI$2-1,0))-1 -> 0.07177582585 | AV46: =GEOMEAN(P120:OFFSET(P120,$AI$2-1,0))-1 -> 0.05217479764 | AW46: =GEOMEAN(Q120:OFFSET(Q120,$AI$2-1,0))-1 -> -0.2055493468 | AY46: 33 | AZ46: 0.09251645383 | BA46: 0.0706455939 | BB46: 0.05300628006 | BC46: 0.01158853095 | BD46: 0.02470487899 | BE46: 0.03588132053 | BF46: -0.1738738545 | BG46: -0.1086438141 | BH46: 0.1311421295 | BI46: 0.1393729061 | BJ46: 0.09062021942 | BK46: 0.08037515061 | BL46: 0.07177582585 | BM46: 0.05217479764 | BN46: -0.2055493468
B47: 2003 | C47: =VLOOKUP($B47,retdat,MATCH(C$13,Data!$A$3:$CC$3,0),0) -> 0.0862164135 | D47: =VLOOKUP($B47,retdat,MATCH(D$13,Data!$A$3:$CC$3,0),0) -> 0.05666666667 | E47: =VLOOKUP($B47,retdat,MATCH(E$13,Data!$A$3:$CC$3,0),0) -> 0.1813850585 | F47: =VLOOKUP($B47,retdat,MATCH(F$13,Data!$A$3:$CC$3,0),0) -> 0.04846763554 | G47: =VLOOKUP($B47,retdat,MATCH(G$13,Data!$A$3:$CC$3,0),0) -> 0.0201477003 | H47: =VLOOKUP($B47,retdat,MATCH(H$13,Data!$A$3:$CC$3,0),0) -> 0.01010833333 | I47: =VLOOKUP($B47,retdat,MATCH(I$13,Data!$A$3:$CC$3,0),0) -> 0.2341261887 | J47: =VLOOKUP($B47,retdat,MATCH(J$13,Data!$A$3:$CC$3,0),0) -> 0.2257183868 | K47: =VLOOKUP($B47,retdat,MATCH(K$13,Data!$A$3:$CC$3,0),0) -> 0.3157862295 | L47: =VLOOKUP($B47,retdat,MATCH(L$13,Data!$A$3:$CC$3,0),0) -> 0.3254571111 | M47: =VLOOKUP($B47,retdat,MATCH(M$13,Data!$A$3:$CC$3,0),0) -> 0.0843227437 | N47: =VLOOKUP($B47,retdat,MATCH(N$13,Data!$A$3:$CC$3,0),0) -> 0.06765833333 | O47: =VLOOKUP($B47,retdat,MATCH(O$13,Data!$A$3:$CC$3,0),0) -> 0.05821666667 | P47: =VLOOKUP($B47,retdat,MATCH(P$13,Data!$A$3:$CC$3,0),0) -> 0.04015 | Q47: =VLOOKUP($B47,retdat,MATCH(Q$13,Data!$A$3:$CC$3,0),0) -> 0.3021959792 | S47: 0.08901168802 | T47: 0.06413611111 | U47: 0.1388389821 | V47: 0.007980069182 | W47: 0.02018574621 | X47: 0.02000555556 | Y47: -0.05725186151 | Z47: -0.01048579253 | AA47: 0.1612406144 | AB47: 0.1734720243 | AC47: 0.08750132991 | AD47: 0.07505 | AE47: 0.06445 | AF47: 0.04547777778 | AG47: -0.04890132927 | AI47: =GEOMEAN(C121:OFFSET(C121,$AI$2-1,0))-1 -> 0.08900924194 | AJ47: =GEOMEAN(D121:OFFSET(D121,$AI$2-1,0))-1 -> 0.0641202582 | AK47: =GEOMEAN(E121:OFFSET(E121,$AI$2-1,0))-1 -> 0.13474966 | AL47: =GEOMEAN(F121:OFFSET(F121,$AI$2-1,0))-1 -> 0.006749887435 | AM47: =GEOMEAN(G121:OFFSET(G121,$AI$2-1,0))-1 -> 0.02017971774 | AN47: =GEOMEAN(H121:OFFSET(H121,$AI$2-1,0))-1 -> 0.01995566441 | AO47: =GEOMEAN(I121:OFFSET(I121,$AI$2-1,0))-1 -> -0.07983114922 | AP47: =GEOMEAN(J121:OFFSET(J121,$AI$2-1,0))-1 -> -0.02492716705 | AQ47: =GEOMEAN(K121:OFFSET(K121,$AI$2-1,0))-1 -> 0.1555969293 | AR47: =GEOMEAN(L121:OFFSET(L121,$AI$2-1,0))-1 -> 0.168040313 | AS47: =GEOMEAN(M121:OFFSET(M121,$AI$2-1,0))-1 -> 0.0874986618 | AT47: =GEOMEAN(N121:OFFSET(N121,$AI$2-1,0))-1 -> 0.07503710138 | AU47: =GEOMEAN(O121:OFFSET(O121,$AI$2-1,0))-1 -> 0.06443888484 | AV47: =GEOMEAN(P121:OFFSET(P121,$AI$2-1,0))-1 -> 0.04546966708 | AW47: =GEOMEAN(Q121:OFFSET(Q121,$AI$2-1,0))-1 -> -0.07872937554 | AY47: 34
B48: 2004 | C48: =VLOOKUP($B48,retdat,MATCH(C$13,Data!$A$3:$CC$3,0),0) -> 0.09161352447 | D48: =VLOOKUP($B48,retdat,MATCH(D$13,Data!$A$3:$CC$3,0),0) -> 0.05628333333 | E48: =VLOOKUP($B48,retdat,MATCH(E$13,Data!$A$3:$CC$3,0),0) -> 0.04543834976 | F48: =VLOOKUP($B48,retdat,MATCH(F$13,Data!$A$3:$CC$3,0),0) -> 0.07390313807 | G48: =VLOOKUP($B48,retdat,MATCH(G$13,Data!$A$3:$CC$3,0),0) -> 0.032876768 | H48: =VLOOKUP($B48,retdat,MATCH(H$13,Data!$A$3:$CC$3,0),0) -> 0.01371666667 | I48: =VLOOKUP($B48,retdat,MATCH(I$13,Data!$A$3:$CC$3,0),0) -> 0.08611762807 | J48: =VLOOKUP($B48,retdat,MATCH(J$13,Data!$A$3:$CC$3,0),0) -> 0.0309947196 | K48: =VLOOKUP($B48,retdat,MATCH(K$13,Data!$A$3:$CC$3,0),0) -> 0.274425818 | L48: =VLOOKUP($B48,retdat,MATCH(L$13,Data!$A$3:$CC$3,0),0) -> 0.265509358 | M48: =VLOOKUP($B48,retdat,MATCH(M$13,Data!$A$3:$CC$3,0),0) -> 0.1087789148 | N48: =VLOOKUP($B48,retdat,MATCH(N$13,Data!$A$3:$CC$3,0),0) -> 0.06393333333 | O48: =VLOOKUP($B48,retdat,MATCH(O$13,Data!$A$3:$CC$3,0),0) -> 0.05835833333 | P48: =VLOOKUP($B48,retdat,MATCH(P$13,Data!$A$3:$CC$3,0),0) -> 0.04274166667 | Q48: =VLOOKUP($B48,retdat,MATCH(Q$13,Data!$A$3:$CC$3,0),0) -> 0.1620439453 | S48: 0.0889264115 | T48: 0.05928888889 | U48: 0.1515045234 | V48: 0.05305217681 | W48: 0.02584152673 | X48: 0.01328333333 | Y48: 0.018038299 | Z48: 0.02441099171 | AA48: 0.209236031 | AB48: 0.2139358606 | AC48: 0.0937108499 | AD48: 0.06986944444 | AE48: 0.06054166667 | AF48: 0.043 | AG48: 0.09055550304 | AI48: =GEOMEAN(C122:OFFSET(C122,$AI$2-1,0))-1 -> 0.08892418216 | AJ48: =GEOMEAN(D122:OFFSET(D122,$AI$2-1,0))-1 -> 0.05928141565 | AK48: =GEOMEAN(E122:OFFSET(E122,$AI$2-1,0))-1 -> 0.148840028 | AL48: =GEOMEAN(F122:OFFSET(F122,$AI$2-1,0))-1 -> 0.05293861783 | AM48: =GEOMEAN(G122:OFFSET(G122,$AI$2-1,0))-1 -> 0.02582794275 | AN48: =GEOMEAN(H122:OFFSET(H122,$AI$2-1,0))-1 -> 0.01328040677 | AO48: =GEOMEAN(I122:OFFSET(I122,$AI$2-1,0))-1 -> -0.005468061061 | AP48: =GEOMEAN(J122:OFFSET(J122,$AI$2-1,0))-1 -> 0.01050383562 | AQ48: =GEOMEAN(K122:OFFSET(K122,$AI$2-1,0))-1 -> 0.2027133068 | AR48: =GEOMEAN(L122:OFFSET(L122,$AI$2-1,0))-1 -> 0.2079696755 | AS48: =GEOMEAN(M122:OFFSET(M122,$AI$2-1,0))-1 -> 0.09365812536 | AT48: =GEOMEAN(N122:OFFSET(N122,$AI$2-1,0))-1 -> 0.06985288395 | AU48: =GEOMEAN(O122:OFFSET(O122,$AI$2-1,0))-1 -> 0.06053688065 | AV48: =GEOMEAN(P122:OFFSET(P122,$AI$2-1,0))-1 -> 0.04299714819 | AW48: =GEOMEAN(Q122:OFFSET(Q122,$AI$2-1,0))-1 -> 0.06905647657 | AY48: 35
B49: 2005 | C49: =VLOOKUP($B49,retdat,MATCH(C$13,Data!$A$3:$CC$3,0),0) -> 0.207390527 | D49: =VLOOKUP($B49,retdat,MATCH(D$13,Data!$A$3:$CC$3,0),0) -> 0.05235 | E49: =VLOOKUP($B49,retdat,MATCH(E$13,Data!$A$3:$CC$3,0),0) -> 0.1635514541 | F49: =VLOOKUP($B49,retdat,MATCH(F$13,Data!$A$3:$CC$3,0),0) -> 0.08178246148 | G49: =VLOOKUP($B49,retdat,MATCH(G$13,Data!$A$3:$CC$3,0),0) -> 0.03284030365 | H49: =VLOOKUP($B49,retdat,MATCH(H$13,Data!$A$3:$CC$3,0),0) -> 0.03146666667 | I49: =VLOOKUP($B49,retdat,MATCH(I$13,Data!$A$3:$CC$3,0),0) -> 0.02956873588 | J49: =VLOOKUP($B49,retdat,MATCH(J$13,Data!$A$3:$CC$3,0),0) -> -0.006093827795 | K49: =VLOOKUP($B49,retdat,MATCH(K$13,Data!$A$3:$CC$3,0),0) -> 0.1147815133 | L49: =VLOOKUP($B49,retdat,MATCH(L$13,Data!$A$3:$CC$3,0),0) -> 0.07962564873 | M49: =VLOOKUP($B49,retdat,MATCH(M$13,Data!$A$3:$CC$3,0),0) -> 0.2202144443 | N49: =VLOOKUP($B49,retdat,MATCH(N$13,Data!$A$3:$CC$3,0),0) -> 0.06064166667 | O49: =VLOOKUP($B49,retdat,MATCH(O$13,Data!$A$3:$CC$3,0),0) -> 0.05870833333 | P49: =VLOOKUP($B49,retdat,MATCH(P$13,Data!$A$3:$CC$3,0),0) -> 0.0429 | Q49: =VLOOKUP($B49,retdat,MATCH(Q$13,Data!$A$3:$CC$3,0),0) -> 0.1031389509 | S49: 0.1284068216 | T49: 0.0551 | U49: 0.1301249541 | V49: 0.06805107836 | W49: 0.02862159065 | X49: 0.01843055556 | Y49: 0.1166041842 | Z49: 0.08353975952 | AA49: 0.2349978536 | AB49: 0.223530706 | AC49: 0.1377720343 | AD49: 0.06407777778 | AE49: 0.05842777778 | AF49: 0.04193055556 | AG49: 0.1891262918 | AI49: =GEOMEAN(C123:OFFSET(C123,$AI$2-1,0))-1 -> 0.1270530128 | AJ49: =GEOMEAN(D123:OFFSET(D123,$AI$2-1,0))-1 -> 0.05509819497 | AK49: =GEOMEAN(E123:OFFSET(E123,$AI$2-1,0))-1 -> 0.1284747121 | AL49: =GEOMEAN(F123:OFFSET(F123,$AI$2-1,0))-1 -> 0.06795599712 | AM49: =GEOMEAN(G123:OFFSET(G123,$AI$2-1,0))-1 -> 0.02860409013 | AN49: =GEOMEAN(H123:OFFSET(H123,$AI$2-1,0))-1 -> 0.01838793656 | AO49: =GEOMEAN(I123:OFFSET(I123,$AI$2-1,0))-1 -> 0.1133471259 | AP49: =GEOMEAN(J123:OFFSET(J123,$AI$2-1,0))-1 -> 0.07894053576 | AQ49: =GEOMEAN(K123:OFFSET(K123,$AI$2-1,0))-1 -> 0.2318652909 | AR49: =GEOMEAN(L123:OFFSET(L123,$AI$2-1,0))-1 -> 0.2189000027 | AS49: =GEOMEAN(M123:OFFSET(M123,$AI$2-1,0))-1 -> 0.1362656969 | AT49: =GEOMEAN(N123:OFFSET(N123,$AI$2-1,0))-1 -> 0.06407391765 | AU49: =GEOMEAN(O123:OFFSET(O123,$AI$2-1,0))-1 -> 0.05842775761 | AV49: =GEOMEAN(P123:OFFSET(P123,$AI$2-1,0))-1 -> 0.04192979242 | AW49: =GEOMEAN(Q123:OFFSET(Q123,$AI$2-1,0))-1 -> 0.1862504055 | AY49: 36 | AZ49: 0.1270530128 | BA49: 0.05509819497 | BB49: 0.1284747121 | BC49: 0.06795599712 | BD49: 0.02860409013 | BE49: 0.01838793656 | BF49: 0.1133471259 | BG49: 0.07894053576 | BH49: 0.2318652909 | BI49: 0.2189000027 | BJ49: 0.1362656969 | BK49: 0.06407391765 | BL49: 0.05842775761 | BM49: 0.04192979242 | BN49: 0.1862504055
B50: 2006 | C50: =VLOOKUP($B50,retdat,MATCH(C$13,Data!$A$3:$CC$3,0),0) -> 0.1484152591 | D50: =VLOOKUP($B50,retdat,MATCH(D$13,Data!$A$3:$CC$3,0),0) -> 0.055875 | E50: =VLOOKUP($B50,retdat,MATCH(E$13,Data!$A$3:$CC$3,0),0) -> 0.208613549 | F50: =VLOOKUP($B50,retdat,MATCH(F$13,Data!$A$3:$CC$3,0),0) -> 0.01582504114 | G50: =VLOOKUP($B50,retdat,MATCH(G$13,Data!$A$3:$CC$3,0),0) -> 0.02492651488 | H50: =VLOOKUP($B50,retdat,MATCH(H$13,Data!$A$3:$CC$3,0),0) -> 0.04726666667 | I50: =VLOOKUP($B50,retdat,MATCH(I$13,Data!$A$3:$CC$3,0),0) -> 0.1276843566 | J50: =VLOOKUP($B50,retdat,MATCH(J$13,Data!$A$3:$CC$3,0),0) -> 0.1508983709 | K50: =VLOOKUP($B50,retdat,MATCH(K$13,Data!$A$3:$CC$3,0),0) -> 0.3005539143 | L50: =VLOOKUP($B50,retdat,MATCH(L$13,Data!$A$3:$CC$3,0),0) -> 0.2928138216 | M50: =VLOOKUP($B50,retdat,MATCH(M$13,Data!$A$3:$CC$3,0),0) -> 0.1528603929 | N50: =VLOOKUP($B50,retdat,MATCH(N$13,Data!$A$3:$CC$3,0),0) -> 0.06479166667 | O50: =VLOOKUP($B50,retdat,MATCH(O$13,Data!$A$3:$CC$3,0),0) -> 0.06408333333 | P50: =VLOOKUP($B50,retdat,MATCH(P$13,Data!$A$3:$CC$3,0),0) -> 0.04791666667 | Q50: =VLOOKUP($B50,retdat,MATCH(Q$13,Data!$A$3:$CC$3,0),0) -> 0.2108393485 | S50: 0.1491397702 | T50: 0.05483611111 | U50: 0.1392011176 | V50: 0.05717021356 | W50: 0.03021452885 | X50: 0.03081666667 | Y50: 0.08112357351 | Z50: 0.05859975424 | AA50: 0.2299204152 | AB50: 0.2126496095 | AC50: 0.1606179173 | AD50: 0.06312222222 | AE50: 0.06038333333 | AF50: 0.04451944444 | AG50: 0.1586740816 | AI50: =GEOMEAN(C124:OFFSET(C124,$AI$2-1,0))-1 -> 0.148167392 | AJ50: =GEOMEAN(D124:OFFSET(D124,$AI$2-1,0))-1 -> 0.05483463196 | AK50: =GEOMEAN(E124:OFFSET(E124,$AI$2-1,0))-1 -> 0.137078618 | AL50: =GEOMEAN(F124:OFFSET(F124,$AI$2-1,0))-1 -> 0.05675583374 | AM50: =GEOMEAN(G124:OFFSET(G124,$AI$2-1,0))-1 -> 0.03020773134 | AN50: =GEOMEAN(H124:OFFSET(H124,$AI$2-1,0))-1 -> 0.03072550277 | AO50: =GEOMEAN(I124:OFFSET(I124,$AI$2-1,0))-1 -> 0.08037183783 | AP50: =GEOMEAN(J124:OFFSET(J124,$AI$2-1,0))-1 -> 0.05652457015 | AQ50: =GEOMEAN(K124:OFFSET(K124,$AI$2-1,0))-1 -> 0.2270932295 | AR50: =GEOMEAN(L124:OFFSET(L124,$AI$2-1,0))-1 -> 0.2088103793 | AS50: =GEOMEAN(M124:OFFSET(M124,$AI$2-1,0))-1 -> 0.1597185746 | AT50: =GEOMEAN(N124:OFFSET(N124,$AI$2-1,0))-1 -> 0.06312071653 | AU50: =GEOMEAN(O124:OFFSET(O124,$AI$2-1,0))-1 -> 0.06038009981 | AV50: =GEOMEAN(P124:OFFSET(P124,$AI$2-1,0))-1 -> 0.04451668312 | AW50: =GEOMEAN(Q124:OFFSET(Q124,$AI$2-1,0))-1 -> 0.157834357 | AY50: 37
B51: 2007 | C51: =VLOOKUP($B51,retdat,MATCH(C$13,Data!$A$3:$CC$3,0),0) -> 0.1397347913 | D51: =VLOOKUP($B51,retdat,MATCH(D$13,Data!$A$3:$CC$3,0),0) -> 0.05555833333 | E51: =VLOOKUP($B51,retdat,MATCH(E$13,Data!$A$3:$CC$3,0),0) -> 0.2770442031 | F51: =VLOOKUP($B51,retdat,MATCH(F$13,Data!$A$3:$CC$3,0),0) -> 0.07557342649 | G51: =VLOOKUP($B51,retdat,MATCH(G$13,Data!$A$3:$CC$3,0),0) -> 0.0402664488 | H51: =VLOOKUP($B51,retdat,MATCH(H$13,Data!$A$3:$CC$3,0),0) -> 0.04353333333 | I51: =VLOOKUP($B51,retdat,MATCH(I$13,Data!$A$3:$CC$3,0),0) -> 0.03468716042 | J51: =VLOOKUP($B51,retdat,MATCH(J$13,Data!$A$3:$CC$3,0),0) -> 0.06233912756 | K51: =VLOOKUP($B51,retdat,MATCH(K$13,Data!$A$3:$CC$3,0),0) -> -0.1706903814 | L51: =VLOOKUP($B51,retdat,MATCH(L$13,Data!$A$3:$CC$3,0),0) -> -0.1964016502 | M51: =VLOOKUP($B51,retdat,MATCH(M$13,Data!$A$3:$CC$3,0),0) -> 0.1313051112 | N51: =VLOOKUP($B51,retdat,MATCH(N$13,Data!$A$3:$CC$3,0),0) -> 0.064825 | O51: =VLOOKUP($B51,retdat,MATCH(O$13,Data!$A$3:$CC$3,0),0) -> 0.06336666667 | P51: =VLOOKUP($B51,retdat,MATCH(P$13,Data!$A$3:$CC$3,0),0) -> 0.04629166667 | Q51: =VLOOKUP($B51,retdat,MATCH(Q$13,Data!$A$3:$CC$3,0),0) -> 0.08271191577 | S51: =AVERAGE(C49:C51) -> 0.1651801924 | T51: 0.05459444444 | U51: 0.2164030687 | V51: 0.05772697637 | W51: 0.03267775578 | X51: 0.04075555556 | Y51: 0.06398008429 | Z51: 0.06904789022 | AA51: 0.08154834873 | AB51: 0.05867927337 | AC51: 0.1681266495 | AD51: 0.06341944444 | AE51: 0.06205277778 | AF51: 0.04570277778 | AG51: 0.1322300717 | AI51: =GEOMEAN(C125:OFFSET(C125,$AI$2-1,0))-1 -> 0.1647968157 | AJ51: =GEOMEAN(D125:OFFSET(D125,$AI$2-1,0))-1 -> 0.0545932415 | AK51: =GEOMEAN(E125:OFFSET(E125,$AI$2-1,0))-1 -> 0.2155131472 | AL51: =GEOMEAN(F125:OFFSET(F125,$AI$2-1,0))-1 -> 0.05730342276 | AM51: =GEOMEAN(G125:OFFSET(G125,$AI$2-1,0))-1 -> 0.0326587571 | AN51: =GEOMEAN(H125:OFFSET(H125,$AI$2-1,0))-1 -> 0.04073366124 | AO51: =GEOMEAN(I125:OFFSET(I125,$AI$2-1,0))-1 -> 0.06304256415 | AP51: =GEOMEAN(J125:OFFSET(J125,$AI$2-1,0))-1 -> 0.06712471917 | AQ51: =GEOMEAN(K125:OFFSET(K125,$AI$2-1,0))-1 -> 0.06335499069 | AR51: =GEOMEAN(L125:OFFSET(L125,$AI$2-1,0))-1 -> 0.03900125494 | AS51: =GEOMEAN(M125:OFFSET(M125,$AI$2-1,0))-1 -> 0.1675196803 | AT51: =GEOMEAN(N125:OFFSET(N125,$AI$2-1,0))-1 -> 0.0634176288 | AU51: =GEOMEAN(O125:OFFSET(O125,$AI$2-1,0))-1 -> 0.06205010189 | AV51: =GEOMEAN(P125:OFFSET(P125,$AI$2-1,0))-1 -> 0.04570068817 | AW51: =GEOMEAN(Q125:OFFSET(Q125,$AI$2-1,0))-1 -> 0.1308627196 | AY51: 38
B52: 2008 | C52: =VLOOKUP($B52,retdat,MATCH(C$13,Data!$A$3:$CC$3,0),0) -> 0.1018309471 | D52: =VLOOKUP($B52,retdat,MATCH(D$13,Data!$A$3:$CC$3,0),0) -> 0.05631666667 | E52: =VLOOKUP($B52,retdat,MATCH(E$13,Data!$A$3:$CC$3,0),0) -> 0.0422722168 | F52: =VLOOKUP($B52,retdat,MATCH(F$13,Data!$A$3:$CC$3,0),0) -> -0.04407007832 | G52: =VLOOKUP($B52,retdat,MATCH(G$13,Data!$A$3:$CC$3,0),0) -> -0.0002223047334 | H52: =VLOOKUP($B52,retdat,MATCH(H$13,Data!$A$3:$CC$3,0),0) -> 0.01365 | I52: =VLOOKUP($B52,retdat,MATCH(I$13,Data!$A$3:$CC$3,0),0) -> -0.4858909696 | J52: =VLOOKUP($B52,retdat,MATCH(J$13,Data!$A$3:$CC$3,0),0) -> -0.4130502566 | K52: =VLOOKUP($B52,retdat,MATCH(K$13,Data!$A$3:$CC$3,0),0) -> -0.4736524612 | L52: =VLOOKUP($B52,retdat,MATCH(L$13,Data!$A$3:$CC$3,0),0) -> -0.4754556675 | M52: =VLOOKUP($B52,retdat,MATCH(M$13,Data!$A$3:$CC$3,0),0) -> 0.09224593487 | N52: =VLOOKUP($B52,retdat,MATCH(N$13,Data!$A$3:$CC$3,0),0) -> 0.07446666667 | O52: =VLOOKUP($B52,retdat,MATCH(O$13,Data!$A$3:$CC$3,0),0) -> 0.060725 | P52: =VLOOKUP($B52,retdat,MATCH(P$13,Data!$A$3:$CC$3,0),0) -> 0.03666666667 | Q52: =VLOOKUP($B52,retdat,MATCH(Q$13,Data!$A$3:$CC$3,0),0) -> -0.5993938687 | S52: 0.1299936658 | T52: 0.05591666667 | U52: 0.1759766563 | V52: 0.01577612977 | W52: 0.02165688632 | X52: 0.03481666667 | Y52: -0.1078398175 | Z52: -0.06660425271 | AA52: -0.1145963094 | AB52: -0.126347832 | AC52: 0.1254704797 | AD52: 0.06802777778 | AE52: 0.062725 | AF52: 0.043625 | AG52: -0.1019475348 | AI52: =GEOMEAN(C126:OFFSET(C126,$AI$2-1,0))-1 -> 0.1298112861 | AJ52: =GEOMEAN(D126:OFFSET(D126,$AI$2-1,0))-1 -> 0.05591662087 | AK52: =GEOMEAN(E126:OFFSET(E126,$AI$2-1,0))-1 -> 0.1717227169 | AL52: =GEOMEAN(F126:OFFSET(F126,$AI$2-1,0))-1 -> 0.01460035827 | AM52: =GEOMEAN(G126:OFFSET(G126,$AI$2-1,0))-1 -> 0.02152011117 | AN52: =GEOMEAN(H126:OFFSET(H126,$AI$2-1,0))-1 -> 0.03470657908 | AO52: =GEOMEAN(I126:OFFSET(I126,$AI$2-1,0))-1 -> -0.1566316811 | AP52: =GEOMEAN(J126:OFFSET(J126,$AI$2-1,0))-1 -> -0.1047032184 | AQ52: =GEOMEAN(K126:OFFSET(K126,$AI$2-1,0))-1 -> -0.1719830639 | AR52: =GEOMEAN(L126:OFFSET(L126,$AI$2-1,0))-1 -> -0.1831937091 | AS52: =GEOMEAN(M126:OFFSET(M126,$AI$2-1,0))-1 -> 0.1251894076 | AT52: =GEOMEAN(N126:OFFSET(N126,$AI$2-1,0))-1 -> 0.06801809247 | AU52: =GEOMEAN(O126:OFFSET(O126,$AI$2-1,0))-1 -> 0.06272401823 | AV52: =GEOMEAN(P126:OFFSET(P126,$AI$2-1,0))-1 -> 0.04361316603 | AW52: =GEOMEAN(Q126:OFFSET(Q126,$AI$2-1,0))-1 -> -0.193188008 | AY52: 39 | AZ52: 0.1298112861 | BA52: 0.05591662087 | BB52: 0.1717227169 | BC52: 0.01460035827 | BD52: 0.02152011117 | BE52: 0.03470657908 | BF52: -0.1566316811 | BG52: -0.1047032184 | BH52: -0.1719830639 | BI52: -0.1831937091 | BJ52: 0.1251894076 | BK52: 0.06801809247 | BL52: 0.06272401823 | BM52: 0.04361316603 | BN52: -0.193188008
B53: 2009 | C53: =VLOOKUP($B53,retdat,MATCH(C$13,Data!$A$3:$CC$3,0),0) -> -0.01011754469 | D53: =VLOOKUP($B53,retdat,MATCH(D$13,Data!$A$3:$CC$3,0),0) -> 0.05313333333 | E53: =VLOOKUP($B53,retdat,MATCH(E$13,Data!$A$3:$CC$3,0),0) -> 0.2234309489 | F53: =VLOOKUP($B53,retdat,MATCH(F$13,Data!$A$3:$CC$3,0),0) -> 0.04126660017 | G53: =VLOOKUP($B53,retdat,MATCH(G$13,Data!$A$3:$CC$3,0),0) -> 0.02775254206 | H53: =VLOOKUP($B53,retdat,MATCH(H$13,Data!$A$3:$CC$3,0),0) -> 0.0015 | I53: =VLOOKUP($B53,retdat,MATCH(I$13,Data!$A$3:$CC$3,0),0) -> 0.2106913288 | J53: =VLOOKUP($B53,retdat,MATCH(J$13,Data!$A$3:$CC$3,0),0) -> 0.1724341295 | K53: =VLOOKUP($B53,retdat,MATCH(K$13,Data!$A$3:$CC$3,0),0) -> 0.2467836276 | L53: =VLOOKUP($B53,retdat,MATCH(L$13,Data!$A$3:$CC$3,0),0) -> 0.2453035899 | M53: =VLOOKUP($B53,retdat,MATCH(M$13,Data!$A$3:$CC$3,0),0) -> -0.01752060038 | N53: =VLOOKUP($B53,retdat,MATCH(N$13,Data!$A$3:$CC$3,0),0) -> 0.07295833333 | O53: =VLOOKUP($B53,retdat,MATCH(O$13,Data!$A$3:$CC$3,0),0) -> 0.050425 | P53: =VLOOKUP($B53,retdat,MATCH(P$13,Data!$A$3:$CC$3,0),0) -> 0.03256666667 | Q53: =VLOOKUP($B53,retdat,MATCH(Q$13,Data!$A$3:$CC$3,0),0) -> 0.2448835032 | S53: 0.0771493979 | T53: 0.05500277778 | U53: 0.1809157896 | V53: 0.02425664945 | W53: 0.02259889538 | X53: 0.01956111111 | Y53: -0.0801708268 | Z53: -0.05942566652 | AA53: -0.1325197383 | AB53: -0.1421845759 | AC53: 0.06867681524 | AD53: 0.07075 | AE53: 0.05817222222 | AF53: 0.03850833333 | AG53: -0.09059948326 | AI53: =GEOMEAN(C127:OFFSET(C127,$AI$2-1,0))-1 -> 0.07522858001 | AJ53: =GEOMEAN(D127:OFFSET(D127,$AI$2-1,0))-1 -> 0.05500190379 | AK53: =GEOMEAN(E127:OFFSET(E127,$AI$2-1,0))-1 -> 0.1764916557 | AL53: =GEOMEAN(F127:OFFSET(F127,$AI$2-1,0))-1 -> 0.0230009081 | AM53: =GEOMEAN(G127:OFFSET(G127,$AI$2-1,0))-1 -> 0.0224581278 | AN53: =GEOMEAN(H127:OFFSET(H127,$AI$2-1,0))-1 -> 0.01940893273 | AO53: =GEOMEAN(I127:OFFSET(I127,$AI$2-1,0))-1 -> -0.1364266303 | AP53: =GEOMEAN(J127:OFFSET(J127,$AI$2-1,0))-1 -> -0.09915338925 | AQ53: =GEOMEAN(K127:OFFSET(K127,$AI$2-1,0))-1 -> -0.1835552579 | AR53: =GEOMEAN(L127:OFFSET(L127,$AI$2-1,0))-1 -> -0.1933245777 | AS53: =GEOMEAN(M127:OFFSET(M127,$AI$2-1,0))-1 -> 0.06677921761 | AT53: =GEOMEAN(N127:OFFSET(N127,$AI$2-1,0))-1 -> 0.07074161223 | AU53: =GEOMEAN(O127:OFFSET(O127,$AI$2-1,0))-1 -> 0.05815746189 | AV53: =GEOMEAN(P127:OFFSET(P127,$AI$2-1,0))-1 -> 0.03849242704 | AW53: =GEOMEAN(Q127:OFFSET(Q127,$AI$2-1,0))-1 -> -0.1856963026 | AY53: 40
B54: 2010 | C54: =VLOOKUP($B54,retdat,MATCH(C$13,Data!$A$3:$CC$3,0),0) -> 0.05110627815 | D54: =VLOOKUP($B54,retdat,MATCH(D$13,Data!$A$3:$CC$3,0),0) -> 0.04943333333 | E54: =VLOOKUP($B54,retdat,MATCH(E$13,Data!$A$3:$CC$3,0),0) -> 0.2565116274 | F54: =VLOOKUP($B54,retdat,MATCH(F$13,Data!$A$3:$CC$3,0),0) -> 0.06309868665 | G54: =VLOOKUP($B54,retdat,MATCH(G$13,Data!$A$3:$CC$3,0),0) -> 0.01427554798 | H54: =VLOOKUP($B54,retdat,MATCH(H$13,Data!$A$3:$CC$3,0),0) -> 0.001366666667 | I54: =VLOOKUP($B54,retdat,MATCH(I$13,Data!$A$3:$CC$3,0),0) -> 0.1202904579 | J54: =VLOOKUP($B54,retdat,MATCH(J$13,Data!$A$3:$CC$3,0),0) -> 0.1045651323 | K54: =VLOOKUP($B54,retdat,MATCH(K$13,Data!$A$3:$CC$3,0),0) -> 0.2464456724 | L54: =VLOOKUP($B54,retdat,MATCH(L$13,Data!$A$3:$CC$3,0),0) -> 0.2434466506 | M54: =VLOOKUP($B54,retdat,MATCH(M$13,Data!$A$3:$CC$3,0),0) -> 0.03776410526 | N54: =VLOOKUP($B54,retdat,MATCH(N$13,Data!$A$3:$CC$3,0),0) -> 0.06038333333 | O54: =VLOOKUP($B54,retdat,MATCH(O$13,Data!$A$3:$CC$3,0),0) -> 0.04688333333 | P54: =VLOOKUP($B54,retdat,MATCH(P$13,Data!$A$3:$CC$3,0),0) -> 0.03214166667 | Q54: =VLOOKUP($B54,retdat,MATCH(Q$13,Data!$A$3:$CC$3,0),0) -> 0.04788091114 | S54: 0.04760656018 | T54: 0.05296111111 | U54: 0.1740715977 | V54: 0.02009840283 | W54: 0.01393526177 | X54: 0.005505555556 | Y54: -0.05163639431 | Z54: -0.04535033161 | AA54: 0.006525612947 | AB54: 0.004431524327 | AC54: 0.03749647992 | AD54: 0.06926944444 | AE54: 0.05267777778 | AF54: 0.03379166667 | AG54: -0.1022098181 | AI54: =GEOMEAN(C128:OFFSET(C128,$AI$2-1,0))-1 -> 0.04660243558 | AJ54: =GEOMEAN(D128:OFFSET(D128,$AI$2-1,0))-1 -> 0.05295735368 | AK54: =GEOMEAN(E128:OFFSET(E128,$AI$2-1,0))-1 -> 0.1701522675 | AL54: =GEOMEAN(F128:OFFSET(F128,$AI$2-1,0))-1 -> 0.01903052114 | AM54: =GEOMEAN(G128:OFFSET(G128,$AI$2-1,0))-1 -> 0.01387088786 | AN54: =GEOMEAN(H128:OFFSET(H128,$AI$2-1,0))-1 -> 0.005489106134 | AO54: =GEOMEAN(I128:OFFSET(I128,$AI$2-1,0))-1 -> -0.1132393078 | AP54: =GEOMEAN(J128:OFFSET(J128,$AI$2-1,0))-1 -> -0.08737246799 | AQ54: =GEOMEAN(K128:OFFSET(K128,$AI$2-1,0))-1 -> -0.06478309816 | AR54: =GEOMEAN(L128:OFFSET(L128,$AI$2-1,0))-1 -> -0.06697159554 | AS54: =GEOMEAN(M128:OFFSET(M128,$AI$2-1,0))-1 -> 0.03652753866 | AT54: =GEOMEAN(N128:OFFSET(N128,$AI$2-1,0))-1 -> 0.06925075524 | AU54: =GEOMEAN(O128:OFFSET(O128,$AI$2-1,0))-1 -> 0.05266143685 | AV54: =GEOMEAN(P128:OFFSET(P128,$AI$2-1,0))-1 -> 0.03378965505 | AW54: =GEOMEAN(Q128:OFFSET(Q128,$AI$2-1,0))-1 -> -0.1945237411 | AY54: 41
B55: 2011 | C55: =VLOOKUP($B55,retdat,MATCH(C$13,Data!$A$3:$CC$3,0),0) -> 0.09121610312 | D55: =VLOOKUP($B55,retdat,MATCH(D$13,Data!$A$3:$CC$3,0),0) -> 0.04639166667 | E55: =VLOOKUP($B55,retdat,MATCH(E$13,Data!$A$3:$CC$3,0),0) -> 0.08552800531 | F55: =VLOOKUP($B55,retdat,MATCH(F$13,Data!$A$3:$CC$3,0),0) -> 0.05187298927 | G55: =VLOOKUP($B55,retdat,MATCH(G$13,Data!$A$3:$CC$3,0),0) -> 0.03016121142 | H55: =VLOOKUP($B55,retdat,MATCH(H$13,Data!$A$3:$CC$3,0),0) -> 0.000525 | I55: =VLOOKUP($B55,retdat,MATCH(I$13,Data!$A$3:$CC$3,0),0) -> -3.180610996e-05 | J55: =VLOOKUP($B55,retdat,MATCH(J$13,Data!$A$3:$CC$3,0),0) -> 0.05380983802 | K55: =VLOOKUP($B55,retdat,MATCH(K$13,Data!$A$3:$CC$3,0),0) -> 0.07958461651 | L55: =VLOOKUP($B55,retdat,MATCH(L$13,Data!$A$3:$CC$3,0),0) -> 0.07050238837 | M55: =VLOOKUP($B55,retdat,MATCH(M$13,Data!$A$3:$CC$3,0),0) -> 0.07746801752 | N55: =VLOOKUP($B55,retdat,MATCH(N$13,Data!$A$3:$CC$3,0),0) -> 0.05664166667 | O55: =VLOOKUP($B55,retdat,MATCH(O$13,Data!$A$3:$CC$3,0),0) -> 0.044425 | P55: =VLOOKUP($B55,retdat,MATCH(P$13,Data!$A$3:$CC$3,0),0) -> 0.02785833333 | Q55: =VLOOKUP($B55,retdat,MATCH(Q$13,Data!$A$3:$CC$3,0),0) -> -0.1603963996 | S55: 0.04406827886 | T55: 0.04965277778 | U55: 0.1884901939 | V55: 0.05207942536 | W55: 0.02406310049 | X55: 0.001130555556 | Y55: 0.1103166602 | Z55: 0.1102696999 | AA55: 0.1909379722 | AB55: 0.1864175429 | AC55: 0.03257050747 | AD55: 0.06332777778 | AE55: 0.04724444444 | AF55: 0.03085555556 | AG55: 0.04412267158 | AI55: =GEOMEAN(C129:OFFSET(C129,$AI$2-1,0))-1 -> 0.04323065716 | AJ55: =GEOMEAN(D129:OFFSET(D129,$AI$2-1,0))-1 -> 0.04964915871 | AK55: =GEOMEAN(E129:OFFSET(E129,$AI$2-1,0))-1 -> 0.1861210195 | AL55: =GEOMEAN(F129:OFFSET(F129,$AI$2-1,0))-1 -> 0.05204166749 | AM55: =GEOMEAN(G129:OFFSET(G129,$AI$2-1,0))-1 -> 0.02403917152 | AN55: =GEOMEAN(H129:OFFSET(H129,$AI$2-1,0))-1 -> 0.001130462487 | AO55: =GEOMEAN(I129:OFFSET(I129,$AI$2-1,0))-1 -> 0.1069213187 | AP55: =GEOMEAN(J129:OFFSET(J129,$AI$2-1,0))-1 -> 0.1092105975 | AQ55: =GEOMEAN(K129:OFFSET(K129,$AI$2-1,0))-1 -> 0.1882478689 | AR55: =GEOMEAN(L129:OFFSET(L129,$AI$2-1,0))-1 -> 0.1834866022 | AS55: =GEOMEAN(M129:OFFSET(M129,$AI$2-1,0))-1 -> 0.03183161078 | AT55: =GEOMEAN(N129:OFFSET(N129,$AI$2-1,0))-1 -> 0.06330493002 | AU55: =GEOMEAN(O129:OFFSET(O129,$AI$2-1,0))-1 -> 0.04724154963 | AV55: =GEOMEAN(P129:OFFSET(P129,$AI$2-1,0))-1 -> 0.03085336027 | AW55: =GEOMEAN(Q129:OFFSET(Q129,$AI$2-1,0))-1 -> 0.03079343611 | AY55: 42 | AZ55: 0.04323065716 | BA55: 0.04964915871 | BB55: 0.1861210195 | BC55: 0.05204166749 | BD55: 0.02403917152 | BE55: 0.001130462487 | BF55: 0.1069213187 | BG55: 0.1092105975 | BH55: 0.1882478689 | BI55: 0.1834866022 | BJ55: 0.03183161078 | BK55: 0.06330493002 | BL55: 0.04724154963 | BM55: 0.03085336027 | BN55: 0.03079343611
B56: 2012 | C56: =VLOOKUP($B56,retdat,MATCH(C$13,Data!$A$3:$CC$3,0),0) -> 0.1157852506 | D56: =VLOOKUP($B56,retdat,MATCH(D$13,Data!$A$3:$CC$3,0),0) -> 0.03673333333 | E56: =VLOOKUP($B56,retdat,MATCH(E$13,Data!$A$3:$CC$3,0),0) -> 0.0793893264 | F56: =VLOOKUP($B56,retdat,MATCH(F$13,Data!$A$3:$CC$3,0),0) -> 0.008472515172 | G56: =VLOOKUP($B56,retdat,MATCH(G$13,Data!$A$3:$CC$3,0),0) -> 0.01744204901 | H56: =VLOOKUP($B56,retdat,MATCH(H$13,Data!$A$3:$CC$3,0),0) -> 0.0008583333333 | I56: =VLOOKUP($B56,retdat,MATCH(I$13,Data!$A$3:$CC$3,0),0) -> 0.1258014103 | J56: =VLOOKUP($B56,retdat,MATCH(J$13,Data!$A$3:$CC$3,0),0) -> 0.07005394968 | K56: =VLOOKUP($B56,retdat,MATCH(K$13,Data!$A$3:$CC$3,0),0) -> 0.1798251929 | L56: =VLOOKUP($B56,retdat,MATCH(L$13,Data!$A$3:$CC$3,0),0) -> 0.1800472884 | M56: =VLOOKUP($B56,retdat,MATCH(M$13,Data!$A$3:$CC$3,0),0) -> 0.09703300951 | N56: =VLOOKUP($B56,retdat,MATCH(N$13,Data!$A$3:$CC$3,0),0) -> 0.04935 | O56: =VLOOKUP($B56,retdat,MATCH(O$13,Data!$A$3:$CC$3,0),0) -> 0.036475 | P56: =VLOOKUP($B56,retdat,MATCH(P$13,Data!$A$3:$CC$3,0),0) -> 0.018025 | Q56: =VLOOKUP($B56,retdat,MATCH(Q$13,Data!$A$3:$CC$3,0),0) -> 0.1271101622 | S56: 0.08603587729 | T56: 0.04418611111 | U56: 0.1404763197 | V56: 0.0411480637 | W56: 0.02062626947 | X56: 0.0009166666667 | Y56: 0.08202002067 | Z56: 0.07614297332 | AA56: 0.1686184939 | AB56: 0.1646654425 | AC56: 0.0707550441 | AD56: 0.05545833333 | AE56: 0.04259444444 | AF56: 0.02600833333 | AG56: 0.004864891247 | AI56: =GEOMEAN(C130:OFFSET(C130,$AI$2-1,0))-1 -> 0.08570708238 | AJ56: =GEOMEAN(D130:OFFSET(D130,$AI$2-1,0))-1 -> 0.04417204783 | AK56: =GEOMEAN(E130:OFFSET(E130,$AI$2-1,0))-1 -> 0.1376147675 | AL56: =GEOMEAN(F130:OFFSET(F130,$AI$2-1,0))-1 -> 0.04087916887 | AM56: =GEOMEAN(G130:OFFSET(G130,$AI$2-1,0))-1 -> 0.02060324253 | AN56: =GEOMEAN(H130:OFFSET(H130,$AI$2-1,0))-1 -> 0.0009166068407 | AO56: =GEOMEAN(I130:OFFSET(I130,$AI$2-1,0))-1 -> 0.08042063597 | AP56: =GEOMEAN(J130:OFFSET(J130,$AI$2-1,0))-1 -> 0.0759359472 | AQ56: =GEOMEAN(K130:OFFSET(K130,$AI$2-1,0))-1 -> 0.1665836956 | AR56: =GEOMEAN(L130:OFFSET(L130,$AI$2-1,0))-1 -> 0.1624422942 | AS56: =GEOMEAN(M130:OFFSET(M130,$AI$2-1,0))-1 -> 0.07046936446 | AT56: =GEOMEAN(N130:OFFSET(N130,$AI$2-1,0))-1 -> 0.05544837941 | AU56: =GEOMEAN(O130:OFFSET(O130,$AI$2-1,0))-1 -> 0.04258496716 | AV56: =GEOMEAN(P130:OFFSET(P130,$AI$2-1,0))-1 -> 0.0259912847 | AW56: =GEOMEAN(Q130:OFFSET(Q130,$AI$2-1,0))-1 -> -0.002795578179 | AY56: 43
B57: 2013 | C57: =VLOOKUP($B57,retdat,MATCH(C$13,Data!$A$3:$CC$3,0),0) -> 0.09881764765 | D57: =VLOOKUP($B57,retdat,MATCH(D$13,Data!$A$3:$CC$3,0),0) -> 0.04235 | E57: =VLOOKUP($B57,retdat,MATCH(E$13,Data!$A$3:$CC$3,0),0) -> -0.3192459 | F57: =VLOOKUP($B57,retdat,MATCH(F$13,Data!$A$3:$CC$3,0),0) -> 0.002478316014 | G57: =VLOOKUP($B57,retdat,MATCH(G$13,Data!$A$3:$CC$3,0),0) -> 0.01501509087 | H57: =VLOOKUP($B57,retdat,MATCH(H$13,Data!$A$3:$CC$3,0),0) -> 0.0005833333333 | I57: =VLOOKUP($B57,retdat,MATCH(I$13,Data!$A$3:$CC$3,0),0) -> 0.2592922065 | J57: =VLOOKUP($B57,retdat,MATCH(J$13,Data!$A$3:$CC$3,0),0) -> 0.2350674711 | K57: =VLOOKUP($B57,retdat,MATCH(K$13,Data!$A$3:$CC$3,0),0) -> 0.02815719316 | L57: =VLOOKUP($B57,retdat,MATCH(L$13,Data!$A$3:$CC$3,0),0) -> 0.02313555626 | M57: =VLOOKUP($B57,retdat,MATCH(M$13,Data!$A$3:$CC$3,0),0) -> 0.08527906657 | N57: =VLOOKUP($B57,retdat,MATCH(N$13,Data!$A$3:$CC$3,0),0) -> 0.05101666667 | O57: =VLOOKUP($B57,retdat,MATCH(O$13,Data!$A$3:$CC$3,0),0) -> 0.04024166667 | P57: =VLOOKUP($B57,retdat,MATCH(P$13,Data!$A$3:$CC$3,0),0) -> 0.02350833333 | Q57: =VLOOKUP($B57,retdat,MATCH(Q$13,Data!$A$3:$CC$3,0),0) -> 0.1775241456 | S57: 0.1019396671 | T57: 0.041825 | U57: -0.0514428561 | V57: 0.02094127349 | W57: 0.02087278376 | X57: 0.0006555555556 | Y57: 0.1283539369 | Z57: 0.1196437529 | AA57: 0.09585566751 | AB57: 0.09122841101 | AC57: 0.08659336454 | AD57: 0.05233611111 | AE57: 0.04038055556 | AF57: 0.02313055556 | AG57: 0.04807930275 | AI57: =GEOMEAN(C131:OFFSET(C131,$AI$2-1,0))-1 -> 0.1018919309 | AJ57: =GEOMEAN(D131:OFFSET(D131,$AI$2-1,0))-1 -> 0.04181746852 | AK57: =GEOMEAN(E131:OFFSET(E131,$AI$2-1,0))-1 -> -0.07259420418 | AL57: =GEOMEAN(F131:OFFSET(F131,$AI$2-1,0))-1 -> 0.02070627734 | AM57: =GEOMEAN(G131:OFFSET(G131,$AI$2-1,0))-1 -> 0.02085123448 | AN57: =GEOMEAN(H131:OFFSET(H131,$AI$2-1,0))-1 -> 0.0006555449998 | AO57: =GEOMEAN(I131:OFFSET(I131,$AI$2-1,0))-1 -> 0.1233751952 | AP57: =GEOMEAN(J131:OFFSET(J131,$AI$2-1,0))-1 -> 0.1167420485 | AQ57: =GEOMEAN(K131:OFFSET(K131,$AI$2-1,0))-1 -> 0.09406877598 | AR57: =GEOMEAN(L131:OFFSET(L131,$AI$2-1,0))-1 -> 0.08928137137 | AS57: =GEOMEAN(M131:OFFSET(M131,$AI$2-1,0))-1 -> 0.08656364468 | AT57: =GEOMEAN(N131:OFFSET(N131,$AI$2-1,0))-1 -> 0.05233149226 | AU57: =GEOMEAN(O131:OFFSET(O131,$AI$2-1,0))-1 -> 0.04037548912 | AV57: =GEOMEAN(P131:OFFSET(P131,$AI$2-1,0))-1 -> 0.02312264202 | AW57: =GEOMEAN(Q131:OFFSET(Q131,$AI$2-1,0))-1 -> 0.03674072727 | AY57: 44 | AZ57: =IF(TRUNC($AY57/$AI$2)-$AY57/$AI$2 = 0,AI57,"") ->  | BA57: =IF(TRUNC($AY57/$AI$2)-$AY57/$AI$2 = 0,AJ57,"") ->  | BB57: =IF(TRUNC($AY57/$AI$2)-$AY57/$AI$2 = 0,AK57,"") ->  | BC57: =IF(TRUNC($AY57/$AI$2)-$AY57/$AI$2 = 0,AL57,"") ->  | BD57: =IF(TRUNC($AY57/$AI$2)-$AY57/$AI$2 = 0,AM57,"") ->  | BE57: =IF(TRUNC($AY57/$AI$2)-$AY57/$AI$2 = 0,AN57,"") ->  | BF57: =IF(TRUNC($AY57/$AI$2)-$AY57/$AI$2 = 0,AO57,"") ->  | BG57: =IF(TRUNC($AY57/$AI$2)-$AY57/$AI$2 = 0,AP57,"") ->  | BH57: =IF(TRUNC($AY57/$AI$2)-$AY57/$AI$2 = 0,AQ57,"") ->  | BI57: =IF(TRUNC($AY57/$AI$2)-$AY57/$AI$2 = 0,AR57,"") ->  | BJ57: =IF(TRUNC($AY57/$AI$2)-$AY57/$AI$2 = 0,AS57,"") ->  | BK57: =IF(TRUNC($AY57/$AI$2)-$AY57/$AI$2 = 0,AT57,"") ->  | BL57: =IF(TRUNC($AY57/$AI$2)-$AY57/$AI$2 = 0,AU57,"") ->  | BM57: =IF(TRUNC($AY57/$AI$2)-$AY57/$AI$2 = 0,AV57,"") ->  | BN57: =IF(TRUNC($AY57/$AI$2)-$AY57/$AI$2 = 0,AW57,"") -> 
B58: 2014 | C58: =VLOOKUP($B58,retdat,MATCH(C$13,Data!$A$3:$CC$3,0),0) -> 0.1001064034 | D58: =VLOOKUP($B58,retdat,MATCH(D$13,Data!$A$3:$CC$3,0),0) -> 0.041625 | E58: =VLOOKUP($B58,retdat,MATCH(E$13,Data!$A$3:$CC$3,0),0) -> 0.001244555232 | F58: =VLOOKUP($B58,retdat,MATCH(F$13,Data!$A$3:$CC$3,0),0) -> -0.02506396866 | G58: =VLOOKUP($B58,retdat,MATCH(G$13,Data!$A$3:$CC$3,0),0) -> 0.006509977956 | H58: =VLOOKUP($B58,retdat,MATCH(H$13,Data!$A$3:$CC$3,0),0) -> 0.000325 | I58: =VLOOKUP($B58,retdat,MATCH(I$13,Data!$A$3:$CC$3,0),0) -> 0.1078731002 | J58: =VLOOKUP($B58,retdat,MATCH(J$13,Data!$A$3:$CC$3,0),0) -> 0.07249800366 | K58: =VLOOKUP($B58,retdat,MATCH(K$13,Data!$A$3:$CC$3,0),0) -> 0.247075621 | L58: =VLOOKUP($B58,retdat,MATCH(L$13,Data!$A$3:$CC$3,0),0) -> 0.2408167829 | M58: =VLOOKUP($B58,retdat,MATCH(M$13,Data!$A$3:$CC$3,0),0) -> 0.09063378115 | N58: =VLOOKUP($B58,retdat,MATCH(N$13,Data!$A$3:$CC$3,0),0) -> 0.04854166667 | O58: =VLOOKUP($B58,retdat,MATCH(O$13,Data!$A$3:$CC$3,0),0) -> 0.0416 | P58: =VLOOKUP($B58,retdat,MATCH(P$13,Data!$A$3:$CC$3,0),0) -> 0.02540833333 | Q58: =VLOOKUP($B58,retdat,MATCH(Q$13,Data!$A$3:$CC$3,0),0) -> -0.07629244031 | S58: 0.1049031005 | T58: 0.04023611111 | U58: -0.07953733946 | V58: -0.004704379159 | W58: 0.01298903928 | X58: 0.0005888888889 | Y58: 0.164322239 | Z58: 0.1258731415 | AA58: 0.1516860023 | AB58: 0.1479998759 | AC58: 0.09098195241 | AD58: 0.04963611111 | AE58: 0.03943888889 | AF58: 0.02231388889 | AG58: 0.07611395584 | AI58: =GEOMEAN(C132:OFFSET(C132,$AI$2-1,0))-1 -> 0.1048762669 | AJ58: =GEOMEAN(D132:OFFSET(D132,$AI$2-1,0))-1 -> 0.04023311711 | AK58: =GEOMEAN(E132:OFFSET(E132,$AI$2-1,0))-1 -> -0.09724580043 | AL58: =GEOMEAN(F132:OFFSET(F132,$AI$2-1,0))-1 -> -0.004812165619 | AM58: =GEOMEAN(G132:OFFSET(G132,$AI$2-1,0))-1 -> 0.01297817563 | AN58: =GEOMEAN(H132:OFFSET(H132,$AI$2-1,0))-1 -> 0.0005888651916 | AO58: =GEOMEAN(I132:OFFSET(I132,$AI$2-1,0))-1 -> 0.1624102758 | AP58: =GEOMEAN(J132:OFFSET(J132,$AI$2-1,0))-1 -> 0.1233048055 | AQ58: =GEOMEAN(K132:OFFSET(K132,$AI$2-1,0))-1 -> 0.1479509303 | AR58: =GEOMEAN(L132:OFFSET(L132,$AI$2-1,0))-1 -> 0.1442302261 | AS58: =GEOMEAN(M132:OFFSET(M132,$AI$2-1,0))-1 -> 0.09097137508 | AT58: =GEOMEAN(N132:OFFSET(N132,$AI$2-1,0))-1 -> 0.04963560542 | AU58: =GEOMEAN(O132:OFFSET(O132,$AI$2-1,0))-1 -> 0.03943662654 | AV58: =GEOMEAN(P132:OFFSET(P132,$AI$2-1,0))-1 -> 0.02230909128 | AW58: =GEOMEAN(Q132:OFFSET(Q132,$AI$2-1,0))-1 -> 0.07026230138 | AY58: 45 | AZ58: 0.1048762669 | BA58: 0.04023311711 | BB58: -0.09724580043 | BC58: -0.004812165619 | BD58: 0.01297817563 | BE58: 0.0005888651916 | BF58: 0.1624102758 | BG58: 0.1233048055 | BH58: 0.1479509303 | BI58: 0.1442302261 | BJ58: 0.09097137508 | BK58: 0.04963560542 | BL58: 0.03943662654 | BM58: 0.02230909128 | BN58: 0.07026230138
B59: 2015 | C59: =VLOOKUP($B59,retdat,MATCH(C$13,Data!$A$3:$CC$3,0),0) -> 0.06235005537 | D59: =VLOOKUP($B59,retdat,MATCH(D$13,Data!$A$3:$CC$3,0),0) -> 0.03886666667 | E59: =VLOOKUP($B59,retdat,MATCH(E$13,Data!$A$3:$CC$3,0),0) -> -0.1290401902 | F59: =VLOOKUP($B59,retdat,MATCH(F$13,Data!$A$3:$CC$3,0),0) -> -0.07098906124 | G59: =VLOOKUP($B59,retdat,MATCH(G$13,Data!$A$3:$CC$3,0),0) -> 0.006366935496 | H59: =VLOOKUP($B59,retdat,MATCH(H$13,Data!$A$3:$CC$3,0),0) -> 0.000525 | I59: =VLOOKUP($B59,retdat,MATCH(I$13,Data!$A$3:$CC$3,0),0) -> -0.007292541897 | J59: =VLOOKUP($B59,retdat,MATCH(J$13,Data!$A$3:$CC$3,0),0) -> -0.02258600723 | K59: =VLOOKUP($B59,retdat,MATCH(K$13,Data!$A$3:$CC$3,0),0) -> 0.02786057406 | L59: =VLOOKUP($B59,retdat,MATCH(L$13,Data!$A$3:$CC$3,0),0) -> 0.02029836105 | M59: =VLOOKUP($B59,retdat,MATCH(M$13,Data!$A$3:$CC$3,0),0) -> 0.05668776504 | N59: =VLOOKUP($B59,retdat,MATCH(N$13,Data!$A$3:$CC$3,0),0) -> 0.04999166667 | O59: =VLOOKUP($B59,retdat,MATCH(O$13,Data!$A$3:$CC$3,0),0) -> 0.03843333333 | P59: =VLOOKUP($B59,retdat,MATCH(P$13,Data!$A$3:$CC$3,0),0) -> 0.02135833333 | Q59: =VLOOKUP($B59,retdat,MATCH(Q$13,Data!$A$3:$CC$3,0),0) -> -0.03357929126 | S59: =AVERAGE(C57:C59) -> 0.0870913688 | T59: =AVERAGE(D57:D59) -> 0.04094722222 | U59: =AVERAGE(E57:E59) -> -0.149013845 | V59: =AVERAGE(F57:F59) -> -0.0311915713 | W59: =AVERAGE(G57:G59) -> 0.009297334773 | X59: =AVERAGE(H57:H59) -> 0.0004777777778 | Y59: =AVERAGE(I57:I59) -> 0.1199575883 | Z59: =AVERAGE(J57:J59) -> 0.09499315583 | AA59: =AVERAGE(K57:K59) -> 0.1010311294 | AB59: =AVERAGE(L57:L59) -> 0.0947502334 | AC59: =AVERAGE(M57:M59) -> 0.07753353759 | AD59: =AVERAGE(N57:N59) -> 0.04985 | AE59: =AVERAGE(O57:O59) -> 0.04009166667 | AF59: =AVERAGE(P57:P59) -> 0.023425 | AG59: =AVERAGE(Q57:Q59) -> 0.02255080469 | AI59: =GEOMEAN(C133:OFFSET(C133,$AI$2-1,0))-1 -> 0.08694938484 | AJ59: =GEOMEAN(D133:OFFSET(D133,$AI$2-1,0))-1 -> 0.04094613992 | AK59: =GEOMEAN(E133:OFFSET(E133,$AI$2-1,0))-1 -> -0.1595545777 | AL59: =GEOMEAN(F133:OFFSET(F133,$AI$2-1,0))-1 -> -0.03166868059 | AM59: =GEOMEAN(G133:OFFSET(G133,$AI$2-1,0))-1 -> 0.009289250406 | AN59: =GEOMEAN(H133:OFFSET(H133,$AI$2-1,0))-1 -> 0.0004777716616 | AO59: =GEOMEAN(I133:OFFSET(I133,$AI$2-1,0))-1 -> 0.1146690414 | AP59: =GEOMEAN(J133:OFFSET(J133,$AI$2-1,0))-1 -> 0.0899048271 | AQ59: =GEOMEAN(K133:OFFSET(K133,$AI$2-1,0))-1 -> 0.09638269432 | AR59: =GEOMEAN(L133:OFFSET(L133,$AI$2-1,0))-1 -> 0.09007406876 | AS59: =GEOMEAN(M133:OFFSET(M133,$AI$2-1,0))-1 -> 0.07742988323 | AT59: =GEOMEAN(N133:OFFSET(N133,$AI$2-1,0))-1 -> 0.04984950893 | AU59: =GEOMEAN(O133:OFFSET(O133,$AI$2-1,0))-1 -> 0.04009085771 | AV59: =GEOMEAN(P133:OFFSET(P133,$AI$2-1,0))-1 -> 0.0234236626 | AW59: =GEOMEAN(Q133:OFFSET(Q133,$AI$2-1,0))-1 -> 0.01677185378 | AY59: 46
B60: 2016 | C60: =VLOOKUP($B60,retdat,MATCH(C$13,Data!$A$3:$CC$3,0),0) -> 0.03108083614 | D60: =VLOOKUP($B60,retdat,MATCH(D$13,Data!$A$3:$CC$3,0),0) -> 0.03665833333 | E60: =VLOOKUP($B60,retdat,MATCH(E$13,Data!$A$3:$CC$3,0),0) -> 0.07792144633 | F60: =VLOOKUP($B60,retdat,MATCH(F$13,Data!$A$3:$CC$3,0),0) -> 0.02529055966 | G60: =VLOOKUP($B60,retdat,MATCH(G$13,Data!$A$3:$CC$3,0),0) -> 0.02030053187 | H60: =VLOOKUP($B60,retdat,MATCH(H$13,Data!$A$3:$CC$3,0),0) -> 0.003175 | I60: =VLOOKUP($B60,retdat,MATCH(I$13,Data!$A$3:$CC$3,0),0) -> 0.09107409028 | J60: =VLOOKUP($B60,retdat,MATCH(J$13,Data!$A$3:$CC$3,0),0) -> 0.1258835843 | K60: =VLOOKUP($B60,retdat,MATCH(K$13,Data!$A$3:$CC$3,0),0) -> 0.08277028418 | L60: =VLOOKUP($B60,retdat,MATCH(L$13,Data!$A$3:$CC$3,0),0) -> 0.08961122226 | M60: =VLOOKUP($B60,retdat,MATCH(M$13,Data!$A$3:$CC$3,0),0) -> 0.03163106473 | N60: =VLOOKUP($B60,retdat,MATCH(N$13,Data!$A$3:$CC$3,0),0) -> 0.047175 | O60: =VLOOKUP($B60,retdat,MATCH(O$13,Data!$A$3:$CC$3,0),0) -> 0.03670833333 | P60: =VLOOKUP($B60,retdat,MATCH(P$13,Data!$A$3:$CC$3,0),0) -> 0.01841666667 | Q60: =VLOOKUP($B60,retdat,MATCH(Q$13,Data!$A$3:$CC$3,0),0) -> -0.0189872421 | S60: 0.06451243163 | T60: 0.03905 | U60: -0.01662472954 | V60: -0.02358749008 | W60: 0.01105914844 | X60: 0.001341666667 | Y60: 0.06388488285 | Z60: 0.05859852691 | AA60: 0.1192354931 | AB60: 0.1169087887 | AC60: 0.05965087031 | AD60: 0.04856944444 | AE60: 0.03891388889 | AF60: 0.02172777778 | AG60: -0.04295299122 | AI60: =GEOMEAN(C134:OFFSET(C134,$AI$2-1,0))-1 -> 0.06413897731 | AJ60: =GEOMEAN(D134:OFFSET(D134,$AI$2-1,0))-1 -> 0.03904801387 | AK60: =GEOMEAN(E134:OFFSET(E134,$AI$2-1,0))-1 -> -0.02041573964 | AL60: =GEOMEAN(F134:OFFSET(F134,$AI$2-1,0))-1 -> -0.02437863455 | AM60: =GEOMEAN(G134:OFFSET(G134,$AI$2-1,0))-1 -> 0.01103809339 | AN60: =GEOMEAN(H134:OFFSET(H134,$AI$2-1,0))-1 -> 0.001340824691 | AO60: =GEOMEAN(I134:OFFSET(I134,$AI$2-1,0))-1 -> 0.06264576314 | AP60: =GEOMEAN(J134:OFFSET(J134,$AI$2-1,0))-1 -> 0.05679198437 | AQ60: =GEOMEAN(K134:OFFSET(K134,$AI$2-1,0))-1 -> 0.1154611318 | AR60: =GEOMEAN(L134:OFFSET(L134,$AI$2-1,0))-1 -> 0.1131887411 | AS60: =GEOMEAN(M134:OFFSET(M134,$AI$2-1,0))-1 -> 0.05937571217 | AT60: =GEOMEAN(N134:OFFSET(N134,$AI$2-1,0))-1 -> 0.04856881377 | AU60: =GEOMEAN(O134:OFFSET(O134,$AI$2-1,0))-1 -> 0.03891191485 | AV60: =GEOMEAN(P134:OFFSET(P134,$AI$2-1,0))-1 -> 0.02172375881 | AW60: =GEOMEAN(Q134:OFFSET(Q134,$AI$2-1,0))-1 -> -0.04326470993 | AY60: 47 | AZ60: =IF(TRUNC($AY60/$AI$2)-$AY60/$AI$2 = 0,AI60,"") ->  | BA60: =IF(TRUNC($AY60/$AI$2)-$AY60/$AI$2 = 0,AJ60,"") ->  | BB60: =IF(TRUNC($AY60/$AI$2)-$AY60/$AI$2 = 0,AK60,"") ->  | BC60: =IF(TRUNC($AY60/$AI$2)-$AY60/$AI$2 = 0,AL60,"") ->  | BD60: =IF(TRUNC($AY60/$AI$2)-$AY60/$AI$2 = 0,AM60,"") ->  | BE60: =IF(TRUNC($AY60/$AI$2)-$AY60/$AI$2 = 0,AN60,"") ->  | BF60: =IF(TRUNC($AY60/$AI$2)-$AY60/$AI$2 = 0,AO60,"") ->  | BG60: =IF(TRUNC($AY60/$AI$2)-$AY60/$AI$2 = 0,AP60,"") ->  | BH60: =IF(TRUNC($AY60/$AI$2)-$AY60/$AI$2 = 0,AQ60,"") ->  | BI60: =IF(TRUNC($AY60/$AI$2)-$AY60/$AI$2 = 0,AR60,"") ->  | BJ60: =IF(TRUNC($AY60/$AI$2)-$AY60/$AI$2 = 0,AS60,"") ->  | BK60: =IF(TRUNC($AY60/$AI$2)-$AY60/$AI$2 = 0,AT60,"") ->  | BL60: =IF(TRUNC($AY60/$AI$2)-$AY60/$AI$2 = 0,AU60,"") ->  | BM60: =IF(TRUNC($AY60/$AI$2)-$AY60/$AI$2 = 0,AV60,"") ->  | BN60: =IF(TRUNC($AY60/$AI$2)-$AY60/$AI$2 = 0,AW60,"") -> 
B61: 2017 | C61: =VLOOKUP($B61,retdat,MATCH(C$13,Data!$A$3:$CC$3,0),0) -> 0.04863193998 | D61: =VLOOKUP($B61,retdat,MATCH(D$13,Data!$A$3:$CC$3,0),0) -> 0.03743333333 | E61: =VLOOKUP($B61,retdat,MATCH(E$13,Data!$A$3:$CC$3,0),0) -> 0.1192267574 | F61: =VLOOKUP($B61,retdat,MATCH(F$13,Data!$A$3:$CC$3,0),0) -> 0.04213887413 | G61: =VLOOKUP($B61,retdat,MATCH(G$13,Data!$A$3:$CC$3,0),0) -> 0.02107564725 | H61: =VLOOKUP($B61,retdat,MATCH(H$13,Data!$A$3:$CC$3,0),0) -> 0.009308333333 | I61: =VLOOKUP($B61,retdat,MATCH(I$13,Data!$A$3:$CC$3,0),0) -> 0.1774762111 | J61: =VLOOKUP($B61,retdat,MATCH(J$13,Data!$A$3:$CC$3,0),0) -> 0.2237898161 | K61: =VLOOKUP($B61,retdat,MATCH(K$13,Data!$A$3:$CC$3,0),0) -> 0.08318153528 | L61: =VLOOKUP($B61,retdat,MATCH(L$13,Data!$A$3:$CC$3,0),0) -> 0.08887130053 | M61: =VLOOKUP($B61,retdat,MATCH(M$13,Data!$A$3:$CC$3,0),0) -> 0.04683252637 | N61: =VLOOKUP($B61,retdat,MATCH(N$13,Data!$A$3:$CC$3,0),0) -> 0.0444 | O61: =VLOOKUP($B61,retdat,MATCH(O$13,Data!$A$3:$CC$3,0),0) -> 0.03979166667 | P61: =VLOOKUP($B61,retdat,MATCH(P$13,Data!$A$3:$CC$3,0),0) -> 0.0233 | Q61: =VLOOKUP($B61,retdat,MATCH(Q$13,Data!$A$3:$CC$3,0),0) -> 0.1970531689 | S61: =AVERAGE(C59:C61) -> 0.04735427716 | T61: =AVERAGE(D59:D61) -> 0.03765277778 | U61: =AVERAGE(E59:E61) -> 0.02270267119 | V61: =AVERAGE(F59:F61) -> -0.001186542485 | W61: =AVERAGE(G59:G61) -> 0.01591437154 | X61: =AVERAGE(H59:H61) -> 0.004336111111 | Y61: =AVERAGE(I59:I61) -> 0.08708591984 | Z61: =AVERAGE(J59:J61) -> 0.1090291311 | AA61: =AVERAGE(K59:K61) -> 0.06460413117 | AB61: =AVERAGE(L59:L61) -> 0.06626029461 | AC61: =AVERAGE(M59:M61) -> 0.04505045205 | AD61: =AVERAGE(N59:N61) -> 0.04718888889 | AE61: =AVERAGE(O59:O61) -> 0.03831111111 | AF61: =AVERAGE(P59:P61) -> 0.021025 | AG61: =AVERAGE(Q59:Q61) -> 0.04816221186 | AI61: =GEOMEAN(C135:OFFSET(C135,$AI$2-1,0))-1 -> 0.04727599056 | AJ61: =GEOMEAN(D135:OFFSET(D135,$AI$2-1,0))-1 -> 0.03765237461 | AK61: =GEOMEAN(E135:OFFSET(E135,$AI$2-1,0))-1 -> 0.01664135201 | AL61: =GEOMEAN(F135:OFFSET(F135,$AI$2-1,0))-1 -> -0.002458143555 | AM61: =GEOMEAN(G135:OFFSET(G135,$AI$2-1,0))-1 -> 0.01589182054 | AN61: =GEOMEAN(H135:OFFSET(H135,$AI$2-1,0))-1 -> 0.004329381592 | AO61: =GEOMEAN(I135:OFFSET(I135,$AI$2-1,0))-1 -> 0.08444922581 | AP61: =GEOMEAN(J135:OFFSET(J135,$AI$2-1,0))-1 -> 0.1043149663 | AQ61: =GEOMEAN(K135:OFFSET(K135,$AI$2-1,0))-1 -> 0.06428333417 | AR61: =GEOMEAN(L135:OFFSET(L135,$AI$2-1,0))-1 -> 0.06575759413 | AS61: =GEOMEAN(M135:OFFSET(M135,$AI$2-1,0))-1 -> 0.04499954048 | AT61: =GEOMEAN(N135:OFFSET(N135,$AI$2-1,0))-1 -> 0.04718640072 | AU61: =GEOMEAN(O135:OFFSET(O135,$AI$2-1,0))-1 -> 0.03831034441 | AV61: =GEOMEAN(P135:OFFSET(P135,$AI$2-1,0))-1 -> 0.02102302583 | AW61: =GEOMEAN(Q135:OFFSET(Q135,$AI$2-1,0))-1 -> 0.04308117576 | AY61: 48 | AZ61: =IF(TRUNC($AY61/$AI$2)-$AY61/$AI$2 = 0,AI61,"") -> 0.04727599056 | BA61: =IF(TRUNC($AY61/$AI$2)-$AY61/$AI$2 = 0,AJ61,"") -> 0.03765237461 | BB61: =IF(TRUNC($AY61/$AI$2)-$AY61/$AI$2 = 0,AK61,"") -> 0.01664135201 | BC61: =IF(TRUNC($AY61/$AI$2)-$AY61/$AI$2 = 0,AL61,"") -> -0.002458143555 | BD61: =IF(TRUNC($AY61/$AI$2)-$AY61/$AI$2 = 0,AM61,"") -> 0.01589182054 | BE61: =IF(TRUNC($AY61/$AI$2)-$AY61/$AI$2 = 0,AN61,"") -> 0.004329381592 | BF61: =IF(TRUNC($AY61/$AI$2)-$AY61/$AI$2 = 0,AO61,"") -> 0.08444922581 | BG61: =IF(TRUNC($AY61/$AI$2)-$AY61/$AI$2 = 0,AP61,"") -> 0.1043149663 | BH61: =IF(TRUNC($AY61/$AI$2)-$AY61/$AI$2 = 0,AQ61,"") -> 0.06428333417 | BI61: =IF(TRUNC($AY61/$AI$2)-$AY61/$AI$2 = 0,AR61,"") -> 0.06575759413 | BJ61: =IF(TRUNC($AY61/$AI$2)-$AY61/$AI$2 = 0,AS61,"") -> 0.04499954048 | BK61: =IF(TRUNC($AY61/$AI$2)-$AY61/$AI$2 = 0,AT61,"") -> 0.04718640072 | BL61: =IF(TRUNC($AY61/$AI$2)-$AY61/$AI$2 = 0,AU61,"") -> 0.03831034441 | BM61: =IF(TRUNC($AY61/$AI$2)-$AY61/$AI$2 = 0,AV61,"") -> 0.02102302583 | BN61: =IF(TRUNC($AY61/$AI$2)-$AY61/$AI$2 = 0,AW61,"") -> 0.04308117576
B62: 2018 | C62: =VLOOKUP($B62,retdat,MATCH(C$13,Data!$A$3:$CC$3,0),0) -> 0.04347962736 | D62: =VLOOKUP($B62,retdat,MATCH(D$13,Data!$A$3:$CC$3,0),0) -> 0.0393 | E62: =VLOOKUP($B62,retdat,MATCH(E$13,Data!$A$3:$CC$3,0),0) -> -0.009338589268 | F62: =VLOOKUP($B62,retdat,MATCH(F$13,Data!$A$3:$CC$3,0),0) -> 0.02366080678 | G62: =VLOOKUP($B62,retdat,MATCH(G$13,Data!$A$3:$CC$3,0),0) -> 0.01982596922 | H62: =VLOOKUP($B62,retdat,MATCH(H$13,Data!$A$3:$CC$3,0),0) -> 0.01939166667 | I62: =VLOOKUP($B62,retdat,MATCH(I$13,Data!$A$3:$CC$3,0),0) -> -0.06440263421 | J62: =VLOOKUP($B62,retdat,MATCH(J$13,Data!$A$3:$CC$3,0),0) -> -0.05794987128 | K62: =VLOOKUP($B62,retdat,MATCH(K$13,Data!$A$3:$CC$3,0),0) -> -0.04128608075 | L62: =VLOOKUP($B62,retdat,MATCH(L$13,Data!$A$3:$CC$3,0),0) -> -0.04014593766 | M62: =VLOOKUP($B62,retdat,MATCH(M$13,Data!$A$3:$CC$3,0),0) -> 0.04259123064 | N62: =VLOOKUP($B62,retdat,MATCH(N$13,Data!$A$3:$CC$3,0),0) -> 0.048 | O62: =VLOOKUP($B62,retdat,MATCH(O$13,Data!$A$3:$CC$3,0),0) -> 0.04556666667 | P62: =VLOOKUP($B62,retdat,MATCH(P$13,Data!$A$3:$CC$3,0),0) -> 0.0291 | Q62: =VLOOKUP($B62,retdat,MATCH(Q$13,Data!$A$3:$CC$3,0),0) -> -0.1759705638 | S62: 0.04106413449 | T62: 0.03779722222 | U62: 0.06260320482 | V62: 0.03036341352 | W62: 0.02040071611 | X62: 0.010625 | Y62: 0.0680492224 | Z62: 0.09724117637 | AA62: 0.04155524624 | AB62: 0.04611219504 | AC62: 0.04035160725 | AD62: 0.046525 | AE62: 0.04068888889 | AF62: 0.02360555556 | AG62: 0.0006984543438 | AI62: =GEOMEAN(C136:OFFSET(C136,$AI$2-1,0))-1 -> 0.04103801903 | AJ62: =GEOMEAN(D136:OFFSET(D136,$AI$2-1,0))-1 -> 0.03779663016 | AK62: =GEOMEAN(E136:OFFSET(E136,$AI$2-1,0))-1 -> 0.06123153742 | AL62: =GEOMEAN(F136:OFFSET(F136,$AI$2-1,0))-1 -> 0.03032967948 | AM62: =GEOMEAN(G136:OFFSET(G136,$AI$2-1,0))-1 -> 0.02040058613 | AN62: =GEOMEAN(H136:OFFSET(H136,$AI$2-1,0))-1 -> 0.01060291411 | AO62: =GEOMEAN(I136:OFFSET(I136,$AI$2-1,0))-1 -> 0.06324118696 | AP62: =GEOMEAN(J136:OFFSET(J136,$AI$2-1,0))-1 -> 0.09083260796 | AQ62: =GEOMEAN(K136:OFFSET(K136,$AI$2-1,0))-1 -> 0.03986158933 | AR62: =GEOMEAN(L136:OFFSET(L136,$AI$2-1,0))-1 -> 0.04428195933 | AS62: =GEOMEAN(M136:OFFSET(M136,$AI$2-1,0))-1 -> 0.04033185243 | AT62: =GEOMEAN(N136:OFFSET(N136,$AI$2-1,0))-1 -> 0.04652386646 | AU62: =GEOMEAN(O136:OFFSET(O136,$AI$2-1,0))-1 -> 0.04068241732 | AV62: =GEOMEAN(P136:OFFSET(P136,$AI$2-1,0))-1 -> 0.02359624364 | AW62: =GEOMEAN(Q136:OFFSET(Q136,$AI$2-1,0))-1 -> -0.01089224407 | AY62: 49 | AZ62: =IF(TRUNC($AY62/$AI$2)-$AY62/$AI$2 = 0,AI62,"") ->  | BA62: =IF(TRUNC($AY62/$AI$2)-$AY62/$AI$2 = 0,AJ62,"") ->  | BB62: =IF(TRUNC($AY62/$AI$2)-$AY62/$AI$2 = 0,AK62,"") ->  | BC62: =IF(TRUNC($AY62/$AI$2)-$AY62/$AI$2 = 0,AL62,"") ->  | BD62: =IF(TRUNC($AY62/$AI$2)-$AY62/$AI$2 = 0,AM62,"") ->  | BE62: =IF(TRUNC($AY62/$AI$2)-$AY62/$AI$2 = 0,AN62,"") ->  | BF62: =IF(TRUNC($AY62/$AI$2)-$AY62/$AI$2 = 0,AO62,"") ->  | BG62: =IF(TRUNC($AY62/$AI$2)-$AY62/$AI$2 = 0,AP62,"") ->  | BH62: =IF(TRUNC($AY62/$AI$2)-$AY62/$AI$2 = 0,AQ62,"") ->  | BI62: =IF(TRUNC($AY62/$AI$2)-$AY62/$AI$2 = 0,AR62,"") ->  | BJ62: =IF(TRUNC($AY62/$AI$2)-$AY62/$AI$2 = 0,AS62,"") ->  | BK62: =IF(TRUNC($AY62/$AI$2)-$AY62/$AI$2 = 0,AT62,"") ->  | BL62: =IF(TRUNC($AY62/$AI$2)-$AY62/$AI$2 = 0,AU62,"") ->  | BM62: =IF(TRUNC($AY62/$AI$2)-$AY62/$AI$2 = 0,AV62,"") ->  | BN62: =IF(TRUNC($AY62/$AI$2)-$AY62/$AI$2 = 0,AW62,"") -> 
B63: 2019 | C63: =VLOOKUP($B63,retdat,MATCH(C$13,Data!$A$3:$CC$3,0),0) -> 0.04524032262 | D63: =VLOOKUP($B63,retdat,MATCH(D$13,Data!$A$3:$CC$3,0),0) -> 0.033875 | E63: =VLOOKUP($B63,retdat,MATCH(E$13,Data!$A$3:$CC$3,0),0) -> 0.1691718862 | F63: =VLOOKUP($B63,retdat,MATCH(F$13,Data!$A$3:$CC$3,0),0) -> -0.01000008333 | G63: =VLOOKUP($B63,retdat,MATCH(G$13,Data!$A$3:$CC$3,0),0) -> 0.02287622026 | H63: =VLOOKUP($B63,retdat,MATCH(H$13,Data!$A$3:$CC$3,0),0) -> 0.02060833333 | I63: =VLOOKUP($B63,retdat,MATCH(I$13,Data!$A$3:$CC$3,0),0) -> 0.2536966092 | J63: =VLOOKUP($B63,retdat,MATCH(J$13,Data!$A$3:$CC$3,0),0) -> 0.201620743 | K63: =VLOOKUP($B63,retdat,MATCH(K$13,Data!$A$3:$CC$3,0),0) -> 0.252025406 | L63: =VLOOKUP($B63,retdat,MATCH(L$13,Data!$A$3:$CC$3,0),0) -> 0.2484814029 | M63: =VLOOKUP($B63,retdat,MATCH(M$13,Data!$A$3:$CC$3,0),0) -> 0.04484506391 | N63: =VLOOKUP($B63,retdat,MATCH(N$13,Data!$A$3:$CC$3,0),0) -> 0.04375 | O63: =VLOOKUP($B63,retdat,MATCH(O$13,Data!$A$3:$CC$3,0),0) -> 0.03913333333 | P63: =VLOOKUP($B63,retdat,MATCH(P$13,Data!$A$3:$CC$3,0),0) -> 0.02144166667 | Q63: =VLOOKUP($B63,retdat,MATCH(Q$13,Data!$A$3:$CC$3,0),0) -> 0.1691946517 | S63: =AVERAGE(C61:C63) -> 0.04578396332 | T63: =AVERAGE(D61:D63) -> 0.03686944444 | U63: =AVERAGE(E61:E63) -> 0.09302001813 | V63: =AVERAGE(F61:F63) -> 0.01859986586 | W63: =AVERAGE(G61:G63) -> 0.02125927891 | X63: =AVERAGE(H61:H63) -> 0.01643611111 | Y63: =AVERAGE(I61:I63) -> 0.1222567287 | Z63: =AVERAGE(J61:J63) -> 0.1224868959 | AA63: =AVERAGE(K61:K63) -> 0.09797362019 | AB63: =AVERAGE(L61:L63) -> 0.09906892192 | AC63: =AVERAGE(M61:M63) -> 0.04475627364 | AD63: =AVERAGE(N61:N63) -> 0.04538333333 | AE63: 0.04149722222 | AF63: =AVERAGE(P61:P63) -> 0.02461388889 | AG63: =AVERAGE(Q61:Q63) -> 0.06342575228 | AI63: =GEOMEAN(C137:OFFSET(C137,$AI$2-1,0))-1 -> 0.0457817784 | AJ63: =GEOMEAN(D137:OFFSET(D137,$AI$2-1,0))-1 -> 0.03686700116 | AK63: =GEOMEAN(E137:OFFSET(E137,$AI$2-1,0))-1 -> 0.09037001038 | AL63: =GEOMEAN(F137:OFFSET(F137,$AI$2-1,0))-1 -> 0.01837003046 | AM63: =GEOMEAN(G137:OFFSET(G137,$AI$2-1,0))-1 -> 0.0212585116 | AN63: =GEOMEAN(H137:OFFSET(H137,$AI$2-1,0))-1 -> 0.01642346531 | AO63: =GEOMEAN(I137:OFFSET(I137,$AI$2-1,0))-1 -> 0.1136392465 | AP63: =GEOMEAN(J137:OFFSET(J137,$AI$2-1,0))-1 -> 0.1147635372 | AQ63: =GEOMEAN(K137:OFFSET(K137,$AI$2-1,0))-1 -> 0.09144320355 | AR63: =GEOMEAN(L137:OFFSET(L137,$AI$2-1,0))-1 -> 0.09275116631 | AS63: =GEOMEAN(M137:OFFSET(M137,$AI$2-1,0))-1 -> 0.0447548368 | AT63: =GEOMEAN(N137:OFFSET(N137,$AI$2-1,0))-1 -> 0.04538166351 | AU63: =GEOMEAN(O137:OFFSET(O137,$AI$2-1,0))-1 -> 0.04149321743 | AV63: =GEOMEAN(P137:OFFSET(P137,$AI$2-1,0))-1 -> 0.0246087035 | AW63: =GEOMEAN(Q137:OFFSET(Q137,$AI$2-1,0))-1 -> 0.04869129312 | AY63: 50
B64: 2020 | C64: =VLOOKUP($B64,retdat,MATCH(C$13,Data!$A$3:$CC$3,0),0) -> 0.02913033027 | D64: =VLOOKUP($B64,retdat,MATCH(D$13,Data!$A$3:$CC$3,0),0) -> 0.02476666667 | E64: =VLOOKUP($B64,retdat,MATCH(E$13,Data!$A$3:$CC$3,0),0) -> 0.220055772 | F64: =VLOOKUP($B64,retdat,MATCH(F$13,Data!$A$3:$CC$3,0),0) -> 0.007509422022 | G64: =VLOOKUP($B64,retdat,MATCH(G$13,Data!$A$3:$CC$3,0),0) -> 0.01313374659 | H64: =VLOOKUP($B64,retdat,MATCH(H$13,Data!$A$3:$CC$3,0),0) -> 0.00365 | I64: =VLOOKUP($B64,retdat,MATCH(I$13,Data!$A$3:$CC$3,0),0) -> 0.1506496039 | J64: =VLOOKUP($B64,retdat,MATCH(J$13,Data!$A$3:$CC$3,0),0) -> 0.06995980082 | K64: =VLOOKUP($B64,retdat,MATCH(K$13,Data!$A$3:$CC$3,0),0) -> -0.05257379013 | L64: =VLOOKUP($B64,retdat,MATCH(L$13,Data!$A$3:$CC$3,0),0) -> -0.06161633032 | M64: =VLOOKUP($B64,retdat,MATCH(M$13,Data!$A$3:$CC$3,0),0) -> 0.02918860792 | N64: =VLOOKUP($B64,retdat,MATCH(N$13,Data!$A$3:$CC$3,0),0) -> 0.036025 | O64: =VLOOKUP($B64,retdat,MATCH(O$13,Data!$A$3:$CC$3,0),0) -> 0.03080833333 | P64: =VLOOKUP($B64,retdat,MATCH(P$13,Data!$A$3:$CC$3,0),0) -> 0.008941666667 | Q64: =VLOOKUP($B64,retdat,MATCH(Q$13,Data!$A$3:$CC$3,0),0) -> 0.05286684359 | S64: =AVERAGE(C62:C64) -> 0.03928342675 | T64: =AVERAGE(D62:D64) -> 0.03264722222 | U64: =AVERAGE(E62:E64) -> 0.1266296897 | V64: =AVERAGE(F62:F64) -> 0.007056715155 | W64: =AVERAGE(G62:G64) -> 0.01861197869 | X64: =AVERAGE(H62:H64) -> 0.01455 | Y64: =AVERAGE(I62:I64) -> 0.1133145263 | Z64: =AVERAGE(J62:J64) -> 0.07121022418 | AA64: =AVERAGE(K62:K64) -> 0.05272184505 | AB64: =AVERAGE(L62:L64) -> 0.0489063783 | AC64: =AVERAGE(M62:M64) -> 0.03887496749 | AD64: =AVERAGE(N62:N64) -> 0.04259166667 | AE64: 0.03850277778 | AF64: =AVERAGE(P62:P64) -> 0.01982777778 | AG64: =AVERAGE(Q62:Q64) -> 0.01536364383 | AI64: =GEOMEAN(C138:OFFSET(C138,$AI$2-1,0))-1 -> 0.03925830202 | AJ64: =GEOMEAN(D138:OFFSET(D138,$AI$2-1,0))-1 -> 0.03262979185 | AK64: =GEOMEAN(E138:OFFSET(E138,$AI$2-1,0))-1 -> 0.1221763147 | AL64: =GEOMEAN(F138:OFFSET(F138,$AI$2-1,0))-1 -> 0.006962853731 | AM64: =GEOMEAN(G138:OFFSET(G138,$AI$2-1,0))-1 -> 0.01860384268 | AN64: =GEOMEAN(H138:OFFSET(H138,$AI$2-1,0))-1 -> 0.01452049749 | AO64: =GEOMEAN(I138:OFFSET(I138,$AI$2-1,0))-1 -> 0.105116792 | AP64: =GEOMEAN(J138:OFFSET(J138,$AI$2-1,0))-1 -> 0.06594868232 | AQ64: =GEOMEAN(K138:OFFSET(K138,$AI$2-1,0))-1 -> 0.04379654858 | AR64: =GEOMEAN(L138:OFFSET(L138,$AI$2-1,0))-1 -> 0.0398944062 | AS64: =GEOMEAN(M138:OFFSET(M138,$AI$2-1,0))-1 -> 0.03885191448 | AT64: =GEOMEAN(N138:OFFSET(N138,$AI$2-1,0))-1 -> 0.04257987032 | AU64: =GEOMEAN(O138:OFFSET(O138,$AI$2-1,0))-1 -> 0.03848519341 | AV64: =GEOMEAN(P138:OFFSET(P138,$AI$2-1,0))-1 -> 0.01979388112 | AW64: =GEOMEAN(Q138:OFFSET(Q138,$AI$2-1,0))-1 -> 0.004772326303 | AY64: 51 | AZ64: =IF(TRUNC($AY64/$AI$2)-$AY64/$AI$2 = 0,AI64,"") -> 0.03925830202 | BA64: =IF(TRUNC($AY64/$AI$2)-$AY64/$AI$2 = 0,AJ64,"") -> 0.03262979185 | BB64: =IF(TRUNC($AY64/$AI$2)-$AY64/$AI$2 = 0,AK64,"") -> 0.1221763147 | BC64: =IF(TRUNC($AY64/$AI$2)-$AY64/$AI$2 = 0,AL64,"") -> 0.006962853731 | BD64: =IF(TRUNC($AY64/$AI$2)-$AY64/$AI$2 = 0,AM64,"") -> 0.01860384268 | BE64: =IF(TRUNC($AY64/$AI$2)-$AY64/$AI$2 = 0,AN64,"") -> 0.01452049749 | BF64: 0.105116792 | BG64: 0.06594868232 | BH64: 0.04379654858 | BI64: 0.0398944062 | BJ64: 0.03885191448 | BK64: 0.04257987032 | BL64: 0.03848519341 | BM64: 0.01979388112 | BN64: =IF(TRUNC($AY64/$AI$2)-$AY64/$AI$2 = 0,AW64,"") -> 0.004772326303
B65: 2021 | C65: =VLOOKUP($B65,retdat,MATCH(C$13,Data!$A$3:$CC$3,0),0) -> 0.08169279152 | D65: =VLOOKUP($B65,retdat,MATCH(D$13,Data!$A$3:$CC$3,0),0) -> 0.02703333333 | E65: =VLOOKUP($B65,retdat,MATCH(E$13,Data!$A$3:$CC$3,0),0) -> -0.0442747858 | F65: =VLOOKUP($B65,retdat,MATCH(F$13,Data!$A$3:$CC$3,0),0) -> 0.1853841938 | G65: =VLOOKUP($B65,retdat,MATCH(G$13,Data!$A$3:$CC$3,0),0) -> 0.0694743706 | H65: =VLOOKUP($B65,retdat,MATCH(H$13,Data!$A$3:$CC$3,0),0) -> 0.0004416666667 | I65: =VLOOKUP($B65,retdat,MATCH(I$13,Data!$A$3:$CC$3,0),0) -> 0.2381719475 | J65: =VLOOKUP($B65,retdat,MATCH(J$13,Data!$A$3:$CC$3,0),0) -> 0.1716605302 | K65: =VLOOKUP($B65,retdat,MATCH(K$13,Data!$A$3:$CC$3,0),0) -> 0.3457036042 | L65: =VLOOKUP($B65,retdat,MATCH(L$13,Data!$A$3:$CC$3,0),0) -> 0.3366105659 | M65: =VLOOKUP($B65,retdat,MATCH(M$13,Data!$A$3:$CC$3,0),0) -> 0.0779941403 | N65: =VLOOKUP($B65,retdat,MATCH(N$13,Data!$A$3:$CC$3,0),0) -> 0.03391666667 | O65: =VLOOKUP($B65,retdat,MATCH(O$13,Data!$A$3:$CC$3,0),0) -> 0.029875 | P65: =VLOOKUP($B65,retdat,MATCH(P$13,Data!$A$3:$CC$3,0),0) -> 0.014425 | Q65: =VLOOKUP($B65,retdat,MATCH(Q$13,Data!$A$3:$CC$3,0),0) -> 0.08415315788 | S65: =AVERAGE(C63:C65) -> 0.05202114814 | T65: =AVERAGE(D63:D65) -> 0.02855833333 | U65: =AVERAGE(E63:E65) -> 0.1149842908 | V65: =AVERAGE(F63:F65) -> 0.06096451083 | W65: =AVERAGE(G63:G65) -> 0.03516144582 | X65: =AVERAGE(H63:H65) -> 0.008233333333 | Y65: =AVERAGE(I63:I65) -> 0.2141727202 | Z65: =AVERAGE(J63:J65) -> 0.1477470247 | AA65: =AVERAGE(K63:K65) -> 0.1817184067 | AB65: =AVERAGE(L63:L65) -> 0.1744918795 | AC65: =AVERAGE(M63:M65) -> 0.05067593737 | AD65: =AVERAGE(N63:N65) -> 0.03789722222 | AE65: =AVERAGE(O63:O65) -> 0.03327222222 | AF65: =AVERAGE(P63:P65) -> 0.01493611111 | AG65: =AVERAGE(Q63:Q65) -> 0.1020715511 | AI65: =GEOMEAN(C139:OFFSET(C139,$AI$2-1,0))-1 -> 0.05179270961 | AJ65: =GEOMEAN(D139:OFFSET(D139,$AI$2-1,0))-1 -> 0.02855105618 | AK65: =GEOMEAN(E139:OFFSET(E139,$AI$2-1,0))-1 -> 0.1088267567 | AL65: =GEOMEAN(F139:OFFSET(F139,$AI$2-1,0))-1 -> 0.05742068591 | AM65: =GEOMEAN(G139:OFFSET(G139,$AI$2-1,0))-1 -> 0.03487226638 | AN65: =GEOMEAN(H139:OFFSET(H139,$AI$2-1,0))-1 -> 0.00819465347 | AO65: =GEOMEAN(I139:OFFSET(I139,$AI$2-1,0))-1 -> 0.2133110921 | AP65: =GEOMEAN(J139:OFFSET(J139,$AI$2-1,0))-1 -> 0.1463367777 | AQ65: =GEOMEAN(K139:OFFSET(K139,$AI$2-1,0))-1 -> 0.1686989416 | AR65: =GEOMEAN(L139:OFFSET(L139,$AI$2-1,0))-1 -> 0.1612412901 | AS65: =GEOMEAN(M139:OFFSET(M139,$AI$2-1,0))-1 -> 0.05047992008 | AT65: =GEOMEAN(N139:OFFSET(N139,$AI$2-1,0))-1 -> 0.03788862769 | AU65: =GEOMEAN(O139:OFFSET(O139,$AI$2-1,0))-1 -> 0.03326385561 | AV65: =GEOMEAN(P139:OFFSET(P139,$AI$2-1,0))-1 -> 0.01492322384 | AW65: =GEOMEAN(Q139:OFFSET(Q139,$AI$2-1,0))-1 -> 0.1009906636 | AY65: 52
B66: 2022 | C66: =VLOOKUP($B66,retdat,MATCH(C$13,Data!$A$3:$CC$3,0),0) -> 0.1348899205 | D66: =VLOOKUP($B66,retdat,MATCH(D$13,Data!$A$3:$CC$3,0),0) -> 0.04074166667 | E66: =VLOOKUP($B66,retdat,MATCH(E$13,Data!$A$3:$CC$3,0),0) -> 0.004365130149 | F66: =VLOOKUP($B66,retdat,MATCH(F$13,Data!$A$3:$CC$3,0),0) -> 0.06636183986 | G66: =VLOOKUP($B66,retdat,MATCH(G$13,Data!$A$3:$CC$3,0),0) -> 0.06245767479 | H66: =VLOOKUP($B66,retdat,MATCH(H$13,Data!$A$3:$CC$3,0),0) -> 0.02021666667 | I66: =VLOOKUP($B66,retdat,MATCH(I$13,Data!$A$3:$CC$3,0),0) -> -0.2162029957 | J66: =VLOOKUP($B66,retdat,MATCH(J$13,Data!$A$3:$CC$3,0),0) -> -0.09191252454 | K66: =VLOOKUP($B66,retdat,MATCH(K$13,Data!$A$3:$CC$3,0),0) -> -0.2869948083 | L66: =VLOOKUP($B66,retdat,MATCH(L$13,Data!$A$3:$CC$3,0),0) -> -0.2879859242 | M66: =VLOOKUP($B66,retdat,MATCH(M$13,Data!$A$3:$CC$3,0),0) -> 0.1246286272 | N66: =VLOOKUP($B66,retdat,MATCH(N$13,Data!$A$3:$CC$3,0),0) -> 0.05071666667 | O66: =VLOOKUP($B66,retdat,MATCH(O$13,Data!$A$3:$CC$3,0),0) -> 0.0547 | P66: =VLOOKUP($B66,retdat,MATCH(P$13,Data!$A$3:$CC$3,0),0) -> 0.02951666667 | Q66: =VLOOKUP($B66,retdat,MATCH(Q$13,Data!$A$3:$CC$3,0),0) -> -0.1837600491 | S66: =AVERAGE(C64:C66) -> 0.08190434742 | T66: =AVERAGE(D64:D66) -> 0.03084722222 | U66: =AVERAGE(E64:E66) -> 0.06004870546 | V66: =AVERAGE(F64:F66) -> 0.08641848523 | W66: =AVERAGE(G64:G66) -> 0.04835526399 | X66: =AVERAGE(H64:H66) -> 0.008102777778 | Y66: =AVERAGE(I64:I66) -> 0.05753951855 | Z66: =AVERAGE(J64:J66) -> 0.04990260217 | AA66: =AVERAGE(K64:K66) -> 0.002045001918 | AB66: =AVERAGE(L64:L66) -> -0.004330562848 | AC66: =AVERAGE(M64:M66) -> 0.07727045848 | AD66: =AVERAGE(N64:N66) -> 0.04021944444 | AE66: =AVERAGE(O64:O66) -> 0.03846111111 | AF66: =AVERAGE(P64:P66) -> 0.01762777778 | AG66: =AVERAGE(Q64:Q66) -> -0.01558001587 | AI66: =GEOMEAN(C140:OFFSET(C140,$AI$2-1,0))-1 -> 0.08104229082 | AJ66: =GEOMEAN(D140:OFFSET(D140,$AI$2-1,0))-1 -> 0.03082313569 | AK66: =GEOMEAN(E140:OFFSET(E140,$AI$2-1,0))-1 -> 0.05406675988 | AL66: =GEOMEAN(F140:OFFSET(F140,$AI$2-1,0))-1 -> 0.08393759917 | AM66: =GEOMEAN(G140:OFFSET(G140,$AI$2-1,0))-1 -> 0.04805224757 | AN66: =GEOMEAN(H140:OFFSET(H140,$AI$2-1,0))-1 -> 0.008065669363 | AO66: =GEOMEAN(I140:OFFSET(I140,$AI$2-1,0))-1 -> 0.03747080418 | AP66: =GEOMEAN(J140:OFFSET(J140,$AI$2-1,0))-1 -> 0.04415662667 | AQ66: =GEOMEAN(K140:OFFSET(K140,$AI$2-1,0))-1 -> -0.03128542458 | AR66: =GEOMEAN(L140:OFFSET(L140,$AI$2-1,0))-1 -> -0.0370036593 | AS66: =GEOMEAN(M140:OFFSET(M140,$AI$2-1,0))-1 -> 0.07656478135 | AT66: =GEOMEAN(N140:OFFSET(N140,$AI$2-1,0))-1 -> 0.04019269035 | AU66: =GEOMEAN(O140:OFFSET(O140,$AI$2-1,0))-1 -> 0.03839788345 | AV66: =GEOMEAN(P140:OFFSET(P140,$AI$2-1,0))-1 -> 0.01759069641 | AW66: =GEOMEAN(Q140:OFFSET(Q140,$AI$2-1,0))-1 -> -0.02330121981 | AY66: 53 | AZ66: =IF(TRUNC($AY66/$AI$2)-$AY66/$AI$2 = 0,AI66,"") ->  | BA66: =IF(TRUNC($AY66/$AI$2)-$AY66/$AI$2 = 0,AJ66,"") ->  | BB66: =IF(TRUNC($AY66/$AI$2)-$AY66/$AI$2 = 0,AK66,"") ->  | BC66: =IF(TRUNC($AY66/$AI$2)-$AY66/$AI$2 = 0,AL66,"") ->  | BD66: =IF(TRUNC($AY66/$AI$2)-$AY66/$AI$2 = 0,AM66,"") ->  | BE66: =IF(TRUNC($AY66/$AI$2)-$AY66/$AI$2 = 0,AN66,"") -> 
B67: 2023 | C67: =VLOOKUP($B67,retdat,MATCH(C$13,Data!$A$3:$CC$3,0),0) -> 0.09634622495 | D67: =VLOOKUP($B67,retdat,MATCH(D$13,Data!$A$3:$CC$3,0),0) -> 0.0481 | E67: =VLOOKUP($B67,retdat,MATCH(E$13,Data!$A$3:$CC$3,0),0) -> 0.1362018417 | F67: =VLOOKUP($B67,retdat,MATCH(F$13,Data!$A$3:$CC$3,0),0) -> -0.03274471539 | G67: =VLOOKUP($B67,retdat,MATCH(G$13,Data!$A$3:$CC$3,0),0) -> 0.03244559413 | H67: =VLOOKUP($B67,retdat,MATCH(H$13,Data!$A$3:$CC$3,0),0) -> 0.05068333333 | I67: =VLOOKUP($B67,retdat,MATCH(I$13,Data!$A$3:$CC$3,0),0) -> 0.2169685151 | J67: =VLOOKUP($B67,retdat,MATCH(J$13,Data!$A$3:$CC$3,0),0) -> 0.1284228454 | K67: =VLOOKUP($B67,retdat,MATCH(K$13,Data!$A$3:$CC$3,0),0) -> 0.1075643948 | L67: =VLOOKUP($B67,retdat,MATCH(L$13,Data!$A$3:$CC$3,0),0) -> 0.1090435484 | M67: =VLOOKUP($B67,retdat,MATCH(M$13,Data!$A$3:$CC$3,0),0) -> 0.08781431142 | N67: =VLOOKUP($B67,retdat,MATCH(N$13,Data!$A$3:$CC$3,0),0) -> 0.05860833333 | O67: =VLOOKUP($B67,retdat,MATCH(O$13,Data!$A$3:$CC$3,0),0) -> 0.06798333333 | P67: =VLOOKUP($B67,retdat,MATCH(P$13,Data!$A$3:$CC$3,0),0) -> 0.039575 | Q67: =VLOOKUP($B67,retdat,MATCH(Q$13,Data!$A$3:$CC$3,0),0) -> 0.1400514312 | S67: =AVERAGE(C65:C67) -> 0.1043096457 | T67: =AVERAGE(D65:D67) -> 0.038625 | U67: =AVERAGE(E65:E67) -> 0.03209739535 | V67: =AVERAGE(F65:F67) -> 0.07300043942 | W67: =AVERAGE(G65:G67) -> 0.05479254651 | X67: =AVERAGE(H65:H67) -> 0.02378055556 | Y67: =AVERAGE(I65:I67) -> 0.07964582228 | Z67: =AVERAGE(J65:J67) -> 0.06939028371 | AA67: =AVERAGE(K65:K67) -> 0.0554243969 | AB67: =AVERAGE(L65:L67) -> 0.05255606339 | AC67: =AVERAGE(M65:M67) -> 0.09681235965 | AD67: =AVERAGE(N65:N67) -> 0.04774722222 | AE67: =AVERAGE(O65:O67) -> 0.05085277778 | AF67: =AVERAGE(P65:P67) -> 0.02783888889 | AG67: =AVERAGE(Q65:Q67) -> 0.01348151334 | AI67: =GEOMEAN(C141:OFFSET(C141,$AI$2-1,0))-1 -> 0.1040831959 | AJ67: =GEOMEAN(D141:OFFSET(D141,$AI$2-1,0))-1 -> 0.03858824012 | AK67: =GEOMEAN(E141:OFFSET(E141,$AI$2-1,0))-1 -> 0.029342852 | AL67: =GEOMEAN(F141:OFFSET(F141,$AI$2-1,0))-1 -> 0.06930503754 | AM67: =GEOMEAN(G141:OFFSET(G141,$AI$2-1,0))-1 -> 0.05466952773 | AN67: =GEOMEAN(H141:OFFSET(H141,$AI$2-1,0))-1 -> 0.02357265743 | AO67: =GEOMEAN(I141:OFFSET(I141,$AI$2-1,0))-1 -> 0.05703159166 | AP67: =GEOMEAN(J141:OFFSET(J141,$AI$2-1,0))-1 -> 0.06283811054 | AQ67: =GEOMEAN(K141:OFFSET(K141,$AI$2-1,0))-1 -> 0.02047812095 | AR67: =GEOMEAN(L141:OFFSET(L141,$AI$2-1,0))-1 -> 0.0181552922 | AS67: =GEOMEAN(M141:OFFSET(M141,$AI$2-1,0))-1 -> 0.09662994528 | AT67: =GEOMEAN(N141:OFFSET(N141,$AI$2-1,0))-1 -> 0.04769648917 | AU67: =GEOMEAN(O141:OFFSET(O141,$AI$2-1,0))-1 -> 0.05073366172 | AV67: =GEOMEAN(P141:OFFSET(P141,$AI$2-1,0))-1 -> 0.02778683568 | AW67: =GEOMEAN(Q141:OFFSET(Q141,$AI$2-1,0))-1 -> 0.002946214701 | AY67: 54 | AZ67: =IF(TRUNC($AY67/$AI$2)-$AY67/$AI$2 = 0,AI67,"") -> 0.1040831959 | BA67: =IF(TRUNC($AY67/$AI$2)-$AY67/$AI$2 = 0,AJ67,"") -> 0.03858824012 | BB67: =IF(TRUNC($AY67/$AI$2)-$AY67/$AI$2 = 0,AK67,"") -> 0.029342852 | BC67: =IF(TRUNC($AY67/$AI$2)-$AY67/$AI$2 = 0,AL67,"") -> 0.06930503754 | BD67: =IF(TRUNC($AY67/$AI$2)-$AY67/$AI$2 = 0,AM67,"") -> 0.05466952773 | BE67: =IF(TRUNC($AY67/$AI$2)-$AY67/$AI$2 = 0,AN67,"") -> 0.02357265743 | BF67: 0.05703159166 | BG67: 0.06283811054 | BH67: 0.02047812095 | BI67: 0.0181552922 | BJ67: 0.09662994528 | BK67: 0.04769648917 | BL67: 0.05073366172 | BM67: 0.02778683568 | BN67: 0.002946214701
AI68: ="Rolling overlap " &AI2&" year holding periods" -> Rolling overlap 3 year holding periods | AZ68: =AZ12 -> Nonoverlapping 3 year holding periods
C69: =C13 -> US Ag 32 States | D69: AAA | E69: Gold | F69: PPI | G69: CPI | H69: TBSM3M | I69: S&P500 | J69: Dow Jones | K69: Equity REITS | L69: Composite REITS | M69: US Ave Farm (all) | N69: BAA | O69: Mort30F | P69: TCM10Y | Q69: EAFE | S69: =S13 -> US Ag 32 States | T69: AAA | U69: Gold | V69: PPI | W69: CPI | X69: TBSM3M | Y69: S&P500 | Z69: Dow Jones | AA69: Equity REITS | AB69: Composite REITS | AC69: US Ave Farm (all) | AD69: BAA | AE69: Mort30F | AF69: TCM10Y | AG69: EAFE | AI69: =AI13 -> US Ag 32 States | AJ69: AAA | AK69: Gold | AL69: PPI | AM69: CPI | AN69: TBSM3M | AO69: S&P500 | AP69: Dow Jones | AQ69: Equity REITS | AR69: Composite REITS | AS69: US Ave Farm (all) | AT69: BAA | AU69: Mort30F | AV69: TCM10Y | AW69: EAFE | AZ69: =AZ13 -> US Ag 32 States | BA69: =BA13 -> AAA | BB69: Gold | BC69: PPI | BD69: CPI | BE69: TBSM3M | BF69: S&P500 | BG69: Dow Jones | BH69: Equity REITS | BI69: Composite REITS | BJ69: US Ave Farm (all) | BK69: BAA | BL69: Mort30F | BM69: TCM10Y | BN69: EAFE
B70: =TRANSPOSE(C69:Q69) -> US Ag 32 States | C70: =CORREL($C$14:$C$67,C14:C67) -> 1 | D70: 0.1587797165 | E70: 0.2710054263 | F70: 0.5486782166 | G70: 0.6709493989 | H70: 0.3319285136 | I70: -0.2885972524 | J70: -0.3618117396 | K70: -0.09453564544 | L70: -0.1504632907 | M70: 0.9912961359 | N70: 0.1340445877 | O70: 0.1632142952 | P70: 0.2101987462 | Q70: -0.2228853086 | R70: =TRANSPOSE(S69:AG69) -> US Ag 32 States | S70: =CORREL($S$14:$S$67,S14:S67) -> 1 | T70: 0.1758348086 | U70: 0.4554972949 | V70: 0.7260844425 | W70: 0.7338679513 | X70: 0.3247287662 | Y70: -0.3126799768 | Z70: -0.4531874179 | AA70: 0.008157661405 | AB70: -0.06420076242 | AC70: 0.994484529 | AD70: 0.1608593881 | AE70: 0.177200034 | AF70: 0.2219902016 | AG70: -0.1819912734 | AH70: =TRANSPOSE(AI69:AW69) -> US Ag 32 States | AI70: =CORREL($AI$14:$AI$67,AI14:AI67) -> 1 | AJ70: 0.172236232 | AK70: 0.3900374977 | AL70: 0.7262133142 | AM70: 0.7315661176 | AN70: 0.3212143098 | AO70: -0.3106032807 | AP70: -0.4556764872 | AQ70: 0.002394758878 | AR70: -0.1193317368 | AS70: 0.9945676401 | AT70: 0.1567313783 | AU70: 0.1731227598 | AV70: 0.2186882486 | AW70: -0.1666629625 | AZ70: =CORREL($AZ$14:$AZ$67,AZ14:AZ67) -> 1 | BA70: 0.1995075094 | BB70: 0.2121978255 | BC70: 0.7400432481 | BD70: 0.7332426396 | BE70: 0.3668138679 | BF70: -0.4137598735 | BG70: -0.5711655911 | BH70: -0.1001836462 | BI70: -0.197868094 | BJ70: 0.9952194414 | BK70: 0.1839564917 | BL70: 0.1950319984 | BM70: 0.2477908975 | BN70: -0.337618615
B71: AAA | D71: =CORREL($D$14:$D$67,D14:D67) -> 1 | E71: -0.1230619151 | F71: 0.100375911 | G71: 0.471097526 | H71: 0.9116836768 | I71: -0.02012247941 | J71: -0.0007819282341 | K71: 0.1276905202 | L71: 0.07978346319 | M71: 0.1769074495 | N71: 0.993799165 | O71: 0.9245887702 | P71: 0.9930189812 | Q71: 0.1011638208 | R71: AAA | T71: =CORREL($T$14:$T$67,T14:T67) -> 1 | U71: -0.09315388883 | V71: 0.1504329538 | W71: 0.5476346454 | X71: 0.9442976153 | Y71: 0.01913549488 | Z71: 0.0430459892 | AA71: 0.2575031153 | AB71: 0.1567818843 | AC71: 0.1967883976 | AD71: 0.9959479042 | AE71: 0.9833928586 | AF71: 0.9951988179 | AG71: 0.2890859058 | AH71: AAA | AJ71: =CORREL($AJ$14:$AJ$67,AJ14:AJ67) -> 1 | AK71: -0.1561871856 | AL71: 0.1582886656 | AM71: 0.5478510812 | AN71: 0.9443355419 | AO71: 0.03441316325 | AP71: 0.03930828515 | AQ71: 0.2709266844 | AR71: 0.1543909902 | AS71: 0.1933060982 | AT71: 0.9959552637 | AU71: 0.9830596434 | AV71: 0.9951922837 | AW71: 0.2855200821 | BA71: =CORREL($BA$14:$BA$67,BA14:BA67) -> 1 | BB71: -0.1307795408 | BC71: 0.2430447799 | BD71: 0.5486438265 | BE71: 0.9367225416 | BF71: -0.01187629309 | BG71: -0.009372154801 | BH71: 0.2549733831 | BI71: 0.1449440721 | BJ71: 0.2250176557 | BK71: 0.9968786179 | BL71: 0.9616773381 | BM71: 0.9952666056 | BN71: 0.2007588515
B72: Gold | E72: =CORREL($E$14:$E$67,E14:E67) -> 1 | F72: 0.4653203203 | G72: 0.3582987708 | H72: 0.007523754532 | I72: -0.1956867122 | J72: -0.2476369624 | K72: -0.0870524574 | L72: -0.1923302692 | M72: 0.2859850085 | N72: -0.1262005566 | O72: -0.08882822148 | P72: -0.09705278802 | Q72: 0.005088651761 | R72: Gold | U72: =CORREL($U$14:$U$67,U14:U67) -> 1 | V72: 0.697235961 | W72: 0.4725626607 | X72: 0.02435967096 | Y72: -0.5009629979 | Z72: -0.6323070058 | AA72: -0.2152628209 | AB72: -0.3160385203 | AC72: 0.4686116714 | AD72: -0.08658414413 | AE72: -0.090353588 | AF72: -0.0598747153 | AG72: 0.008211133088 | AH72: Gold | AK72: =CORREL($AK$14:$AK$67,AK14:AK67) -> 1 | AL72: 0.6430066955 | AM72: 0.3791184637 | AN72: -0.05058181502 | AO72: -0.4915439297 | AP72: -0.6006945525 | AQ72: -0.2361867764 | AR72: -0.3394600916 | AS72: 0.4053901781 | AT72: -0.1522559288 | AU72: -0.1579497357 | AV72: -0.1247049664 | AW72: -0.03834518888 | BB72: =CORREL($BB$14:$BB$67,BB14:BB67) -> 1 | BC72: 0.4610247996 | BD72: 0.2595108438 | BE72: -0.07960020141 | BF72: -0.4665654721 | BG72: -0.499261586 | BH72: -0.1838459921 | BI72: -0.2449317171 | BJ72: 0.2302388295 | BK72: -0.1023563194 | BL72: -0.1909020286 | BM72: -0.1138517878 | BN72: -0.0295927541
B73: PPI | F73: =CORREL($F$14:$F$67,F14:F67) -> 1 | G73: 0.7690070934 | H73: 0.2308870881 | I73: -0.1521719462 | J73: -0.1984546572 | K73: 0.003659056611 | L73: -0.117862092 | M73: 0.5554751853 | N73: 0.08169367908 | O73: 0.1248285192 | P73: 0.1454761303 | Q73: -0.04564289288 | R73: PPI | V73: =CORREL($V$14:$V$67,V14:V67) -> 1 | W73: 0.8221780064 | X73: 0.3218871747 | Y73: -0.3134721773 | Z73: -0.4584232265 | AA73: -0.0708032784 | AB73: -0.1830659886 | AC73: 0.730832492 | AD73: 0.1547256475 | AE73: 0.1859039674 | AF73: 0.2011714875 | AG73: -0.04370488827 | AH73: PPI | AL73: =CORREL($AL$14:$AL$67,AL14:AL67) -> 1 | AM73: 0.8235813457 | AN73: 0.3277819976 | AO73: -0.3133286006 | AP73: -0.4514191853 | AQ73: -0.06767714154 | AR73: -0.2227069788 | AS73: 0.731710548 | AT73: 0.1620472892 | AU73: 0.1924581875 | AV73: 0.209295982 | AW73: -0.03341224499 | BC73: =CORREL($BC$14:$BC$67,BC14:BC67) -> 1 | BD73: 0.8589713782 | BE73: 0.3937814747 | BF73: -0.3170188247 | BG73: -0.4335314082 | BH73: -0.01149220355 | BI73: -0.1571107484 | BJ73: 0.7439759142 | BK73: 0.2531860939 | BL73: 0.2644676495 | BM73: 0.2880117434 | BN73: -0.1358679287
B74: CPI | G74: =CORREL($G$14:$G$67,G14:G67) -> 1 | H74: 0.6430409621 | I74: -0.1660697973 | J74: -0.2302730202 | K74: -0.01195423497 | L74: -0.1197493574 | M74: 0.6685193534 | N74: 0.4578113751 | O74: 0.4607119952 | P74: 0.5248027759 | Q74: -0.06653299152 | R74: CPI | W74: =CORREL($W$14:$W$67,W14:W67) -> 1 | X74: 0.7022981574 | Y74: -0.1830367494 | Z74: -0.335745751 | AA74: 0.08465161268 | AB74: -0.0406002791 | AC74: 0.7338833934 | AD74: 0.5481896614 | AE74: 0.5838787127 | AF74: 0.5968566364 | AG74: 0.04721549537 | AH74: CPI | AM74: =CORREL($AM$14:$AM$67,AM14:AM67) -> 1 | AN74: 0.702267699 | AO74: -0.1797074507 | AP74: -0.3312668846 | AQ74: 0.08693786061 | AR74: -0.07915554581 | AS74: 0.7320327058 | AT74: 0.5481520149 | AU74: 0.5836800431 | AV74: 0.5972505585 | AW74: 0.06359048782 | BD74: =CORREL($BD$14:$BD$67,BD14:BD67) -> 1 | BE74: 0.7179401661 | BF74: -0.270587262 | BG74: -0.3949274946 | BH74: 0.01209826513 | BI74: -0.1295889693 | BJ74: 0.7352296267 | BK74: 0.5540672498 | BL74: 0.5830673589 | BM74: 0.5960227269 | BN74: -0.07720265107
B75: TBSM3M | H75: =CORREL($H$14:$H$67,H14:H67) -> 1 | I75: -0.02213601126 | J75: -0.03828110544 | K75: 0.03470522921 | L75: -0.02760346615 | M75: 0.3457155335 | N75: 0.8942690705 | O75: 0.8694776954 | P75: 0.939505842 | Q75: 0.05855215556 | R75: TBSM3M | X75: =CORREL($X$14:$X$67,X14:X67) -> 1 | Y75: 0.03124768495 | Z75: 0.005821163512 | AA75: 0.1534842391 | AB75: 0.05236923407 | AC75: 0.3458582899 | AD75: 0.93424157 | AE75: 0.9543353879 | AF75: 0.9641671638 | AG75: 0.2494350162 | AH75: TBSM3M | AN75: =CORREL($AN$14:$AN$67,AN14:AN67) -> 1 | AO75: 0.0451307761 | AP75: 0.006241772658 | AQ75: 0.1691352273 | AR75: 0.04977882638 | AS75: 0.342497909 | AT75: 0.9342334649 | AU75: 0.9539684804 | AV75: 0.9642315107 | AW75: 0.2561409998 | BE75: =CORREL($BE$14:$BE$67,BE14:BE67) -> 1 | BF75: -0.08553992281 | BG75: -0.1218237578 | BH75: 0.05335114397 | BI75: -0.03980925307 | BJ75: 0.3915007949 | BK75: 0.9323765231 | BL75: 0.9332732079 | BM75: 0.9577422175 | BN75: 0.08380302818
B76: S&P500 | I76: =CORREL($I$14:$I$67,I14:I67) -> 1 | J76: 0.955132352 | K76: 0.6177770775 | L76: 0.6408971488 | M76: -0.280598336 | N76: -0.02721916053 | O76: -0.005178096153 | P76: -0.003917727676 | Q76: 0.7346037429 | R76: S&P500 | Y76: =CORREL($Y$14:$Y$67,Y14:Y67) -> 1 | Z76: 0.944576676 | AA76: 0.4161365947 | AB76: 0.4287427194 | AC76: -0.3079749665 | AD76: -0.004869621752 | AE76: 0.02999904656 | AF76: 0.04176744398 | AG76: 0.5519981106 | AH76: S&P500 | AO76: =CORREL($AO$14:$AO$67,AO14:AO67) -> 1 | AP76: 0.9536805691 | AQ76: 0.4808645156 | AR76: 0.5025488965 | AS76: -0.3028478817 | AT76: 0.006468324674 | AU76: 0.04237642304 | AV76: 0.05650978969 | AW76: 0.6323307209 | BF76: =CORREL($BF$14:$BF$67,BF14:BF67) -> 1 | BG76: 0.957285139 | BH76: 0.3937178245 | BI76: 0.4323735418 | BJ76: -0.4076343003 | BK76: -0.02910023711 | BL76: -0.02216093456 | BM76: -0.005778307101 | BN76: 0.7354830425
B77: Dow Jones | J77: =CORREL($J$14:$J$67,J14:J67) -> 1 | K77: 0.5732023831 | L77: 0.6194166202 | M77: -0.3529443868 | N77: -0.00638295405 | O77: -0.008819078706 | P77: 0.002837777863 | Q77: 0.7119705056 | R77: Dow Jones | Z77: =CORREL($Z$14:$Z$67,Z14:Z67) -> 1 | AA77: 0.3564279553 | AB77: 0.389168681 | AC77: -0.4409107984 | AD77: 0.01691788098 | AE77: 0.03695385178 | AF77: 0.04861230565 | AG77: 0.5185142912 | AH77: Dow Jones | AP77: =CORREL($AP$14:$AP$67,AP14:AP67) -> 1 | AQ77: 0.4184608648 | AR77: 0.4643632078 | AS77: -0.4416182936 | AT77: 0.009999393536 | AU77: 0.033642209 | AV77: 0.0454239964 | AW77: 0.586270008 | BG77: =CORREL($BG$14:$BG$67,BG14:BG67) -> 1 | BH77: 0.3218494423 | BI77: 0.3722712773 | BJ77: -0.5594612556 | BK77: -0.02963551232 | BL77: -0.03438742185 | BM77: -0.01665860882 | BN77: 0.7011197372
B78: Equity REITS | K78: =CORREL($K$14:$K$67,K14:K67) -> 1 | L78: 0.9603373166 | M78: -0.07835481317 | N78: 0.1209394966 | O78: 0.1245955401 | P78: 0.1292294843 | Q78: 0.4911254902 | R78: Equity REITS | AA78: =CORREL($AA$14:$AA$67,AA14:AA67) -> 1 | AB78: 0.959704043 | AC78: 0.02498975853 | AD78: 0.2514142006 | AE78: 0.2667445457 | AF78: 0.2560022924 | AG78: 0.3897196815 | AH78: Equity REITS | AQ78: =CORREL($AQ$14:$AQ$67,AQ14:AQ67) -> 1 | AR78: 0.9460771259 | AS78: 0.02138381316 | AT78: 0.2605387502 | AU78: 0.2746747854 | AV78: 0.2694020785 | AW78: 0.4969723083 | BH78: =CORREL($BH$14:$BH$67,BH14:BH67) -> 1 | BI78: 0.9578696376 | BJ78: -0.08476449786 | BK78: 0.2544904003 | BL78: 0.2553053357 | BM78: 0.2293657204 | BN78: 0.4292873945
B79: Composite REITS | L79: =CORREL($L$14:$L$67,L14:L67) -> 1 | M79: -0.1392327589 | N79: 0.08651113142 | O79: 0.07489835892 | P79: 0.07470455689 | Q79: 0.4673407462 | R79: Composite REITS | AB79: =CORREL($AB$14:$AB$67,AB14:AB67) -> 1 | AC79: -0.05281872167 | AD79: 0.1584960537 | AE79: 0.1658863378 | AF79: 0.1480690722 | AG79: 0.280216327 | AH79: Composite REITS | AR79: =CORREL($AR$14:$AR$67,AR14:AR67) -> 1 | AS79: -0.1056477562 | AT79: 0.1518471075 | AU79: 0.1606132709 | AV79: 0.1448255369 | AW79: 0.3950552765 | BI79: =CORREL($BI$14:$BI$67,BI14:BI67) -> 1 | BJ79: -0.1832239819 | BK79: 0.1460312911 | BL79: 0.1414251769 | BM79: 0.1174472793 | BN79: 0.3602305581
B80: US Ave Farm (all) | M80: =CORREL($M$14:$M$67,M14:M67) -> 1 | N80: =CORREL($M$14:$M$67,N14:N67) -> 0.1483820553 | O80: =CORREL($M$14:$M$67,O14:O67) -> 0.1785648455 | P80: =CORREL($M$14:$M$67,P14:P67) -> 0.2302790086 | Q80: =CORREL($M$14:$M$67,Q14:Q67) -> -0.197484326 | R80: US Ave Farm (all) | AC80: =CORREL($AC$14:$AC$67,AC14:AC67) -> 1 | AD80: =CORREL($AC$14:$AC$67,AD14:AD67) -> 0.1776974915 | AE80: =CORREL($AC$14:$AC$67,AE14:AE67) -> 0.1973449271 | AF80: =CORREL($AC$14:$AC$67,AF14:AF67) -> 0.2451331446 | AG80: =CORREL($AC$14:$AC$67,AG14:AG67) -> -0.1395304494 | AH80: US Ave Farm (all) | AS80: =CORREL($AS$14:$AS$67,AS14:AS67) -> 1 | AT80: =CORREL($AS$14:$AS$67,AT14:AT67) -> 0.1737263002 | AU80: =CORREL($AS$14:$AS$67,AU14:AU67) -> 0.1933633158 | AV80: =CORREL($AS$14:$AS$67,AV14:AV67) -> 0.2419471411 | AW80: =CORREL($AS$14:$AS$67,AW14:AW67) -> -0.1237259021 | BJ80: =CORREL($BJ$14:$BJ$67,BJ14:BJ67) -> 1 | BK80: =CORREL($BJ$14:$BJ$67,BK14:BK67) -> 0.2063380861 | BL80: =CORREL($BJ$14:$BJ$67,BL14:BL67) -> 0.2167735645 | BM80: =CORREL($BJ$14:$BJ$67,BM14:BM67) -> 0.2746649912 | BN80: =CORREL($BJ$14:$BJ$67,BN14:BN67) -> -0.3052405462
B81: BAA | N81: =CORREL($N$14:$N$67,N14:N67) -> 1 | O81: =CORREL($N$14:$N$67,O14:O67) -> 0.9224838309 | P81: =CORREL($N$14:$N$67,P14:P67) -> 0.9817789277 | Q81: =CORREL($N$14:$N$67,Q14:Q67) -> 0.09426147807 | R81: BAA | AD81: =CORREL($AD$14:$AD$67,AD14:AD67) -> 1 | AE81: =CORREL($AD$14:$AD$67,AE14:AE67) -> 0.9824120163 | AF81: =CORREL($AD$14:$AD$67,AF14:AF67) -> 0.9884420564 | AG81: =CORREL($AD$14:$AD$67,AG14:AG67) -> 0.2717234321 | AH81: BAA | AT81: =CORREL($AT$14:$AT$67,AT14:AT67) -> 1 | AU81: =CORREL($AT$14:$AT$67,AU14:AU67) -> 0.9820656235 | AV81: =CORREL($AT$14:$AT$67,AV14:AV67) -> 0.9884303627 | AW81: =CORREL($AT$14:$AT$67,AW14:AW67) -> 0.2627245897 | BK81: =CORREL($BK$14:$BK$67,BK14:BK67) -> 1 | BL81: =CORREL($BK$14:$BK$67,BL14:BL67) -> 0.9624863948 | BM81: =CORREL($BK$14:$BK$67,BM14:BM67) -> 0.9908071182 | BN81: =CORREL($BK$14:$BK$67,BN14:BN67) -> 0.1887167128
B82: Mort30F | O82: =CORREL($O$14:$O$67,O14:O67) -> 1 | P82: =CORREL($O$14:$O$67,P14:P67) -> 0.9216788067 | Q82: =CORREL($O$14:$O$67,Q14:Q67) -> 0.1360670122 | R82: Mort30F | AE82: =CORREL($AE$14:$AE$67,AE14:AE67) -> 1 | AF82: =CORREL($AE$14:$AE$67,AF14:AF67) -> 0.9845144612 | AG82: =CORREL($AE$14:$AE$67,AG14:AG67) -> 0.2830222436 | AH82: Mort30F | AU82: =CORREL($AU$14:$AU$67,AU14:AU67) -> 1 | AV82: =CORREL($AU$14:$AU$67,AV14:AV67) -> 0.9841527066 | AW82: =CORREL($AU$14:$AU$67,AW14:AW67) -> 0.2823105847 | BL82: =CORREL($BL$14:$BL$67,BL14:BL67) -> 1 | BM82: =CORREL($BL$14:$BL$67,BM14:BM67) -> 0.9634626549 | BN82: =CORREL($BL$14:$BL$67,BN14:BN67) -> 0.1634767764
B83: TCM10Y | P83: =CORREL($P$14:$P$67,P14:P67) -> 1 | Q83: =CORREL($P$14:$P$67,Q14:Q67) -> 0.1151411276 | R83: TCM10Y | AF83: =CORREL($AF$14:$AF$67,AF14:AF67) -> 1 | AG83: =CORREL($AF$14:$AF$67,AG14:AG67) -> 0.3114501374 | AH83: TCM10Y | AV83: =CORREL($AV$14:$AV$67,AV14:AV67) -> 1 | AW83: =CORREL($AV$14:$AV$67,AW14:AW67) -> 0.3099012667 | BM83: =CORREL($BM$14:$BM$67,BM14:BM67) -> 1 | BN83: =CORREL($BM$14:$BM$67,BN14:BN67) -> 0.2077795267
B84: EAFE | Q84: =CORREL($Q$14:$Q$67,Q14:Q67) -> 1 | R84: EAFE | AG84: =CORREL($AG$14:$AG$67,AG14:AG67) -> 1 | AH84: EAFE | AW84: =CORREL($AW$14:$AW$67,AW14:AW67) -> 1 | BN84: =CORREL($BN$14:$BN$67,BN14:BN67) -> 1
AZ88: Difference
BA89: =BA70-AJ70 -> 0.02727127747 | BB89: -0.1778396722 | BC89: 0.0138299339 | BD89: 0.001676521992 | BE89: 0.04559955807 | BF89: -0.1031565928 | BG89: -0.1154891039 | BH89: -0.102578405 | BI89: -0.07853635717 | BJ89: 0.0006518013053 | BK89: 0.02722511345 | BL89: 0.02190923865 | BM89: 0.02910264892 | BN89: -0.1709556525
B90: 1970 | C90: =1+C14 -> 1.111594035 | D90: 1.0804 | E90: 1.062546205 | F90: 1.021799228 | G90: 1.054206818 | H90: 1.063916667 | I90: 1.000977146 | J90: 1.046979907 | K90: 1 | L90: 1 | M90: 1.110252576 | N90: 1.09105 | O90: 1 | P90: 1.073483333 | Q90: 0.8615604439 | BB90: =BB71-AK71 -> 0.0254076448 | BC90: 0.08475611437 | BD90: 0.0007927452833 | BE90: -0.007613000273 | BF90: -0.04628945634 | BG90: -0.04868043995 | BH90: -0.01595330134 | BI90: -0.009446918143 | BJ90: 0.03171155748 | BK90: 0.000923354248 | BL90: -0.02138230538 | BM90: 7.432194368e-05 | BN90: -0.08476123059
B91: 1971 | C91: =1+C15 -> 1.110851876 | D91: 1.073866667 | E91: 1.149561411 | F91: 1.039635307 | G91: 1.032141209 | H91: 1.043325 | I91: 1.102437093 | J91: 1.059354647 | K91: 1 | L91: 1 | M91: 1.113527429 | N91: 1.085633333 | O91: 1.075511111 | P91: 1.061591667 | Q91: 1.232255284 | BC91: =BC72-AL72 -> -0.1819818959 | BD91: -0.1196076199 | BE91: -0.02901838639 | BF91: 0.02497845762 | BG91: 0.1014329665 | BH91: 0.05234078431 | BI91: 0.09452837451 | BJ91: -0.1751513486 | BK91: 0.04989960939 | BL91: -0.03295229294 | BM91: 0.01085317855 | BN91: 0.008752434784
B92: 1972 | C92: =1+C16 -> 1.142276032 | D92: 1.072133333 | E92: 1.385174781 | F92: 1.062755845 | G92: 1.033495954 | H92: 1.040725 | I92: 1.145253486 | J92: 1.13611175 | K92: 1.077056056 | L92: 1.106092404 | M92: 1.141753826 | N92: 1.08155 | O92: 1.073841667 | P92: 1.0621 | Q92: 1.287289639 | BD92: =BD73-AM73 -> 0.03539003251 | BE92: 0.06599947706 | BF92: -0.00369022406 | BG92: 0.01788777711 | BH92: 0.05618493799 | BI92: 0.06559623044 | BJ92: 0.01226536626 | BK92: 0.09113880476 | BL92: 0.07200946194 | BM92: 0.07871576142 | BN92: -0.1024556838
B93: 1973 | C93: =1+C17 -> 1.18773475 | D93: 1.074408333 | E93: 1.512986256 | F93: 1.142614107 | G93: 1.085637885 | H93: 1.070316667 | I93: 0.8092568035 | J93: 0.8187367066 | K93: 0.8313546342 | L93: 0.682316893 | M93: 1.179608141 | N93: 1.082408333 | O93: 1.080725 | P93: 1.068425 | Q93: 0.815862013 | BE93: =BE74-AN74 -> 0.01567246716 | BF93: -0.0908798113 | BG93: -0.06366061004 | BH93: -0.07483959549 | BI93: -0.05043342347 | BJ93: 0.003196920888 | BK93: 0.005915234955 | BL93: -0.0006126842119 | BM93: -0.001227831578 | BN93: -0.1407931389
B94: 1974 | C94: =1+C18 -> 1.295024599 | D94: 1.085658333 | E94: 1.542970415 | F94: 1.189678395 | G94: 1.114176829 | H94: 1.0783 | I94: 0.6473442072 | J94: 0.6772769733 | K94: 0.7591629969 | L94: 0.4512708878 | M94: 1.286628098 | N94: 1.094966667 | O94: 1.092183333 | P94: 1.075575 | Q94: 0.7043197799 | BF94: =BF75-AO75 -> -0.1306706989 | BG94: -0.1280655305 | BH94: -0.1157840833 | BI94: -0.08958807945 | BJ94: 0.04900288592 | BK94: -0.001856941818 | BL94: -0.02069527255 | BM94: -0.006489293212 | BN94: -0.1723379716
B95: 1975 | C95: =1+C19 -> 1.197423722 | D95: 1.088258333 | E95: 0.7233012636 | F95: 1.041031397 | G95: 1.068864411 | H95: 1.05775 | I95: 1.274209282 | J95: 1.324484314 | K95: 1.176466884 | L95: 1.309957168 | M95: 1.186989167 | N95: 1.1061 | O95: 1.090241667 | P95: 1.079875 | Q95: 1.271576575 | BG95: =BG76-AP76 -> 0.003604569916 | BH95: -0.08714669108 | BI95: -0.0701753547 | BJ95: -0.1047864186 | BK95: -0.03556856178 | BL95: -0.0645373576 | BM95: -0.06228809679 | BN95: 0.1031523216
B96: 1976 | C96: =1+C20 -> 1.224094659 | D96: 1.084341667 | E96: 0.9607328176 | F96: 1.045834536 | G96: 1.049132689 | H96: 1.049741667 | I96: 1.175200129 | J96: 1.164388368 | K96: 1.38925884 | L96: 1.398599825 | M96: 1.220286133 | N96: 1.097466667 | O96: 1.08855 | P96: 1.076116667 | Q96: 0.9964108661 | BH96: =BH77-AQ77 -> -0.0966114225 | BI96: -0.09209193051 | BJ96: -0.117842962 | BK96: -0.03963490585 | BL96: -0.06802963085 | BM96: -0.06208260521 | BN96: 0.1148497293
B97: 1977 | C97: =1+C21 -> 1.244104281 | D97: 1.080241667 | E97: 1.179762398 | F97: 1.057513906 | G97: 1.064645536 | H97: 1.052691667 | I97: 0.8778102843 | J97: 0.8104261713 | K97: 1.202322139 | L97: 1.174595834 | M97: 1.225539205 | N97: 1.089691667 | O97: 1.088483333 | P97: 1.074191667 | Q97: 1.136395193 | BI97: =BI78-AR78 -> 0.01179251178 | BJ97: =BJ78-AS78 -> -0.106148311 | BK97: =BK78-AT78 -> -0.006048349913 | BL97: =BL78-AU78 -> -0.01936944968 | BM97: =BM78-AV78 -> -0.04003635814 | BN97: =BN78-AW78 -> -0.06768491372
B98: 1978 | C98: =1+C22 -> 1.184992275 | D98: 1.08725 | E98: 1.258845676 | F98: 1.093660922 | G98: 1.086074609 | H98: 1.071883333 | I98: 1.010564399 | J98: 0.9679718376 | K98: 1.098355758 | L98: 0.9834587048 | M98: 1.174997807 | N98: 1.094883333 | O98: 1.0968 | P98: 1.0841 | Q98: 1.253974963 | BJ98: -0.07757622565 | BK98: -0.005815816369 | BL98: -0.01918809404 | BM98: -0.02737825757 | BN98: -0.03482471841
B99: 1979 | C99: =1+C23 -> 1.23092617 | D99: 1.096291667 | E99: 1.902249955 | F99: 1.137306925 | G99: 1.124469842 | H99: 1.100691667 | I99: 1.116082148 | J99: 1.041010797 | K99: 1.306436764 | L99: 1.266402558 | M99: 1.230786598 | N99: 1.1069 | O99: 1.112491667 | P99: 1.094425 | Q99: 1.01797298 | BK99: 0.03261178588 | BL99: 0.02341024867 | BM99: 0.03271785018 | BN99: -0.1815146441
B100: 1980 | C100: =1+C24 -> 1.217132616 | D100: 1.119383333 | E100: 1.141374093 | F100: 1.117516547 | G100: 1.116481799 | H100: 1.114341667 | I100: 1.229313104 | J100: 1.139238221 | K100: 1.218083788 | L100: 1.247012076 | M100: 1.220436166 | N100: 1.136683333 | O100: 1.138416667 | P100: 1.1146 | Q100: 1.174064249 | BL100: -0.01957922872 | BM100: 0.002376755476 | BN100: -0.07400787693
B101: 1981 | C101: =1+C25 -> 1.163722455 | D101: 1.141708333 | E101: 0.6054962158 | F101: 1.051932749 | G101: 1.085370371 | H101: 1.14025 | I101: 0.897630489 | J101: 0.9031325917 | K101: 1.058276545 | L101: 1.082276839 | M101: 1.150726553 | N101: 1.160441667 | O101: 1.167166667 | P101: 1.139108333 | Q101: 0.950298504 | BM101: -0.02069005168 | BN101: -0.1188338083
B102: 1982 | C102: =1+C26 -> 1.053710397 | D102: 1.137875 | E102: 1.139269614 | F102: 1.017060123 | G102: 1.037543512 | H102: 1.106141667 | I102: 1.137684324 | J102: 1.178982656 | K102: 1.195574198 | L102: 1.27493086 | M102: 1.050224277 | N102: 1.161133333 | O102: 1.159608333 | P102: 1.130016667 | Q102: 0.9526109343 | BN102: -0.1021217399
B103: 1983 | C103: =1+C27 -> 1.015210448 | D103: 1.120416667 | E103: 0.8220026326 | F103: 1.017751945 | G103: 1.037171532 | H103: 1.086108333 | I103: 1.159317708 | J103: 1.184548729 | K103: 1.267246556 | L103: 1.226887472 | M103: 1.011633862 | N103: 1.135541667 | O103: 1.132233333 | P103: 1.11105 | Q103: 1.189906795
B104: 1984 | C104: =1+C28 -> 1.076881176 | D104: 1.127091667 | E104: 0.7846061537 | F104: 1.01166194 | G104: 1.039637862 | H104: 1.095225 | I104: 1.013908765 | J104: 0.9619418081 | K104: 1.190019152 | L104: 1.138154735 | M104: 1.075475026 | N104: 1.1419 | O104: 1.1386 | P104: 1.124383333 | Q104: 1.048983137
B105: 1985 | C105: =1+C29 -> 0.9531012026 | D105: 1.113733333 | E105: 1.058275028 | F105: 1.000965717 | G105: 1.037213596 | H105: 1.074791667 | I105: 1.233754362 | J105: 1.244181829 | K105: 1.174762671 | L105: 1.05751321 | M105: 0.9591734472 | N105: 1.12715 | O105: 1.123516667 | P105: 1.106233333 | Q105: 1.425065119
B106: 1986 | C106: =1+C30 -> 0.9760301399 | D106: 1.090208333 | E106: 1.173588101 | F106: 0.9616283471 | G106: 1.011802225 | H106: 1.059783333 | I106: 1.136455691 | J106: 1.203622775 | K106: 1.175277856 | L106: 1.175429939 | M106: 0.9815069486 | N106: 1.103908333 | O106: 1.101225 | P106: 1.076825 | Q106: 1.511622832
B107: 1987 | C107: =1+C31 -> 1.006739451 | D107: 1.093758333 | E107: 1.219355033 | F107: 1.044146452 | G107: 1.042409182 | H107: 1.05775 | I107: 1.020072212 | J107: 1.022322821 | K107: 0.9629227079 | L107: 0.8871833461 | M107: 1.019489914 | N107: 1.105758333 | O107: 1.101958333 | P107: 1.083841667 | Q107: 1.208514139
B108: 1988 | C108: =1+C32 -> 1.118728414 | D108: 1.0971 | E108: 0.834475233 | F108: 1.045035753 | G108: 1.043172172 | H108: 1.066675 | I108: 1.116901241 | J108: 1.112012573 | K108: 1.12650426 | L108: 1.107556811 | M108: 1.112454707 | N108: 1.1083 | O108: 1.103533333 | P108: 1.088458333 | Q108: 1.23635056
B109: 1989 | C109: =1+C33 -> 1.124789212 | D109: 1.092575 | E109: 0.9711916778 | F109: 1.036039936 | G109: 1.045351901 | H109: 1.081116667 | I109: 1.240987148 | J109: 1.238682073 | K109: 1.084729129 | L109: 0.9816978483 | M109: 1.125367064 | N109: 1.101775 | O109: 1.103075 | P109: 1.084983333 | Q109: 1.088197179
B110: 1990 | C110: =1+C34 -> 1.094940448 | D110: 1.093216667 | E110: 0.9683969622 | F110: 1.049211483 | G110: 1.060671195 | H110: 1.074933333 | I110: 0.9321585391 | J110: 0.9556258301 | K110: 0.8333344621 | L110: 0.8095043222 | M110: 1.086173384 | N110: 1.10355 | O110: 1.101508333 | P110: 1.0855 | Q110: 0.7162357038
B111: 1991 | C111: =1+C35 -> 1.088266537 | D111: 1.087691667 | E111: 0.9105375259 | F111: 0.9761284487 | G111: 1.029370687 | H111: 1.05375 | I111: 1.233542927 | J111: 1.184963266 | K111: 1.305248353 | L111: 1.30512217 | M111: 1.091936762 | N111: 1.098016667 | O111: 1.092166667 | P111: 1.078583333 | Q111: 1.097004834
B112: 1992 | C112: =1+C36 -> 1.076788204 | D112: 1.0814 | E112: 0.9409492487 | F112: 1.014561285 | G112: 1.029235594 | H112: 1.034316667 | I112: 1.043674859 | J112: 1.040902779 | K112: 1.136187005 | L112: 1.114893601 | M112: 1.077965736 | N112: 1.089766667 | O112: 1.084241667 | P112: 1.0701 | Q112: 0.8504857057
B113: 1993 | C113: =1+C37 -> 1.102885141 | D113: 1.072191667 | E113: 1.162781737 | F113: 1.008467451 | G113: 1.027721803 | H113: 1.029975 | I113: 1.068173949 | J113: 1.12859283 | K113: 1.179438486 | L113: 1.17014066 | M113: 1.099440755 | N113: 1.0793 | O113: 1.073025 | P113: 1.058733333 | Q113: 1.266152781
B114: 1994 | C114: =1+C38 -> 1.118660291 | D114: 1.079625 | E114: 0.9780636365 | F114: 1.02744455 | G114: 1.025642431 | H114: 1.042466667 | I114: 0.984487439 | J114: 1.021164393 | K114: 1.031214862 | L114: 1.008023157 | M114: 1.154732411 | N114: 1.086225 | O114: 1.084008333 | P114: 1.0708 | Q114: 1.060531887
B115: 1995 | C115: =1+C39 -> 1.100284622 | D115: 1.0759 | E115: 1.009737175 | F115: 1.030697079 | G115: 1.025001302 | H115: 1.0549 | I115: 1.293495048 | J115: 1.288574903 | K115: 1.142079979 | L115: 1.168129625 | M115: 1.092861506 | N115: 1.082008333 | O115: 1.079233333 | P115: 1.0658 | Q115: 1.090026662
B116: 1996 | C116: =1+C40 -> 1.087987046 | D116: 1.0737 | E116: 0.9530492284 | F116: 1.026689182 | G116: 1.033229894 | H116: 1.050058333 | I116: 1.184516366 | J116: 1.231228658 | K116: 1.302077955 | L116: 1.305670934 | M116: 1.080981231 | N116: 1.080541667 | O116: 1.078091667 | P116: 1.064383333 | Q116: 1.043036109
B117: 1997 | C117: =1+C41 -> 1.074422557 | D117: 1.072616667 | E117: 0.759096419 | F117: 0.9820237442 | G117: 1.016828069 | H117: 1.050608333 | I117: 1.270089586 | J117: 1.204096311 | K117: 1.184487471 | L117: 1.17278374 | M117: 1.069688272 | N117: 1.078625 | O117: 1.075633333 | P117: 1.063525 | Q117: 1.002375778
B118: 1998 | C118: =1+C42 -> 1.091348451 | D118: 1.065316667 | E118: 0.991695454 | F118: 0.9679459737 | G118: 1.015941478 | H118: 1.047766667 | I118: 1.236403964 | J118: 1.149270125 | K118: 0.807601495 | L118: 0.7914656015 | M118: 1.083622488 | N118: 1.072208333 | O118: 1.069533333 | P118: 1.052641667 | Q118: 1.167466322
B119: 1999 | C119: =1+C43 -> 1.097715322 | D119: 1.070416667 | E119: 1.008476826 | F119: 1.039909526 | G119: 1.0264121 | H119: 1.046383333 | I119: 1.178364109 | J119: 1.224911864 | K119: 0.9526989094 | L119: 0.9330484897 | M119: 1.094302105 | N119: 1.078708333 | O119: 1.074525 | P119: 1.056366667 | Q119: 1.225270764
B120: 2000 | C120: =1+C44 -> 1.096744901 | D120: 1.076225 | E120: 0.9440264744 | F120: 1.063657852 | G120: 1.033783061 | H120: 1.058166667 | I120: 0.8930917688 | J120: 0.9363395756 | K120: 1.234007313 | L120: 1.23024001 | M120: 1.093686896 | N120: 1.083641667 | O120: 1.08025 | P120: 1.060291667 | Q120: 0.8350557269
B121: 2001 | C121: =1+C45 -> 1.091869354 | D121: 1.070825 | E121: 1.007441726 | F121: 0.9386868152 | G121: 1.015909426 | H121: 1.033883333 | I121: 0.8602471466 | J121: 0.9263043669 | K121: 1.130439568 | L121: 1.144117849 | M121: 1.090150355 | N121: 1.079475 | O121: 1.070083333 | P121: 1.050175 | Q121: 0.7436734484
B122: 2002 | C122: =1+C46 -> 1.088949297 | D122: 1.064916667 | E122: 1.227690162 | F122: 1.036785757 | G122: 1.024500112 | H122: 1.016025 | I122: 0.7338710802 | J122: 0.8165198688 | K122: 1.037496046 | L122: 1.050841113 | M122: 1.088030891 | N122: 1.078016667 | O122: 1.06505 | P122: 1.046108333 | Q122: 0.8074265846
B123: 2003 | C123: =1+C47 -> 1.086216414 | D123: 1.056666667 | E123: 1.181385059 | F123: 1.048467636 | G123: 1.0201477 | H123: 1.010108333 | I123: 1.234126189 | J123: 1.225718387 | K123: 1.315786229 | L123: 1.325457111 | M123: 1.084322744 | N123: 1.067658333 | O123: 1.058216667 | P123: 1.04015 | Q123: 1.302195979
B124: 2004 | C124: =1+C48 -> 1.091613524 | D124: 1.056283333 | E124: 1.04543835 | F124: 1.073903138 | G124: 1.032876768 | H124: 1.013716667 | I124: 1.086117628 | J124: 1.03099472 | K124: 1.274425818 | L124: 1.265509358 | M124: 1.108778915 | N124: 1.063933333 | O124: 1.058358333 | P124: 1.042741667 | Q124: 1.162043945
B125: 2005 | C125: =1+C49 -> 1.207390527 | D125: 1.05235 | E125: 1.163551454 | F125: 1.081782461 | G125: 1.032840304 | H125: 1.031466667 | I125: 1.029568736 | J125: 0.9939061722 | K125: 1.114781513 | L125: 1.079625649 | M125: 1.220214444 | N125: 1.060641667 | O125: 1.058708333 | P125: 1.0429 | Q125: 1.103138951
B126: 2006 | C126: =1+C50 -> 1.148415259 | D126: 1.055875 | E126: 1.208613549 | F126: 1.015825041 | G126: 1.024926515 | H126: 1.047266667 | I126: 1.127684357 | J126: 1.150898371 | K126: 1.300553914 | L126: 1.292813822 | M126: 1.152860393 | N126: 1.064791667 | O126: 1.064083333 | P126: 1.047916667 | Q126: 1.210839348
B127: 2007 | C127: =1+C51 -> 1.139734791 | D127: 1.055558333 | E127: 1.277044203 | F127: 1.075573426 | G127: 1.040266449 | H127: 1.043533333 | I127: 1.03468716 | J127: 1.062339128 | K127: 0.8293096186 | L127: 0.8035983498 | M127: 1.131305111 | N127: 1.064825 | O127: 1.063366667 | P127: 1.046291667 | Q127: 1.082711916
B128: 2008 | C128: =1+C52 -> 1.101830947 | D128: 1.056316667 | E128: 1.042272217 | F128: 0.9559299217 | G128: 0.9997776953 | H128: 1.01365 | I128: 0.5141090304 | J128: 0.5869497434 | K128: 0.5263475388 | L128: 0.5245443325 | M128: 1.092245935 | N128: 1.074466667 | O128: 1.060725 | P128: 1.036666667 | Q128: 0.4006061313
B129: 2009 | C129: =1+C53 -> 0.9898824553 | D129: 1.053133333 | E129: 1.223430949 | F129: 1.0412666 | G129: 1.027752542 | H129: 1.0015 | I129: 1.210691329 | J129: 1.172434129 | K129: 1.246783628 | L129: 1.24530359 | M129: 0.9824793996 | N129: 1.072958333 | O129: 1.050425 | P129: 1.032566667 | Q129: 1.244883503
B130: 2010 | C130: =1+C54 -> 1.051106278 | D130: 1.049433333 | E130: 1.256511627 | F130: 1.063098687 | G130: 1.014275548 | H130: 1.001366667 | I130: 1.120290458 | J130: 1.104565132 | K130: 1.246445672 | L130: 1.243446651 | M130: 1.037764105 | N130: 1.060383333 | O130: 1.046883333 | P130: 1.032141667 | Q130: 1.047880911
B131: 2011 | C131: =1+C55 -> 1.091216103 | D131: 1.046391667 | E131: 1.085528005 | F131: 1.051872989 | G131: 1.030161211 | H131: 1.000525 | I131: 0.9999681939 | J131: 1.053809838 | K131: 1.079584617 | L131: 1.070502388 | M131: 1.077468018 | N131: 1.056641667 | O131: 1.044425 | P131: 1.027858333 | Q131: 0.8396036004
B132: 2012 | C132: =1+C56 -> 1.115785251 | D132: 1.036733333 | E132: 1.079389326 | F132: 1.008472515 | G132: 1.017442049 | H132: 1.000858333 | I132: 1.12580141 | J132: 1.07005395 | K132: 1.179825193 | L132: 1.180047288 | M132: 1.09703301 | N132: 1.04935 | O132: 1.036475 | P132: 1.018025 | Q132: 1.127110162
B133: 2013 | C133: =1+C57 -> 1.098817648 | D133: 1.04235 | E133: 0.6807541 | F133: 1.002478316 | G133: 1.015015091 | H133: 1.000583333 | I133: 1.259292206 | J133: 1.235067471 | K133: 1.028157193 | L133: 1.023135556 | M133: 1.085279067 | N133: 1.051016667 | O133: 1.040241667 | P133: 1.023508333 | Q133: 1.177524146
B134: 2014 | C134: =1+C58 -> 1.100106403 | D134: 1.041625 | E134: 1.001244555 | F134: 0.9749360313 | G134: 1.006509978 | H134: 1.000325 | I134: 1.1078731 | J134: 1.072498004 | K134: 1.247075621 | L134: 1.240816783 | M134: 1.090633781 | N134: 1.048541667 | O134: 1.0416 | P134: 1.025408333 | Q134: 0.9237075597
B135: 2015 | C135: =1+C59 -> 1.062350055 | D135: 1.038866667 | E135: 0.8709598098 | F135: 0.9290109388 | G135: 1.006366935 | H135: 1.000525 | I135: 0.9927074581 | J135: 0.9774139928 | K135: 1.027860574 | L135: 1.020298361 | M135: 1.056687765 | N135: 1.049991667 | O135: 1.038433333 | P135: 1.021358333 | Q135: 0.9664207087
B136: 2016 | C136: =1+C60 -> 1.031080836 | D136: 1.036658333 | E136: 1.077921446 | F136: 1.02529056 | G136: 1.020300532 | H136: 1.003175 | I136: 1.09107409 | J136: 1.125883584 | K136: 1.082770284 | L136: 1.089611222 | M136: 1.031631065 | N136: 1.047175 | O136: 1.036708333 | P136: 1.018416667 | Q136: 0.9810127579
B137: 2017 | C137: =1+C61 -> 1.04863194 | D137: 1.037433333 | E137: 1.119226757 | F137: 1.042138874 | G137: 1.021075647 | H137: 1.009308333 | I137: 1.177476211 | J137: 1.223789816 | K137: 1.083181535 | L137: 1.088871301 | M137: 1.046832526 | N137: 1.0444 | O137: 1.039791667 | P137: 1.0233 | Q137: 1.197053169
B138: 2018 | C138: =1+C62 -> 1.043479627 | D138: 1.0393 | E138: 0.9906614107 | F138: 1.023660807 | G138: 1.019825969 | H138: 1.019391667 | I138: 0.9355973658 | J138: 0.9420501287 | K138: 0.9587139193 | L138: 0.9598540623 | M138: 1.042591231 | N138: 1.048 | O138: 1.045566667 | P138: 1.0291 | Q138: 0.8240294362
B139: 2019 | C139: =1+C63 -> 1.045240323 | D139: 1.033875 | E139: 1.169171886 | F139: 0.9899999167 | G139: 1.02287622 | H139: 1.020608333 | I139: 1.253696609 | J139: 1.201620743 | K139: 1.252025406 | L139: 1.248481403 | M139: 1.044845064 | N139: 1.04375 | O139: 1.039133333 | P139: 1.021441667 | Q139: 1.169194652
B140: 2020 | C140: =1+C64 -> 1.02913033 | D140: 1.024766667 | E140: 1.220055772 | F140: 1.007509422 | G140: 1.013133747 | H140: 1.00365 | I140: 1.150649604 | J140: 1.069959801 | K140: 0.9474262099 | L140: 0.9383836697 | M140: 1.029188608 | N140: 1.036025 | O140: 1.030808333 | P140: 1.008941667 | Q140: 1.052866844
B141: 2021 | C141: =1+C65 -> 1.081692792 | D141: 1.027033333 | E141: 0.9557252142 | F141: 1.185384194 | G141: 1.069474371 | H141: 1.000441667 | I141: 1.238171947 | J141: 1.17166053 | K141: 1.345703604 | L141: 1.336610566 | M141: 1.07799414 | N141: 1.033916667 | O141: 1.029875 | P141: 1.014425 | Q141: 1.084153158
B142: 2022 | C142: 1.13488992 | D142: 1.040741667 | E142: 1.00436513 | F142: 1.06636184 | G142: 1.062457675 | H142: 1.020216667 | I142: 0.7837970043 | J142: 0.9080874755 | K142: 0.7130051917 | L142: 0.7120140758 | M142: 1.124628627 | N142: 1.050716667 | O142: 1.0547 | P142: 1.029516667 | Q142: 0.8162399509
B143: 2023 | C143: 1.096346225 | D143: 1.0481 | E143: 1.136201842 | F143: 0.9672552846 | G143: 1.032445594 | H143: 1.050683333 | I143: 1.216968515 | J143: 1.128422845 | K143: 1.107564395 | L143: 1.109043548 | M143: 1.087814311 | N143: 1.058608333 | O143: 1.067983333 | P143: 1.039575 | Q143: 1.140051431
